Workbook

Sheet EF (hidden)
A1: Fin | B1: Función | C1: Sub-función | D1: Dimención del indicador | E1: Tipo | F1: Tipo de programa | G1: Frecuencia | H1: Tipo de indicador | I1: Nivel de MIR
A2: 1. Gobierno | B2: 1.1. Legislación | C2: 1.1.1 Legislación | D2: Eficacia | E2: Estatégico | F2: MIR | G2: Mensual | H2: Cantidad | I2: FIN
A3: 1. Gobierno | B3: 1.1. Legislación | C3: 1.1.2 Fiscalización | D3: Eficiencia | E3: Gestión | F3: Indicador de gestión | G3: Bimestral | H3: Porcentaje | I3: PROPÓSITO
A4: 1. Gobierno | B4: 1.2. Justicia | C4: 1.2.1 Impartición de justicia | D4: Econocmía | G4: Trimestral | H4: Tasa | I4: COMPONENTE
A5: 1. Gobierno | B5: 1.2. Justicia | C5: 1.2.2 Procuración de justicia | D5: Calidad | G5: Cuatrimestral | H5: Razón | I5: ACTIVIDAD
A6: 1. Gobierno | B6: 1.2. Justicia | C6: 1.2.3 Reclusión y readaptación social | G6: Semestral | H6: Promedio | I6: INDICADOR DE GESTIÓN
A7: 1. Gobierno | B7: 1.2. Justicia | C7: 1.2.4 Derechos humanos | G7: Anual | H7: Tasa de variación
A8: 1. Gobierno | B8: 1.3. Coordinación política de gobierno | C8: 1.3.1 Presidencia / Gubernatura | G8: Bienal
A9: 1. Gobierno | B9: 1.3. Coordinación política de gobierno | C9: 1.3.2 Política interior
A10: 1. Gobierno | B10: 1.3. Coordinación política de gobierno | C10: 1.3.3 Preservación y cuidado del patrimonio público
A11: 1. Gobierno | B11: 1.3. Coordinación política de gobierno | C11: 1.3.4 Función pública
A12: 1. Gobierno | B12: 1.3. Coordinación política de gobierno | C12: 1.3.5 Asuntos jurídicos
A13: 1. Gobierno | B13: 1.3. Coordinación política de gobierno | C13: 1.3.6 Organización de procesos electorales
A14: 1. Gobierno | B14: 1.3. Coordinación política de gobierno | C14: 1.3.7 Población
A15: 1. Gobierno | B15: 1.3. Coordinación política de gobierno | C15: 1.3.8 Territorio
A16: 1. Gobierno | B16: 1.3. Coordinación política de gobierno | C16: 1.3.9 Otros
A17: 1. Gobierno | B17: 1.4. Relaciones exteriores | C17: 1.4.1 Relaciones exteriores
A18: 1. Gobierno | B18: 1.5. Asuntos financieros y hacendarios | C18: 1.5.1 Asuntos financieros
A19: 1. Gobierno | B19: 1.5. Asuntos financieros y hacendarios | C19: 1.5.2 Asuntos hacendarios
A20: 1. Gobierno | B20: 1.6 Seguridad nacional | C20: 1.6.1 Defensa
A21: 1. Gobierno | B21: 1.6 Seguridad nacional | C21: 1.6.2 Marina
A22: 1. Gobierno | B22: 1.6 Seguridad nacional | C22: 1.6.3 Inteligencia para la preservación de la seguridad nacional
A23: 1. Gobierno | B23: 1.7. Asuntos de orden público y seguridad interior | C23: 1.7.1 Policía
A24: 1. Gobierno | B24: 1.7. Asuntos de orden público y seguridad interior | C24: 1.7.2 Protección civil
A25: 1. Gobierno | B25: 1.7. Asuntos de orden público y seguridad interior | C25: 1.7.3 Otros asuntos de orden público y seguridad
A26: 1. Gobierno | B26: 1.7. Asuntos de orden público y seguridad interior | C26: 1.7.4 Sistema nacional de seguridad pública
A27: 1. Gobierno | B27: 1.8. Otros servicios generales | C27: 1.8.1 Servicios registrales, administrativos y patrimoniales
A28: 1. Gobierno | B28: 1.8. Otros servicios generales | C28: 1.8.2 Servicios estadísticos
A29: 1. Gobierno | B29: 1.8. Otros servicios generales | C29: 1.8.3 Servicios de comunicación y medios
A30: 1. Gobierno | B30: 1.8. Otros servicios generales | C30: 1.8.4 Acceso a la información pública gubernamental
A31: 1. Gobierno | B31: 1.8. Otros servicios generales | C31: 1.8.5 Otros
A32: 2. Desarrollo social | B32: 2.1. Protección ambiental | C32: 2.1.1 Ordenación de desechos
A33: 2. Desarrollo social | B33: 2.1. Protección ambiental | C33: 2.1.2 Administración del agua
A34: 2. Desarrollo social | B34: 2.1. Protección ambiental | C34: 2.1.3 Ordenación de aguas residuales, drenaje y alcantarillado
A35: 2. Desarrollo social | B35: 2.1. Protección ambiental | C35: 2.1.4 Reducción de la contaminación
A36: 2. Desarrollo social | B36: 2.1. Protección ambiental | C36: 2.1.5 Protección de la diversidad biológica y del paisaje
A37: 2. Desarrollo social | B37: 2.1. Protección ambiental | C37: 2.1.6 Otros de protección ambiental
A38: 2. Desarrollo social | B38: 2.2. Vivienda y servicios a la comunidad | C38: 2.2.1 Urbanización
A39: 2. Desarrollo social | B39: 2.2. Vivienda y servicios a la comunidad | C39: 2.2.2 Desarrollo comunitario
A40: 2. Desarrollo social | B40: 2.2. Vivienda y servicios a la comunidad | C40: 2.2.3 Abastecimiento de agua
A41: 2. Desarrollo social | B41: 2.2. Vivienda y servicios a la comunidad | C41: 2.2.4 Alumbrado público
A42: 2. Desarrollo social | B42: 2.2. Vivienda y servicios a la comunidad | C42: 2.2.5 Vivienda
A43: 2. Desarrollo social | B43: 2.2. Vivienda y servicios a la comunidad | C43: 2.2.6 Servicios comunales
A44: 2. Desarrollo social | B44: 2.2. Vivienda y servicios a la comunidad | C44: 2.2.7 Desarrollo regional
A45: 2. Desarrollo social | B45: 2.3. Salud | C45: 2.3.1 Prestación de servicios de aalud a la comunidad
A46: 2. Desarrollo social | B46: 2.3. Salud | C46: 2.3.2 Prestación de servicios de salud a la persona
A47: 2. Desarrollo social | B47: 2.3. Salud | C47: 2.3.3 Generación de recursos para la salud
A48: 2. Desarrollo social | B48: 2.3. Salud | C48: 2.3.4 Rectoría del sistema de salud
A49: 2. Desarrollo social | B49: 2.3. Salud | C49: 2.3.5 Protección social en salud
A50: 2. Desarrollo social | B50: 2.4. Recreación cultura y otras manifestaciones sociales | C50: 2.4.1 Deporte y recreación
A51: 2. Desarrollo social | B51: 2.4. Recreación cultura y otras manifestaciones sociales | C51: 2.4.2 Cultura
A52: 2. Desarrollo social | B52: 2.4. Recreación cultura y otras manifestaciones sociales | C52: 2.4.3 Radio, televisión y editoriales
A53: 2. Desarrollo social | B53: 2.4. Recreación cultura y otras manifestaciones sociales | C53: 2.4.4 Asuntos religiosos y otras manifestaciones sociales
A54: 2. Desarrollo social | B54: 2.5. Educación | C54: 2.5.1 Educación básica
A55: 2. Desarrollo social | B55: 2.5. Educación | C55: 2.5.2 Educación media superior
A56: 2. Desarrollo social | B56: 2.5. Educación | C56: 2.5.3 Educación superior
A57: 2. Desarrollo social | B57: 2.5. Educación | C57: 2.5.4 Posgrado
A58: 2. Desarrollo social | B58: 2.5. Educación | C58: 2.5.5 Educación para adultos
A59: 2. Desarrollo social | B59: 2.5. Educación | C59: 2.5.6 Otros servicios educativos y actividades inherentes
A60: 2. Desarrollo social | B60: 2.6. Protección social | C60: 2.6.1 Enfermedad e incapacidad
A61: 2. Desarrollo social | B61: 2.6. Protección social | C61: 2.6.2 Edad avanzada
A62: 2. Desarrollo social | B62: 2.6. Protección social | C62: 2.6.3 Familia e hijos
A63: 2. Desarrollo social | B63: 2.6. Protección social | C63: 2.6.4 Desempleo
A64: 2. Desarrollo social | B64: 2.6. Protección social | C64: 2.6.5 Alimentación y nutrición
A65: 2. Desarrollo social | B65: 2.6. Protección social | C65: 2.6.6 Apoyo social para la vivienda
A66: 2. Desarrollo social | B66: 2.6. Protección social | C66: 2.6.7 Indígenas
A67: 2. Desarrollo social | B67: 2.6. Protección social | C67: 2.6.8 Otros grupos vulnerables
A68: 2. Desarrollo social | B68: 2.6. Protección social | C68: 2.6.9 Otros de seguridad social y asistencia social
A69: 2. Desarrollo social | B69: 2.7. Otros asuntos sociales | C69: 2.7.1 Otros asuntos sociales
A70: 3. Desarrollo económico | B70: 3.1. Asuntos económicos comerciales y laborales generales | C70: 3.1.1 Asuntos económicos y comerciales en general
A71: 3. Desarrollo económico | B71: 3.1. Asuntos económicos comerciales y laborales generales | C71: 3.1.2 Asuntos laborales generales
A72: 3. Desarrollo económico | B72: 3.2. Agropecuaria silvicultura pesca y caza | C72: 3.2.1 Agropecuaria
A73: 3. Desarrollo económico | B73: 3.2. Agropecuaria silvicultura pesca y caza | C73: 3.2.2 Silvicultura
A74: 3. Desarrollo económico | B74: 3.2. Agropecuaria silvicultura pesca y caza | C74: 3.2.3 Acuacultura, pesca y caza
A75: 3. Desarrollo económico | B75: 3.2. Agropecuaria silvicultura pesca y caza | C75: 3.2.4 Agroindustrial
A76: 3. Desarrollo económico | B76: 3.2. Agropecuaria silvicultura pesca y caza | C76: 3.2.5 Hidroagrícola
A77: 3. Desarrollo económico | B77: 3.2. Agropecuaria silvicultura pesca y caza | C77: 3.2.6 Apoyo financiero a la banca y seguro agropecuario
A78: 3. Desarrollo económico | B78: 3.3. Combustibles y energía | C78: 3.3.1 Carbón y otros combustibles minerales sólidos
A79: 3. Desarrollo económico | B79: 3.3. Combustibles y energía | C79: 3.3.2 Petróleo y gas natural (Hidrocarburos)
A80: 3. Desarrollo económico | B80: 3.3. Combustibles y energía | C80: 3.3.3 Combustibles nucleares
A81: 3. Desarrollo económico | B81: 3.3. Combustibles y energía | C81: 3.3.4 Otros combustibles
A82: 3. Desarrollo económico | B82: 3.3. Combustibles y energía | C82: 3.3.5 Electricidad
A83: 3. Desarrollo económico | B83: 3.3. Combustibles y energía | C83: 3.3.6 Energía no eléctrica
A84: 3. Desarrollo económico | B84: 3.4. Minería manufacturas y construcción | C84: 3.4.1 Extracción de recursos minerales excepto los combustibles minerales
A85: 3. Desarrollo económico | B85: 3.4. Minería manufacturas y construcción | C85: 3.4.2 Manufacturas
A86: 3. Desarrollo económico | B86: 3.4. Minería manufacturas y construcción | C86: 3.4.3 Construcción
A87: 3. Desarrollo económico | B87: 3.5. Transporte | C87: 3.5.1 Transporte por carretera
A88: 3. Desarrollo económico | B88: 3.5. Transporte | C88: 3.5.2 Transporte por agua y puertos
A89: 3. Desarrollo económico | B89: 3.5. Transporte | C89: 3.5.3 Transporte por ferrocarril
A90: 3. Desarrollo económico | B90: 3.5. Transporte | C90: 3.5.4 Transporte aéreo
A91: 3. Desarrollo económico | B91: 3.5. Transporte | C91: 3.5.5 Transporte por oleoductos y gasoductos y otros sistemas de transporte
A92: 3. Desarrollo económico | B92: 3.5. Transporte | C92: 3.5.6 Otros relacionados con transporte
A93: 3. Desarrollo económico | B93: 3.6. Comunicaciones | C93: 3.6.1 Comunicaciones
A94: 3. Desarrollo económico | B94: 3.7. Turismo | C94: 3.7.1 Turismo
A95: 3. Desarrollo económico | B95: 3.7. Turismo | C95: 3.7.2 Hoteles y restaurantes
A96: 3. Desarrollo económico | B96: 3.8. Ciencia tecnología e innovación | C96: 3.8.1 Investigación científica
A97: 3. Desarrollo económico | B97: 3.8. Ciencia tecnología e innovación | C97: 3.8.2 Desarrollo tecnológico
A98: 3. Desarrollo económico | B98: 3.8. Ciencia tecnología e innovación | C98: 3.8.3 Servicios científicos y tecnológicos
A99: 3. Desarrollo económico | B99: 3.8. Ciencia tecnología e innovación | C99: 3.8.4 Innovación
A100: 3. Desarrollo económico | B100: 3.9. Otras industrias y otros asuntos económicos | C100: 3.9.1 Comercio, distribución, almacenamiento y depósito
A101: 3. Desarrollo económico | B101: 3.9. Otras industrias y otros asuntos económicos | C101: 3.9.2 Otras industrias
A102: 3. Desarrollo económico | B102: 3.9. Otras industrias y otros asuntos económicos | C102: 3.9.3 Otros asuntos económicos
A103: 4. Otros no clasificadas en funciones anteriores | B103: 4.1. Transacciones de la deuda financiera y costo financiero deuda | C103: 4.1.1 Deuda pública interna
A104: 4. Otros no clasificadas en funciones anteriores | B104: 4.1. Transacciones de la deuda financiera y costo financiero deuda | C104: 4.1.2 Deuda pública externa
A105: 4. Otros no clasificadas en funciones anteriores | B105: 4.2. Transferencias, participaciones y aportaciones entre diferentes niveles y ordenes de gobierno | C105: 4.2.1 Transferencias entre diferentes niveles y ordenes de gobierno
A106: 4. Otros no clasificadas en funciones anteriores | B106: 4.2. Transferencias, participaciones y aportaciones entre diferentes niveles y ordenes de gobierno | C106: 4.2.2 Participaciones entre diferentes niveles y ordenes de gobierno
A107: 4. Otros no clasificadas en funciones anteriores | B107: 4.2. Transferencias, participaciones y aportaciones entre diferentes niveles y ordenes de gobierno | C107: 4.2.3 Aportaciones entre diferentes niveles y ordenes de gobierno
A108: 4. Otros no clasificadas en funciones anteriores | B108: 4.3. Saneamiento del sistema financiero | C108: 4.3.1 Saneamiento del sistema financiero
A109: 4. Otros no clasificadas en funciones anteriores | B109: 4.3. Saneamiento del sistema financiero | C109: 4.3.2 Apoyos IPAB
A110: 4. Otros no clasificadas en funciones anteriores | B110: 4.3. Saneamiento del sistema financiero | C110: 4.3.3 Banca de desarrollo
A111: 4. Otros no clasificadas en funciones anteriores | B111: 4.3. Saneamiento del sistema financiero | C111: 4.3.4 Apoyo a los programas de reestructura en unidades de inversión (UDIS)
A112: 4. Otros no clasificadas en funciones anteriores | B112: 4.4. Adeudos de ejercicios fiscales anteriores | C112: 4.4.1 Adeudos de ejercicios fiscales anteriores

Sheet BD (hidden)
G1: F1-F1LDF
A2: =MID(G2,1,1) -> 1 | B2: =MID(G2,2,1) -> 0 | C2: =MID(G2,3,1) -> 0 | D2: =MID(G2,4,1) -> 0 | E2: =MID(G2,5,1) -> 0 | G2: 10000 | H2: ='F1'!AF106 -> 638,179,044.70
A3: 1 | B3: 1 | C3: 0 | D3: 0 | E3: 0 | F3: =MID(G3,7,1) ->  | G3: 11000 | H3: ='F1'!AF46 -> 32,107,773.55
A4: 1 | B4: 1 | C4: 1 | D4: 0 | E4: 0 | G4: 11100 | H4: ='F1'!AF8 -> 23,965,674.10
A5: 1 | B5: 1 | C5: 1 | D5: 1 | E5: 0 | G5: 11110 | H5: ='F1'!AF9 -> 431,563.12
A6: 1 | B6: 1 | C6: 1 | D6: 2 | E6: 0 | G6: 11120 | H6: ='F1'!AF10 -> 23,534,110.98
A7: 1 | B7: 1 | C7: 1 | D7: 3 | E7: 0 | G7: 11130 | H7: ='F1'!AF11 -> 0.00
A8: 1 | B8: 1 | C8: 1 | D8: 4 | E8: 0 | G8: 11140 | H8: ='F1'!AF12 -> 0.00
A9: 1 | B9: 1 | C9: 1 | D9: 5 | E9: 0 | G9: 11150 | H9: ='F1'!AF13 -> 0.00
A10: 1 | B10: 1 | C10: 1 | D10: 6 | E10: 0 | G10: 11160 | H10: ='F1'!AF14 -> 0.00
A11: 1 | B11: 1 | C11: 1 | D11: 9 | E11: 0 | G11: 11190 | H11: ='F1'!AF15 -> 0.00
A12: 1 | B12: 1 | C12: 2 | D12: 0 | E12: 0 | G12: 11200 | H12: ='F1'!AF16 -> 5,361,392.28
A13: 1 | B13: 1 | C13: 2 | D13: 1 | E13: 0 | G13: 11210 | H13: ='F1'!AF17 -> 0.00
A14: 1 | B14: 1 | C14: 2 | D14: 2 | E14: 0 | G14: 11220 | H14: ='F1'!AF18 -> 0.00
A15: 1 | B15: 1 | C15: 2 | D15: 3 | E15: 0 | G15: 11230 | H15: ='F1'!AF19 -> 2,514,938.94
A16: 1 | B16: 1 | C16: 2 | D16: 4 | E16: 0 | G16: 11240 | H16: ='F1'!AF20 -> 0.00
A17: 1 | B17: 1 | C17: 2 | D17: 5 | E17: 0 | G17: 11250 | H17: ='F1'!AF21 -> 2,846,453.34
A18: 1 | B18: 1 | C18: 2 | D18: 6 | E18: 0 | G18: 11260 | H18: ='F1'!AF22 -> 0.00
A19: 1 | B19: 1 | C19: 2 | D19: 9 | E19: 0 | G19: 11290 | H19: ='F1'!AF23 -> 0.00
A20: 1 | B20: 1 | C20: 3 | D20: 0 | E20: 0 | G20: 11300 | H20: ='F1'!AF24 -> 2,780,707.17
A21: 1 | B21: 1 | C21: 3 | D21: 1 | E21: 0 | G21: 11310 | H21: ='F1'!AF25 -> 50,000.00
A22: 1 | B22: 1 | C22: 3 | D22: 2 | E22: 0 | G22: 11320 | H22: ='F1'!AF26 -> 125,000.00
A23: 1 | B23: 1 | C23: 3 | D23: 3 | E23: 0 | G23: 11330 | H23: ='F1'!AF27 -> 0.00
A24: 1 | B24: 1 | C24: 3 | D24: 4 | E24: 0 | G24: 11340 | H24: ='F1'!AF28 -> 2,605,707.17
A25: 1 | B25: 1 | C25: 3 | D25: 9 | E25: 0 | G25: 11390 | H25: ='F1'!AF29 -> 0.00
A26: 1 | B26: 1 | C26: 4 | D26: 0 | E26: 0 | G26: 11400 | H26: ='F1'!AF30 -> 0.00
A27: 1 | B27: 1 | C27: 4 | D27: 1 | E27: 0 | G27: 11410 | H27: ='F1'!AF31 -> 0.00
A28: 1 | B28: 1 | C28: 4 | D28: 2 | E28: 0 | G28: 11420 | H28: ='F1'!AF32 -> 0.00
A29: 1 | B29: 1 | C29: 4 | D29: 3 | E29: 0 | G29: 11430 | H29: ='F1'!AF33 -> 0.00
A30: 1 | B30: 1 | C30: 4 | D30: 4 | E30: 0 | G30: 11440 | H30: ='F1'!AF34 -> 0.00
A31: 1 | B31: 1 | C31: 4 | D31: 5 | E31: 0 | G31: 11450 | H31: ='F1'!AF35 -> 0.00
A32: 1 | B32: 1 | C32: 5 | D32: 0 | E32: 0 | G32: 11500 | H32: ='F1'!AF36 -> 0.00
A33: 1 | B33: 1 | C33: 5 | D33: 1 | E33: 0 | G33: 11510 | H33: ='F1'!AF37 -> 0.00
A34: =MID(G34,1,1) -> 1 | B34: =MID(G34,2,1) -> 1 | C34: =MID(G34,3,1) -> 6 | D34: =MID(G34,4,1) -> 0 | E34: =MID(G34,5,1) -> 0 | G34: 11600 | H34: ='F1'!AF38 -> 0.00
A35: 1 | B35: 1 | C35: 6 | D35: 1 | E35: 0 | G35: 11610 | H35: ='F1'!AF39 -> 0.00
A36: 1 | B36: 1 | C36: 6 | D36: 2 | E36: 0 | G36: 11620 | H36: ='F1'!AF40 -> 0.00
A37: 1 | B37: 1 | C37: 9 | D37: 0 | E37: 0 | G37: 11900 | H37: ='F1'!AF41 -> 0.00
A38: 1 | B38: 1 | C38: 9 | D38: 1 | E38: 0 | G38: 11910 | H38: ='F1'!AF42 -> 0.00
A39: 1 | B39: 1 | C39: 9 | D39: 2 | E39: 0 | G39: 11920 | H39: ='F1'!AF43 -> 0.00
A40: 1 | B40: 1 | C40: 9 | D40: 3 | E40: 0 | G40: 11930 | H40: ='F1'!AF44 -> 0.00
A41: 1 | B41: 1 | C41: 9 | D41: 4 | E41: 0 | G41: 11940 | H41: ='F1'!AF45 -> 0.00
A42: 1 | B42: 2 | C42: 0 | D42: 0 | E42: 0 | G42: 12000 | H42: ='F1'!AF105 -> 606,071,271.15
A43: 1 | B43: 2 | C43: 1 | D43: 0 | E43: 0 | G43: 12100 | H43: ='F1'!AF48 -> 0.00
A44: 1 | B44: 2 | C44: 1 | D44: 1 | E44: 0 | G44: 12110 | H44: ='F1'!AF49 -> 0.00
A45: 1 | B45: 2 | C45: 1 | D45: 2 | E45: 0 | G45: 12120 | H45: ='F1'!AF50 -> 0.00
A46: 1 | B46: 2 | C46: 1 | D46: 3 | E46: 0 | G46: 12130 | H46: ='F1'!AF51 -> 0.00
A47: 1 | B47: 2 | C47: 1 | D47: 4 | E47: 0 | G47: 12140 | H47: ='F1'!AF52 -> 0.00
A48: 1 | B48: 2 | C48: 2 | D48: 0 | E48: 0 | G48: 12200 | H48: ='F1'!AF53 -> 0.00
A49: 1 | B49: 2 | C49: 2 | D49: 1 | E49: 0 | G49: 12210 | H49: ='F1'!AF54 -> 0.00
A50: 1 | B50: 2 | C50: 2 | D50: 2 | E50: 0 | G50: 12220 | H50: ='F1'!AF55 -> 0.00
A51: 1 | B51: 2 | C51: 2 | D51: 3 | E51: 0 | G51: 12230 | H51: ='F1'!AF56 -> 0.00
A52: 1 | B52: 2 | C52: 2 | D52: 4 | E52: 0 | G52: 12240 | H52: ='F1'!AF57 -> 0.00
A53: 1 | B53: 2 | C53: 2 | D53: 9 | E53: 0 | G53: 12290 | H53: ='F1'!AF58 -> 0.00
A54: 1 | B54: 2 | C54: 3 | D54: 0 | E54: 0 | G54: 12300 | H54: ='F1'!AF59 -> 558,182,589.98
A55: 1 | B55: 2 | C55: 3 | D55: 1 | E55: 0 | G55: 12310 | H55: ='F1'!AF60 -> 5,900,000.00
A56: 1 | B56: 2 | C56: 3 | D56: 2 | E56: 0 | G56: 12320 | H56: ='F1'!AF61 -> 578,075.18
A57: 1 | B57: 2 | C57: 3 | D57: 3 | E57: 0 | G57: 12330 | H57: ='F1'!AF62 -> 11,297,680.73
A58: 1 | B58: 2 | C58: 3 | D58: 4 | E58: 0 | G58: 12340 | H58: ='F1'!AF63 -> 36,641,456.92
A59: 1 | B59: 2 | C59: 3 | D59: 5 | E59: 0 | G59: 12350 | H59: ='F1'!AF64 -> 477,687,410.72
A60: 1 | B60: 2 | C60: 3 | D60: 6 | E60: 0 | G60: 12360 | H60: ='F1'!AF65 -> 26,077,966.43
A61: 1 | B61: 2 | C61: 3 | D61: 9 | E61: 0 | G61: 12390 | H61: ='F1'!AF66 -> 0.00
A62: 1 | B62: 2 | C62: 4 | D62: 0 | E62: 0 | G62: 12400 | H62: ='F1'!AF67 -> 47,596,491.48
A63: 1 | B63: 2 | C63: 4 | D63: 1 | E63: 0 | G63: 12410 | H63: ='F1'!AF68 -> 4,280,699.50
A64: 1 | B64: 2 | C64: 4 | D64: 2 | E64: 0 | G64: 12420 | H64: ='F1'!AF69 -> 4,660,660.52
A65: 1 | B65: 2 | C65: 4 | D65: 3 | E65: 0 | G65: 12430 | H65: ='F1'!AF70 -> 0.00
A66: =MID(G66,1,1) -> 1 | B66: =MID(G66,2,1) -> 2 | C66: =MID(G66,3,1) -> 4 | D66: =MID(G66,4,1) -> 4 | E66: =MID(G66,5,1) -> 0 | G66: 12440 | H66: ='F1'!AF71 -> 4,650,157.99
A67: 1 | B67: 2 | C67: 4 | D67: 5 | E67: 0 | F67: =MID(G67,7,1) ->  | G67: 12450 | H67: ='F1'!AF72 -> 387,977.14
A68: 1 | B68: 2 | C68: 4 | D68: 6 | E68: 0 | G68: 12460 | H68: ='F1'!AF73 -> 32,291,099.69
A69: 1 | B69: 2 | C69: 4 | D69: 7 | E69: 0 | G69: 12470 | H69: ='F1'!AF74 -> 1,325,896.64
A70: 1 | B70: 2 | C70: 4 | D70: 8 | E70: 0 | G70: 12480 | H70: ='F1'!AF75 -> 0.00
A71: 1 | B71: 2 | C71: 5 | D71: 0 | E71: 0 | G71: 12500 | H71: ='F1'!AF76 -> 292,189.69
A72: 1 | B72: 2 | C72: 5 | D72: 1 | E72: 0 | G72: 12510 | H72: ='F1'!AF77 -> 208,108.27
A73: 1 | B73: 2 | C73: 5 | D73: 2 | E73: 0 | G73: 12520 | H73: ='F1'!AF78 -> 0.00
A74: 1 | B74: 2 | C74: 5 | D74: 3 | E74: 0 | G74: 12530 | H74: ='F1'!AF79 -> 0.00
A75: 1 | B75: 2 | C75: 5 | D75: 4 | E75: 0 | G75: 12540 | H75: ='F1'!AF80 -> 84,081.42
A76: 1 | B76: 2 | C76: 5 | D76: 9 | E76: 0 | G76: 12590 | H76: ='F1'!AF81 -> 0.00
A77: 1 | B77: 2 | C77: 6 | D77: 0 | E77: 0 | G77: 12600 | H77: ='F1'!AF82 -> 0.00
A78: 1 | B78: 2 | C78: 6 | D78: 1 | E78: 0 | G78: 12610 | H78: ='F1'!AF83 -> 0.00
A79: 1 | B79: 2 | C79: 6 | D79: 2 | E79: 0 | G79: 12620 | H79: ='F1'!AF84 -> 0.00
A80: 1 | B80: 2 | C80: 6 | D80: 3 | E80: 0 | G80: 12630 | H80: ='F1'!AF85 -> 0.00
A81: 1 | B81: 2 | C81: 6 | D81: 4 | E81: 0 | G81: 12640 | H81: ='F1'!AF86 -> 0.00
A82: 1 | B82: 2 | C82: 6 | D82: 5 | E82: 0 | G82: 12650 | H82: ='F1'!AF87 -> 0.00
A83: 1 | B83: 2 | C83: 7 | D83: 0 | E83: 0 | G83: 12700 | H83: ='F1'!AF88 -> 0.00
A84: 1 | B84: 2 | C84: 7 | D84: 1 | E84: 0 | G84: 12710 | H84: ='F1'!AF89 -> 0.00
A85: 1 | B85: 2 | C85: 7 | D85: 2 | E85: 0 | G85: 12720 | H85: ='F1'!AF90 -> 0.00
A86: 1 | B86: 2 | C86: 7 | D86: 3 | E86: 0 | G86: 12730 | H86: ='F1'!AF91 -> 0.00
A87: 1 | B87: 2 | C87: 7 | D87: 4 | E87: 0 | G87: 12740 | H87: ='F1'!AF92 -> 0.00
A88: 1 | B88: 2 | C88: 7 | D88: 5 | E88: 0 | G88: 12750 | H88: ='F1'!AF93 -> 0.00
A89: 1 | B89: 2 | C89: 7 | D89: 9 | E89: 0 | G89: 12790 | H89: ='F1'!AF94 -> 0.00
A90: 1 | B90: 2 | C90: 8 | D90: 0 | E90: 0 | G90: 12800 | H90: ='F1'!AF95 -> 0.00
A91: 1 | B91: 2 | C91: 8 | D91: 1 | E91: 0 | G91: 12810 | H91: ='F1'!AF96 -> 0.00
A92: 1 | B92: 2 | C92: 8 | D92: 2 | E92: 0 | G92: 12820 | H92: ='F1'!AF97 -> 0.00
A93: 1 | B93: 2 | C93: 8 | D93: 3 | E93: 0 | G93: 12830 | H93: ='F1'!AF98 -> 0.00
A94: 1 | B94: 2 | C94: 8 | D94: 4 | E94: 0 | G94: 12840 | H94: ='F1'!AF99 -> 0.00
A95: 1 | B95: 2 | C95: 8 | D95: 9 | E95: 0 | G95: 12890 | H95: ='F1'!AF100 -> 0.00
A96: 1 | B96: 2 | C96: 9 | D96: 0 | E96: 0 | G96: 12900 | H96: ='F1'!AF101 -> 0.00
A97: 1 | B97: 2 | C97: 9 | D97: 1 | E97: 0 | G97: 12910 | H97: ='F1'!AF102 -> 0.00
A98: 1 | B98: 2 | C98: 9 | D98: 2 | E98: 0 | G98: 12920 | H98: ='F1'!AF103 -> 0.00
A99: 1 | B99: 2 | C99: 9 | D99: 3 | E99: 0 | G99: 12930 | H99: ='F1'!AF104 -> 0.00
A100: =MID(G100,1,1) -> 2 | B100: =MID(G100,2,1) -> 0 | C100: =MID(G100,3,1) -> 0 | D100: =MID(G100,4,1) -> 0 | E100: 0 | G100: 20000 | H100: ='F1'!BM80 -> 59,462,815.15
A101: 2 | B101: 1 | C101: 0 | D101: 0 | E101: 0 | G101: 21000 | H101: ='F1'!BM48 -> 26,568,243.15
A102: 2 | B102: 1 | C102: 1 | D102: 0 | E102: 0 | G102: 21100 | H102: ='F1'!BM8 -> 24,412,651.47
A103: 2 | B103: 1 | C103: 1 | D103: 1 | E103: 0 | G103: 21110 | H103: ='F1'!BM9 -> 4,467.11
A104: 2 | B104: 1 | C104: 1 | D104: 2 | E104: 0 | G104: 21120 | H104: ='F1'!BM10 -> 1,794,587.43
A105: 2 | B105: 1 | C105: 1 | D105: 3 | E105: 0 | G105: 21130 | H105: ='F1'!BM11 -> 3,951,032.54
A106: 2 | B106: 1 | C106: 1 | D106: 4 | E106: 0 | G106: 21140 | H106: ='F1'!BM12 -> 0.00
A107: 2 | B107: 1 | C107: 1 | D107: 5 | E107: 0 | G107: 21150 | H107: ='F1'!BM13 -> 200,304.41
A108: 2 | B108: 1 | C108: 1 | D108: 6 | E108: 0 | G108: 21160 | H108: ='F1'!BM14 -> 0.00
A109: 2 | B109: 1 | C109: 1 | D109: 7 | E109: 0 | G109: 21170 | H109: ='F1'!BM15 -> 18,462,259.98
A110: 2 | B110: 1 | C110: 1 | D110: 8 | E110: 0 | G110: 21180 | H110: ='F1'!BM16 -> 0.00
A111: 2 | B111: 1 | C111: 1 | D111: 9 | E111: 0 | G111: 21190 | H111: ='F1'!BM17 -> 0.00
A112: 2 | B112: 1 | C112: 2 | D112: 0 | E112: 0 | G112: 21200 | H112: ='F1'!BM18 -> 0.00
A113: 2 | B113: 1 | C113: 2 | D113: 1 | E113: 0 | G113: 21210 | H113: ='F1'!BM19 -> 0.00
A114: 2 | B114: 1 | C114: 2 | D114: 2 | E114: 0 | G114: 21220 | H114: ='F1'!BM20 -> 0.00
A115: 2 | B115: 1 | C115: 2 | D115: 9 | E115: 0 | G115: 21290 | H115: ='F1'!BM21 -> 0.00
A116: 2 | B116: 1 | C116: 3 | D116: 0 | E116: 0 | G116: 21300 | H116: ='F1'!BM22 -> 0.00
A117: 2 | B117: 1 | C117: 3 | D117: 1 | E117: 0 | G117: 21310 | H117: ='F1'!BM23 -> 0.00
A118: 2 | B118: 1 | C118: 3 | D118: 2 | E118: 0 | G118: 21320 | H118: ='F1'!BM24 -> 0.00
A119: 2 | B119: 1 | C119: 3 | D119: 3 | E119: 0 | G119: 21330 | H119: ='F1'!BM25 -> 0.00
A120: 2 | B120: 1 | C120: 4 | D120: 0 | E120: 0 | G120: 21400 | H120: ='F1'!BM26 -> 0.00
A121: 2 | B121: 1 | C121: 4 | D121: 1 | E121: 0 | G121: 21410 | H121: ='F1'!BM27 -> 0.00
A122: 2 | B122: 1 | C122: 4 | D122: 2 | E122: 0 | G122: 21420 | H122: ='F1'!BM28 -> 0.00
A123: 2 | B123: 1 | C123: 5 | D123: 0 | E123: 0 | G123: 21500 | H123: ='F1'!BM29 -> 2,089,743.73
A124: 2 | B124: 1 | C124: 5 | D124: 1 | E124: 0 | G124: 21510 | H124: ='F1'!BM30 -> 2,089,743.73
A125: 2 | B125: 1 | C125: 5 | D125: 2 | E125: 0 | G125: 21520 | H125: ='F1'!BM31 -> 0.00
A126: 2 | B126: 1 | C126: 5 | D126: 9 | E126: 0 | G126: 21590 | H126: ='F1'!BM32 -> 0.00
A127: 2 | B127: 1 | C127: 6 | D127: 0 | E127: 0 | G127: 21600 | H127: ='F1'!BM33 -> 0.00
A128: 2 | B128: 1 | C128: 6 | D128: 1 | E128: 0 | G128: 21610 | H128: ='F1'!BM34 -> 0.00
A129: 2 | B129: 1 | C129: 6 | D129: 2 | E129: 0 | G129: 21620 | H129: ='F1'!BM35 -> 0.00
A130: 2 | B130: 1 | C130: 6 | D130: 3 | E130: =MID(G130,5,1) -> 0 | G130: 21630 | H130: ='F1'!BM36 -> 0.00
A131: 2 | B131: 1 | C131: 6 | D131: 4 | E131: 0 | F131: =MID(G131,7,1) ->  | G131: 21640 | H131: ='F1'!BM37 -> 0.00
A132: =MID(G132,1,1) -> 2 | B132: =MID(G132,2,1) -> 1 | C132: =MID(G132,3,1) -> 6 | D132: =MID(G132,4,1) -> 5 | E132: 0 | G132: 21650 | H132: ='F1'!BM38 -> 0.00
A133: 2 | B133: 1 | C133: 6 | D133: 6 | E133: 0 | G133: 21660 | H133: ='F1'!BM39 -> 0.00
A134: 2 | B134: 1 | C134: 7 | D134: 0 | E134: 0 | G134: 21700 | H134: ='F1'!BM40 -> 0.00
A135: 2 | B135: 1 | C135: 7 | D135: 1 | E135: 0 | G135: 21710 | H135: ='F1'!BM41 -> 0.00
A136: 2 | B136: 1 | C136: 7 | D136: 2 | E136: 0 | G136: 21720 | H136: ='F1'!BM42 -> 0.00
A137: 2 | B137: 1 | C137: 7 | D137: 9 | E137: 0 | G137: 21790 | H137: ='F1'!BM43 -> 0.00
A138: 2 | B138: 1 | C138: 9 | D138: 0 | E138: 0 | G138: 21900 | H138: ='F1'!BM44 -> 65,847.95
A139: 2 | B139: 1 | C139: 9 | D139: 1 | E139: 0 | G139: 21910 | H139: ='F1'!BM45 -> 65,847.95
A140: 2 | B140: 1 | C140: 9 | D140: 2 | E140: 0 | G140: 21920 | H140: ='F1'!BM46 -> 0.00
A141: 2 | B141: 1 | C141: 9 | D141: 9 | E141: 0 | G141: 21990 | H141: ='F1'!BM47 -> 0.00
A142: 2 | B142: 2 | C142: 0 | D142: 0 | E142: 0 | G142: 22000 | H142: ='F1'!BM79 -> 32,894,572.00
A143: 2 | B143: 2 | C143: 1 | D143: 0 | E143: 0 | G143: 22100 | H143: ='F1'!BM50 -> 0.00
A144: 2 | B144: 2 | C144: 1 | D144: 1 | E144: 0 | G144: 22110 | H144: ='F1'!BM51 -> 0.00
A145: 2 | B145: 2 | C145: 1 | D145: 2 | E145: 0 | G145: 22120 | H145: ='F1'!BM52 -> 0.00
A146: 2 | B146: 2 | C146: 2 | D146: 0 | E146: 0 | G146: 22200 | H146: ='F1'!BM53 -> 0.00
A147: 2 | B147: 2 | C147: 2 | D147: 1 | E147: 0 | G147: 22210 | H147: ='F1'!BM54 -> 0.00
A148: 2 | B148: 2 | C148: 2 | D148: 2 | E148: 0 | G148: 22220 | H148: ='F1'!BM55 -> 0.00
A149: 2 | B149: 2 | C149: 2 | D149: 9 | E149: 0 | G149: 22290 | H149: ='F1'!BM56 -> 0.00
A150: 2 | B150: 2 | C150: 3 | D150: 0 | E150: 0 | G150: 22300 | H150: ='F1'!BM57 -> 32,894,572.00
A151: 2 | B151: 2 | C151: 3 | D151: 1 | E151: 0 | G151: 22310 | H151: ='F1'!BM58 -> 0.00
A152: 2 | B152: 2 | C152: 3 | D152: 2 | E152: 0 | G152: 22320 | H152: ='F1'!BM59 -> 0.00
A153: 2 | B153: 2 | C153: 3 | D153: 3 | E153: 0 | G153: 22330 | H153: ='F1'!BM60 -> 32,894,572.00
A154: 2 | B154: 2 | C154: 3 | D154: 4 | E154: 0 | G154: 22340 | H154: ='F1'!BM61 -> 0.00
A155: 2 | B155: 2 | C155: 3 | D155: 5 | E155: 0 | G155: 22350 | H155: ='F1'!BM62 -> 0.00
A156: 2 | B156: 2 | C156: 4 | D156: 0 | E156: 0 | G156: 22400 | H156: ='F1'!BM63 -> 0.00
A157: 2 | B157: 2 | C157: 4 | D157: 1 | E157: 0 | G157: 22410 | H157: ='F1'!BM64 -> 0.00
A158: 2 | B158: 2 | C158: 4 | D158: 2 | E158: 0 | G158: 22420 | H158: ='F1'!BM65 -> 0.00
A159: 2 | B159: 2 | C159: 4 | D159: 9 | E159: 0 | G159: 22490 | H159: ='F1'!BM66 -> 0.00
A160: 2 | B160: 2 | C160: 5 | D160: 0 | E160: 0 | G160: 22500 | H160: ='F1'!BM67 -> 0.00
A161: 2 | B161: 2 | C161: 5 | D161: 1 | E161: 0 | G161: 22510 | H161: ='F1'!BM68 -> 0.00
A162: 2 | B162: 2 | C162: 5 | D162: 2 | E162: =MID(G162,5,1) -> 0 | G162: 22520 | H162: ='F1'!BM69 -> 0.00
A163: 2 | B163: 2 | C163: 5 | D163: 3 | E163: 0 | G163: 22530 | H163: ='F1'!BM70 -> 0.00
A164: =MID(G164,1,1) -> 2 | B164: =MID(G164,2,1) -> 2 | C164: =MID(G164,3,1) -> 5 | D164: =MID(G164,4,1) -> 4 | E164: 0 | G164: 22540 | H164: ='F1'!BM71 -> 0.00
A165: 2 | B165: 2 | C165: 5 | D165: 5 | E165: 0 | G165: 22550 | H165: ='F1'!BM72 -> 0.00
A166: 2 | B166: 2 | C166: 5 | D166: 6 | E166: 0 | G166: 22560 | H166: ='F1'!BM73 -> 0.00
A167: 2 | B167: 2 | C167: 6 | D167: 0 | E167: 0 | G167: 22600 | H167: ='F1'!BM74 -> 0.00
A168: 2 | B168: 2 | C168: 6 | D168: 1 | E168: 0 | G168: 22610 | H168: ='F1'!BM75 -> 0.00
A169: 2 | B169: 2 | C169: 6 | D169: 2 | E169: 0 | G169: 22620 | H169: ='F1'!BM76 -> 0.00
A170: 2 | B170: 2 | C170: 6 | D170: 3 | E170: 0 | G170: 22630 | H170: ='F1'!BM77 -> 0.00
A171: 2 | B171: 2 | C171: 6 | D171: 9 | E171: 0 | G171: 22690 | H171: ='F1'!BM78 -> 0.00
A172: 3 | B172: 0 | C172: 0 | D172: 0 | E172: 0 | G172: 30000 | H172: ='F1'!BM104 -> 578,716,229.55
A173: 3 | B173: 1 | C173: 0 | D173: 0 | E173: 0 | G173: 31000 | H173: ='F1'!BM82 -> -9,699,435.73
A174: 3 | B174: 1 | C174: 1 | D174: 0 | E174: 0 | G174: 31100 | H174: ='F1'!BM83 -> 0.00
A175: 3 | B175: 1 | C175: 2 | D175: 0 | E175: 0 | G175: 31200 | H175: ='F1'!BM84 -> 0.00
A176: 3 | B176: 1 | C176: 3 | D176: 0 | E176: 0 | G176: 31300 | H176: ='F1'!BM85 -> -9,699,435.73
A177: 3 | B177: 2 | C177: 0 | D177: 0 | E177: 0 | G177: 32000 | H177: ='F1'!BM86 -> 588,415,665.28
A178: 3 | B178: 2 | C178: 1 | D178: 0 | E178: 0 | G178: 32100 | H178: ='F1'!BM87 -> 16,661,530.16
A179: 3 | B179: 2 | C179: 2 | D179: 0 | E179: 0 | G179: 32200 | H179: ='F1'!BM88 -> 571,754,135.12
A180: 3 | B180: 2 | C180: 3 | D180: 0 | E180: 0 | G180: 32300 | H180: ='F1'!BM89 -> 0.00
A181: 3 | B181: 2 | C181: 3 | D181: 1 | E181: 0 | G181: 32310 | H181: ='F1'!BM90 -> 0.00
A182: 3 | B182: 2 | C182: 3 | D182: 2 | E182: 0 | G182: 32320 | H182: ='F1'!BM91 -> 0.00
A183: 3 | B183: 2 | C183: 3 | D183: 3 | E183: 0 | G183: 32330 | H183: ='F1'!BM92 -> 0.00
A184: 3 | B184: 2 | C184: 3 | D184: 9 | E184: 0 | G184: 32390 | H184: ='F1'!BM93 -> 0.00
A185: 3 | B185: 2 | C185: 4 | D185: 0 | E185: 0 | G185: 32400 | H185: ='F1'!BM94 -> 0.00
A186: 3 | B186: 2 | C186: 4 | D186: 1 | E186: 0 | G186: 32410 | H186: ='F1'!BM95 -> 0.00
A187: 3 | B187: 2 | C187: 4 | D187: 2 | E187: 0 | G187: 32420 | H187: ='F1'!BM96 -> 0.00
A188: 3 | B188: 2 | C188: 4 | D188: 3 | E188: 0 | G188: 32430 | H188: ='F1'!BM97 -> 0.00
A189: 3 | B189: 2 | C189: 5 | D189: 0 | E189: 0 | G189: 32500 | H189: ='F1'!BM98 -> 0.00
A190: 3 | B190: 2 | C190: 5 | D190: 1 | E190: 0 | G190: 32510 | H190: ='F1'!BM99 -> 0.00
A191: 3 | B191: 2 | C191: 5 | D191: 2 | E191: =MID(G191,5,1) -> 0 | G191: 32520 | H191: ='F1'!BM100 -> 0.00
A192: 3 | B192: 3 | C192: 0 | D192: 0 | E192: 0 | G192: 33000 | H192: ='F1'!BM101 -> 0.00
A193: 3 | B193: 3 | C193: 1 | D193: 0 | E193: 0 | G193: 33100 | H193: ='F1'!BM102 -> 0.00
A194: 3 | B194: 3 | C194: 2 | D194: 0 | E194: 0 | G194: 33200 | H194: ='F1'!BM103 -> 0.00
G195: F6
A196: =MID(G196,1,1) -> 4 | B196: =MID(G196,2,1) -> 0 | C196: =MID(G196,3,1) -> 0 | D196: =MID(G196,4,1) -> 0 | E196: 0 | F196: =MID(G196,7,1) ->  | G196: 40000 | H196: ='F6'!AX184 -> 49,457,352.71
A197: =MID(G197,1,1) -> 4 | B197: =MID(G197,2,1) -> 1 | C197: =MID(G197,3,1) -> 0 | D197: =MID(G197,4,1) -> 0 | E197: =MID(G197,5,1) -> 0 | F197: =MID(G197,7,1) ->  | G197: 41000 | H197: ='F6'!AX7 -> 20,084,929.30
A198: 4 | B198: 1 | C198: 1 | D198: 0 | E198: =MID(G198,5,1) -> 0 | G198: 41100 | H198: ='F6'!AX8 -> 11,925,851.29
A199: 4 | B199: 1 | C199: 1 | D199: 1 | E199: =MID(G199,5,1) -> 0 | G199: 41110 | H199: ='F6'!AX9 -> 0.00
A200: 4 | B200: 1 | C200: 1 | D200: 1 | E200: =MID(G200,5,1) -> 0 | F200: 1 | G200: 41110-1 | H200: ='F6'!AX10 -> 0.00
... 1873 more rows

Sheet Validacion
A1: NOMBRE DEL ENTE PÚBLICO | AG1: ="Versión "&F185&".01" -> Versión 2024.01
A2: Tamazula de Gordiano
A5: INFORMACIÓN
A6: Nombre del presidente municipal o titular de la entidad pública
A7: ING. RAÚL EVERARDO GUTIÉRREZ CASTAÑEDA
A8: Nombre del encargado de la hacienda pública o finanzas de la entidad pública
A9: MTRO. ARNOLDO SOLÓRZANO CUEVAS
A10: Mes o corte a informar
A11: FEBRERO | AM11: =IF(A11="ENERO",1,IF(A11="FEBRERO",2,IF(A11="MARZO",3,IF(A11="ABRIL",4,IF(A11="MAYO",5,IF(A11="JUNIO, 1er. Informe de Avance de Gestión Financiera y Corte Semestral",6,IF(A11="JULIO",7,IF(A11="AGOSTO",8,IF(A11="SEPTIEMBRE",9,IF(A11="OCTUBRE",10,IF(A11="NOVIEMBRE",11,IF(A11="DICIEMBRE, 2do. Informe de Avance de Gestión Financiera y Corte Anual",12,"")))))))))))) -> 2
A12: VERIFICACIÓN DE ESTADOS E INFORMES FINANCIEROS
A13: Estados e informes contables:
A14: =IF(ROUND(SUM(A50:L52),2)>0,IF(ROUND((M50),2)=ROUND((M51+M52),2),IF(ROUND(A50,2)=ROUND((A51+A52),2),"X","")),"") -> X | B14: Estado de situación financiera (F1A)
A15: =IF(ROUND('F2'!G33,2)=0,"","X") -> X | B15: Estado de variación de la hacienda pública (F2)
A16: =IF(ROUND('F3'!F60,2)>0,"X","") ->  | B16: Estado de flujo de efectivo (F3)
A17: =IF(ROUND(F4A1!D18,2)>0,"X","") ->  | B17: Conciliación entre los ingresos presupuestarios y contables (F4A1)
A18: =IF(ROUND(F4A2!D37,2)>0,"X","") ->  | B18: Conciliación entre los egresos presupuestarios y los gastos contables (F4A2)
A19: =IF(ROUND('F5'!H6,2)>0,"X","") -> X | B19: Estado analítico del activo (F5)
A20: =IF(ROUND(SUM(A53:L54),2)>0,IF(ROUND(M53,2)>0,"X",""),"") -> X | B20: Estado de actividades (F6A)
A21: =IF(ROUND('F16'!E4,2)-ROUND('F16'!F4,2)=0,IF('F16'!E4+'F16'!F4>0,"X",""),"") ->  | B21: Estado de cambios en la situación financiera (F16)
A22: =IF('F11'!A6>0,"X","") -> X | B22: Informe sobre pasivos contingentes (F11)
A23: Estados e informes presupuestarios:
A24: =IF(ROUND(SUM('F7'!E70:F70),2)>0,"X","") ->  | B24: Estado analítico de ingresos por clasificación por rubro de ingresos (F7)
A25: =IF(ROUND(SUM(F7A!F23:G23),2)>0,"X","") ->  | B25: Estado analítico de ingresos por clasificación por fuente de financiamiento (F7A)
A26: =IF(ROUND(SUM('F8'!E80:F80),2)>0,"X","") ->  | B26: Estado analítico del ejercicio del presupuesto de egresos por clasificación por objeto del gasto (F8)
A27: =IF(ROUND(SUM('F17'!E13:F13),2)>0,"X","") ->  | B27: Estado analítico del ejercicio del presupuesto de egresos por clasificación por tipo de gasto (F17)
A28: =IF(ROUND(SUM('F18'!D58:E58),2)>0,"X","") ->  | B28: Estado analítico del ejercicio del presupuesto de egresos por clasificación administrativa (F18)
A29: =IF(ROUND(SUM('F19'!E40:F40),2)>0,"X","") ->  | B29: Estado analítico del ejercicio del presupuesto de egresos por clasificación funcional (F19)
A30: Estados e informes de la Ley de Disciplina Financiera:
A31: =IF(ROUND(SUM(A50:L52),2)>0,IF(ROUND(M50,2)=ROUND((M51+M52),2),IF(ROUND(A50,2)=ROUND((A51+A52),2),"X","")),"") -> X | B31: Estado de situación financiera detallado - LDF (F1LDF)
A32: =IF('F9-IDP'!J3>0,"X","") -> X | B32: Informe analítico de la deuda pública y otros pasivos (F9-EDP)
A33: =IF('F9-IAO'!C12>0,"X","") -> X | B33: Informe analítico de obligaciones diferentes de financiamiento (F9-IAO)
A34: =IF(ROUND(SUM('F22'!F10:G10),2)>0,"X","") ->  | B34: Balance presupuestario - LDF (F22)
A35: =IF(ROUND(SUM(F7B!E64:F64),2)>0,"X","") ->  | B35: Estado analítico de ingresos detallados - LDF (F7B)
A36: =IF(ROUND(SUM(F8B!F155:G155),2)>0,"X","") ->  | B36: Estado analítico del ejercicio del presupuesto de egresos detallado - LDF por clasificación por objeto del gasto (F8B)
A37: =IF(ROUND(SUM(F18A!F62:G62),2)>0,"X","") ->  | B37: Estado analítico del ejercicio del presupuesto de egresos detallado - LDF por clasificación administrativa (F18A)
A38: =IF(ROUND(SUM(F19A!F76:G76),2)>0,"X","") ->  | B38: Estado analítico del ejercicio del presupuesto de egresos detallado - LDF por clasificación funcional (F19A)
A39: =IF(ROUND(SUM('F21'!F32:G32),2)>0,"X","") ->  | B39: Estado analítico del ejercicio del presupuesto de egresos detallado - LDF por servicios personales por categoría (F21)
A40: Informes complementarios:
A41: =IF(ROUND(SUM(A50:L52),2)>0,IF(ROUND((M50),2)=ROUND((M51+M52),2),IF(ROUND(A50,2)=ROUND((A51+A52),2),"X","")),"") -> X | B41: Estado analítico de situación financiera (F1)
A42: =IF(ROUND(SUM(A53:L54),2)>0,IF(ROUND(M53,2)>0,"X",""),"") -> X | B42: Estado analítico de actividades (F6)
A43: =IF('F10'!B6>0,"X","") -> X | B43: Informativa de proveedores (F10)
A44: =IF('F23'!A9>0,"X","") ->  | B44: Informativa de obra pública (F23)
A45: Informe de Avances de Gestión Financiera
A46: =IF(ROUND(SUM('F12'!E30:F30),2)>0,"X","") ->  | B46: Flujo contable de ingresos y egresos (F12)
A47: =IF(ROUND(SUM('F13'!AA6:AI6),2)>0,"X","") ->  | B47: Avance de programas y/o procesos concluidos (F13)
A48: INFORMACIÓN FINANCIERA GENERAL
A49: ="EJERCICIO "&F185 -> EJERCICIO 2024 | M49: ="EJERCICIO "&F186 -> EJERCICIO 2023 | Y49: CONCEPTO
A50: =ROUND('F1'!AF106,2) -> 638,179,044.70 | M50: =ROUND('F1'!AG106,2) -> 623,449,863.27 | Y50: Activo
A51: =ROUND('F1'!BM80,2) -> 59,462,815.15 | M51: =ROUND('F1'!BN80,2) -> 61,395,163.88 | Y51: Pasivo
A52: =ROUND('F1'!BM104,2) -> 578,716,229.55 | M52: =ROUND('F1'!BN104,2) -> 562,054,699.39 | Y52: Hacienda pública/patrimonio
A53: =ROUND('F6'!AX184,2) -> 49,457,352.71 | M53: =ROUND('F6'!AY184,2) -> 204,397,452.84 | Y53: Ingresos
A54: =ROUND('F6'!AX539,2) -> 32,795,822.55 | M54: =ROUND('F6'!AY539,2) -> 180,921,291.04 | Y54: Egresos
A55: =ROUND('F6'!AX540,2) -> 16,661,530.16 | M55: =ROUND('F6'!AY540,2) -> 23,476,161.80 | Y55: Ahorro/desahorro
A56: F1 | G56: F9-EDP | M56: F1 | S56: F9-EDP | Y56: CONCEPTO
A57: =ROUND('F1'!BM23,2) -> 0.00 | G57: =ROUND('F9-EDP'!AP12,2) -> 0.00 | M57: =ROUND('F1'!BN23+'F1'!BN60,2) -> 33,938,844.13 | S57: =ROUND('F9-EDP'!N12,2) -> 0.00 | Y57: Deuda pública instituciones de crédito C/P
A58: =ROUND('F1'!BM60,2) -> 32,894,572.00 | G58: =ROUND('F9-EDP'!AP16,2) -> 32,894,572.00 | S58: =ROUND('F9-EDP'!N16,2) -> 33,938,844.13 | Y58: Deuda pública instituciones de crédito L/P
A59: =ROUND('F1'!BM27,2) -> 0.00 | G59: =ROUND('F9-EDP'!AP13,2) -> 0.00 | M59: =ROUND('F1'!BN27+'F1'!BN58,2) -> 0.00 | S59: =ROUND('F9-EDP'!N13,2) -> 0.00 | Y59: Deuda pública títulos y valores C/P
A60: =ROUND('F1'!BM58,2) -> 0.00 | G60: =ROUND('F9-EDP'!AP17,2) -> 0.00 | S60: =ROUND('F9-EDP'!N17,2) -> 0.00 | Y60: Deuda pública títulos y valores L/P
A61: =ROUND('F1'!BM25,2) -> 0.00 | G61: =ROUND('F9-EDP'!AP14,2) -> 0.00 | M61: =ROUND('F1'!BN25+'F1'!BN62,2) -> 0.00 | S61: =ROUND('F9-EDP'!N14,2) -> 0.00 | Y61: Deuda pública arrendamiento financiero C/P
A62: =ROUND('F1'!BM62,2) -> 0.00 | G62: =ROUND('F9-EDP'!AP18,2) -> 0.00 | S62: =ROUND('F9-EDP'!N18,2) -> 0.00 | Y62: Deuda pública arrendamiento financiero L/P
A63: INCONSISTENCIAS
A64: 1. Validación a la balanza de comprobación (contable) | C64: =IF(ROUND(Balanza!$C$753,2)=ROUND(Balanza!$D$753,2),"","1.1. BALANZA DE COMPROBACIÓN (contable) descuadarada en el SALDO INICIAL.") -> 
C65: =IF(ROUND(Balanza!$E$753,2)=ROUND(Balanza!$F$753,2),"","1.2. BALANZA DE COMPROBACIÓN (contable) descuadarada en los MOVIMIENTOS DE CARGO y ABONO.") -> 
C66: =IF(ROUND(Balanza!$G$753,2)=ROUND(Balanza!$H$753,2),"","1.3. BALANZA DE COMPROBACIÓN (contable) descuadarada en el SALDO FINAL.") -> 
A67: 2. Validación a la balanza de comprobación (orden género 7) | C67: =IF(ROUND(Balanza!$C$792,2)=ROUND(Balanza!$D$792,2),"","2.1. BALANZA DE COMPROBACIÓN (cuentas de orden) descuadarada en el SALDO INICIAL.") -> 
C68: =IF(ROUND(Balanza!$E$792,2)=ROUND(Balanza!$F$792,2),"","2.2. BALANZA DE COMPROBACIÓN (cuentas de orden) descuadarada en los MOVIMIENTOS DE CARGO y ABONO.") -> 
C69: =IF(ROUND(Balanza!$G$792,2)=ROUND(Balanza!$H$792,2),"","2.3. BALANZA DE COMPRBACIÓN (cuentas de orden) descuadarada en el SALDO FINAL.") -> 
A70: 3. Validación a la balanza de comprobación (orden presupuestal) | C70: =IF(ROUND(Balanza!$C$2222,2)=ROUND(Balanza!$D$2222,2),"","3.1. BALANZA DE COMPROBACIÓN (cuentas de orden presupuestal) descuadarada en el SALDO INICIAL.") -> 
C71: =IF(ROUND(Balanza!$E$2222,2)=ROUND(Balanza!$F$2222,2),"","3.2. BALANZA DE COMPROBACIÓN (cuentas de orden presupuestal) descuadarada en los MOVIMIENTOS DE CARGO y ABONO.") -> 
C72: =IF(ROUND(Balanza!$G$2222,2)=ROUND(Balanza!$H$2222,2),"","3.3. BALANZA DE COMPROBACIÓN (cuentas de orden presupuestal) descuadarada en el SALDO FINAL.") -> 
A73: 4. Validación al estado de situación financiera (F1, F1A y F1LDF) | C73: =IF(ROUND($M$50,2)=ROUND(($M$51+$M$52),2),"","4.1. En el ESTADO DE SITUACIÓN FINANCIERA (FI, F1A, F1LDF) columna ejercicio "&F186&", no es igual el TOTAL DEL ACTIVO y el TOTAL DEL PASIVO MÁS LA HACIENDA PÚBLICA/PATRIMONIO.") -> 
C74: =IF(ROUND($A$50,2)=ROUND(($A$51+$A$52),2),"","4.2. En el ESTADO DE SITUACIÓN FINANCIERA (F1, F1A, F1LDF) columna ejercicio "&F185&", no es igual el TOTAL DEL ACTIVO y el TOTAL DEL PASIVO MÁS LA HACIENDA PÚBLICA/PATRIMONIO.") -> 
C75: =IF(ROUND('F6'!$AY$540,2)=ROUND('F1'!$BN$87,2),"","4.3. El RESULTADO DEL EJERCICIO (AHORRO/DESAHORRO) del ESTADO DE ACTIVIDADES (F6, F6A) no es igual al RESULTADO DEL EJERCICIO del ESTADO DE SITUACIÓN FINANCIERA (F1, F1A, F1LDF) ejercicio "&F186&".") -> 
C76: =IF(ROUND('F6'!$AX$540,2)=ROUND('F1'!$BM$87,2),"","4.4. El RESULTADO DEL EJERCICIO (AHORRO/DESAHORRO) del ESTADO DE ACTIVIDADES (F6, F6A) no es igual al RESULTADO DEL EJERCICIO del ESTADO DE SITUACIÓN FINANCIERA (F1, F1A, F1LDF) ejercicio "&F185&".") -> 
A77: 5. Validación al estado de variación en la hacienda pública (F2) | C77: =IF(ROUND('F2'!C6,2)=ROUND('F1'!BN82,2),"","5.1. El saldo de la HACIENDA PÚBLICA/PATRIMONIO CONTRIBUIDO NETO de "&F186&" en el ESTADO DE VARIACIÓN EN LA HACIENDA PÚBLICA (F2), no es igual a la HACIENDA PÚBLICA/PATRIMONIO CONTRIBUIDO del ESTADO DE SITUACIÓN FINANCIERA (F1A) en la columna ejercicio "&F186&".") -> 
C78: =IF(ROUND('F2'!G10,2)=ROUND('F1'!BN86,2),"","5.2. El saldo de la HACIENDA PÚBLICA/PATRIMONIO GENERADO NETO del "&F186&" de la columna total en el ESTADO DE VARIACIÓN EN LA HACIENDA PÚBLICA (F2), no es igual a la HACIENDA PÚBLICA/PATRIMONIO GENERADO "&"del ESTADO DE SITUACIÓN FINANCIERA (F1A) en la columna ejercicio "&F186&".") -> 
C79: =IF(ROUND('F2'!G16,2)=ROUND('F1'!BN101,2),"","5.3. El saldo del EXCESO O INSUFICIENCIA EN LA ACTUALIZACIÓN EN LA HACIENDA PÚBLICA/PATRIMONIO NETO de "&F186&" de la columna TOTAL en el ESTADO DE VARIACIÓN EN LA HACIENDA PÚBLICA (F2),"&" no es igual al EXCESO O INSUFICIENCIA EN LA ACTUALIZACIÓN DE LA HACIENDA PÚBLICA/PATRIMONIO del estado de SITUACIÓN FINANCIERA (F1A) en la columna ejercicio "&F186&".") -> 
C80: =IF(ROUND('F2'!G19,2)=ROUND('F1'!BN104,2),"","5.4. El saldo de la HACIENDA PÚBLICA/PATRIMONIO NETO FINAL DE "&F186&" de la columna TOTAL en el ESTADO DE VARIACIÓN EN LA HACIENDA PÚBLICA (F2),"&" no es igual al TOTAL DE LA HACIENDA PÚBLICA/PATRIMONIO del ESTADO DE SITUACIÓN FINANCIERA (F1A) en la columna ejercicio "&F186&".") -> 
C81: =IF(ROUND('F2'!G33,2)=ROUND('F1'!BM104,2),"","5.5. El saldo de la HACIENDA PÚBLICA/PATRIMONIO NETO FINAL DE "&F185&" de la columna TOTAL en el ESTADO DE VARIACIÓN EN LA HACIENDA PÚBLICA (F2),"&" no es igual al TOTAL DE LA HACIENDA PÚBLICA/PATRIMONIO del ESTADO DE SITUACIÓN FINANCIERA (F1A) en la columna ejercicio "&F185&".") -> 
A82: 6A. Validación de conciliaciones prespu. vs conta. (F4A1) | C82: =IF(ROUND(F4A1!D18,2)=ROUND('F6'!AX184,2),"","6A.1. El TOTAL DE INGRESO CONTABLES de la CONCILIACIÓN ENTRE LOS INGRESOS PRESUPUESTAL Y CONTABLE (F4A1),"&" no es igual al TOTAL DE INGRESOS del ESTADO DE ACTIVIDADES (F6A) en la columna ejercicio "&F185&".") -> 6A.1. El TOTAL DE INGRESO CONTABLES de la CONCILIACIÓN ENTRE LOS INGRESOS PRESUPUESTAL Y CONTABLE (F4A1), no es igual al TOTAL DE INGRESOS del ESTADO DE ACTIVIDADES (F6A) en la columna ejercicio 2024.
C83: =IF(ROUND('F7'!$F$7,2)=ROUND(F6A!$AX$8,2),"","6A.2. El total de IMPUESTOS en su momento devengado del ESTADO ANALÍTICO DE INGRESOS (F7),"&" no es igual a los IMPUESTOS del ESTADO DE ACTIVIDADES (F6A) en la columna ejercicio "&F185&".") -> 6A.2. El total de IMPUESTOS en su momento devengado del ESTADO ANALÍTICO DE INGRESOS (F7), no es igual a los IMPUESTOS del ESTADO DE ACTIVIDADES (F6A) en la columna ejercicio 2024.
C84: =IF(ROUND('F7'!$F$17,2)=ROUND(F6A!$AX$9,2),"","6A.3. El total de CUOTAS Y APORTACIONES DE SEGURIDAD SOCIAL en su momento devengado del ESTADO ANALÍTICO DE INGRESOS (F7),"&" no es igual a los CUOTAS Y APORTACIONES DE SEGURIDAD SOCIAL del ESTADO DE ACTIVIDADES (F6A) en la columna ejercicio "&F185&".") -> 
C85: =IF(ROUND('F7'!$F$23,2)=ROUND(F6A!$AX$10,2),"","6A.4. El total de CONTRIBUCIONES DE MEJORAS en su momento devengado del ESTADO ANALÍTICO DE INGRESOS (F7),"&" no es igual a los CONTRIBUCIONES DE MEJORAS del ESTADO DE ACTIVIDADES (F6A) en la columna ejercicio "&F185&".") -> 
C86: =IF(ROUND('F7'!$F$26,2)=ROUND(F6A!$AX$11,2),"","6A.5. El total de DERECHOS en su momento devengado del ESTADO ANALÍTICO DE INGRESOS (F7),"&" no es igual a los DERECHOS del ESTADO DE ACTIVIDADES (F6A) en la columna ejercicio "&F185&".") -> 6A.5. El total de DERECHOS en su momento devengado del ESTADO ANALÍTICO DE INGRESOS (F7), no es igual a los DERECHOS del ESTADO DE ACTIVIDADES (F6A) en la columna ejercicio 2024.
C87: =IF(ROUND('F7'!$F$33,2)=ROUND(F6A!$AX$12,2),"","6A.6. El total de PRODUCTOS en su momento devengado del ESTADO ANALÍTICO DE INGRESOS (F7),"&" no es igual a los PRODUCTOS del ESTADO DE ACTIVIDADES (F6A) en la columna ejercicio "&F185&".") -> 6A.6. El total de PRODUCTOS en su momento devengado del ESTADO ANALÍTICO DE INGRESOS (F7), no es igual a los PRODUCTOS del ESTADO DE ACTIVIDADES (F6A) en la columna ejercicio 2024.
C88: =IF(ROUND('F7'!$F$37,2)=ROUND(F6A!$AX$13+F4A1!$C$15+F4A1!C17,2),"","6A.7. El total de APROVECHAMIENTOS en su momento devengado del ESTADO ANALÍTICO DE INGRESOS (F7),"&" no es igual a los APROVECHAMIENTOS del ESTADO DE ACTIVIDADES (F6A) en la columna ejercicio "&F185&".") -> 6A.7. El total de APROVECHAMIENTOS en su momento devengado del ESTADO ANALÍTICO DE INGRESOS (F7), no es igual a los APROVECHAMIENTOS del ESTADO DE ACTIVIDADES (F6A) en la columna ejercicio 2024.
C89: =IF(ROUND('F7'!$F$42,2)=ROUND(F6A!$AX$14,2),"","6A.8. El total de INGRESOS POR VENTA DE BIENES Y PRESTACIÓN DE SERVICIOS en su momento devengado del ESTADO ANALÍTICO DE INGRESOS (F7),"&" no es igual a los INGRESOS POR VENTA DE BIENES Y PRESTACIÓN DE SERVICIOS del ESTADO DE ACTIVIDADES (F6A) en la columna ejercicio "&F185&".") -> 
C90: =IF(ROUND('F7'!$F$52,2)=ROUND(F6A!$AX$16,2),"","6A.9. El total de PARTICIPACIONES, APORTACIONES, CONVENIOS, INCENTIVOS DERIVADOS E LA COLABORACIÓN FISCAL, FONDOS DISTINTOS DE APORTACIONES en su momento devengado del ESTADO ANALÍTICO DE INGRESOS (F7),"&" no es igual a los PARTICIPACIONES, APORTACIONES, CONVENIOS, INCENTIVOS DERIVADOS E LA COLABORACIÓN FISCAL, FONDOS DISTINTOS DE APORTACIONES del ESTADO DE ACTIVIDADES (F6A) en la columna ejercicio "&F185&".") -> 6A.9. El total de PARTICIPACIONES, APORTACIONES, CONVENIOS, INCENTIVOS DERIVADOS E LA COLABORACIÓN FISCAL, FONDOS DISTINTOS DE APORTACIONES en su momento devengado del ESTADO ANALÍTICO DE INGRESOS (F7), no es igual a los PARTICIPACIONES, APORTACIONES, CONVENIOS, INCENTIVOS DERIVADOS E LA COLABORACIÓN FISCAL, FONDOS DISTINTOS DE APORTACIONES del ESTADO DE ACTIVIDADES (F6A) en la columna ejercicio 2024.
C91: =IF(ROUND('F7'!$F$58,2)=ROUND(F6A!$AX$17,2),"","6A.10. El total de TRANSFERENCIAS, ASIGNACIONES, SUBSIDIOS Y SUBVENCIONES, PENSIONES Y JUBILACIONES en su momento devengado del ESTADO ANALÍTICO DE INGRESOS (F7),"&" no es igual a los TRANSFERENCIAS, ASIGNACIONES, SUBSIDIOS Y SUBVENCIONES, PENSIONES Y JUBILACIONES del ESTADO DE ACTIVIDADES (F6A) en la columna ejercicio "&F185&".") -> 
A92: 6B. Validación de conciliaciones prespu. vs conta. (F4A2) | C92: =IF(ROUND(F4A2!$D$37,2)=ROUND('F6'!$AX$539,2),"","6B.1. El TOTAL DE GASTOS CONTABLES de la CONCILIACIÓN ENTRE LOS EGRESOS PRESUPUESTARIOS Y LOS GASTOS CONTABLES (F4A2),"&" no es igual al TOTAL DE GASTOS Y OTRAS PERDIDAS del ESTADO DE ACTIVIDADES (F6A) en la columna ejercicio "&F185&".") -> 6B.1. El TOTAL DE GASTOS CONTABLES de la CONCILIACIÓN ENTRE LOS EGRESOS PRESUPUESTARIOS Y LOS GASTOS CONTABLES (F4A2), no es igual al TOTAL DE GASTOS Y OTRAS PERDIDAS del ESTADO DE ACTIVIDADES (F6A) en la columna ejercicio 2024.
C93: =IF(ROUND('F8'!$F$8,2)=ROUND(F6A!$AX$27,2),"","6B.2. El total de SERVICIOS PERSONALES en su momento devengado del ESTADO ANALÍTICO DEL EJERCICIO DEL PRESUPUESTO DE EGRESOS (F8),"&" no es igual en SERVICIOS PERSONALES del ESTADO DE ACTIVIDADES (F6A) en la columna ejercicio "&F185&".") -> 6B.2. El total de SERVICIOS PERSONALES en su momento devengado del ESTADO ANALÍTICO DEL EJERCICIO DEL PRESUPUESTO DE EGRESOS (F8), no es igual en SERVICIOS PERSONALES del ESTADO DE ACTIVIDADES (F6A) en la columna ejercicio 2024.
C94: =IF(ROUND('F8'!$F$16,2)=ROUND(F6A!$AX$28,2),"","6B.3. El total de MATERIALES Y SUMINISTROS en su momento devengado del ESTADO ANALÍTICO DEL EJERCICIO DEL PRESUPUESTO DE EGRESOS (F8),"&" no es igual en MATERIALES Y SUMINISTROS del ESTADO DE ACTIVIDADES (F6A) en la columna ejercicio "&F185&".") -> 6B.3. El total de MATERIALES Y SUMINISTROS en su momento devengado del ESTADO ANALÍTICO DEL EJERCICIO DEL PRESUPUESTO DE EGRESOS (F8), no es igual en MATERIALES Y SUMINISTROS del ESTADO DE ACTIVIDADES (F6A) en la columna ejercicio 2024.
C95: =IF(ROUND('F8'!$F$26,2)=ROUND(F6A!$AX$29,2),"","6B.4. El total de SERVICIOS GENERALES en su momento devengado del ESTADO ANALÍTICO DEL EJERCICIO DEL PRESUPUESTO DE EGRESOS (F8),"&" no es igual en SERVICIOS GENERALES del ESTADO DE ACTIVIDADES (F6A) en la columna ejercicio "&F185&".") -> 6B.4. El total de SERVICIOS GENERALES en su momento devengado del ESTADO ANALÍTICO DEL EJERCICIO DEL PRESUPUESTO DE EGRESOS (F8), no es igual en SERVICIOS GENERALES del ESTADO DE ACTIVIDADES (F6A) en la columna ejercicio 2024.
C96: =IF(ROUND('F8'!$F$36,2)=ROUND(F6A!$AX$30,2),"","6B.5. El total de TRANSFERENCIAS, ASIGNACIONES, SUBSIDIOS Y OTRAS AYUDAS en su momento devengado del ESTADO ANALÍTICO DEL EJERCICIO DEL PRESUPUESTO DE EGRESOS (F8),"&" no es igual en TRANSFERENCIAS, ASIGNACIONES, SUBSIDIOS Y OTRAS AYUDAS del ESTADO DE ACTIVIDADES (F6A) en la columna ejercicio "&F185&".") -> 6B.5. El total de TRANSFERENCIAS, ASIGNACIONES, SUBSIDIOS Y OTRAS AYUDAS en su momento devengado del ESTADO ANALÍTICO DEL EJERCICIO DEL PRESUPUESTO DE EGRESOS (F8), no es igual en TRANSFERENCIAS, ASIGNACIONES, SUBSIDIOS Y OTRAS AYUDAS del ESTADO DE ACTIVIDADES (F6A) en la columna ejercicio 2024.
A97: 7. Validación al estado de cambios de la situación financiera (F16) | C97: =IF(ROUND(ABS('F16'!E43-'F16'!F43),2)=ROUND(ABS('F2'!C20),2),"","7.1. El saldo de la HACIENDA PÚBLICA/PATRIMONIO CONTRIBUIDO NETO DEL "&F186&" del ESTADO DE VARIACIÓN EN LA HACIENDA PÚBLICA (F2), "&"es diferente a la HACIENDA PÚBLICA/PATRIMONIO CONTRIBUIDO del ESTADO DE CAMBIOS DE LA SITUACIÓN FINANCIERA (F16) en la columna ejercicio "&F185&".") -> 
C98: =IF(ROUND(ABS(SUM('F16'!E50:E52)-SUM('F16'!F50:F52)),2)=ROUND(ABS(SUM('F2'!E27:E29)),2),"","7.2. La suma de las filas de REVALÚOS, RESERVAS Y RECLASIFICACIONES DE RESULTADOS DE EJERCICIOS ANTERIORES "&F186&", del ESTADO DE VARIACIÓN EN LA HACIENDA PÚBLICA (F2), "&"es diferente a la que se muestra en estos rubros del ESTADO DE CAMBIOS DE LA SITUACIÓN FINANCIERA (F16) en la columna ejercicio "&F185&".") -> 
C99: =IF(ROUND(ABS('F16'!E49+'F16'!F49),2)=ROUND(ABS('F2'!D24),2),"","7.3. El saldo del RESULTADO DE EJERCIOS ANTERIORES del apartado VARIACIONES DE LA HACIENDA PÚBLICA/PATRIMONIO CONTRIBUIDO NETO DE "&F185&" del ESTADO DE VARIACION EN LA HACIENDA PÚBLICA (F2), "&"es diferente al apartado de EJERCICIOS ANTERIORES del ESTADO DE CAMBIOS DE LA SITUACIÓN FINANCIERA (F16) en la columna ejercicio "&F185&".") -> 
C100: =IF(ROUND(ABS('F16'!E53-'F16'!F53),2)=ROUND(ABS('F2'!F30),2),"","7.4. El saldo del EXCESO O INSUFICIENCIA EN LA ACTUALIZACIÓN DE LA HACIENDA PÚBLICA/PATRIMONIO NETO "&F185&", del ESTADO DE VARIACIÓN EN LA HACIENDA PÚBLICA (F2), "&"es diferente al apartado del EXCESO O INSUFICIENCIA EN LA ACTUALIZACIÓN DE LA HACIENDA PÚBLICA/PATRIMONIO del ESTADO DE CAMBIOS DE LA SITUACIÓN FINANCIERA (F16) en la columna ejercicio "&F185&".") -> 
A101: 8. Validación al estado de flujo de efectivo (F3) | C101: =IF(ROUND(ABS('F3'!F58),2)=ROUND(ABS('F16'!E8+'F16'!F8),2),"","8.1. El INCREMENTO/DISMINUCIÓN NETA EN EL EFECTIVO Y EQUIVALENTES del FLUJO DE EFECTIVO (F3) de la columna "&F185&", no es igual al que se muestra en el ESTADO DE "&"CAMBIOS EN LA SITUACIÓN FINANCIERA (F16) en la fila de EFECTIVO Y EQUIVALENTES de la columna de origen o aplicación.") -> 8.1. El INCREMENTO/DISMINUCIÓN NETA EN EL EFECTIVO Y EQUIVALENTES del FLUJO DE EFECTIVO (F3) de la columna 2024, no es igual al que se muestra en el ESTADO DE CAMBIOS EN LA SITUACIÓN FINANCIERA (F16) en la fila de EFECTIVO Y EQUIVALENTES de la columna de origen o aplicación.
C102: =IF(ROUND('F3'!G60,2)=ROUND('F1'!AG8,2),"","8.2. El EFECTIVO Y EQUIVALENTES AL EFECTIVO AL FINAL DEL EJERCICIO columna "&F186&", del ESTADO DE FLUJO DE EFECTIVO (F3), es diferente al saldo del"&" rubro de EFECTIVO Y EQUIVALENTES de la columna "&F185&" del ESTADO DE SITUACIÓN FINANCIERA (F1A).") -> 8.2. El EFECTIVO Y EQUIVALENTES AL EFECTIVO AL FINAL DEL EJERCICIO columna 2023, del ESTADO DE FLUJO DE EFECTIVO (F3), es diferente al saldo del rubro de EFECTIVO Y EQUIVALENTES de la columna 2024 del ESTADO DE SITUACIÓN FINANCIERA (F1A).
C103: =IF(ROUND('F3'!F60,2)=ROUND('F1'!AF8,2),"","8.3. El EFECTIVO Y EQUIVALENTES AL EFECTIVO AL FINAL DEL EJERCICIO columna "&F185&", del ESTADO DE FLUJO DE EFECTIVO (F3), es diferente al saldo del"&" rubro de EFECTIVO Y EQUIVALENTES de la columna "&F185&" del ESTADO DE SITUACIÓN FINANCIERA (F1A).") -> 8.3. El EFECTIVO Y EQUIVALENTES AL EFECTIVO AL FINAL DEL EJERCICIO columna 2024, del ESTADO DE FLUJO DE EFECTIVO (F3), es diferente al saldo del rubro de EFECTIVO Y EQUIVALENTES de la columna 2024 del ESTADO DE SITUACIÓN FINANCIERA (F1A).
A104: 9. Validación al estado analítico del activo (F5) | C104: =IF(ROUND('F5'!E6,2)=ROUND('F1'!AG106,2),"","9.1. El TOTAL DEL ACTIVO del ESTADO ANALÍTICO DEL ACTIVO (F5) en la columna de SALDO INICIAL, es diferente al TOTAL DEL ACTIVO en el ESTADO DE SITUACIÓN FINANCIERA (F1A), en la columna correspondiente al ejercicio "&F186) -> 
C105: =IF(ROUND('F5'!H6,2)=ROUND('F1'!AF106,2),"","9.2. El TOTAL DEL ACTIVO del ESTADO ANALÍTICO DEL ACTIVO (F5) en la columna de SALDO FINAL, es diferente al TOTAL DEL ACTIVO en el ESTADO DE SITUACIÓN FINANCIERA (F1A), en la columna correspondiente al ejercicio "&F185) -> 
C106: =IF(ROUND(ABS('F5'!I6),2)=ROUND(ABS('F16'!E6-'F16'!F6),2),"","9.3. La cifra de la fila del rubro de ACTIVO de la columna de VARIACIÓN DEL PERIODO del ESTADO ANALÍTICO DEL ACTIVO (F5), es diferente a los rubros del ACTIVO en las columnas de ORIGEN O APLICACIÓN del ESTADO DE CAMBIOS EN LA SITUACIÓN FINANCIERA (F16)") -> 
A107: 10. Validación al estado analítico de la deuda y otros pasivos (F9) | C107: =IF(ROUND((S57+S58),2)=ROUND(M57,2),"","10.1. El SALDO AL 1° DE ENERO DE "&F185&" con INSTITUCIONES DE CRÉDITO a corto y largo plazo del ESTADO E INFORME ANALÍTICO DE LA DEUDA PÚBLICA Y "&"OTROS PASIVOS (F9-EDP), no es igual a la suma de los rubros 2131 y 2233 de la DEUDA PÚBLICA INTERNA POR PAGAR a corto y largo plazo columna ejercicio "&F186&" del ESTADO ANALÍTICO DE SITUACIÓN FINANCIERA (F1A).") -> 
C108: =IF(ROUND((S59+S60),2)=ROUND(M59,2),"","10.2. El SALDO AL 1° DE ENERO DE "&F185&" en TÍTULOS Y VALORES de corto y largo plazo, del ESTADO E INFORME ANALÍTICO DE LA DEUDA PÚBLICA Y OTROS "&"PASIVOS (F9-EDP), no es igual a la suma de los rubro 2141 y 2231 TÍTULOS Y VALORES por pagar a corto y largo plazo columna ejercicio "&F185&" del ESTADO ANALÍTICO DE SITUACIÓN FINANCIERA (F1A).") -> 
C109: =IF(ROUND((S61+S62),2)=ROUND(M61,2),"","10.3. El SALDO AL 1° DE ENERO DE "&F185&" en ARRENDAMIENTO FINANCIERO de corto y largo plazo, del ESTADO E INFORME ANALÍTICO DE LA DEUDA PÚBLICA Y "&"OTROS PASIVOS (F9-EDP), no es igual a los rubro de2133 Y 2235 ARRENDAMIENTO FINANCIERO por pagar a corto y largo plazo columna ejercicio "&F186&" del ESTADO ANALÍTICO DE SITUACIÓN FINANCIERA (F1A).") -> 
C110: =IF(ROUND(A57,2)=ROUND(G57,2),"","10.4. El SALDO DEL PERIODO con INSTITUCIONES DE CRÉDITO a corto plazo, del ESTADO E INFORME ANALÍTICO DE LA DEUDA PÚBLICA Y OTROS PASIVOS (F9-EDP), "&"no es igual al rubro 2131 PORCIÓN DE LA DEUDA PÚBLICA INTERNA POR PAGAR A CORTO PLAZO columna ejercicio "&F185&" del ESTADO ANALÍTICO DE SITUACIÓN FINANCIERA (F1A).") -> 
C111: =IF(ROUND(A58,2)=ROUND(G58,2),"","10.5. El SALDO DEL PERIODO con INSTITUCIONES DE CRÉDITO a largo plazo, del ESTADO ANALÍTICO DE LA DEUDA PÚBLICA Y OTROS PASIVOS (F9-EDP), "&"no es igual al rubro 2233 de PRÉSTAMOS DE LA DEUDA PÚBLICA INTERNA POR PAGAR A LARGO PLAZO columna ejercicio "&F185&" del ESTADO ANALÍTICO DE SITUACIÓN FINANCIERA (F1A).") -> 
C112: =IF(ROUND(A59,2)=ROUND(G59,2),"","10.6. El SALDO DEL PERIODO en TÍTULOS Y VALORES a corto plazo, del ESTADO E INFORME ANALÍTICO DE LA DEUDA PÚBLICA Y OTROS PASIVOS (F9-EDP), no es "&"igual al rubro 2141 de TÍTULOS Y VALORES DE LA EUDA PÚBLICA INTERNA POR PAGAR A CORTO PLAZO columna ejercicio "&F185&" del ESTADO ANALÍTICO DE SITUACIÓN FINANCIERA (F1A).") -> 
C113: =IF(ROUND(A60,2)=ROUND(G60,2),"","10.7. El SALDO DEL PERIODO en TÍTULOS Y VALORES a largo plazo, del ESTADO E INFORME ANALÍTICO DE LA DEUDA PÚBLICA Y OTROS PASIVOS (F9-EDP), no es "&"igual al rubro 2231 de TÍTULOS Y VALORES DE LA DEUDA PÚBLICA INTERNA POR PAGAR A LARGO PLAZO columna ejercicio "&F185&" del ESTADO ANALÍTICO DE SITUACIÓN FINANCIERA (F1A).") -> 
C114: =IF(ROUND(A61,2)=ROUND(G61,2),"","10.8. El SALDO DEL PERIODO en ARRENDAMIENTO FINANCIERO a corto plazo, del ESTADO E INFORME ANALÍTICO DE LA DEUDA PÚBLICA Y OTROS PASIVOS"&" (F9-EDP), no es igual al rubro 2133 de la PORCIÓN DE ARRENDAMIENTO FINANCIERO DE LA DEUDA PÚBLICA INTERGA POR PAGAR A CORTO PLAZO columna ejercicio "&F185&" del ESTADO ANALÍTICO DE SITUACIÓN FINANCIERA (F1A).") -> 
C115: =IF(ROUND(A62,2)=ROUND(G62,2),"","10.9. El SALDO DEL PERIODO en ARRENDAMIENTO FINANCIERO A LARGO PLAZO del ESTADO E INFORME ANALÍTICO DE LA DEUDA PÚBLICA Y OTROS PASIVOS (F9-EDP), "&"no es igual al rubro 2235 de ARRENDAMIENTO FINANCIERO DE LA DEUDA PÚBLICA INTERNA POR PAGAR A LARGO PLAZO columna ejercicio "&F185&" del ESTADO DE SITUACIÓN FINANCIERA (F1A).") -> 
C116: =IF(ROUND('F9-EDP'!N20,2)=ROUND('F1'!BN80,2),"","10.10. El TOTAL DE LA DEUDA PÚBLICA Y OTROS PASIVOS al inicio del ejercicio "&F185&" del ESTADO E INFORME ANALÍTICO DE LA DEUDA PÚBLICA Y OTROS PASIVOS (F9-EDP), "&"no es igua al TOTAL DEL PASIVO columna del ejercicio "&F186&" del ESTADO DE SITUACIÓN FINANCIERA (F1A).") -> 
C117: =IF(ROUND('F9-EDP'!AP20,2)=ROUND('F1'!BM80,2),"","10.11. El TOTAL DE LA DEUDA PÚBLICA Y OTROS PASIVOS del ejercicio "&F185&" del ESTADO E INFORME ANALÍTICO DE LA DEUDA PÚLICA Y OTROS PASIVOS (F9-EDP), no es igua al TOTAL DEL PASIVO columna del ejercicio "&F185&" en el ESTADO DE SITUACIÓN FINANCIERA (F1A).") -> 
A118: 11. Validación flujo contable de ingresos y egresos (F12) | C118: =IF(ROUND('F7'!C70,2)=ROUND('F12'!C17,2),"","11.1. El TOTAL DE INGRESOS momento ESTIMADO del ESTADO ANALÍTICO DE INGRESOS (F7),"&" no es igual al TOTAL INGRESOS del FLUJO CONTABLE DE INGRESOS Y EGRESOS (F12) columna ESTIMADO.") -> 
C119: =IF(ROUND('F7'!D70,2)=ROUND('F12'!D17,2),"","11.2. El TOTAL DE INGRESOS de la AMPLIACIONES Y REDUCCIONES del ESTADO ANALÍTICO DE INGRESOS (F7),"&" no es igual al TOTAL INGRESOS del FLUJO CONTABLE DE INGRESOS Y EGRESOS (F12) columna AMPLIACIÓN Y REDUCCIÓN.") -> 
C120: =IF(ROUND('F7'!F70,2)=ROUND('F12'!F17,2),"","11.3. El TOTAL DE INGRESOS del momento DEVENGADO del ESTADO ANALÍTICO DE INGRESOS (F7),"&" no es igual al TOTAL INGRESOS del FLUJO CONTABLE DE INGRESOS Y EGRESOS (F12) columna DEVENGADO.") -> 
C121: =IF(ROUND('F8'!C80,2)=ROUND('F12'!C30,2),"","11.4. El TOTAL DE EGRESOS del momento APROBADO del ESTADO ANALÍTICO DEL EJERCICIO DEL PRESUPUESTO DE EGRESOS (F8),"&" no es igual al TOTAL DE EGRESOS del FLUJO CONTABLE DE INGRESOS Y EGRESOS (F12) columna APROBADO.") -> 
C122: =IF(ROUND('F8'!D80,2)=ROUND('F12'!D30,2),"","11.5. El TOTAL DE EGRESOS de las AMPLACIONES Y REDUCCIONES del ESTADO ANALÍTICO DEL EJERCICIO DEL PRESUPUESTO DE EGRESOS (F8),"&" no es igual al TOTAL EGRESOS del FLUJO CONTABLE DE INGRESOS Y EGRESOS (F12) columna AMPLIACIÓN Y REDUCCIÓN.") -> 
C123: =IF(ROUND('F8'!F80,2)=ROUND('F12'!F30,2),"","11.6. El TOTAL DE EGRESOS del momento DEVENGADO del ESTADO ANALÍTICO DEL EJERCICIO DEL PRESUPUESTO DE EGRESOS (F8),"&" no es igual al TOTAL EGRESOS del FLUJO CONTABLE DE INGRESOS Y EGRESOS (F12) columna DEVENGADO.") -> 
A124: 12. Validación Estado Analítico del Ingreso - LDF (F7B) | C124: =IF(ROUND('F7'!C70,2)=ROUND(F7B!C64,2),"","12.1. El TOTAL DE INGRESOS del momento ESTIMADO del ESTADO ANALÍTICO DE INGRESOS DETALLADO - LDF (F7B),"&" no es igual al ESTADO ANALÍTICO DE INGRESOS (F7) columna ESTIMADO.") -> 
C125: =IF(ROUND('F7'!D70,2)=ROUND(F7B!D64,2),"","12.2. El TOTAL DE INGRESOS del momento MODIFICADO del ESTADO ANALÍTICO DE INGRESOS DETALLADO - LDF (F7B),"&" no es igual al ESTADO ANALÍTICO DE INGRESOS (F7) columna MODFICADO.") -> 
C126: =IF(ROUND('F7'!F70,2)=ROUND(F7B!F64,2),"","12.3. El TOTAL DE INGRESOS del momento DEVENGADO del ESTADO ANALÍTICO DE INGRESOS DETALLADO - LDF (F7B),"&" no es igual al ESTADO ANALÍTICO DE INGRESOS (F7) columna DEVENGADO.") -> 
C127: =IF(ROUND('F7'!G70,2)=ROUND(F7B!G64,2),"","12.4. El TOTAL DE INGRESOS del momento RECAUDADO del ESTADO ANALÍTICO DE INGRESOS DETALLADO - LDF (F7B),"&" no es igual al ESTADO ANALÍTICO DE INGRESOS (F7) columna RECAUDADO.") -> 
C128: =IF(ROUND(F7B!C39,2)=ROUND(F8B!D80,2),"","12.5. No existe equilibro entre los ingresos ESTIMADO de recursos no etiquetados del ESTADO ANALÍTICO DE INGRESOS DETALLADO - LDF (F7B),"&" y el ESTADO ANALÍTICO DEL EJERCICIO DEL PRESUPUESTO DE EGRESOS DETALLADO - LDF (F8B) columna APROBADO de recurso no etiquetado.") -> 
C129: =IF(ROUND(F7B!C61,2)=ROUND(F8B!D154,2),"","12.6. No existe equilibrio entre los ingresos ESTIMADO de recursos etiquetados del ESTADO ANALÍTICO DE INGRESOS DETALLADO - LDF (F7B),"&" y el ESTADO ANALÍTICO DEL EJERCICIO DEL PRESUPUESTO DE EGRESOS DETALLADO - LDF (F8B) columna APROBADO de recurso etiquetado.") -> 
C130: =IF(ROUND(F7B!F39,2)>0,IF(ROUND(F8B!G80,2)>0,"","12.7. Se tiene ingresos DEVENGADO de recursos no etiquetados en el ESTADO ANALÍTICO DE INGRESOS DETALLADO - LDF (F7B),"&" y en el ESTADO ANALÍTICO DEL EJERCICIO DEL PRESUPUESTO DE EGRESOS DETALLADO - LDF (F8B) columna DEVENGADO no existen erogaciones con recursos no etiquetados."),"") -> 
C131: =IF(ROUND(F7B!F61,2)>0,IF(ROUND(F8B!G154,2)>0,"","12.8. Se tiene ingresos DEVENGADO de recursos etiquetados en el ESTADO ANALÍTICO DE INGRESOS DETALLADO - LDF (F7B),"&" y en el ESTADO ANALÍTICO DEL EJERCICIO DEL PRESUPUESTO DE EGRESOS DETALLADO - LDF (F8B) columna DEVENGADO no existe erogaciones con recursos etiquetados."),"") -> 
A132: 13. Validación Estado Analítico del Egreso (COG) - LDF (F8B) | C132: =IF(ROUND(F8B!D155,2)=ROUND('F8'!C80,2),"","13.1. El TOTAL DEL GASTO en lo correspondiente al APROBADO del ESTADO ANALÍTICO DEL EJERCICIO DEL PRESUPUESTO DE EGRESOS DETALLADO - LDF (F8A),"&" no es igual al ESTADO ANALÍTICO DEL EJERCICIO DEL PRESUPUESTO DE EGRESOS (F8) columna APROBADO.") -> 
C133: =IF(ROUND(F8B!F155,2)=ROUND('F8'!E80,2),"","13.2. El TOTAL DEL GASTO en lo correspondiente al MODFICADO del ESTADO ANALÍTICO DEL EJERCICIO DEL PRESUPUESTO DE EGRESOS DETALLADO - LDF (F8A),"&" no es igual al ESTADO ANALÍTICO DEL EJERCICIO DEL PRESUPUESTO DE EGRESOS (F8) columna MODIFICADO.") -> 
C134: =IF(ROUND(F8B!G155,2)=ROUND('F8'!F80,2),"","13.3. El TOTAL DEL GASTO en lo correspondiente al DEVENGADO del ESTADO ANALÍTICO DEL EJERCICIO DEL PRESUPUESTO DE EGRESOS DETALLADO - LDF (F8A),"&" no es igual al ESTADO ANALÍTICO DEL EJERCICIO DEL PRESUPUESTO DE EGRESOS (F8) columna DEVENGADO.") -> 
C135: =IF(ROUND(F8B!H155,2)=ROUND('F8'!G80,2),"","13.4. El TOTAL DEL GASTO en lo correspondiente al PAGADO del ESTADO ANALÍTICO DEL EJERCICIO DEL PRESPUESTO DE EGRESOS DETALLADO - LDF (F8A),"&" no es igual al ESTADO ANALÍTICO DEL EJERCICIO DEL PRESPUESTO DE EGRESOS (F8) columna PAGADO.") -> 
A136: 14. Validación Estado Analítico del Egreso (CF) - (F19A) | C136: =IF(ROUND(F19A!D76,2)=ROUND('F19'!C40,2),"","14.1. El TOTAL DEL GASTO en lo correspondiente al APROVADO del ESTADO ANALÍTICO DEL EJERCICIO DEL PRESUPUESTO DE EGRESOS DETALLADO - LDF (F19A),"&" no es igual al ESTADO ANALÍTICO DEL EJERCICIO DEL PRESUPUESTO DE EGRESOS (F19) columna APROBADO.") -> 
C137: =IF(ROUND(F19A!F76,2)=ROUND('F19'!E40,2),"","14.2. El TOTAL DEL GASTO en lo correspondiente al MODFICADO del ESTADO ANALÍTICO DEL EJERCICIO DEL PRESUPUESTO DE EGRESOS DETALLADO - LDF (F19A),"&" no es igual al ESTADO ANALÍTICO DEL EJERCICIO DEL PRESUPUESTO DE EGRESOS (F19) columna MODIFICADO.") -> 
C138: =IF(ROUND(F19A!G76,2)=ROUND('F19'!F40,2),"","14.3. El TOTAL DEL GASTO en lo correspondiente al DEVENGADO del ESTADO ANALÍTCO DEL EJERCICIO DEL PRESUPUESTO DE EGRESOS DETALLADO - LDF (F19A),"&" no es igual al ESTADO ANALÍTICO DEL EJERCICIO DEL PRESUPUESTO DE EGRESOS (F19) columna DEVENGADO.") -> 
C139: =IF(ROUND(F19A!H76,2)=ROUND('F19'!G40,2),"","14.4. El TOTAL DEL GASTO en lo correspondiente al PAGADO del ESTADO ANALÍTCO DEL EJERCICIO DEL PRESUPUESTO DE EGRESO DETALLADO - LDF (F19A),"&" no es igual al ESTADO ANALÍTICO DEL EJERCICIO DEL PRESUPUESTO DE EGRESOS (F19) columna PAGADO.") -> 
C140: =IF(ROUND(F19A!$D$41,2)=ROUND(F8B!$D$80,2),"","14.5. El TOTAL DEL GASTO NO ETIQUETADO en lo correspondiente al APROBADO del ESTADO ANALÍTICO DEL EJERCICIO DEL PRESUPUESTO DE EGRESO DETALLADO - LDF (F19A),"&" no es igual al TOTAL DEL GASTO NO ETIQUETADO en el momento APROBADO del ESTADO ANALÍTICO DEL EJERCICIO DEL PRESUPUESTO DE EGRESOS (F8A).") -> 
C141: =IF(ROUND(F19A!$F$41,2)=ROUND(F8B!$F$80,2),"","14.6. El TOTAL DEL GASTO NO ETIQUETADO en lo correspondiente al MODIFICADO del ESTADO ANALÍTICO DEL EJERCICIO DEL PRESUPUESTO DE EGRESO DETALLADO - LDF (F19A),"&" no es igual al TOTAL DEL GASTO NO ETIQUETADO en el momento MODIFICADO del ESTADO ANALÍTICO DEL EJERCICIO DEL PRESUPUESTO DE EGRESOS (F8A).") -> 
C142: =IF(ROUND(F19A!$G$41,2)=ROUND(F8B!$G$80,2),"","14.7. El TOTAL DEL GASTO NO ETIQUETADO en lo correspondiente al DEVENGADO del ESTADO ANALÍTICO DEL EJERCICIO DEL PRESUPUESTO DE EGRESO DETALLADO - LDF (F19A),"&" no es igual al TOTAL DEL GASTO NO ETIQUETADO en el momento DEVENGADO del ESTADO ANALÍTICO DEL EJERCICIO DEL PRESUPUESTO DE EGRESOS (F8A).") -> 
C143: =IF(ROUND(F19A!$H$41,2)=ROUND(F8B!$H$80,2),"","14.8. El TOTAL DEL GASTO NO ETIQUETADO en lo correspondiente al PAGADO del ESTADO ANALÍTICO DEL EJERCICIO DEL PRESUPUESTO DE EGRESO DETALLADO - LDF (F19A),"&" no es igual al TOTAL DEL GASTO NO ETIQUETADO en el momento PAGADO del ESTADO ANALÍTICO DEL EJERCICIO DEL PRESUPUESTO DE EGRESOS (F8A).") -> 
C144: =IF(ROUND(F19A!$D$75,2)=ROUND(F8B!$D$154,2),"","14.9. El TOTAL DEL GASTO ETIQUETADO en lo correspondiente al APROBADO del ESTADO ANALÍTICO DEL EJERCICIO DEL PRESUPUESTO DE EGRESO DETALLADO - LDF (F19A),"&" no es igual al TOTAL DEL GASTO ETIQUETADO en el momento APROBADO del ESTADO ANALÍTICO DEL EJERCICIO DEL PRESUPUESTO DE EGRESOS (F8A).") -> 
C145: =IF(ROUND(F19A!$F$75,2)=ROUND(F8B!$F$154,2),"","14.10. El TOTAL DEL GASTO ETIQUETADO en lo correspondiente al MODIFICADO del ESTADO ANALÍTICO DEL EJERCICIO DEL PRESUPUESTO DE EGRESO DETALLADO - LDF (F19A),"&" no es igual al TOTAL DEL GASTO ETIQUETADO en el momento MODIFICADO del ESTADO ANALÍTICO DEL EJERCICIO DEL PRESUPUESTO DE EGRESOS (F8A).") -> 
C146: =IF(ROUND(F19A!$G$75,2)=ROUND(F8B!$G$154,2),"","14.11. El TOTAL DEL GASTO ETIQUETADO en lo correspondiente al DEVENGADO del ESTADO ANALÍTICO DEL EJERCICIO DEL PRESUPUESTO DE EGRESO DETALLADO - LDF (F19A),"&" no es igual al TOTAL DEL GASTO ETIQUETADO en el momento DEVENGADO del ESTADO ANALÍTICO DEL EJERCICIO DEL PRESUPUESTO DE EGRESOS (F8A).") -> 
C147: =IF(ROUND(F19A!$H$75,2)=ROUND(F8B!$H$154,2),"","14.12. El TOTAL DEL GASTO ETIQUETADO en lo correspondiente al PAGADO del ESTADO ANALÍTICO DEL EJERCICIO DEL PRESUPUESTO DE EGRESO DETALLADO - LDF (F19A),"&" no es igual al TOTAL DEL GASTO ETIQUETADO en el momento PAGADO del ESTADO ANALÍTICO DEL EJERCICIO DEL PRESUPUESTO DE EGRESOS (F8A).") -> 
A148: 15. Validación Estado Analítico del Egreso (CA) - LDF (F18A) | C148: =IF(ROUND(F18A!B62,2)=ROUND('F18'!B58,2),"","15.1. El TOTAL DEL GASTO del momento APROBADO del ESTADO ANALÍTICO DEL EJERCICIO DEL PRESUPUESTO DE EGRESOS DETALLADO - LDF (F18A),"&" no es igual al ESTADO ANALÍTICO DEL EJERCICIO DEL PRESUPUESTO DE EGRESOS (F18) columna APROBADO.") -> 
C149: =IF(ROUND(F18A!C62,2)=ROUND('F18'!C58,2),"","15.2. El TOTAL DEL GASTO del momento MODIFICADO del ESTADO ANALÍTICO DEL EJERCICIO DEL PRESUPUESTO DE EGRESOS DETALLADO - LDF (F18A),"&" no es igual al ESTADO ANALÍTICO DEL EJERCICIO DEL PRESUPUESTO DE EGRESOS (F18) columna MODIFICADO.") -> 
C150: =IF(ROUND(F18A!E62,2)=ROUND('F18'!E58,2),"","15.3. El TOTAL DEL GASTO del momento DEVENGADO del ESTADO ANALÍTICO DEL EJERCICIO DEL PRESUPUESTO DE EGRESOS DETALLADO - LDF (F18A),"&" no es igual al ESTADO ANALÍTICO DEL EJERCICIO DEL PRESUPUESTO DE EGRESOS (F18) columna DEVENGADO.") -> 
C151: =IF(ROUND(F18A!F62,2)=ROUND('F18'!F58,2),"","15.4. El TOTAL DEL GASTO del momento PAGADO del ESTADO ANALÍTICO DEL EJERCICIO DEL PRESUPUESTO DE EGRESOS DETALLADO - LDF (F18A),"&" no es igual al ESTADO ANALÍTICO DEL EJERCICIO DEL PRESUPUESTO DE EGRESOS (F18) columna PAGADO.") -> 
C152: =IF(ROUND(F18A!$B$34,2)=ROUND(F8B!$D$80,2),"","15.5. El TOTAL DEL GASTO NO ETIQUETADO en lo correspondiente al APROBADO del ESTADO ANALÍTICO DEL EJERCICIO DEL PRESUPUESTO DE EGRESO DETALLADO - LDF (F18A),"&" no es igual al TOTAL DEL GASTO NO ETIQUETADO en el momento APROBADO del ESTADO ANALÍTICO DEL EJERCICIO DEL PRESUPUESTO DE EGRESOS (F8A).") -> 
C153: =IF(ROUND(F18A!$D$34,2)=ROUND(F8B!$F$80,2),"","15.6. El TOTAL DEL GASTO NO ETIQUETADO en lo correspondiente al MODIFICADO del ESTADO ANALÍTICO DEL EJERCICIO DEL PRESUPUESTO DE EGRESO DETALLADO - LDF (F18A),"&" no es igual al TOTAL DEL GASTO NO ETIQUETADO en el momento MODIFICADO del ESTADO ANALÍTICO DEL EJERCICIO DEL PRESUPUESTO DE EGRESOS (F8A).") -> 
C154: =IF(ROUND(F18A!$E$34,2)=ROUND(F8B!$G$80,2),"","15.7. El TOTAL DEL GASTO NO ETIQUETADO en lo correspondiente al DEVENGADO del ESTADO ANALÍTICO DEL EJERCICIO DEL PRESUPUESTO DE EGRESO DETALLADO - LDF (F18A),"&" no es igual al TOTAL DEL GASTO NO ETIQUETADO en el momento DEVENGADO del ESTADO ANALÍTICO DEL EJERCICIO DEL PRESUPUESTO DE EGRESOS (F8A).") -> 
C155: =IF(ROUND(F18A!$F$34,2)=ROUND(F8B!$H$80,2),"","15.8. El TOTAL DEL GASTO NO ETIQUETADO en lo correspondiente al PAGADO del ESTADO ANALÍTICO DEL EJERCICIO DEL PRESUPUESTO DE EGRESO DETALLADO - LDF (F18A),"&" no es igual al TOTAL DEL GASTO NO ETIQUETADO en el momento PAGADO del ESTADO ANALÍTICO DEL EJERCICIO DEL PRESUPUESTO DE EGRESOS (F8A).") -> 
C156: =IF(ROUND(F18A!$B$61,2)=ROUND(F8B!$D$154,2),"","15.9. El TOTAL DEL GASTO ETIQUETADO en lo correspondiente al APROBADO del ESTADO ANALÍTICO DEL EJERCICIO DEL PRESUPUESTO DE EGRESO DETALLADO - LDF (F18A),"&" no es igual al TOTAL DEL GASTO ETIQUETADO en el momento APROBADO del ESTADO ANALÍTICO DEL EJERCICIO DEL PRESUPUESTO DE EGRESOS (F8A).") -> 
C157: =IF(ROUND(F18A!$D$61,2)=ROUND(F8B!$F$154,2),"","15.10. El TOTAL DEL GASTO ETIQUETADO en lo correspondiente al MODIFICADO del ESTADO ANALÍTICO DEL EJERCICIO DEL PRESUPUESTO DE EGRESO DETALLADO - LDF (F18A),"&" no es igual al TOTAL DEL GASTO ETIQUETADO en el momento MODIFICADO del ESTADO ANALÍTICO DEL EJERCICIO DEL PRESUPUESTO DE EGRESOS (F8A).") -> 
C158: =IF(ROUND(F18A!$E$61,2)=ROUND(F8B!$G$154,2),"","15.11. El TOTAL DEL GASTO ETIQUETADO en lo correspondiente al DEVENGADO del ESTADO ANALÍTICO DEL EJERCICIO DEL PRESUPUESTO DE EGRESO DETALLADO - LDF (F18A),"&" no es igual al TOTAL DEL GASTO ETIQUETADO en el momento DEVENGADO del ESTADO ANALÍTICO DEL EJERCICIO DEL PRESUPUESTO DE EGRESOS (F8A).") -> 
C159: =IF(ROUND(F18A!$F$61,2)=ROUND(F8B!$H$154,2),"","15.12. El TOTAL DEL GASTO ETIQUETADO en lo correspondiente al PAGADO del ESTADO ANALÍTICO DEL EJERCICIO DEL PRESUPUESTO DE EGRESO DETALLADO - LDF (F18A),"&" no es igual al TOTAL DEL GASTO ETIQUETADO en el momento PAGADO del ESTADO ANALÍTICO DEL EJERCICIO DEL PRESUPUESTO DE EGRESOS (F8A).") -> 
A160: 16. Validación Balance Presupuestario - LDF (F22) | C160: =IF(ROUND(SUM('F22'!E7:E8)+('F22'!E27),2)=ROUND('F7'!C70,2),"","16.1. El importe de INGRESOS TOTALES del momento ESTIMADO del BALANCE PRESUPUESTARIO - LDF (F22),"&" no es igual al ESTADO ANALÍTICO DE INGRESOS (F7) columna ESTIMADO.") -> 
C161: =IF(ROUND(SUM('F22'!F7:F8)+('F22'!F27),2)=ROUND('F7'!F70,2),"","16.2. El importe de INGRESOS TOTALES del momento DEVENGADO del BALANCE PRESUPUESTARIO - LDF (F22),"&" no es igual al ESTADO ANALÍTICO DE INGRESOS (F7) columna DEVENGADO.") -> 
C162: =IF(ROUND(SUM('F22'!G7:G8)+('F22'!G27),2)=ROUND('F7'!G70,2),"","16.3. El importe de INGRESOS TOTALES del momento RECAUDADO del BALANCE PRESUPUESTARIO - LDF (F22),"&" no es igual al ESTADO ANALÍTICO DE INGRESOS (F7) columna RECAUDADO.") -> 
C163: =IF(ROUND(('F22'!E10+'F22'!E30),2)=ROUND('F8'!C80,2),"","16.4. El importe de EGRESOS PRESUPUESTARIOS del momento APROBADO del BALANCE PRESUPUESTARIO - LDF (F22),"&" no es igual al ESTADO ANALÍTICO DEL EJERCICIO DEL PRESUPUESTO DE EGRESOS (F8) columna APROBADO.") -> 
C164: =IF(ROUND(('F22'!F10+'F22'!F30),2)=ROUND('F8'!F80,2),"","16.5. El importe de EGRESOS PRESUPUESTARIOS del momento DEVENGADO del BALNCE PRESUPUESTARIO - LDF (F22),"&" no es igual al ESTADO ANALÍTICO DEL EJERCICIO DEL PRESUPUESTO DE EGRESOS (F8) columna DEVENGADO.") -> 
C165: =IF(ROUND(('F22'!G10+'F22'!G30),2)=ROUND('F8'!G80,2),"","16.6. El importe de EGRESOS PRESUPUESTARIOS del momento PAGADO del BALANCE PRESUPUESTARIO - LDF (F22),"&" no es igual al ESTADO ANALÍTCO DEL EJERCICIO DEL PRESUPUESTO DE EGRESOS (F8) columna PAGADO.") -> 
A166: 17. Validación Avance de programas y/o procesos concluidos (F13) | C166: =IF(ROUND('F13'!$P$6,2)=ROUND('F12'!$E$21,2),"","17.1. El total del CAPÍTULO 1000 del AVANCE DE PROGRAMAS Y/O PROCESOS CONCLUIDOS (F13),"&" no es igual al informado en el FLUJO CONTABLE DE INGRESOS Y EGRESOS (F12) columna MODIFICADO.") -> 
C167: =IF(ROUND('F13'!$Q$6,2)=ROUND('F12'!$E$22,2),"","17.2. El total del CAPÍTULO 2000 del AVANCE DE PROGRAMAS Y/O PROCESOS CONCLUIDOS (F13),"&" no es igual al informado en el FLUJO CONTABLE DE INGRESOS Y EGRESOS (F12) columna MODFICADO.") -> 
C168: =IF(ROUND('F13'!$R$6,2)=ROUND('F12'!$E$23,2),"","17.3. El total del CAPÍTULO 3000 del AVANCE DE PROGRAMAS Y/O PROCESOS CONCLUIDOS (F13),"&" no es igual al informado en el FLUJO CONTABLE DE INGRESOS Y EGRESOS (F12) columna MODFICADO.") -> 
C169: =IF(ROUND('F13'!$S$6,2)=ROUND('F12'!$E$24,2),"","17.4. El total del CAPÍTULO 4000 del AVANCE DE PROGRAMAS Y/O PROCESOS CONCLUIDOS (F13),"&" no es igual al informado en el FLUJO CONTABLE DE INGRESOS Y EGRESOS (F12) columna MODIFICADO.") -> 
C170: =IF(ROUND('F13'!$T$6,2)=ROUND('F12'!$E$25,2),"","17.5. El total del CAPÍTULO 5000 del AVANCE DE PROGRAMAS Y/O PROCESOS CONCLUIDOS (F13),"&" no es igual al informado en el FLUJO CONTABLE DE INGRESOS Y EGRESOS (F12) columna MODIFICADO.") -> 
C171: =IF(ROUND('F13'!$U$6,2)=ROUND('F12'!$E$26,2),"","17.6. El total del CAPÍTULO 6000 del AVANCE DE PROGRAMAS Y/O PROCESOS CONCLUIDOS (F13),"&" no es igual al informado en el FLUJO CONTABLE DE INGRESOS Y EGRESOS (F12) columna MODFICADO.") -> 
C172: =IF(ROUND('F13'!$V$6,2)=ROUND('F12'!$E$27,2),"","17.7. El total del CAPÍTULO 7000 del AVANCE DE PROGRAMAS Y/O PROCESOS CONCLUIDOS (F13),"&" no es igual al informado en el FLUJO CONTABLE DE INGRESOS Y EGRESOS (F12) columna MODIFICADO.") -> 
C173: =IF(ROUND('F13'!$W$6,2)=ROUND('F12'!$E$28,2),"","17.8. El total del CAPÍTULO 8000 del AVANCE DE PROGRAMAS Y/O PROCESOS CONCLUIDOS (F13),"&" no es igual al informado en el FLUJO CONTABLE DE INGRESOS Y EGRESOS (F12) columna MODIFICADO.") -> 
C174: =IF(ROUND('F13'!$X$6,2)=ROUND('F12'!$E$29,2),"","17.9. El total del CAPÍTULO 9000 del AVANCE DE PROGRAMAS Y/O PROCESOS CONCLUIDOS (F13),"&" no es igual al informado en el FLUJO CONTABLE DE INGRESOS Y EGRESOS (F12) columna MODFICADO.") -> 
C175: =IF(ROUND('F13'!$AA$6,2)=ROUND('F12'!$F$21,2),"","17.10. El total del CAPÍTULO 1000 del AVANCE DE PROGRAMAS Y/O PROCESOS CONCLUIDOS (F13),"&" no es igual al informado en el FLUJO CONTABLE DE INGRESOS Y EGRESOS (F12) columna DEVENGADO.") -> 
C176: =IF(ROUND('F13'!$AB$6,2)=ROUND('F12'!$F$22,2),"","17.11. El total del CAPÍTULO 2000 del AVANCE DE PROGRAMAS Y/O PROCESOS CONCLUIDOS (F13),"&" no es igual al informado en el FLUJO CONTABLE DE INGRESOS Y EGRESOS (F12) columna DEVENGADO.") -> 
C177: =IF(ROUND('F13'!$AC$6,2)=ROUND('F12'!$F$23,2),"","17.12. El total del CAPÍTULO 3000 del AVANCE DE PROGRAMAS Y/O PROCESOS CONCLUIDOS (F13),"&" no es igual al informado en el FLUJO CONTABLE DE INGRESOS Y EGRESOS (F12) columna DEVENGADO.") -> 
C178: =IF(ROUND('F13'!$AD$6,2)=ROUND('F12'!$F$24,2),"","17.13. El total del CAPÍTULO 4000 del AVANCE DE PROGRAMAS Y/O PROCESOS CONCLUIDOS (F13),"&" no es igual al informado en el FLUJO CONTABLE DE INGRESOS Y EGRESOS (F12) columna DEVENGADO.") -> 
C179: =IF(ROUND('F13'!$AE$6,2)=ROUND('F12'!$F$25,2),"","17.14. El total del CAPÍTULO 5000 del AVANCE DE PROGRAMAS Y/O PREOCESOS CONCLUIDOS (F13),"&" no es igual al informado en el FLUJO CONTABLE DE INGRESOS Y EGRESOS (F12) columna DEVENGADO.") -> 
C180: =IF(ROUND('F13'!$AF$6,2)=ROUND('F12'!$F$26,2),"","17.15. El total del CAPÍTULO 6000 del AVANCE DE PROGRAMAS Y/O PROCESOS CONCLUIDOS (F13),"&" no es igual al informado en el FLUJO CONTABLE DE INGRESOS Y EGRESOS (F12) columna DEVENGADO.") -> 
C181: =IF(ROUND('F13'!$AG$6,2)=ROUND('F12'!$F$27,2),"","17.16. El total del CAPÍTULO 7000 del AVANCE DE PROGRAMAS Y/O PROCESOS CONCLUIDOS (F13),"&" no es igual al informado en el FLUJO CONTABLE DE INGRESOS Y EGRESOS (F12) columna DEVENGADO.") -> 
C182: =IF(ROUND('F13'!$AH$6,2)=ROUND('F12'!$F$28,2),"","17.17. El total del CAPÍTULO 8000 del AVANCE DE PROGRAMAS Y/O PROCESOS CONCLUIDOS (F13),"&" no es igual al informado en el FLUJO CONTABLE DE INGRESOS Y EGRESOS (F12) columna DEVENGADO.") -> 
C183: =IF(ROUND('F13'!$AI$6,2)=ROUND('F12'!$F$29,2),"","17.18. El total del CAPÍTULO 9000 del AVANCE DE PROGRAMAS Y/O PROCESOS CONCLUIDOS (F13),"&" no es igual al informado en el FLUJO CONTABLE DE INGRESOS Y EGRESOS (F12) columna DEVENGADO.") -> 
B185: Acatic | C185: ENERO | D185: ="31 de Enero de "&F185 -> 31 de Enero de 2024 | E185: ="Del 1° al 31 de Enero de "&F185 -> Del 1° al 31 de Enero de 2024 | F185: 2024 | T185: Indicaciones para actualizar el archivo de importar de cada año:
B186: Acatlán de Juárez | C186: FEBRERO | D186: ="29 de Febrero de "&F185 -> 29 de Febrero de 2024 | E186: ="Del 1° al 29 de Febrero de "&F185 -> Del 1° al 29 de Febrero de 2024 | F186: 2023 | U186: Actualizar el catálogo de entidades
B187: Administración de Estacionómetros para la Asistencia Social del Municipio de Zapotlán el Grande | C187: MARZO | D187: ="31 de Marzo de "&F185 -> 31 de Marzo de 2024 | E187: ="Del 1° al 31 de Marzo de "&F185 -> Del 1° al 31 de Marzo de 2024 | U187: Cambiar conforme a los días de febrero
B188: Agencia de Coinversión para el Desarrollo Sostenible de Jalisco | C188: ABRIL | D188: ="30 de Abril de "&F185 -> 30 de Abril de 2024 | E188: ="Del 1° al 30 de Abril de "&F185 -> Del 1° al 30 de Abril de 2024 | U188: Corresponde el primero al año de la cuenta y el segundo al anterior
B189: Agencia de Energía del Estado de Jalisco | C189: MAYO | D189: ="31 de Mayo de "&F185 -> 31 de Mayo de 2024 | E189: ="Del 1° al 31 de Mayo de "&F185 -> Del 1° al 31 de Mayo de 2024
B190: Agencia de Sanidad, Inocuidad y Calidad Agroalimentaria de Jalisco | C190: JUNIO, 1er. Informe de Avance de Gestión Financiera y Corte Semestral | D190: ="30 de Junio de "&F185 -> 30 de Junio de 2024 | E190: ="Del 1° al 30 de Junio de "&F185 -> Del 1° al 30 de Junio de 2024
B191: Agencia Estatal de Entretenimiento de Jalisco | C191: JULIO | D191: ="31 de Julio de "&F185 -> 31 de Julio de 2024 | E191: ="Del 1° al 31 de Julio de "&F185 -> Del 1° al 31 de Julio de 2024
B192: Agencia Integral de Regulación de Emisiones | C192: AGOSTO | D192: ="31 de Agosto de "&F185 -> 31 de Agosto de 2024 | E192: ="Del 1° al 31 de Agosto de "&F185 -> Del 1° al 31 de Agosto de 2024
B193: Agencia Metropolitana de Bosques Urbanos del Área Metropolitana de Guadalajara | C193: SEPTIEMBRE | D193: ="30 de Septiembre de "&F185 -> 30 de Septiembre de 2024 | E193: ="Del 1° al 30 de Septiembre de "&F185 -> Del 1° al 30 de Septiembre de 2024
B194: Agencia Metropolitana de Servicios de Infraestructura para la Movilidad del Área Metropolitana de Guadalajara | C194: OCTUBRE | D194: ="31 de Octubre de "&F185 -> 31 de Octubre de 2024 | E194: ="Del 1° al 31 de Octubre de "&F185 -> Del 1° al 31 de Octubre de 2024
B195: Agencia para el Desarrollo de Industrias Creativas y Digitales | C195: NOVIEMBRE | D195: ="30 de Noviembre de "&F185 -> 30 de Noviembre de 2024 | E195: ="Del 1° al 30 de Noviembre de "&F185 -> Del 1° al 30 de Noviembre de 2024
B196: Agua y Saneamiento del Municipio de Tepatitlán de Morelos, Jalisco (ASTEPA) | C196: DICIEMBRE, 2do. Informe de Avance de Gestión Financiera y Corte Anual | D196: ="31 de Diciembre de "&F185 -> 31 de Diciembre de 2024 | E196: ="Del 1° al 31 de Diciembre de "&F185 -> Del 1° al 31 de Diciembre de 2024
B197: Ahualulco de Mercado
B198: Albergue Las Cuadritas "Fray Antonio Alcalde"
B199: Amacueca
B200: Amatitán
B201: Ameca
B202: Arandas
B203: Asociación Intermunicipal para la Protección del Medio Ambiente y el Desarrollo Sustentable del Lago de Chapala
... 554 more rows

Sheet Balanza
A1: No. DE CUENTA | B1: NOMBRE DE LA CUENTA | C1: ="SALDO AL 31 DE DICIEMBRE DE "&Validacion!F186 -> SALDO AL 31 DE DICIEMBRE DE 2023 | E1: MOVIMIENTO | G1: ="SALDO FINAL DEL PERIODO A INFORMAR EJERCICIO "&Validacion!F185 -> SALDO FINAL DEL PERIODO A INFORMAR EJERCICIO 2024
C2: DEUDOR | D2: ACREEDOR | E2: DEUDOR | F2: ACREEDOR | G2: DEUDOR | H2: ACREEDOR
A3: 10000 | B3: ACTIVO | C3: =C4+C43 -> 623,449,863.27 | E3: =E4+E43 -> 101,089,621.94 | F3: =F4+F43 -> 86,360,440.51 | G3: =G4+G43 -> 638,179,044.70
A4: 11000 | B4: ACTIVO CIRCULANTE | C4: =C5+C13+C21+C27+C33+C35+C38 -> 18,628,711.60 | E4: =E5+E13+E21+E27+E33+E35+E38 -> 99,839,502.46 | F4: =F5+F13+F21+F27+F33+F35+F38 -> 86,360,440.51 | G4: =G5+G13+G21+G27+G33+G35+G38 -> 32,107,773.55
A5: 11100 | B5: EFECTIVO Y EQUIVALENTES | C5: =SUM(C6:C12) -> 11,502,299.08 | E5: =SUM(E6:E12) -> 94,570,668.27 | F5: =SUM(F6:F12) -> 82,107,293.25 | G5: =SUM(G6:G12) -> 23,965,674.10
A6: 11110 | B6: Efectivo | C6: -1,103,186.39 | E6: 3,702,576.22 | F6: 2,167,826.71 | G6: =ROUND(C6+E6-F6,2) -> 431,563.12
A7: 11120 | B7: Bancos/Tesorería | C7: 12,605,485.47 | E7: 90,868,092.05 | F7: 79,939,466.54 | G7: =ROUND(C7+E7-F7,2) -> 23,534,110.98
A8: 11130 | B8: Bancos/Dependencias y otros | G8: 0.00
A9: 11140 | B9: Inversiones temporales (hasta 3 meses) | G9: 0.00
A10: 11150 | B10: Fondos con afectación específica | G10: 0.00
A11: 11160 | B11: Depósitos de fondos de terceros en garantía y/o administración | G11: 0.00
A12: 11190 | B12: Otros efectivos y equivalentes | G12: 0.00
A13: 11200 | B13: DERECHOS A RECIBIR EFECTIVO O EQUIVALENTES | C13: =SUM(C14:C20) -> 4,345,705.35 | E13: =SUM(E14:E20) -> 5,268,834.19 | F13: =SUM(F14:F20) -> 4,253,147.26 | G13: =SUM(G14:G20) -> 5,361,392.28
A14: 11210 | B14: Inversiones financieras de corto plazo | G14: =ROUND(C14+E14-F14,2) -> 0.00
A15: 11220 | B15: Cuentas por cobrar a corto plazo | G15: 0.00
A16: 11230 | B16: Deudores diversos por cobrar a corto plazo | C16: 1,893,819.54 | E16: 3,604,796.29 | F16: 2,983,676.89 | G16: 2,514,938.94
A17: 11240 | B17: Ingresos por recuperar a corto plazo | G17: 0.00
A18: 11250 | B18: Deudores por anticipos de la tesorería a corto plazo | C18: 2,451,885.81 | E18: 1,664,037.90 | F18: 1,269,470.37 | G18: 2,846,453.34
A19: 11260 | B19: Préstamos otorgados a corto plazo | G19: 0.00
A20: 11290 | B20: Otros derechos a recibir efectivo o equivalentes a corto plazo | G20: 0.00
A21: 11300 | B21: DERECHOS A RECIBIR BIENES O SERVICIOS | C21: =SUM(C22:C26) -> 2,780,707.17 | E21: =SUM(E22:E26) -> 0.00 | F21: =SUM(F22:F26) -> 0.00 | G21: =SUM(G22:G26) -> 2,780,707.17
A22: 11310 | B22: Anticipo a proveedores por adquisición de bienes y prestación de servicios a corto plazo | C22: 50,000.00 | E22: 0.00 | F22: 0.00 | G22: =ROUND(C22+E22-F22,2) -> 50,000.00
A23: 11320 | B23: Anticipo a proveedores por adquisición de bienes inmuebles y muebles a corto plazo | C23: 125,000.00 | E23: 0.00 | F23: 0.00 | G23: 125,000.00
A24: 11330 | B24: Anticipo a proveedores por adquisición de bienes intangibles a corto plazo | G24: 0.00
A25: 11340 | B25: Anticipo a contratistas por obras públicas a corto plazo | C25: 2,605,707.17 | E25: 0.00 | F25: 0.00 | G25: 2,605,707.17
A26: 11390 | B26: Otros derechos a recibir bienes o servicios a corto plazo | G26: 0.00
A27: 11400 | B27: INVENTARIOS | C27: =SUM(C28:C32) -> 0.00 | E27: =SUM(E28:E32) -> 0.00 | F27: =SUM(F28:F32) -> 0.00 | G27: =SUM(G28:G32) -> 0.00
A28: 11410 | B28: Inventario de mercancías para venta
A29: 11420 | B29: Inventario de mercancías terminadas
A30: 11430 | B30: Inventario de mercancías en proceso de elaboración
A31: 11440 | B31: Inventario de materias primas, materiales y suministros para producción
A32: 11450 | B32: Bienes en tránsito
A33: 11500 | B33: ALMACENES | C33: =SUM(C34) -> 0.00 | E33: =SUM(E34) -> 0.00 | F33: =SUM(F34) -> 0.00 | G33: =SUM(G34) -> 0.00
A34: 11510 | B34: Almacén de materiales y suministros de consumo | G34: =ROUND(C34+E34-F34,2) -> 0.00
A35: 11600 | B35: ESTIMACIÓN POR PÉRDIDA O DETERIORO DE ACTIVOS CIRCULANTES | C35: =SUM(C36:C37) -> 0.00 | E35: =SUM(E36:E37) -> 0.00 | F35: =SUM(F36:F37) -> 0.00 | G35: =SUM(G36:G37) -> 0.00
A36: 11610 | B36: Estimaciones para cuentas incobrables por derechos a recibir efectivo o equivalentes | G36: =ROUND(C36+E36-F36,2) -> 0.00
A37: 11620 | B37: Estimación por deterioro de inventarios | G37: 0.00
A38: 11900 | B38: OTROS ACTIVOS CIRCULANTES | C38: =SUM(C39:C42) -> 0.00 | E38: =SUM(E39:E42) -> 0.00 | F38: =SUM(F39:F42) -> 0.00 | G38: =SUM(G39:G42) -> 0.00
A39: 11910 | B39: Valores en garantía | G39: =ROUND(C39+E39-F39,2) -> 0.00
A40: 11920 | B40: Bienes en garantía (excluye depósitos de fondos) | G40: 0.00
A41: 11930 | B41: Bienes derivados de embargos, decomisos, aseguramientos y dación en pago | G41: 0.00
A42: 11940 | B42: Adquisición con fondos de terceros | G42: 0.00
A43: 12000 | B43: ACTIVO NO CIRCULANTE | C43: =C44+C49+C55+C63+C72+C78+C84+C91+C97-D43 -> 604,821,151.67 | D43: =D44+D49+D55+D63+D72+D78+D84+D91+D97 -> 0.00 | E43: =E44+E49+E55+E63+E72+E78+E84+E91+E97 -> 1,250,119.48 | F43: =F44+F49+F55+F63+F72+F78+F84+F91+F97 -> 0.00 | G43: =G44+G49+G55+G63+G72+G78+G84+G91+G97-H43 -> 606,071,271.15 | H43: =H44+H49+H55+H63+H72+H78+H84+H91+H97 -> 0.00
A44: 12100 | B44: INVERSIONES FINANCIERAS A LARGO PLAZO | C44: =SUM(C45:C48) -> 0.00 | E44: =SUM(E45:E48) -> 0.00 | F44: =SUM(F45:F48) -> 0.00 | G44: =SUM(G45:G48) -> 0.00
A45: 12110 | B45: Inversiones a largo plazo | G45: =ROUND(C45+E45-F45,2) -> 0.00
A46: 12120 | B46: Títulos y valores a largo plazo | G46: 0.00
A47: 12130 | B47: Fideicomisos, mandatos y contratos análogos | G47: 0.00
A48: 12140 | B48: Participaciones y aportaciones de capital | G48: 0.00
A49: 12200 | B49: DERECHOS A RECIBIR EFECTIVO O EQUIVALENTES A LARGO PLAZO | C49: =SUM(C50:C54) -> 0.00 | E49: =SUM(E50:E54) -> 0.00 | F49: =SUM(F50:F54) -> 0.00 | G49: =SUM(G50:G54) -> 0.00
A50: 12210 | B50: Documentos por cobrar a largo plazo | G50: =ROUND(C50+E50-F50,2) -> 0.00
A51: 12220 | B51: Deudores diversos a largo plazo | G51: 0.00
A52: 12230 | B52: Ingresos por recuperar a largo plazo | G52: 0.00
A53: 12240 | B53: Préstamos otorgados a largo plazo | G53: 0.00
A54: 12290 | B54: Otros derechos a recibir efectivo o equivalentes a largo plazo | G54: 0.00
A55: 12300 | B55: BIENES INMUEBLES, INFRAESTRUCTURA Y CONSTRUCCIONES EN PROCESO | C55: =SUM(C56:C62) -> 556,968,585.96 | E55: =SUM(E56:E62) -> 1,214,004.02 | F55: =SUM(F56:F62) -> 0.00 | G55: =SUM(G56:G62) -> 558,182,589.98
A56: 12310 | B56: Terrenos | C56: 5,900,000.00 | E56: 0.00 | F56: 0.00 | G56: =ROUND(C56+E56-F56,2) -> 5,900,000.00
A57: 12320 | B57: Viviendas | C57: 578,075.18 | E57: 0.00 | F57: 0.00 | G57: 578,075.18
A58: 12330 | B58: Edificios no habitacionales | C58: 11,297,680.73 | E58: 0.00 | F58: 0.00 | G58: 11,297,680.73
A59: 12340 | B59: Infraestructura | C59: 36,641,456.92 | E59: 0.00 | F59: 0.00 | G59: 36,641,456.92
A60: 12350 | B60: Construcciones en proceso en bienes de dominio público | C60: 476,473,406.70 | E60: 1,214,004.02 | F60: 0.00 | G60: 477,687,410.72
A61: 12360 | B61: Construcciones en proceso en bienes propios | C61: 26,077,966.43 | E61: 0.00 | F61: 0.00 | G61: 26,077,966.43
A62: 12390 | B62: Otros bienes inmuebles | G62: 0.00
A63: 12400 | B63: BIENES MUEBLES | C63: =SUM(C64:C71) -> 47,567,241.48 | E63: =SUM(E64:E71) -> 29,250.00 | F63: =SUM(F64:F71) -> 0.00 | G63: =SUM(G64:G71) -> 47,596,491.48
A64: 12410 | B64: Mobiliario y equipo de administración | C64: 4,256,935.50 | E64: 23,764.00 | F64: 0.00 | G64: =ROUND(C64+E64-F64,2) -> 4,280,699.50
A65: 12420 | B65: Mobiliario y equipo educacional y recreativo | C65: 4,660,660.52 | E65: 0.00 | F65: 0.00 | G65: 4,660,660.52
A66: 12430 | B66: Equipo e instrumental médico y de laboratorio | G66: 0.00
A67: 12440 | B67: Vehículos y equipo de transporte | C67: 4,650,157.99 | E67: 0.00 | F67: 0.00 | G67: 4,650,157.99
A68: 12450 | B68: Equipo de defensa y seguridad | C68: 387,977.14 | E68: 0.00 | F68: 0.00 | G68: 387,977.14
A69: 12460 | B69: Maquinaria, otros equipos y herramientas | C69: 32,285,613.69 | E69: 5,486.00 | F69: 0.00 | G69: 32,291,099.69
A70: 12470 | B70: Colecciones, obras de arte y objetos valiosos | C70: 1,325,896.64 | E70: 0.00 | F70: 0.00 | G70: 1,325,896.64
A71: 12480 | B71: Activos biológicos | G71: 0.00
A72: 12500 | B72: ACTIVOS INTANGIBLES | C72: =SUM(C73:C77) -> 285,324.23 | E72: =SUM(E73:E77) -> 6,865.46 | F72: =SUM(F73:F77) -> 0.00 | G72: =SUM(G73:G77) -> 292,189.69
A73: 12510 | B73: Software | C73: 208,108.27 | E73: 0.00 | F73: 0.00 | G73: =ROUND(C73+E73-F73,2) -> 208,108.27
A74: 12520 | B74: Patentes, marcas y derechos | G74: 0.00
A75: 12530 | B75: Concesiones y franquicias | G75: 0.00
A76: 12540 | B76: Licencias | C76: 77,215.96 | E76: 6,865.46 | F76: 0.00 | G76: 84,081.42
A77: 12590 | B77: Otros activos intangibles | G77: 0.00
A78: 12600 | B78: DEPRECIACIÓN, DETERIORO Y AMORTIZACIÓN ACUMULADA DE BIENES | D78: =SUM(D79:D83) -> 0.00 | E78: =SUM(E79:E83) -> 0.00 | F78: =SUM(F79:F83) -> 0.00 | H78: =D78+F78-E78 -> 0.00
A79: 12610 | B79: Depreciación acumulada de bienes inmuebles | H79: =ROUND(D79+F79-E79,2) -> 0.00
A80: 12620 | B80: Depreciación acumulada de infraestructura | H80: =ROUND(D80+F80-E80,2) -> 0.00
A81: 12630 | B81: Depreciación acumulada de bienes muebles | H81: 0.00
A82: 12640 | B82: Deterioro acumulado de bienes | H82: 0.00
A83: 12650 | B83: Amortización acumulada de activos intangibles | H83: 0.00
A84: 12700 | B84: ACTIVOS DIFERIDOS | C84: =SUM(C85:C90) -> 0.00 | E84: =SUM(E85:E90) -> 0.00 | F84: =SUM(F85:F90) -> 0.00 | G84: =SUM(G85:G90) -> 0.00
A85: 12710 | B85: Estudios, formulación y evaluación de proyectos | G85: =ROUND(C85+E85-F85,2) -> 0.00
A86: 12720 | B86: Derechos sobre bienes en régimen de arrendamiento financiero | G86: 0.00
A87: 12730 | B87: Gastos pagados por adelantado a largo plazo | G87: 0.00
A88: 12740 | B88: Anticipos a largo plazo | G88: 0.00
A89: 12750 | B89: Beneficios al retiro de empleados pagados por adelantado | G89: 0.00
A90: 12790 | B90: Otros activos diferidos | G90: 0.00
A91: 12800 | B91: ESTIMACIÓN POR PÉRDIDA O DETERIORO DE ACTIVOS NO CIRCULANTES | D91: =SUM(D92:D96) -> 0.00 | E91: =SUM(E92:E96) -> 0.00 | F91: =SUM(F92:F96) -> 0.00 | H91: =D91+F91-E91 -> 0.00
A92: 12810 | B92: Estimaciones por pérdida de cuentas incobrables de documentos por cobrar a largo plazo | H92: =ROUND(D92+F92-E92,2) -> 0.00
A93: 12820 | B93: Estimaciones por pérdida de cuentas incobrables de deudores diversos por cobrar a largo plazo | H93: 0.00
A94: 12830 | B94: Estimaciones por pérdida de cuentas incobrables de ingresos por cobrar a largo plazo | H94: 0.00
A95: 12840 | B95: Estimaciones por pérdida de cuentas incobrables de préstamos otorgados a largo plazo | H95: 0.00
A96: 12890 | B96: Estimaciones por pérdida de otras cuentas incobrables a largo plazo | H96: =ROUND(D96+F96-E96,2) -> 0.00
A97: 12900 | B97: OTROS ACTIVOS NO CIRCULANTES | C97: =SUM(C98:C100) -> 0.00 | E97: =SUM(E98:E100) -> 0.00 | F97: =SUM(F98:F100) -> 0.00 | G97: =SUM(G98:G100) -> 0.00
A98: 12910 | B98: Bienes en concesión | G98: =ROUND(C98+E98-F98,2) -> 0.00
A99: 12920 | B99: Bienes en arrendamiento financiero | G99: 0.00
A100: 12930 | B100: Bienes en comodato | G100: 0.00
A101: 20000 | B101: PASIVO | D101: =D102+D143 -> 61,395,163.88 | E101: =E102+E143 -> 33,788,062.43 | F101: =F102+F143 -> 31,855,713.70 | H101: =H102+H143 -> 59,462,815.15
A102: 21000 | B102: PASIVO CIRCULANTE | D102: =D103+D113+D117+D121+D124+D128+D135+D139 -> 27,456,319.75 | E102: =E103+E113+E117+E121+E124+E128+E135+E139 -> 32,743,790.30 | F102: =F103+F113+F117+F121+F124+F128+F135+F139 -> 31,855,713.70 | H102: =H103+H113+H117+H121+H124+H128+H135+H139 -> 26,568,243.15
A103: 21100 | B103: CUENTAS POR PAGAR A CORTO PLAZO | D103: =SUM(D104:D112) -> 24,598,540.93 | E103: =SUM(E104:E112) -> 24,706,026.00 | F103: =SUM(F104:F112) -> 24,520,136.54 | H103: =SUM(H104:H112) -> 24,412,651.47
A104: 21110 | B104: Servicios personales por pagar a corto plazo | D104: 0.00 | E104: 1,533,268.43 | F104: 1,537,735.54 | H104: =ROUND(D104+F104-E104,2) -> 4,467.11
A105: 21120 | B105: Proveedores por pagar a corto plazo | D105: 2,002,671.81 | E105: 14,693,992.80 | F105: 14,485,908.42 | H105: 1,794,587.43
A106: 21130 | B106: Contratistas por obras públicas por pagar a corto plazo | D106: 3,951,032.54 | E106: 1,208,771.25 | F106: 1,208,771.25 | H106: 3,951,032.54
A107: 21140 | B107: Participaciones y aportaciones por pagar a corto plazo | H107: 0.00
A108: 21150 | B108: Transferencias otorgadas por pagar a corto plazo | D108: 265,054.41 | E108: 2,003,477.11 | F108: 1,938,727.11 | H108: 200,304.41
A109: 21160 | B109: Intereses, comisiones y otros gastos de la deuda pública por pagar a corto plazo | D109: 0.00 | E109: 841,339.21 | F109: 841,339.21 | H109: 0.00
A110: 21170 | B110: Retenciones y contribuciones por pagar a corto plazo | D110: 18,379,782.17 | E110: 4,390,528.23 | F110: 4,473,006.04 | H110: 18,462,259.98
A111: 21180 | B111: Devoluciones de la ley de ingresos por pagar a corto plazo | H111: 0.00
A112: 21190 | B112: Otras cuentas por pagar a corto plazo | D112: 0.00 | E112: 34,648.97 | F112: 34,648.97 | H112: 0.00
A113: 21200 | B113: DOCUMENTOS POR PAGAR A CORTO PLAZO | D113: =SUM(D114:D116) -> 0.00 | E113: =SUM(E114:E116) -> 0.00 | F113: =SUM(F114:F116) -> 0.00 | H113: =SUM(H114:H116) -> 0.00
A114: 21210 | B114: Documentos comerciales por pagar a corto plazo | H114: =ROUND(D114+F114-E114,2) -> 0.00
A115: 21220 | B115: Documentos con contratistas por obras públicas por pagar a corto plazo | H115: 0.00
A116: 21290 | B116: Otros documentos por pagar a corto plazo | H116: 0.00
A117: 21300 | B117: PORCIÓN A CORTO PLAZO DE LA DEUDA PÚBLICA A LARGO PLAZO | D117: =SUM(D118+D120) -> 0.00 | E117: =SUM(E118+E120) -> 0.00 | F117: =SUM(F118+F120) -> 0.00 | H117: =SUM(H118+H120) -> 0.00
A118: 21310 | B118: Porción a corto plazo de la deuda pública interna | H118: =ROUND(D118+F118-E118,2) -> 0.00
A119: 21320 | B119: Porción a corto plazo de la deuda pública externa
A120: 21330 | B120: Porción a corto plazo de arrendamiento financiero | H120: =ROUND(D120+F120-E120,2) -> 0.00
A121: 21400 | B121: TÍTULOS Y VALORES A CORTO PLAZO | D121: =SUM(D122) -> 0.00 | E121: =SUM(E122) -> 0.00 | F121: =SUM(F122) -> 0.00 | H121: =SUM(H122) -> 0.00
A122: 21410 | B122: Títulos y valores de la deuda pública interna a corto plazo | H122: =ROUND(D122+F122-E122,2) -> 0.00
A123: 21420 | B123: Títulos y valores de la deuda pública externa a corto plazo
A124: 21500 | B124: PASIVOS DIFERIDOS A CORTO PLAZO | D124: =SUM(D125:D127) -> 2,793,236.27 | E124: =SUM(E125:E127) -> 703,492.54 | F124: =SUM(F125:F127) -> 0.00 | H124: =SUM(H125:H127) -> 2,089,743.73
A125: 21510 | B125: Ingresos cobrados por adelantado a corto plazo | D125: 2,793,236.27 | E125: 703,492.54 | F125: 0.00 | H125: =ROUND(D125+F125-E125,2) -> 2,089,743.73
A126: 21520 | B126: Intereses cobrados por adelantado a corto plazo | H126: 0.00
A127: 21590 | B127: Otros pasivos diferidos a corto plazo | H127: 0.00
A128: 21600 | B128: FONDOS Y BIENES DE TERCEROS EN GARANTÍA Y/O ADMINISTRACIÓN A CORTO PLAZO | D128: =SUM(D129:D134) -> 0.00 | E128: =SUM(E129:E134) -> 0.00 | F128: =SUM(F129:F134) -> 0.00 | H128: =SUM(H129:H134) -> 0.00
A129: 21610 | B129: Fondos en garantía a corto plazo | H129: =ROUND(D129+F129-E129,2) -> 0.00
A130: 21620 | B130: Fondos en administración a corto plazo | H130: 0.00
A131: 21630 | B131: Fondos contingentes a corto plazo | H131: 0.00
A132: 21640 | B132: Fondos de fideicomisos, mandatos y contratos análogos a corto plazo | H132: 0.00
A133: 21650 | B133: Otros fondos de terceros en garantía y/o administración a corto plazo | H133: 0.00
A134: 21660 | B134: Valores y bienes en garantía a corto plazo | H134: 0.00
A135: 21700 | B135: PROVISIONES A CORTO PLAZO | D135: =SUM(D136:D138) -> 0.00 | E135: =SUM(E136:E138) -> 7,334,271.76 | F135: =SUM(F136:F138) -> 7,334,271.76 | H135: =SUM(H136:H138) -> 0.00
A136: 21710 | B136: Provisión para demandas y juicios a corto plazo | H136: =ROUND(D136+F136-E136,2) -> 0.00
A137: 21720 | B137: Provisión para contingencias a corto plazo | H137: 0.00
A138: 21790 | B138: Otras provisiones a corto plazo | E138: 7,334,271.76 | F138: 7,334,271.76 | H138: 0.00
A139: 21900 | B139: OTROS PASIVOS A CORTO PLAZO | D139: =SUM(D140:D142) -> 64,542.55 | E139: =SUM(E140:E142) -> 0.00 | F139: =SUM(F140:F142) -> 1,305.40 | H139: =SUM(H140:H142) -> 65,847.95
A140: 21910 | B140: Ingresos por clasificar | D140: 64,542.55 | E140: 0.00 | F140: 1,305.40 | H140: =ROUND(D140+F140-E140,2) -> 65,847.95
A141: 21920 | B141: Recaudación por participar | H141: 0.00
A142: 21990 | B142: Otros pasivos circulantes | H142: 0.00
A143: 22000 | B143: PASIVO NO CIRCULANTE | D143: =SUM(D144+D147+D151+D157+D161+D168) -> 33,938,844.13 | E143: =SUM(E144+E147+E151+E157+E161+E168) -> 1,044,272.13 | F143: =SUM(F144+F147+F151+F157+F161+F168) -> 0.00 | H143: =SUM(H144+H147+H151+H157+H161+H168) -> 32,894,572.00
A144: 22100 | B144: CUENTAS POR PAGAR A LARGO PLAZO | D144: =SUM(D145:D146) -> 0.00 | E144: =SUM(E145:E146) -> 0.00 | F144: =SUM(F145:F146) -> 0.00 | H144: =SUM(H145:H146) -> 0.00
A145: 22110 | B145: Proveedores por pagar a largo plazo | H145: =ROUND(D145+F145-E145,2) -> 0.00
A146: 22120 | B146: Contratistas por obras públicas por pagar a largo plazo | H146: 0.00
A147: 22200 | B147: DOCUMENTOS POR PAGAR A LARGO PLAZO | D147: =SUM(D148:D150) -> 0.00 | E147: =SUM(E148:E150) -> 0.00 | F147: =SUM(F148:F150) -> 0.00 | H147: =SUM(H148:H150) -> 0.00
A148: 22210 | B148: Documentos comerciales por pagar a largo plazo | H148: =ROUND(D148+F148-E148,2) -> 0.00
A149: 22220 | B149: Documentos con contratistas por obras públicas por pagar a largo plazo | H149: 0.00
A150: 22290 | B150: Otros documentos por pagar a largo plazo | H150: 0.00
A151: 22300 | B151: DEUDA PÚBLICA A LARGO PLAZO | D151: =SUM(D152:D156) -> 33,938,844.13 | E151: =SUM(E152:E156) -> 1,044,272.13 | F151: =SUM(F152:F156) -> 0.00 | H151: =SUM(H152:H156) -> 32,894,572.00
A152: 22310 | B152: Títulos y valores de la deuda pública interna a largo plazo | H152: =ROUND(D152+F152-E152,2) -> 0.00
A153: 22320 | B153: Títulos y valores de la deuda pública externa a largo plazo
A154: 22330 | B154: Préstamos de la deuda pública interna por pagar a largo plazo | D154: 33,938,844.13 | E154: 1,044,272.13 | F154: 0.00 | H154: =ROUND(D154+F154-E154,2) -> 32,894,572.00
A155: 22340 | B155: Préstamos de la deuda pública externa por pagar a largo plazo
A156: 22350 | B156: Arrendamiento financiero por pagar a largo plazo | H156: =ROUND(D156+F156-E156,2) -> 0.00
A157: 22400 | B157: PASIVOS DIFERIDOS A LARGO PLAZO | D157: =SUM(D158:D160) -> 0.00 | E157: =SUM(E158:E160) -> 0.00 | F157: =SUM(F158:F160) -> 0.00 | H157: =SUM(H158:H160) -> 0.00
A158: 22410 | B158: Créditos diferidos a largo plazo | H158: =ROUND(D158+F158-E158,2) -> 0.00
A159: 22420 | B159: Intereses cobrados por adelantado a largo plazo | H159: 0.00
A160: 22490 | B160: Otros pasivos diferidos a largo plazo | H160: 0.00
A161: 22500 | B161: FONDOS Y BIENES DE TERCEROS EN GARANTÍA Y/O ADMINISTRACIÓN A LARGO PLAZO | D161: =SUM(D162:D167) -> 0.00 | E161: =SUM(E162:E167) -> 0.00 | F161: =SUM(F162:F167) -> 0.00 | H161: =SUM(H162:H167) -> 0.00
A162: 22510 | B162: Fondos en garantía a largo plazo | H162: =ROUND(D162+F162-E162,2) -> 0.00
A163: 22520 | B163: Fondos en administración a largo plazo | H163: 0.00
A164: 22530 | B164: Fondos contingentes a largo plazo | H164: 0.00
A165: 22540 | B165: Fondos de fideicomisos, mandatos y contratos análogos a largo plazo | H165: 0.00
A166: 22550 | B166: Otros fondos de terceros en garantía y/o administración a largo plazo | H166: 0.00
A167: 22560 | B167: Valores y bienes en garantía a largo plazo | H167: 0.00
A168: 22600 | B168: PROVISIONES A LARGO PLAZO | D168: =SUM(D169:D172) -> 0.00 | E168: =SUM(E169:E172) -> 0.00 | F168: =SUM(F169:F172) -> 0.00 | H168: =SUM(H169:H172) -> 0.00
A169: 22610 | B169: Provisión para demandas y juicios a largo plazo | H169: =ROUND(D169+F169-E169,2) -> 0.00
A170: 22620 | B170: Provisión para pensiones a largo plazo | H170: 0.00
A171: 22630 | B171: Provisión para contingencias a largo plazo | H171: 0.00
A172: 22690 | B172: Otras provisiones a largo plazo | H172: 0.00
A173: 30000 | B173: HACIENDA PÚBLICA/PATRIMONIO | D173: =D174+D178+D193 -> 562,054,699.39 | E173: =E174+E178+E193 -> 0.00 | F173: =F174+F178+F193 -> 16,661,530.16 | H173: =H174+H178+H193 -> 578,716,229.55
A174: 31000 | B174: HACIENDA PÚBLICA/PATRIMONIO CONTRIBUIDO | D174: =SUM(D175:D177) -> -9,699,435.73 | E174: =SUM(E175:E177) -> 0.00 | F174: =SUM(F175:F177) -> 0.00 | H174: =SUM(H175:H177) -> -9,699,435.73
A175: 31100 | B175: APORTACIONES | H175: =ROUND(D175+F175-E175,2) -> 0.00
A176: 31200 | B176: DONACIONES DE CAPITAL | H176: 0.00
A177: 31300 | B177: ACTUALIZACIÓN DE LA HACIENDA PÚBLICA/PATRIMONIO | D177: -9,699,435.73 | E177: 0.00 | F177: 0.00 | H177: -9,699,435.73
A178: 32000 | B178: HACIENDA PÚBLICA/PATRIMONIO GENERADO | D178: =D179+D180+D181+D186+D190 -> 571,754,135.12 | E178: =E179+E180+E181+E186+E190 -> 0.00 | F178: =F179+F180+F181+F186+F190 -> 16,661,530.16 | H178: =H179+H180+H181+H186+H190 -> 588,415,665.28
A179: 32100 | B179: RESULTADOS DEL EJERCICIO (AHORRO/ DESAHORRO) | D179: =IF(C751>D752,C751,(D752)*-1) -> 23,476,161.80 | E179: =F752 -> 0.00 | F179: =E751 -> 16,661,530.16 | H179: =ROUND(F179-E179,2) -> 16,661,530.16
A180: 32200 | B180: RESULTADOS DE EJERCICIOS ANTERIORES | D180: 548,277,973.32 | H180: =ROUND(D179+D180+F180-E180,2) -> 571,754,135.12
A181: 32300 | B181: REVALÚOS | D181: =SUM(D182:D185) -> 0.00 | E181: =SUM(E182:E185) -> 0.00 | F181: =SUM(F182:F185) -> 0.00 | H181: =SUM(H182:H185) -> 0.00
A182: 32310 | B182: Revalúo de bienes inmuebles | H182: =ROUND(D182+F182-E182,2) -> 0.00
A183: 32320 | B183: Revalúo de bienes muebles | H183: 0.00
A184: 32330 | B184: Revalúo de bienes intangibles | H184: 0.00
A185: 32390 | B185: Otros revalúos | H185: 0.00
A186: 32400 | B186: RESERVAS | D186: =SUM(D187:D189) -> 0.00 | E186: =SUM(E187:E189) -> 0.00 | F186: =SUM(F187:F189) -> 0.00 | H186: =SUM(H187:H189) -> 0.00
A187: 32410 | B187: Reservas de patrimonio | H187: =ROUND(D187+F187-E187,2) -> 0.00
A188: 32420 | B188: Reservas territoriales | H188: 0.00
A189: 32430 | B189: Reservas por contingencias | H189: 0.00
A190: 32500 | B190: RECTIFICACIONES DE RESULTADOS DE EJERCICIOS ANTERIORES | D190: =SUM(D191:D192) -> 0.00 | E190: =SUM(E191:E192) -> 0.00 | F190: =SUM(F191:F192) -> 0.00 | H190: =SUM(H191:H192) -> 0.00
A191: 32510 | B191: Cambios en políticas contables | H191: =ROUND(D191+F191-E191,2) -> 0.00
A192: 32520 | B192: Cambios por errores contables | H192: 0.00
A193: 33000 | B193: EXCESO O INSUFICIENCIA EN LA ACTUALIZACIÓN DE LA HACIENDA PÚBLICA/PATRIMONIO | D193: =SUM(D194:D195) -> 0.00 | E193: =SUM(E194:E195) -> 0.00 | F193: =SUM(F194:F195) -> 0.00 | H193: =SUM(H194:H195) -> 0.00
A194: 33100 | B194: RESULTADO POR POSICIÓN MONETARIA | H194: =ROUND(D194+F194-E194,2) -> 0.00
A195: 33200 | B195: RESULTADO POR TENENCIA DE ACTIVOS NO MONETARIOS | H195: 0.00
A196: 40000 | B196: INGRESOS Y OTROS BENEFICIOS | D196: =D197+D307+D355 -> 204,397,452.84 | E196: =E197+E307+E355 -> 0.00 | F196: =F197+F307+F355 -> 49,457,352.71 | H196: =H197+H307+H355 -> 49,457,352.71
A197: 41000 | B197: INGRESOS DE GESTIÓN | D197: =D198+D219+D225+D230+D262+D271+D292+D304 -> 39,743,752.37 | E197: =E198+E219+E225+E230+E262+E271+E292+E304 -> 0.00 | F197: =F198+F219+F225+F230+F262+F271+F292+F304 -> 20,084,929.30 | H197: =H198+H219+H225+H230+H262+H271+H292+H304 -> 20,084,929.30
A198: 41100 | B198: IMPUESTOS | D198: =D199+D201+D205+D206+D207+D208+D209+D215+D217 -> 18,020,886.08 | E198: =E199+E201+E205+E206+E207+E208+E209+E215+E217 -> 0.00 | F198: =F199+F201+F205+F206+F207+F208+F209+F215+F217 -> 11,925,851.29 | H198: =H199+H201+H205+H206+H207+H208+H209+H215+H217 -> 11,925,851.29
A199: 41110 | B199: Impuestos sobre los ingresos | D199: =SUM(D200) -> 0.00 | E199: =SUM(E200) -> 0.00 | F199: =SUM(F200) -> 0.00 | H199: =SUM(H200) -> 0.00
A200: 41110-1 | B200: Impuestos sobre espectáculos públicos | H200: =ROUND(F200-E200,2) -> 0.00
... 2022 more rows

Sheet F3 (hidden)
A1: =Validacion!A2 -> Tamazula de Gordiano
A2: ESTADO DE FLUJOS DE EFECTIVO
A3: ='F6'!A3 -> Del 1° de Enero al 29 de Febrero de 2024
A4: (Cifras en pesos)
A5: CONCEPTO | F5: =Validacion!F185 -> 2024 | G5: =Validacion!F186 -> 2023
A6: Flujos de efectivo de las actividades de operación
B7: Origen | F7: =SUM(F8:F17) -> 0.00 | G7: =SUM(G8:G17) -> 0.00
C8: Impuestos
C9: Cuotas y aportaciones de seguridad social
C10: Contribuciones de mejoras
C11: Derechos
C12: Productos
C13: Aprovechamientos
C14: Ingresos por venta de bienes y prestación servicios
C15: Participaciones, aportaciones, convenios, incentivos derivados de la colaboración fiscal y fondos distitntos de aportaciones
C16: Transferencias, asignaciones, subsidios y subvenciones, y pensiones y jubilaciones
C17: Otros origenes de operación
B18: Aplicación | F18: =SUM(F19:F34) -> 0.00 | G18: =SUM(G19:G34) -> 0.00
C19: Servicios personales
C20: Materiales y suministros
C21: Servicios generales
C22: Transferencias internas y asignaciones al sector público
C23: Transferencias al resto del sector público
C24: Subsidios y subvenciones
C25: Ayudas sociales
C26: Pensiones y jubilaciones
C27: Transferencias a fideicomisos, mandatos y contratos análogos
C28: Transferencias a la seguridad social
C29: Donativos
C30: Transferencias al exterior
C31: Participaciones
C32: Aportaciones
C33: Convenios
C34: Otros aplicaciones de operación
A35: Flujos netos de efectivo por actividades de operación | F35: =F7-F18 -> 0.00 | G35: =G7-G18 -> 0.00
A36: Flujos de efectivo de las actividades de inversión
B37: Origen | F37: =SUM(F38:F40) -> 0.00 | G37: =SUM(G38:G40) -> 0.00
C38: Bienes inmuebles, infraestructura y construcciones en proceso
C39: Bienes muebles
C40: Otros Orígenes de inversión
B41: Aplicación | F41: =SUM(F42:F44) -> 0.00 | G41: =SUM(G42:G44) -> 0.00
C42: Bienes inmuebles, infraestructura y construcciones en proceso
C43: Bienes muebles
C44: Otras aplicaciones de inversión
A45: Flujos netos de efectivo por actividades de inversión | F45: =F37-F41 -> 0.00 | G45: =G37-G41 -> 0.00
A46: Flujo de efectivo de las actividades de financiamiento
B47: Origen | F47: =F48+F51 -> 0.00 | G47: =G48+G51 -> 0.00
C48: Endeudamiento neto | F48: =F49+F50 -> 0.00 | G48: =G49+G50 -> 0.00
C49: Interno
C50: Externo
C51: Otros origenes de financiamiento
B52: Aplicación | F52: =F53+F56 -> 0.00 | G52: =G53+G56 -> 0.00
C53: Servicios de la deuda | F53: =F54+F55 -> 0.00 | G53: =G54+G55 -> 0.00
C54: Interno
C55: Externo
C56: Otras aplicaciones de finaciamiento
A57: Flujos netos de efectivo por actividades de financiamiento | F57: =F47-F52 -> 0.00 | G57: =G47-G52 -> 0.00
A58: Incremento/disminución neta en el efectivo y equivalentes al efectivo | F58: =F35+F45+F57 -> 0.00 | G58: =G35+G45+G57 -> 0.00
A59: Efectivo y equivalentes al efectivo al inicio del ejercicio | F59: =G60 -> 0.00
A60: Efectivo y equivalentes al efectivo al final del ejercicio | F60: =F58+F59 -> 0.00 | G60: =+G58+G59 -> 0.00
A62: Bajo protesta de decir verdad declaramos que los estados financieros y sus notas, son razonablemente correctos y son responsabilidad del emisor.
C67: =Validacion!A7 -> ING. RAÚL EVERARDO GUTIÉRREZ CASTAÑEDA | E67: =Validacion!A9 -> MTRO. ARNOLDO SOLÓRZANO CUEVAS
C69: Presidente Municipal o Titular del ente público | E69: Encargado de Hacienda Municipal o Responsable de las finanzas del ente público

Sheet F9-IDP
A1: CONCEPTO | J1: No. 1 | AJ1: CONCEPTO | AS1: No. 2 | BS1: CONCEPTO | CB1: No. 3 | DB1: CONCEPTO | DK1: No. 4 | EK1: CONCEPTO | ET1: No. 5 | FT1: CONCEPTO | GC1: No. 6 | HC1: CONCEPTO | HL1: No. 7 | IL1: CONCEPTO | IU1: No. 8 | JU1: CONCEPTO | KD1: No. 9 | LD1: CONCEPTO | LM1: No. 10
A2: TIPO DE OBLIGACIÓN: | J2: =IF(L2="Institución de crédito","1",IF(L2="Títulos y valores","2",IF(L2="Arrendamiento financiero","3",""))) -> 1 | K2: =IF(L2>0,".-","") -> .- | L2: Institución de crédito | AJ2: TIPO DE OBLIGACIÓN: | AS2: =IF(AU2="Institución de crédito","1",IF(AU2="Títulos y valores","2",IF(AU2="Arrendamiento financiero","3",""))) -> 1 | AT2: =IF(AU2>0,".-","") -> .- | AU2: Institución de crédito | BS2: TIPO DE OBLIGACIÓN: | CB2: =IF(CD2="Institución de crédito","1",IF(CD2="Títulos y valores","2",IF(CD2="Arrendamiento financiero","3",""))) ->  | CC2: =IF(CD2>0,".-","") ->  | DB2: TIPO DE OBLIGACIÓN: | DK2: =IF(DM2="Institución de crédito","1",IF(DM2="Títulos y valores","2",IF(DM2="Arrendamiento financiero","3",""))) ->  | DL2: =IF(DM2>0,".-","") ->  | EK2: TIPO DE OBLIGACIÓN: | ET2: =IF(EV2="Institución de crédito","1",IF(EV2="Títulos y valores","2",IF(EV2="Arrendamiento financiero","3",""))) ->  | EU2: =IF(EV2>0,".-","") ->  | FT2: TIPO DE OBLIGACIÓN: | GC2: =IF(GE2="Institución de crédito","1",IF(GE2="Títulos y valores","2",IF(GE2="Arrendamiento financiero","3",""))) ->  | GD2: =IF(GE2>0,".-","") ->  | HC2: TIPO DE OBLIGACIÓN: | HL2: =IF(HN2="Institución de crédito","1",IF(HN2="Títulos y valores","2",IF(HN2="Arrendamiento financiero","3",""))) ->  | HM2: =IF(HN2>0,".-","") ->  | IL2: TIPO DE OBLIGACIÓN: | IU2: =IF(IW2="Institución de crédito","1",IF(IW2="Títulos y valores","2",IF(IW2="Arrendamiento financiero","3",""))) ->  | IV2: =IF(IW2>0,".-","") ->  | JU2: TIPO DE OBLIGACIÓN: | KD2: =IF(KF2="Institución de crédito","1",IF(KF2="Títulos y valores","2",IF(KF2="Arrendamiento financiero","3",""))) ->  | KE2: =IF(KF2>0,".-","") ->  | LD2: TIPO DE OBLIGACIÓN: | LM2: =IF(LO2="Institución de crédito","1",IF(LO2="Títulos y valores","2",IF(LO2="Arrendamiento financiero","3",""))) ->  | LN2: =IF(LO2>0,".-","") -> 
A3: NOMBRE DEL ACREEDOR: | J3: Banca Nacional de Obras y Servicios Publicos SNC | AJ3: NOMBRE DEL ACREEDOR: | AS3: Banca Nacional de Obras y Servicios Publicos SNC | BS3: NOMBRE DEL ACREEDOR: | DB3: NOMBRE DEL ACREEDOR: | EK3: NOMBRE DEL ACREEDOR: | FT3: NOMBRE DEL ACREEDOR: | HC3: NOMBRE DEL ACREEDOR: | IL3: NOMBRE DEL ACREEDOR: | JU3: NOMBRE DEL ACREEDOR: | LD3: NOMBRE DEL ACREEDOR:
A4: MONTO DISPUESTO: | J4: $52,026,559.21 | R4: FECHA DE INICIO: | Z4: 2019-08-19 | AJ4: MONTO DISPUESTO: | AS4: $4,762,999.42 | BA4: FECHA DE INICIO: | BI4: 2019-07-02 | BS4: MONTO DISPUESTO: | CJ4: FECHA DE INICIO: | DB4: MONTO DISPUESTO: | DS4: FECHA DE INICIO: | EK4: MONTO DISPUESTO: | FB4: FECHA DE INICIO: | FT4: MONTO DISPUESTO: | GK4: FECHA DE INICIO: | HC4: MONTO DISPUESTO: | HT4: FECHA DE INICIO: | IL4: MONTO DISPUESTO: | JC4: FECHA DE INICIO: | JU4: MONTO DISPUESTO: | KL4: FECHA DE INICIO: | LD4: MONTO DISPUESTO: | LU4: FECHA DE INICIO:
R5: FECHA DE VENCIMIENTO: | Z5: 2029-05-31 | BA5: FECHA DE VENCIMIENTO: | BI5: 2021-09-01 | CJ5: FECHA DE VENCIMIENTO: | DS5: FECHA DE VENCIMIENTO: | FB5: FECHA DE VENCIMIENTO: | GK5: FECHA DE VENCIMIENTO: | HT5: FECHA DE VENCIMIENTO: | JC5: FECHA DE VENCIMIENTO: | KL5: FECHA DE VENCIMIENTO: | LU5: FECHA DE VENCIMIENTO:
A6: ="SALDO AL 1° DE ENERO DE "&Validacion!$F$185&" A CORTO PLAZO:" -> SALDO AL 1° DE ENERO DE 2024 A CORTO PLAZO: | R6: $0.00 | AJ6: ="SALDO AL 1° DE ENERO DE "&Validacion!$F$185&" A CORTO PLAZO:" -> SALDO AL 1° DE ENERO DE 2024 A CORTO PLAZO: | BA6: $0.00 | BS6: ="SALDO AL 1° DE ENERO DE "&Validacion!$F$185&" A CORTO PLAZO:" -> SALDO AL 1° DE ENERO DE 2024 A CORTO PLAZO: | DB6: ="SALDO AL 1° DE ENERO DE "&Validacion!$F$185&" A CORTO PLAZO:" -> SALDO AL 1° DE ENERO DE 2024 A CORTO PLAZO: | EK6: ="SALDO AL 1° DE ENERO DE "&Validacion!$F$185&" A CORTO PLAZO:" -> SALDO AL 1° DE ENERO DE 2024 A CORTO PLAZO: | FT6: ="SALDO AL 1° DE ENERO DE "&Validacion!$F$185&" A CORTO PLAZO:" -> SALDO AL 1° DE ENERO DE 2024 A CORTO PLAZO: | HC6: ="SALDO AL 1° DE ENERO DE "&Validacion!$F$185&" A CORTO PLAZO:" -> SALDO AL 1° DE ENERO DE 2024 A CORTO PLAZO: | IL6: ="SALDO AL 1° DE ENERO DE "&Validacion!$F$185&" A CORTO PLAZO:" -> SALDO AL 1° DE ENERO DE 2024 A CORTO PLAZO: | JU6: ="SALDO AL 1° DE ENERO DE "&Validacion!$F$185&" A CORTO PLAZO:" -> SALDO AL 1° DE ENERO DE 2024 A CORTO PLAZO: | LD6: ="SALDO AL 1° DE ENERO DE "&Validacion!$F$185&" A CORTO PLAZO:" -> SALDO AL 1° DE ENERO DE 2024 A CORTO PLAZO:
A7: ="SALDO AL 1° DE ENERO DE "&Validacion!$F$185&" A LARGO PLAZO:" -> SALDO AL 1° DE ENERO DE 2024 A LARGO PLAZO: | R7: $33,938,844.13 | AJ7: ="SALDO AL 1° DE ENERO DE "&Validacion!$F$185&" A LARGO PLAZO:" -> SALDO AL 1° DE ENERO DE 2024 A LARGO PLAZO: | BA7: $0.00 | BS7: ="SALDO AL 1° DE ENERO DE "&Validacion!$F$185&" A LARGO PLAZO:" -> SALDO AL 1° DE ENERO DE 2024 A LARGO PLAZO: | DB7: ="SALDO AL 1° DE ENERO DE "&Validacion!$F$185&" A LARGO PLAZO:" -> SALDO AL 1° DE ENERO DE 2024 A LARGO PLAZO: | EK7: ="SALDO AL 1° DE ENERO DE "&Validacion!$F$185&" A LARGO PLAZO:" -> SALDO AL 1° DE ENERO DE 2024 A LARGO PLAZO: | FT7: ="SALDO AL 1° DE ENERO DE "&Validacion!$F$185&" A LARGO PLAZO:" -> SALDO AL 1° DE ENERO DE 2024 A LARGO PLAZO: | HC7: ="SALDO AL 1° DE ENERO DE "&Validacion!$F$185&" A LARGO PLAZO:" -> SALDO AL 1° DE ENERO DE 2024 A LARGO PLAZO: | IL7: ="SALDO AL 1° DE ENERO DE "&Validacion!$F$185&" A LARGO PLAZO:" -> SALDO AL 1° DE ENERO DE 2024 A LARGO PLAZO: | JU7: ="SALDO AL 1° DE ENERO DE "&Validacion!$F$185&" A LARGO PLAZO:" -> SALDO AL 1° DE ENERO DE 2024 A LARGO PLAZO: | LD7: ="SALDO AL 1° DE ENERO DE "&Validacion!$F$185&" A LARGO PLAZO:" -> SALDO AL 1° DE ENERO DE 2024 A LARGO PLAZO:
A8: OBLIGACIONES A LARGO PLAZO | AJ8: OBLIGACIONES A LARGO PLAZO | BS8: OBLIGACIONES A LARGO PLAZO | DB8: OBLIGACIONES A LARGO PLAZO | EK8: OBLIGACIONES A LARGO PLAZO | FT8: OBLIGACIONES A LARGO PLAZO | HC8: OBLIGACIONES A LARGO PLAZO | IL8: OBLIGACIONES A LARGO PLAZO | JU8: OBLIGACIONES A LARGO PLAZO | LD8: OBLIGACIONES A LARGO PLAZO
A9: CONCEPTO | E9: DISPOSICIÓN | K9: AMORTIZACIÓN | Q9: REVALUACIONES | W9: INTERÉS | AC9: COMISIONES | AJ9: CONCEPTO | AN9: DISPOSICIÓN | AT9: AMORTIZACIÓN | AZ9: REVALUACIONES | BF9: INTERÉS | BL9: COMISIONES | BS9: CONCEPTO | BW9: DISPOSICIÓN | CC9: AMORTIZACIÓN | CI9: REVALUACIONES | CO9: INTERÉS | CU9: COMISIONES | DB9: CONCEPTO | DF9: DISPOSICIÓN | DL9: AMORTIZACIÓN | DR9: REVALUACIONES | DX9: INTERÉS | ED9: COMISIONES | EK9: CONCEPTO | EO9: DISPOSICIÓN | EU9: AMORTIZACIÓN | FA9: REVALUACIONES | FG9: INTERÉS | FM9: COMISIONES | FT9: CONCEPTO | FX9: DISPOSICIÓN | GD9: AMORTIZACIÓN | GJ9: REVALUACIONES | GP9: INTERÉS | GV9: COMISIONES | HC9: CONCEPTO | HG9: DISPOSICIÓN | HM9: AMORTIZACIÓN | HS9: REVALUACIONES | HY9: INTERÉS | IE9: COMISIONES | IL9: CONCEPTO | IP9: DISPOSICIÓN | IV9: AMORTIZACIÓN | JB9: REVALUACIONES | JH9: INTERÉS | JN9: COMISIONES | JU9: CONCEPTO | JY9: DISPOSICIÓN | KE9: AMORTIZACIÓN | KK9: REVALUACIONES | KQ9: INTERÉS | KW9: COMISIONES | LD9: CONCEPTO | LH9: DISPOSICIÓN | LN9: AMORTIZACIÓN | LT9: REVALUACIONES | LZ9: INTERÉS | MF9: COMISIONES
A10: Largo Plazo | K10: 1,044,272.13 | W10: 68,486.85 | AJ10: Largo Plazo | BS10: Largo Plazo | DB10: Largo Plazo | EK10: Largo Plazo | FT10: Largo Plazo | HC10: Largo Plazo | IL10: Largo Plazo | JU10: Largo Plazo | LD10: Largo Plazo
A11: OBLIGACIONES A CORTO PLAZO | AJ11: OBLIGACIONES A CORTO PLAZO | BS11: OBLIGACIONES A CORTO PLAZO | DB11: OBLIGACIONES A CORTO PLAZO | EK11: OBLIGACIONES A CORTO PLAZO | FT11: OBLIGACIONES A CORTO PLAZO | HC11: OBLIGACIONES A CORTO PLAZO | IL11: OBLIGACIONES A CORTO PLAZO | JU11: OBLIGACIONES A CORTO PLAZO | LD11: OBLIGACIONES A CORTO PLAZO
A12: MES | E12: DISPOSICIÓN | K12: AMORTIZACIÓN | Q12: REVALUACIONES | W12: INTERÉS | AC12: COMISIONES | AJ12: MES | AN12: DISPOSICIÓN | AT12: AMORTIZACIÓN | AZ12: REVALUACIONES | BF12: INTERÉS | BL12: COMISIONES | BS12: MES | BW12: DISPOSICIÓN | CC12: AMORTIZACIÓN | CI12: REVALUACIONES | CO12: INTERÉS | CU12: COMISIONES | DB12: MES | DF12: DISPOSICIÓN | DL12: AMORTIZACIÓN | DR12: REVALUACIONES | DX12: INTERÉS | ED12: COMISIONES | EK12: MES | EO12: DISPOSICIÓN | EU12: AMORTIZACIÓN | FA12: REVALUACIONES | FG12: INTERÉS | FM12: COMISIONES | FT12: MES | FX12: DISPOSICIÓN | GD12: AMORTIZACIÓN | GJ12: REVALUACIONES | GP12: INTERÉS | GV12: COMISIONES | HC12: MES | HG12: DISPOSICIÓN | HM12: AMORTIZACIÓN | HS12: REVALUACIONES | HY12: INTERÉS | IE12: COMISIONES | IL12: MES | IP12: DISPOSICIÓN | IV12: AMORTIZACIÓN | JB12: REVALUACIONES | JH12: INTERÉS | JN12: COMISIONES | JU12: MES | JY12: DISPOSICIÓN | KE12: AMORTIZACIÓN | KK12: REVALUACIONES | KQ12: INTERÉS | KW12: COMISIONES | LD12: MES | LH12: DISPOSICIÓN | LN12: AMORTIZACIÓN | LT12: REVALUACIONES | LZ12: INTERÉS | MF12: COMISIONES
A13: ENE | AJ13: ENE | BS13: ENE | DB13: ENE | EK13: ENE | FT13: ENE | HC13: ENE | IL13: ENE | JU13: ENE | LD13: ENE
A14: FEB | AJ14: FEB | BS14: FEB | DB14: FEB | EK14: FEB | FT14: FEB | HC14: FEB | IL14: FEB | JU14: FEB | LD14: FEB
A15: MAR | AJ15: MAR | BS15: MAR | DB15: MAR | EK15: MAR | FT15: MAR | HC15: MAR | IL15: MAR | JU15: MAR | LD15: MAR
A16: ABR | AJ16: ABR | BS16: ABR | DB16: ABR | EK16: ABR | FT16: ABR | HC16: ABR | IL16: ABR | JU16: ABR | LD16: ABR
A17: MAY | AJ17: MAY | BS17: MAY | DB17: MAY | EK17: MAY | FT17: MAY | HC17: MAY | IL17: MAY | JU17: MAY | LD17: MAY
A18: JUN | AJ18: JUN | BS18: JUN | DB18: JUN | EK18: JUN | FT18: JUN | HC18: JUN | IL18: JUN | JU18: JUN | LD18: JUN
A19: JUL | AJ19: JUL | BS19: JUL | DB19: JUL | EK19: JUL | FT19: JUL | HC19: JUL | IL19: JUL | JU19: JUL | LD19: JUL
A20: AGO | AJ20: AGO | BS20: AGO | DB20: AGO | EK20: AGO | FT20: AGO | HC20: AGO | IL20: AGO | JU20: AGO | LD20: AGO
A21: SEP | AJ21: SEP | BS21: SEP | DB21: SEP | EK21: SEP | FT21: SEP | HC21: SEP | IL21: SEP | JU21: SEP | LD21: SEP
A22: OCT | AJ22: OCT | BS22: OCT | DB22: OCT | EK22: OCT | FT22: OCT | HC22: OCT | IL22: OCT | JU22: OCT | LD22: OCT
A23: NOV | AJ23: NOV | BS23: NOV | DB23: NOV | EK23: NOV | FT23: NOV | HC23: NOV | IL23: NOV | JU23: NOV | LD23: NOV
A24: DIC | AJ24: DIC | BS24: DIC | DB24: DIC | EK24: DIC | FT24: DIC | HC24: DIC | IL24: DIC | JU24: DIC | LD24: DIC
A25: SUMA | E25: =SUM(E13:J24) -> 0.00 | K25: =SUM(K13:P24) -> 0.00 | Q25: =SUM(Q13:V24) -> 0.00 | W25: =SUM(W13:AB24) -> 0.00 | AC25: =SUM(AC13:AH24) -> 0.00 | AJ25: SUMA | AN25: =SUM(AN13:AS24) -> 0.00 | AT25: =SUM(AT13:AY24) -> 0.00 | AZ25: =SUM(AZ13:BE24) -> 0.00 | BF25: =SUM(BF13:BK24) -> 0.00 | BL25: =SUM(BL13:BQ24) -> 0.00 | BS25: SUMA | BW25: =SUM(BW13:CB24) -> 0.00 | CC25: =SUM(CC13:CH24) -> 0.00 | CI25: =SUM(CI13:CN24) -> 0.00 | CO25: =SUM(CO13:CT24) -> 0.00 | CU25: =SUM(CU13:CZ24) -> 0.00 | DB25: SUMA | DF25: =SUM(DF13:DK24) -> 0.00 | DL25: =SUM(DL13:DQ24) -> 0.00 | DR25: =SUM(DR13:DW24) -> 0.00 | DX25: =SUM(DX13:EC24) -> 0.00 | ED25: =SUM(ED13:EI24) -> 0.00 | EK25: SUMA | EO25: =SUM(EO13:ET24) -> 0.00 | EU25: =SUM(EU13:EZ24) -> 0.00 | FA25: =SUM(FA13:FF24) -> 0.00 | FG25: =SUM(FG13:FL24) -> 0.00 | FM25: =SUM(FM13:FR24) -> 0.00 | FT25: SUMA | FX25: =SUM(FX13:GC24) -> 0.00 | GD25: =SUM(GD13:GI24) -> 0.00 | GJ25: =SUM(GJ13:GO24) -> 0.00 | GP25: =SUM(GP13:GU24) -> 0.00 | GV25: =SUM(GV13:HA24) -> 0.00 | HC25: SUMA | HG25: =SUM(HG13:HL24) -> 0.00 | HM25: =SUM(HM13:HR24) -> 0.00 | HS25: =SUM(HS13:HX24) -> 0.00 | HY25: =SUM(HY13:ID24) -> 0.00 | IE25: =SUM(IE13:IJ24) -> 0.00 | IL25: SUMA | IP25: =SUM(IP13:IU24) -> 0.00 | IV25: =SUM(IV13:JA24) -> 0.00 | JB25: =SUM(JB13:JG24) -> 0.00 | JH25: =SUM(JH13:JM24) -> 0.00 | JN25: =SUM(JN13:JS24) -> 0.00 | JU25: SUMA | JY25: =SUM(JY13:KD24) -> 0.00 | KE25: =SUM(KE13:KJ24) -> 0.00 | KK25: =SUM(KK13:KP24) -> 0.00 | KQ25: =SUM(KQ13:KV24) -> 0.00 | KW25: =SUM(KW13:LB24) -> 0.00 | LD25: SUMA | LH25: =SUM(LH13:LM24) -> 0.00 | LN25: =SUM(LN13:LS24) -> 0.00 | LT25: =SUM(LT13:LY24) -> 0.00 | LZ25: =SUM(LZ13:ME24) -> 0.00 | MF25: =SUM(MF13:MK24) -> 0.00

Sheet F9-EDP
A1: =Validacion!A2 -> Tamazula de Gordiano
A2: INFORME ANALÍTICO DE LA DEUDA PÚBLICA Y OTROS PASIVOS - LDF
A3: =IF(Validacion!A11="ENERO",Validacion!E185,"Del 1° de Enero al "&INDEX(Validacion!D185:D196,MATCH(Validacion!A11,Validacion!C185:C196,0))) -> Del 1° de Enero al 29 de Febrero de 2024
A4: (Pesos)
A5: Denominación de la deuda pública y otros pasivos | N5: ="Saldo al 31 de diciembre de "&Validacion!F186 -> Saldo al 31 de diciembre de 2023 | U5: Disposiciones del periodo | AB5: Amortizaciones del periodo | AI5: Revaluaciones, reclasificaciones y otros ajustes | AP5: Saldo final del periodo | AW5: Pago de intereses del periodo | BD5: Pago de comisiones y demás costos asociados duarante el periodo
A10: 1. Deuda pública
B11: Corto plazo | N11: =SUM(N12:T14) -> 0.00 | U11: =SUM(U12:AA14) -> 0.00 | AB11: =SUM(AB12:AH14) -> 0.00 | AI11: =SUM(AI12:AO14) -> 0.00 | AP11: =SUM(AP12:AV14) -> 0.00 | AW11: =SUM(AW12:BC14) -> 0.00 | BD11: =SUM(BD12:BJ14) -> 0.00
C12: Instituciones de crédito | N12: =IF('F9-IDP'!$J$2="1",'F9-IDP'!$R$6,0)+IF('F9-IDP'!$AS$2="1",'F9-IDP'!$BA$6,0)+IF('F9-IDP'!$CB$2="1",'F9-IDP'!$CJ$6,0)+IF('F9-IDP'!$DK$2="1",'F9-IDP'!$DS$6,0)+IF('F9-IDP'!$ET$2="1",'F9-IDP'!$FB$6,0)+IF('F9-IDP'!$GC$2="1",'F9-IDP'!$GK$6,0)+IF('F9-IDP'!$HL$2="1",'F9-IDP'!$HT$6,0)+IF('F9-IDP'!$IU$2="1",'F9-IDP'!$JC$6,0)+IF('F9-IDP'!$KD$2="1",'F9-IDP'!$KL$6,0)+IF('F9-IDP'!$LM$2="1",'F9-IDP'!$LU$6,0) -> 0.00 | U12: =IF('F9-IDP'!$J$2="1",'F9-IDP'!$E$25,0)+IF('F9-IDP'!$AS$2="1",'F9-IDP'!$AN$25,0)+IF('F9-IDP'!$CB$2="1",'F9-IDP'!$BW$25,0)+IF('F9-IDP'!$DK$2="1",'F9-IDP'!$DF$25,0)+IF('F9-IDP'!$ET$2="1",'F9-IDP'!$EO$25,0)+IF('F9-IDP'!$GC$2="1",'F9-IDP'!$FX$25,0)+IF('F9-IDP'!$HL$2="1",'F9-IDP'!$HG$25,0)+IF('F9-IDP'!$IU$2="1",'F9-IDP'!$IP$25,0)+IF('F9-IDP'!$KD$2="1",'F9-IDP'!$JY$25,0)+IF('F9-IDP'!$LM$2="1",'F9-IDP'!$LH$25,0) -> 0.00 | AB12: =IF('F9-IDP'!$J$2="1",'F9-IDP'!$K$25,0)+IF('F9-IDP'!$AS$2="1",'F9-IDP'!$AT$25,0)+IF('F9-IDP'!$CB$2="1",'F9-IDP'!$CC$25,0)+IF('F9-IDP'!$DK$2="1",'F9-IDP'!$DL$25,0)+IF('F9-IDP'!$ET$2="1",'F9-IDP'!$EU$25,0)+IF('F9-IDP'!$GC$2="1",'F9-IDP'!$GD$25,0)+IF('F9-IDP'!$HL$2="1",'F9-IDP'!$HM$25,0)+IF('F9-IDP'!$IU$2="1",'F9-IDP'!$IV$25,0)+IF('F9-IDP'!$KD$2="1",'F9-IDP'!$KE$25,0)+IF('F9-IDP'!$LM$2="1",'F9-IDP'!$LN$25,0) -> 0.00 | AI12: =IF('F9-IDP'!$J$2="1",'F9-IDP'!$Q$25,0)+IF('F9-IDP'!$AS$2="1",'F9-IDP'!$AZ$25,0)+IF('F9-IDP'!$CB$2="1",'F9-IDP'!$CI$25,0)+IF('F9-IDP'!$DK$2="1",'F9-IDP'!$DR$25,0)+IF('F9-IDP'!$ET$2="1",'F9-IDP'!$FA$25,0)+IF('F9-IDP'!$GC$2="1",'F9-IDP'!$GJ$25,0)+IF('F9-IDP'!$HL$2="1",'F9-IDP'!$HS$25,0)+IF('F9-IDP'!$IU$2="1",'F9-IDP'!$JB$25,0)+IF('F9-IDP'!$KD$2="1",'F9-IDP'!$KK$25,0)+IF('F9-IDP'!$LM$2="1",'F9-IDP'!$LT$25,0) -> 0.00 | AP12: =N12+U12-AB12+AI12 -> 0.00 | AW12: =IF('F9-IDP'!$J$2="1",'F9-IDP'!$W$25,0)+IF('F9-IDP'!$AS$2="1",'F9-IDP'!$BF$25,0)+IF('F9-IDP'!$CB$2="1",'F9-IDP'!$CO$25,0)+IF('F9-IDP'!$DK$2="1",'F9-IDP'!$DX$25,0)+IF('F9-IDP'!$ET$2="1",'F9-IDP'!$FG$25,0)+IF('F9-IDP'!$GC$2="1",'F9-IDP'!$GP$25,0)+IF('F9-IDP'!$HL$2="1",'F9-IDP'!$HY$25,0)+IF('F9-IDP'!$IU$2="1",'F9-IDP'!$JH$25,0)+IF('F9-IDP'!$KD$2="1",'F9-IDP'!$KQ$25,0)+IF('F9-IDP'!$LM$2="1",'F9-IDP'!$LZ$25,0) -> 0.00 | BD12: =IF('F9-IDP'!$J$2="1",'F9-IDP'!$AC$25,0)+IF('F9-IDP'!$AS$2="1",'F9-IDP'!$BL$25,0)+IF('F9-IDP'!$CB$2="1",'F9-IDP'!$CU$25,0)+IF('F9-IDP'!$DK$2="1",'F9-IDP'!$ED$25,0)+IF('F9-IDP'!$ET$2="1",'F9-IDP'!$FM$25,0)+IF('F9-IDP'!$GC$2="1",'F9-IDP'!$GV$25,0)+IF('F9-IDP'!$HL$2="1",'F9-IDP'!$IE$25,0)+IF('F9-IDP'!$IU$2="1",'F9-IDP'!$JN$25,0)+IF('F9-IDP'!$KD$2="1",'F9-IDP'!$KW$25,0)+IF('F9-IDP'!$LM$2="1",'F9-IDP'!$MF$25,0) -> 0.00
C13: Títulos y valores | N13: =IF('F9-IDP'!$J$2="2",'F9-IDP'!$R$6,0)+IF('F9-IDP'!$AS$2="2",'F9-IDP'!$BA$6,0)+IF('F9-IDP'!$CB$2="2",'F9-IDP'!$CJ$6,0)+IF('F9-IDP'!$DK$2="2",'F9-IDP'!$DS$6,0)+IF('F9-IDP'!$ET$2="2",'F9-IDP'!$FB$6,0)+IF('F9-IDP'!$GC$2="2",'F9-IDP'!$GK$6,0)+IF('F9-IDP'!$HL$2="2",'F9-IDP'!$HT$6,0)+IF('F9-IDP'!$IU$2="2",'F9-IDP'!$JC$6,0)+IF('F9-IDP'!$KD$2="2",'F9-IDP'!$KL$6,0)+IF('F9-IDP'!$LM$2="2",'F9-IDP'!$LU$6,0) -> 0.00 | U13: =IF('F9-IDP'!$J$2="2",'F9-IDP'!$E$25,0)+IF('F9-IDP'!$AS$2="2",'F9-IDP'!$AN$25,0)+IF('F9-IDP'!$CB$2="2",'F9-IDP'!$BW$25,0)+IF('F9-IDP'!$DK$2="2",'F9-IDP'!$DF$25,0)+IF('F9-IDP'!$ET$2="2",'F9-IDP'!$EO$25,0)+IF('F9-IDP'!$GC$2="2",'F9-IDP'!$FX$25,0)+IF('F9-IDP'!$HL$2="2",'F9-IDP'!$HG$25,0)+IF('F9-IDP'!$IU$2="2",'F9-IDP'!$IP$25,0)+IF('F9-IDP'!$KD$2="2",'F9-IDP'!$JY$25,0)+IF('F9-IDP'!$LM$2="2",'F9-IDP'!$LH$25,0) -> 0.00 | AB13: =IF('F9-IDP'!$J$2="2",'F9-IDP'!$K$25,0)+IF('F9-IDP'!$AS$2="2",'F9-IDP'!$AT$25,0)+IF('F9-IDP'!$CB$2="2",'F9-IDP'!$CC$25,0)+IF('F9-IDP'!$DK$2="2",'F9-IDP'!$DL$25,0)+IF('F9-IDP'!$ET$2="2",'F9-IDP'!$EU$25,0)+IF('F9-IDP'!$GC$2="2",'F9-IDP'!$GD$25,0)+IF('F9-IDP'!$HL$2="2",'F9-IDP'!$HM$25,0)+IF('F9-IDP'!$IU$2="2",'F9-IDP'!$IV$25,0)+IF('F9-IDP'!$KD$2="2",'F9-IDP'!$KE$25,0)+IF('F9-IDP'!$LM$2="2",'F9-IDP'!$LN$25,0) -> 0.00 | AI13: =IF('F9-IDP'!$J$2="2",'F9-IDP'!$Q$25,0)+IF('F9-IDP'!$AS$2="2",'F9-IDP'!$AZ$25,0)+IF('F9-IDP'!$CB$2="2",'F9-IDP'!$CI$25,0)+IF('F9-IDP'!$DK$2="2",'F9-IDP'!$DR$25,0)+IF('F9-IDP'!$ET$2="2",'F9-IDP'!$FA$25,0)+IF('F9-IDP'!$GC$2="2",'F9-IDP'!$GJ$25,0)+IF('F9-IDP'!$HL$2="2",'F9-IDP'!$HS$25,0)+IF('F9-IDP'!$IU$2="2",'F9-IDP'!$JB$25,0)+IF('F9-IDP'!$KD$2="2",'F9-IDP'!$KK$25,0)+IF('F9-IDP'!$LM$2="2",'F9-IDP'!$LT$25,0) -> 0.00 | AP13: =N13+U13-AB13+AI13 -> 0.00 | AW13: =IF('F9-IDP'!$J$2="2",'F9-IDP'!$W$25,0)+IF('F9-IDP'!$AS$2="2",'F9-IDP'!$BF$25,0)+IF('F9-IDP'!$CB$2="2",'F9-IDP'!$CO$25,0)+IF('F9-IDP'!$DK$2="2",'F9-IDP'!$DX$25,0)+IF('F9-IDP'!$ET$2="2",'F9-IDP'!$FG$25,0)+IF('F9-IDP'!$GC$2="2",'F9-IDP'!$GP$25,0)+IF('F9-IDP'!$HL$2="2",'F9-IDP'!$HY$25,0)+IF('F9-IDP'!$IU$2="2",'F9-IDP'!$JH$25,0)+IF('F9-IDP'!$KD$2="2",'F9-IDP'!$KQ$25,0)+IF('F9-IDP'!$LM$2="2",'F9-IDP'!$LZ$25,0) -> 0.00 | BD13: =IF('F9-IDP'!$J$2="2",'F9-IDP'!$AC$25,0)+IF('F9-IDP'!$AS$2="2",'F9-IDP'!$BL$25,0)+IF('F9-IDP'!$CB$2="2",'F9-IDP'!$CU$25,0)+IF('F9-IDP'!$DK$2="2",'F9-IDP'!$ED$25,0)+IF('F9-IDP'!$ET$2="2",'F9-IDP'!$FM$25,0)+IF('F9-IDP'!$GC$2="2",'F9-IDP'!$GV$25,0)+IF('F9-IDP'!$HL$2="2",'F9-IDP'!$IE$25,0)+IF('F9-IDP'!$IU$2="2",'F9-IDP'!$JN$25,0)+IF('F9-IDP'!$KD$2="2",'F9-IDP'!$KW$25,0)+IF('F9-IDP'!$LM$2="2",'F9-IDP'!$MF$25,0) -> 0.00
C14: Arrendamiento financiero | N14: =IF('F9-IDP'!$J$2="3",'F9-IDP'!$R$6,0)+IF('F9-IDP'!$AS$2="3",'F9-IDP'!$BA$6,0)+IF('F9-IDP'!$CB$2="3",'F9-IDP'!$CJ$6,0)+IF('F9-IDP'!$DK$2="3",'F9-IDP'!$DS$6,0)+IF('F9-IDP'!$ET$2="3",'F9-IDP'!$FB$6,0)+IF('F9-IDP'!$GC$2="3",'F9-IDP'!$GK$6,0)+IF('F9-IDP'!$HL$2="3",'F9-IDP'!$HT$6,0)+IF('F9-IDP'!$IU$2="3",'F9-IDP'!$JC$6,0)+IF('F9-IDP'!$KD$2="3",'F9-IDP'!$KL$6,0)+IF('F9-IDP'!$LM$2="3",'F9-IDP'!$LU$6,0) -> 0.00 | U14: =IF('F9-IDP'!$J$2="3",'F9-IDP'!$E$25,0)+IF('F9-IDP'!$AS$2="3",'F9-IDP'!$AN$25,0)+IF('F9-IDP'!$CB$2="3",'F9-IDP'!$BW$25,0)+IF('F9-IDP'!$DK$2="3",'F9-IDP'!$DF$25,0)+IF('F9-IDP'!$ET$2="3",'F9-IDP'!$EO$25,0)+IF('F9-IDP'!$GC$2="3",'F9-IDP'!$FX$25,0)+IF('F9-IDP'!$HL$2="3",'F9-IDP'!$HG$25,0)+IF('F9-IDP'!$IU$2="3",'F9-IDP'!$IP$25,0)+IF('F9-IDP'!$KD$2="3",'F9-IDP'!$JY$25,0)+IF('F9-IDP'!$LM$2="3",'F9-IDP'!$LH$25,0) -> 0.00 | AB14: =IF('F9-IDP'!$J$2="3",'F9-IDP'!$K$25,0)+IF('F9-IDP'!$AS$2="3",'F9-IDP'!$AT$25,0)+IF('F9-IDP'!$CB$2="3",'F9-IDP'!$CC$25,0)+IF('F9-IDP'!$DK$2="3",'F9-IDP'!$DL$25,0)+IF('F9-IDP'!$ET$2="3",'F9-IDP'!$EU$25,0)+IF('F9-IDP'!$GC$2="3",'F9-IDP'!$GD$25,0)+IF('F9-IDP'!$HL$2="3",'F9-IDP'!$HM$25,0)+IF('F9-IDP'!$IU$2="3",'F9-IDP'!$IV$25,0)+IF('F9-IDP'!$KD$2="3",'F9-IDP'!$KE$25,0)+IF('F9-IDP'!$LM$2="3",'F9-IDP'!$LN$25,0) -> 0.00 | AI14: =IF('F9-IDP'!$J$2="3",'F9-IDP'!$Q$25,0)+IF('F9-IDP'!$AS$2="3",'F9-IDP'!$AZ$25,0)+IF('F9-IDP'!$CB$2="3",'F9-IDP'!$CI$25,0)+IF('F9-IDP'!$DK$2="3",'F9-IDP'!$DR$25,0)+IF('F9-IDP'!$ET$2="3",'F9-IDP'!$FA$25,0)+IF('F9-IDP'!$GC$2="3",'F9-IDP'!$GJ$25,0)+IF('F9-IDP'!$HL$2="3",'F9-IDP'!$HS$25,0)+IF('F9-IDP'!$IU$2="3",'F9-IDP'!$JB$25,0)+IF('F9-IDP'!$KD$2="3",'F9-IDP'!$KK$25,0)+IF('F9-IDP'!$LM$2="3",'F9-IDP'!$LT$25,0) -> 0.00 | AP14: =N14+U14-AB14+AI14 -> 0.00 | AW14: =IF('F9-IDP'!$J$2="3",'F9-IDP'!$W$25,0)+IF('F9-IDP'!$AS$2="3",'F9-IDP'!$BF$25,0)+IF('F9-IDP'!$CB$2="3",'F9-IDP'!$CO$25,0)+IF('F9-IDP'!$DK$2="3",'F9-IDP'!$DX$25,0)+IF('F9-IDP'!$ET$2="3",'F9-IDP'!$FG$25,0)+IF('F9-IDP'!$GC$2="3",'F9-IDP'!$GP$25,0)+IF('F9-IDP'!$HL$2="3",'F9-IDP'!$HY$25,0)+IF('F9-IDP'!$IU$2="3",'F9-IDP'!$JH$25,0)+IF('F9-IDP'!$KD$2="3",'F9-IDP'!$KQ$25,0)+IF('F9-IDP'!$LM$2="3",'F9-IDP'!$LZ$25,0) -> 0.00 | BD14: =IF('F9-IDP'!$J$2="3",'F9-IDP'!$AC$25,0)+IF('F9-IDP'!$AS$2="3",'F9-IDP'!$BL$25,0)+IF('F9-IDP'!$CB$2="3",'F9-IDP'!$CU$25,0)+IF('F9-IDP'!$DK$2="3",'F9-IDP'!$ED$25,0)+IF('F9-IDP'!$ET$2="3",'F9-IDP'!$FM$25,0)+IF('F9-IDP'!$GC$2="3",'F9-IDP'!$GV$25,0)+IF('F9-IDP'!$HL$2="3",'F9-IDP'!$IE$25,0)+IF('F9-IDP'!$IU$2="3",'F9-IDP'!$JN$25,0)+IF('F9-IDP'!$KD$2="3",'F9-IDP'!$KW$25,0)+IF('F9-IDP'!$LM$2="3",'F9-IDP'!$MF$25,0) -> 0.00
B15: Largo plazo | N15: =SUM(N16:T18) -> 33,938,844.13 | U15: =SUM(U16:AA18) -> 0.00 | AB15: =SUM(AB16:AH18) -> 1,044,272.13 | AI15: =SUM(AI16:AO18) -> 0.00 | AP15: =SUM(AP16:AV18) -> 32,894,572.00 | AW15: =SUM(AW16:BC18) -> 68,486.85 | BD15: =SUM(BD16:BJ18) -> 0.00
C16: Instituciones de crédito | N16: =IF('F9-IDP'!$J$2="1",'F9-IDP'!$R$7,0)+IF('F9-IDP'!$AS$2="1",'F9-IDP'!$BA$7,0)+IF('F9-IDP'!$CB$2="1",'F9-IDP'!$CJ$7,0)+IF('F9-IDP'!$DK$2="1",'F9-IDP'!$DS$7,0)+IF('F9-IDP'!$ET$2="1",'F9-IDP'!$FB$7,0)+IF('F9-IDP'!$GC$2="1",'F9-IDP'!$GK$7,0)+IF('F9-IDP'!$HL$2="1",'F9-IDP'!$HT$7,0)+IF('F9-IDP'!$IU$2="1",'F9-IDP'!$JC$7,0)+IF('F9-IDP'!$KD$2="1",'F9-IDP'!$KL$7,0)+IF('F9-IDP'!$LM$2="1",'F9-IDP'!$LU$7,0) -> 33,938,844.13 | U16: =IF('F9-IDP'!$J$2="1",'F9-IDP'!$E$10,0)+IF('F9-IDP'!$AS$2="1",'F9-IDP'!$AN$10,0)+IF('F9-IDP'!$CB$2="1",'F9-IDP'!$BW$10,0)+IF('F9-IDP'!$DK$2="1",'F9-IDP'!$DF$10,0)+IF('F9-IDP'!$ET$2="1",'F9-IDP'!$EO$10,0)+IF('F9-IDP'!$GC$2="1",'F9-IDP'!$FX$10,0)+IF('F9-IDP'!$HL$2="1",'F9-IDP'!$HG$10,0)+IF('F9-IDP'!$IU$2="1",'F9-IDP'!$IP$10,0)+IF('F9-IDP'!$KD$2="1",'F9-IDP'!$JY$10,0)+IF('F9-IDP'!$LM$2="1",'F9-IDP'!$LH$10,0) -> 0.00 | AB16: =IF('F9-IDP'!$J$2="1",'F9-IDP'!$K$10,0)+IF('F9-IDP'!$AS$2="1",'F9-IDP'!$AT$10,0)+IF('F9-IDP'!$CB$2="1",'F9-IDP'!$CC$10,0)+IF('F9-IDP'!$DK$2="1",'F9-IDP'!$DL$10,0)+IF('F9-IDP'!$ET$2="1",'F9-IDP'!$EU$10,0)+IF('F9-IDP'!$GC$2="1",'F9-IDP'!$GD$10,0)+IF('F9-IDP'!$HL$2="1",'F9-IDP'!$HM$10,0)+IF('F9-IDP'!$IU$2="1",'F9-IDP'!$IV$10,0)+IF('F9-IDP'!$KD$2="1",'F9-IDP'!$KE$10,0)+IF('F9-IDP'!$LM$2="1",'F9-IDP'!$LN$10,0) -> 1,044,272.13 | AI16: =IF('F9-IDP'!$J$2="1",'F9-IDP'!$Q$10,0)+IF('F9-IDP'!$AS$2="1",'F9-IDP'!$AZ$10,0)+IF('F9-IDP'!$CB$2="1",'F9-IDP'!$CI$10,0)+IF('F9-IDP'!$DK$2="1",'F9-IDP'!$DR$10,0)+IF('F9-IDP'!$ET$2="1",'F9-IDP'!$FA$10,0)+IF('F9-IDP'!$GC$2="1",'F9-IDP'!$GJ$10,0)+IF('F9-IDP'!$HL$2="1",'F9-IDP'!$HS$10,0)+IF('F9-IDP'!$IU$2="1",'F9-IDP'!$JB$10,0)+IF('F9-IDP'!$KD$2="1",'F9-IDP'!$KK$10,0)+IF('F9-IDP'!$LM$2="1",'F9-IDP'!$LT$10,0) -> 0.00 | AP16: =N16+U16-AB16+AI16 -> 32,894,572.00 | AW16: =IF('F9-IDP'!$J$2="1",'F9-IDP'!$W$10,0)+IF('F9-IDP'!$AS$2="1",'F9-IDP'!$BF$10,0)+IF('F9-IDP'!$CB$2="1",'F9-IDP'!$CO$10,0)+IF('F9-IDP'!$DK$2="1",'F9-IDP'!$DX$10,0)+IF('F9-IDP'!$ET$2="1",'F9-IDP'!$FG$10,0)+IF('F9-IDP'!$GC$2="1",'F9-IDP'!$GP$10,0)+IF('F9-IDP'!$HL$2="1",'F9-IDP'!$HY$10,0)+IF('F9-IDP'!$IU$2="1",'F9-IDP'!$JH$10,0)+IF('F9-IDP'!$KD$2="1",'F9-IDP'!$KQ$10,0)+IF('F9-IDP'!$LM$2="1",'F9-IDP'!$LZ$10,0) -> 68,486.85 | BD16: =IF('F9-IDP'!$J$2="1",'F9-IDP'!$AC$10,0)+IF('F9-IDP'!$AS$2="1",'F9-IDP'!$BL$10,0)+IF('F9-IDP'!$CB$2="1",'F9-IDP'!$CU$10,0)+IF('F9-IDP'!$DK$2="1",'F9-IDP'!$ED$10,0)+IF('F9-IDP'!$ET$2="1",'F9-IDP'!$FM$10,0)+IF('F9-IDP'!$GC$2="1",'F9-IDP'!$GV$10,0)+IF('F9-IDP'!$HL$2="1",'F9-IDP'!$IE$10,0)+IF('F9-IDP'!$IU$2="1",'F9-IDP'!$JN$10,0)+IF('F9-IDP'!$KD$2="1",'F9-IDP'!$KW$10,0)+IF('F9-IDP'!$LM$2="1",'F9-IDP'!$MF$10,0) -> 0.00
C17: Títulos y valores | N17: =IF('F9-IDP'!$J$2="2",'F9-IDP'!$R$7,0)+IF('F9-IDP'!$AS$2="2",'F9-IDP'!$BA$7,0)+IF('F9-IDP'!$CB$2="2",'F9-IDP'!$CJ$7,0)+IF('F9-IDP'!$DK$2="2",'F9-IDP'!$DS$7,0)+IF('F9-IDP'!$ET$2="2",'F9-IDP'!$FB$7,0)+IF('F9-IDP'!$GC$2="2",'F9-IDP'!$GK$7,0)+IF('F9-IDP'!$HL$2="2",'F9-IDP'!$HT$7,0)+IF('F9-IDP'!$IU$2="2",'F9-IDP'!$JC$7,0)+IF('F9-IDP'!$KD$2="2",'F9-IDP'!$KL$7,0)+IF('F9-IDP'!$LM$2="2",'F9-IDP'!$LU$7,0) -> 0.00 | U17: =IF('F9-IDP'!$J$2="2",'F9-IDP'!$E$10,0)+IF('F9-IDP'!$AS$2="2",'F9-IDP'!$AN$10,0)+IF('F9-IDP'!$CB$2="2",'F9-IDP'!$BW$10,0)+IF('F9-IDP'!$DK$2="2",'F9-IDP'!$DF$10,0)+IF('F9-IDP'!$ET$2="2",'F9-IDP'!$EO$10,0)+IF('F9-IDP'!$GC$2="2",'F9-IDP'!$FX$10,0)+IF('F9-IDP'!$HL$2="2",'F9-IDP'!$HG$10,0)+IF('F9-IDP'!$IU$2="2",'F9-IDP'!$IP$10,0)+IF('F9-IDP'!$KD$2="2",'F9-IDP'!$JY$10,0)+IF('F9-IDP'!$LM$2="2",'F9-IDP'!$LH$10,0) -> 0.00 | AB17: =IF('F9-IDP'!$J$2="2",'F9-IDP'!$K$10,0)+IF('F9-IDP'!$AS$2="2",'F9-IDP'!$AT$10,0)+IF('F9-IDP'!$CB$2="2",'F9-IDP'!$CC$10,0)+IF('F9-IDP'!$DK$2="2",'F9-IDP'!$DL$10,0)+IF('F9-IDP'!$ET$2="2",'F9-IDP'!$EU$10,0)+IF('F9-IDP'!$GC$2="2",'F9-IDP'!$GD$10,0)+IF('F9-IDP'!$HL$2="2",'F9-IDP'!$HM$10,0)+IF('F9-IDP'!$IU$2="2",'F9-IDP'!$IV$10,0)+IF('F9-IDP'!$KD$2="2",'F9-IDP'!$KE$10,0)+IF('F9-IDP'!$LM$2="2",'F9-IDP'!$LN$10,0) -> 0.00 | AI17: =IF('F9-IDP'!$J$2="2",'F9-IDP'!$Q$10,0)+IF('F9-IDP'!$AS$2="2",'F9-IDP'!$AZ$10,0)+IF('F9-IDP'!$CB$2="2",'F9-IDP'!$CI$10,0)+IF('F9-IDP'!$DK$2="2",'F9-IDP'!$DR$10,0)+IF('F9-IDP'!$ET$2="2",'F9-IDP'!$FA$10,0)+IF('F9-IDP'!$GC$2="2",'F9-IDP'!$GJ$10,0)+IF('F9-IDP'!$HL$2="2",'F9-IDP'!$HS$10,0)+IF('F9-IDP'!$IU$2="2",'F9-IDP'!$JB$10,0)+IF('F9-IDP'!$KD$2="2",'F9-IDP'!$KK$10,0)+IF('F9-IDP'!$LM$2="2",'F9-IDP'!$LT$10,0) -> 0.00 | AP17: =N17+U17-AB17+AI17 -> 0.00 | AW17: =IF('F9-IDP'!$J$2="2",'F9-IDP'!$W$10,0)+IF('F9-IDP'!$AS$2="2",'F9-IDP'!$BF$10,0)+IF('F9-IDP'!$CB$2="2",'F9-IDP'!$CO$10,0)+IF('F9-IDP'!$DK$2="2",'F9-IDP'!$DX$10,0)+IF('F9-IDP'!$ET$2="2",'F9-IDP'!$FG$10,0)+IF('F9-IDP'!$GC$2="2",'F9-IDP'!$GP$10,0)+IF('F9-IDP'!$HL$2="2",'F9-IDP'!$HY$10,0)+IF('F9-IDP'!$IU$2="2",'F9-IDP'!$JH$10,0)+IF('F9-IDP'!$KD$2="2",'F9-IDP'!$KQ$10,0)+IF('F9-IDP'!$LM$2="2",'F9-IDP'!$LZ$10,0) -> 0.00 | BD17: =IF('F9-IDP'!$J$2="2",'F9-IDP'!$AC$10,0)+IF('F9-IDP'!$AS$2="2",'F9-IDP'!$BL$10,0)+IF('F9-IDP'!$CB$2="2",'F9-IDP'!$CU$10,0)+IF('F9-IDP'!$DK$2="2",'F9-IDP'!$ED$10,0)+IF('F9-IDP'!$ET$2="2",'F9-IDP'!$FM$10,0)+IF('F9-IDP'!$GC$2="2",'F9-IDP'!$GV$10,0)+IF('F9-IDP'!$HL$2="2",'F9-IDP'!$IE$10,0)+IF('F9-IDP'!$IU$2="2",'F9-IDP'!$JN$10,0)+IF('F9-IDP'!$KD$2="2",'F9-IDP'!$KW$10,0)+IF('F9-IDP'!$LM$2="2",'F9-IDP'!$MF$10,0) -> 0.00
C18: Arrendamiento financiero | N18: =IF('F9-IDP'!$J$2="3",'F9-IDP'!$R$7,0)+IF('F9-IDP'!$AS$2="3",'F9-IDP'!$BA$7,0)+IF('F9-IDP'!$CB$2="3",'F9-IDP'!$CJ$7,0)+IF('F9-IDP'!$DK$2="3",'F9-IDP'!$DS$7,0)+IF('F9-IDP'!$ET$2="3",'F9-IDP'!$FB$7,0)+IF('F9-IDP'!$GC$2="3",'F9-IDP'!$GK$7,0)+IF('F9-IDP'!$HL$2="3",'F9-IDP'!$HT$7,0)+IF('F9-IDP'!$IU$2="3",'F9-IDP'!$JC$7,0)+IF('F9-IDP'!$KD$2="3",'F9-IDP'!$KL$7,0)+IF('F9-IDP'!$LM$2="3",'F9-IDP'!$LU$7,0) -> 0.00 | U18: =IF('F9-IDP'!$J$2="3",'F9-IDP'!$E$10,0)+IF('F9-IDP'!$AS$2="3",'F9-IDP'!$AN$10,0)+IF('F9-IDP'!$CB$2="3",'F9-IDP'!$BW$10,0)+IF('F9-IDP'!$DK$2="3",'F9-IDP'!$DF$10,0)+IF('F9-IDP'!$ET$2="3",'F9-IDP'!$EO$10,0)+IF('F9-IDP'!$GC$2="3",'F9-IDP'!$FX$10,0)+IF('F9-IDP'!$HL$2="3",'F9-IDP'!$HG$10,0)+IF('F9-IDP'!$IU$2="3",'F9-IDP'!$IP$10,0)+IF('F9-IDP'!$KD$2="3",'F9-IDP'!$JY$10,0)+IF('F9-IDP'!$LM$2="3",'F9-IDP'!$LH$10,0) -> 0.00 | AB18: =IF('F9-IDP'!$J$2="3",'F9-IDP'!$K$10,0)+IF('F9-IDP'!$AS$2="3",'F9-IDP'!$AT$10,0)+IF('F9-IDP'!$CB$2="3",'F9-IDP'!$CC$10,0)+IF('F9-IDP'!$DK$2="3",'F9-IDP'!$DL$10,0)+IF('F9-IDP'!$ET$2="3",'F9-IDP'!$EU$10,0)+IF('F9-IDP'!$GC$2="3",'F9-IDP'!$GD$10,0)+IF('F9-IDP'!$HL$2="3",'F9-IDP'!$HM$10,0)+IF('F9-IDP'!$IU$2="3",'F9-IDP'!$IV$10,0)+IF('F9-IDP'!$KD$2="3",'F9-IDP'!$KE$10,0)+IF('F9-IDP'!$LM$2="3",'F9-IDP'!$LN$10,0) -> 0.00 | AI18: =IF('F9-IDP'!$J$2="3",'F9-IDP'!$Q$10,0)+IF('F9-IDP'!$AS$2="3",'F9-IDP'!$AZ$10,0)+IF('F9-IDP'!$CB$2="3",'F9-IDP'!$CI$10,0)+IF('F9-IDP'!$DK$2="3",'F9-IDP'!$DR$10,0)+IF('F9-IDP'!$ET$2="3",'F9-IDP'!$FA$10,0)+IF('F9-IDP'!$GC$2="3",'F9-IDP'!$GJ$10,0)+IF('F9-IDP'!$HL$2="3",'F9-IDP'!$HS$10,0)+IF('F9-IDP'!$IU$2="3",'F9-IDP'!$JB$10,0)+IF('F9-IDP'!$KD$2="3",'F9-IDP'!$KK$10,0)+IF('F9-IDP'!$LM$2="3",'F9-IDP'!$LT$10,0) -> 0.00 | AP18: =N18+U18-AB18+AI18 -> 0.00 | AW18: =IF('F9-IDP'!$J$2="3",'F9-IDP'!$W$10,0)+IF('F9-IDP'!$AS$2="3",'F9-IDP'!$BF$10,0)+IF('F9-IDP'!$CB$2="3",'F9-IDP'!$CO$10,0)+IF('F9-IDP'!$DK$2="3",'F9-IDP'!$DX$10,0)+IF('F9-IDP'!$ET$2="3",'F9-IDP'!$FG$10,0)+IF('F9-IDP'!$GC$2="3",'F9-IDP'!$GP$10,0)+IF('F9-IDP'!$HL$2="3",'F9-IDP'!$HY$10,0)+IF('F9-IDP'!$IU$2="3",'F9-IDP'!$JH$10,0)+IF('F9-IDP'!$KD$2="3",'F9-IDP'!$KQ$10,0)+IF('F9-IDP'!$LM$2="3",'F9-IDP'!$LZ$10,0) -> 0.00 | BD18: =IF('F9-IDP'!$J$2="3",'F9-IDP'!$AC$10,0)+IF('F9-IDP'!$AS$2="3",'F9-IDP'!$BL$10,0)+IF('F9-IDP'!$CB$2="3",'F9-IDP'!$CU$10,0)+IF('F9-IDP'!$DK$2="3",'F9-IDP'!$ED$10,0)+IF('F9-IDP'!$ET$2="3",'F9-IDP'!$FM$10,0)+IF('F9-IDP'!$GC$2="3",'F9-IDP'!$GV$10,0)+IF('F9-IDP'!$HL$2="3",'F9-IDP'!$IE$10,0)+IF('F9-IDP'!$IU$2="3",'F9-IDP'!$JN$10,0)+IF('F9-IDP'!$KD$2="3",'F9-IDP'!$KW$10,0)+IF('F9-IDP'!$LM$2="3",'F9-IDP'!$MF$10,0) -> 0.00
A19: 2. Otros pasivos | N19: =Balanza!D101-'F9-EDP'!N11:T11-'F9-EDP'!N15:T15 -> 27,456,319.75 | AP19: =Balanza!H101-'F9-EDP'!AP11:AV11-'F9-EDP'!AP15:AV15 -> 26,568,243.15
A20: 3. Total de la deuda pública y otros pasivos | N20: =N11+N19+N15 -> 61,395,163.88 | U20: =U11+U19+U15 -> 0.00 | AB20: =AB11+AB19+AB15 -> 1,044,272.13 | AI20: =AI11+AI19+AI15 -> 0.00 | AP20: =AP11+AP19+AP15 -> 59,462,815.15 | AW20: =AW11+AW19+AW15 -> 68,486.85 | BD20: =BD11+BD19+BD15 -> 0.00
A27: 4. Deuda contingente (informativo)
A28: 1.- | AP28: =N28+U28-AB28+AI28 -> 0.00
A29: 2.- | AP29: =N29+U29-AB29+AI29 -> 0.00
A30: 3.- | AP30: =N30+U30-AB30+AI30 -> 0.00
A31: 4.- | AP31: =N31+U31-AB31+AI31 -> 0.00
A32: 5.- | AP32: =N32+U32-AB32+AI32 -> 0.00
A34: 5. Valor de instrumentos bonos cupón cero (informativo)
A35: 1.- | AP35: =N35+U35-AB35+AI35 -> 0.00
A36: 2.- | AP36: =N36+U36-AB36+AI36 -> 0.00
A37: 3.- | AP37: =N37+U37-AB37+AI37 -> 0.00
A38: 4.- | AP38: =N38+U38-AB38+AI38 -> 0.00
A39: 5.- | AP39: =N39+U39-AB39+AI39 -> 0.00
A41: 6. Obligaciones a corto plazo (informativo)
A42: Obligaciones a corto plazo | N42: Monto contratado | X42: Plazo pactado | AH42: Tasa de interés | AR42: Comisiones y costos relacionados | BB42: Tasa efectiva
A44: 1.-
A45: 2.-
A46: 3.-
A47: 4.-
A48: 5.-
C51: Bajo protesta de decir verdad declaramos que los Estados Financieros y sus Notas son razonablemente correctos y responsabilidad del emisor.
F56: =Validacion!A7 -> ING. RAÚL EVERARDO GUTIÉRREZ CASTAÑEDA | AG56: =Validacion!A9 -> MTRO. ARNOLDO SOLÓRZANO CUEVAS
F57: Presidente Municipal o Títular del ente público | AG57: Encargado de la Hacienda Pública Municipal o Responsable de las finanzas del ente público

Sheet F9-IAO
A1: =Validacion!A2 -> Tamazula de Gordiano
A2: INFORME ANALÍTICO DE OBLIGACIONES DIFERENTES DE FINANCIAMIENTO - LDF
A3: ='F9-EDP'!A3 -> Del 1° de Enero al 29 de Febrero de 2024
A4: (Pesos)
A5: Denominación de las obligaciones diferentes de financiamiento | N5: Fecha del contrato | S5: Fecha de inicio de operaciones del proyecto | X5: Fecha de vencimiento | AC5: Monto de la inversión pactado | AI5: Plazo pactado | AN5: Monto promedio mensual del pago de la contraprestación | AT5: Monto promedio mensual del pago de la contraprestación correspondiente al pago de inversión | AZ5: ="Monto pagado de la inversión al "&INDEX(Validacion!D185:D196,MATCH(Validacion!A11,Validacion!C185:C196,0)) -> Monto pagado de la inversión al 29 de Febrero de 2024 | BF5: ="Monto pagado de la inversión actualizado al "&INDEX(Validacion!D185:D196,MATCH(Validacion!A11,Validacion!C185:C196,0)) -> Monto pagado de la inversión actualizado al 29 de Febrero de 2024 | BL5: ="Saldo pendiente por pagar de la inversión al "&INDEX(Validacion!D185:D196,MATCH(Validacion!A11,Validacion!C185:C196,0)) -> Saldo pendiente por pagar de la inversión al 29 de Febrero de 2024
A11: Asociación público privadas | AC11: =SUM(AC12:AH14) -> 0.00 | AN11: =SUM(AN12:AS14) -> 0.00 | AT11: =SUM(AT12:AY14) -> 0.00 | AZ11: =SUM(AZ12:BE14) -> 0.00 | BF11: =SUM(BF12:BK14) -> 0.00 | BL11: =SUM(BL12:BQ14) -> 0.00
B12: 1.- | C12: n/a | BL12: =AC12-BF12 -> 0.00
B13: 2.- | BL13: =AC13-BF13 -> 0.00
B14: 3.- | BL14: =AC14-BF14 -> 0.00
A15: Otros instrumentos | AC15: =SUM(AC16:AH18) -> 0.00 | AN15: =SUM(AN16:AS18) -> 0.00 | AT15: =SUM(AT16:AY18) -> 0.00 | AZ15: =SUM(AZ16:BE18) -> 0.00 | BF15: =SUM(BF16:BK18) -> 0.00 | BL15: =SUM(BL16:BQ18) -> 0.00
B16: 1.- | BL16: =AC16-BF16 -> 0.00
B17: 2.- | BL17: =AC17-BF17 -> 0.00
B18: 3.- | BL18: =AC18-BF18 -> 0.00
A19: Total de obligaciones diferentes de financiamiento | AC19: =AC11+AC15 -> 0.00 | AN19: =AN11+AN15 -> 0.00 | AT19: =AT11+AT15 -> 0.00 | AZ19: =AZ11+AZ15 -> 0.00 | BF19: =BF11+BF15 -> 0.00 | BL19: =BL11+BL15 -> 0.00
C22: Bajo protesta de decir verdad declaramos que los Estados Financieros y sus Notas son razonablemente correctos y responsabilidad del emisor.
F27: =Validacion!A7 -> ING. RAÚL EVERARDO GUTIÉRREZ CASTAÑEDA | AP27: =Validacion!A9 -> MTRO. ARNOLDO SOLÓRZANO CUEVAS
F28: Presidente Municipal o Títular del ente público | AP28: Encargado de la Hacienda Pública Municipal o Responsable de las finanzas del ente público

Sheet F10
A1: =Validacion!A2 -> Tamazula de Gordiano
A2: INFORMATIVA DE PROVEEDORES
A3: =INDEX(Validacion!E185:E196,MATCH(Validacion!A11,Validacion!C185:C196,0)) -> Del 1° al 29 de Febrero de 2024
A4: (Cifras en pesos)
A5: N° | B5: PROVEEDOR Y/O PRESTADOR | C5: R.F.C. | D5: DOMICILIO | E5: CIUDAD | F5: CODIGO POSTAL | G5: FUENTE DE FINANCIAMIENTO | H5: ORIGEN DEL RECURSO POR CUENTA BANCARIA | I5: FORMA DE PAGO | J5: DESCRIPCIÓN DEL GASTO | K5: IMPORTE | L5: FECHA DE LA FACTURA | M5: FOLIO DE FACTURA
A6: 1 | B6: AARON RAFAEL SANCHEZ RAMIREZ | C6: SARA570420M56 | D6: SIMON BOLIVAR NO.50 | E6: TAMAZULA DE GORDIANO JALISCO | F6: 49650 | G6: 111 | H6: 401 | I6: 99 | J6: HPM.- MANTENIMIENTO DE LOS VEHICULOS DE LOS DIFERENTES DEPARTAMENTOS DE ESTE H. AYUNTAMIENTO. | K6: 400.00 | L6: 21/02/2024 | M6: 2B77D
A7: 2 | B7: AARON RAFAEL SANCHEZ RAMIREZ | C7: SARA570420M56 | D7: SIMON BOLIVAR NO.50 | E7: TAMAZULA DE GORDIANO JALISCO | F7: 49650 | G7: 111 | H7: 401 | I7: 99 | J7: HPM.- MANTENIMIENTO DE LOS VEHICULOS DE LOS DIFERENTES DEPARTAMENTOS DE ESTE H. AYUNTAMIENTO. | K7: 800.01 | L7: 21/02/2024 | M7: D2345
A8: 3 | B8: AARON RAFAEL SANCHEZ RAMIREZ | C8: SARA570420M56 | D8: SIMON BOLIVAR NO.50 | E8: TAMAZULA DE GORDIANO JALISCO | F8: 49650 | G8: 252 | H8: 502 | I8: 99 | J8: (E.F.) PAGO DE SERVICIOS DE SACAR VIRLOS CAPADOS A FLECHA DE LA MAQUINA MOTOCONFORMADORA CAT 120 DEL MODULO DE MAQUINARIA QUE SE ENCUENTRA REHABILITANDO VRECHAS Y CAMINOS EN ZONA RURAL EN EL MUNICIPIO. | K8: 1,276.00 | L8: 12/02/2024 | M8: 20619
A9: 4 | B9: ABEL CHAVEZ MENDEZ | C9: CAMA810221K67 | D9: AV. EL CAMPESINO NO. 47 | E9: TAMAZULA DE GORDIANO JALISCO | F9: 49650 | G9: 111 | H9: 401 | I9: 99 | J9: HPM.- SERVICIO DE MANTENIMIENTO Y REFACCIONES PARA UTILIZARSE EN LOS VEHICULOS DE LOS DIFERENTES DEPARTAMENTOS DE ESTE H. AYUNTAMIENTO. | K9: 462.60 | L9: 27/02/2024 | M9: 2168
A10: 5 | B10: ABEL CHAVEZ MENDEZ | C10: CAMA810221K67 | D10: AV. EL CAMPESINO NO. 47 | E10: TAMAZULA DE GORDIANO JALISCO | F10: 49650 | G10: 111 | H10: 401 | I10: 99 | J10: HPM.- SERVICIO DE MANTENIMIENTO Y REFACCIONES PARA UTILIZARSE EN LOS VEHICULOS DE LOS DIFERENTES DEPARTAMENTOS DE ESTE H. AYUNTAMIENTO. | K10: 522.00 | L10: 27/02/2024 | M10: 2169
A11: 6 | B11: ABEL CHAVEZ MENDEZ | C11: CAMA810221K67 | D11: AV. EL CAMPESINO NO. 47 | E11: TAMAZULA DE GORDIANO JALISCO | F11: 49650 | G11: 111 | H11: 401 | I11: 99 | J11: HPM.- SERVICIO DE MANTENIMIENTO Y REFACCIONES PARA UTILIZARSE EN LOS VEHICULOS DE LOS DIFERENTES DEPARTAMENTOS DE ESTE H. AYUNTAMIENTO. | K11: 565.00 | L11: 27/02/2024 | M11: 2170
A12: 7 | B12: ABEL CHAVEZ MENDEZ | C12: CAMA810221K67 | D12: AV. EL CAMPESINO NO. 47 | E12: TAMAZULA DE GORDIANO JALISCO | F12: 49650 | G12: 111 | H12: 401 | I12: 99 | J12: HPM.- SERVICIO DE MANTENIMIENTO Y REFACCIONES PARA UTILIZARSE EN LOS VEHICULOS DE LOS DIFERENTES DEPARTAMENTOS DE ESTE H. AYUNTAMIENTO. | K12: 290.00 | L12: 27/02/2024 | M12: 2171
A13: 8 | B13: ABEL CHAVEZ MENDEZ | C13: CAMA810221K67 | D13: AV. EL CAMPESINO NO. 47 | E13: TAMAZULA DE GORDIANO JALISCO | F13: 49650 | G13: 111 | H13: 401 | I13: 99 | J13: HPM.- SERVICIO DE MANTENIMIENTO Y REFACCIONES PARA UTILIZARSE EN LOS VEHICULOS DE LOS DIFERENTES DEPARTAMENTOS DE ESTE H. AYUNTAMIENTO. | K13: 4,350.00 | L13: 27/02/2024 | M13: 2172
A14: 9 | B14: ABEL CHAVEZ MENDEZ | C14: CAMA810221K67 | D14: AV. EL CAMPESINO NO. 47 | E14: TAMAZULA DE GORDIANO JALISCO | F14: 49650 | G14: 111 | H14: 401 | I14: 99 | J14: HPM.- SERVICIO DE MANTENIMIENTO Y REFACCIONES PARA UTILIZARSE EN LOS VEHICULOS DE LOS DIFERENTES DEPARTAMENTOS DE ESTE H. AYUNTAMIENTO. | K14: 600.00 | L14: 27/02/2024 | M14: 2173
A15: 10 | B15: ABEL CHAVEZ MENDEZ | C15: CAMA810221K67 | D15: AV. EL CAMPESINO NO. 47 | E15: TAMAZULA DE GORDIANO JALISCO | F15: 49650 | G15: 111 | H15: 401 | I15: 99 | J15: HPM.- SERVICIO DE MANTENIMIENTO Y REFACCIONES PARA UTILIZARSE EN LOS VEHICULOS DE LOS DIFERENTES DEPARTAMENTOS DE ESTE H. AYUNTAMIENTO. | K15: 250.00 | L15: 27/02/2024 | M15: 2174
A16: 11 | B16: ABEL CHAVEZ MENDEZ | C16: CAMA810221K67 | D16: AV. EL CAMPESINO NO. 47 | E16: TAMAZULA DE GORDIANO JALISCO | F16: 49650 | G16: 111 | H16: 401 | I16: 99 | J16: HPM.- SERVICIO DE MANTENIMIENTO Y REFACCIONES PARA UTILIZARSE EN LOS VEHICULOS DE LOS DIFERENTES DEPARTAMENTOS DE ESTE H. AYUNTAMIENTO. | K16: 80.00 | L16: 27/02/2024 | M16: 2175
A17: 12 | B17: ABEL CHAVEZ MENDEZ | C17: CAMA810221K67 | D17: AV. EL CAMPESINO NO. 47 | E17: TAMAZULA DE GORDIANO JALISCO | F17: 49650 | G17: 111 | H17: 401 | I17: 99 | J17: HPM.- SERVICIO DE MANTENIMIENTO Y REFACCIONES PARA UTILIZARSE EN LOS VEHICULOS DE LOS DIFERENTES DEPARTAMENTOS DE ESTE H. AYUNTAMIENTO. | K17: 754.00 | L17: 27/02/2024 | M17: 2176
A18: 13 | B18: ABEL CHAVEZ MENDEZ | C18: CAMA810221K67 | D18: AV. EL CAMPESINO NO. 47 | E18: TAMAZULA DE GORDIANO JALISCO | F18: 49650 | G18: 111 | H18: 401 | I18: 99 | J18: HPM.- SERVICIO DE MANTENIMIENTO Y REFACCIONES PARA UTILIZARSE EN LOS VEHICULOS DE LOS DIFERENTES DEPARTAMENTOS DE ESTE H. AYUNTAMIENTO. | K18: 1,613.00 | L18: 27/02/2024 | M18: 2177
A19: 14 | B19: ABEL CHAVEZ MENDEZ | C19: CAMA810221K67 | D19: AV. EL CAMPESINO NO. 47 | E19: TAMAZULA DE GORDIANO JALISCO | F19: 49650 | G19: 111 | H19: 401 | I19: 99 | J19: HPM.- SERVICIO DE MANTENIMIENTO Y REFACCIONES PARA UTILIZARSE EN LOS VEHICULOS DE LOS DIFERENTES DEPARTAMENTOS DE ESTE H. AYUNTAMIENTO. | K19: 638.00 | L19: 27/02/2024 | M19: 2178
A20: 15 | B20: ABEL CHAVEZ MENDEZ | C20: CAMA810221K67 | D20: AV. EL CAMPESINO NO. 47 | E20: TAMAZULA DE GORDIANO JALISCO | F20: 49650 | G20: 111 | H20: 401 | I20: 99 | J20: HPM.- SERVICIO DE MANTENIMIENTO Y REFACCIONES PARA UTILIZARSE EN LOS VEHICULOS DE LOS DIFERENTES DEPARTAMENTOS DE ESTE H. AYUNTAMIENTO. | K20: 2,950.00 | L20: 27/02/2024 | M20: 2179
A21: 16 | B21: ABEL CHAVEZ MENDEZ | C21: CAMA810221K67 | D21: AV. EL CAMPESINO NO. 47 | E21: TAMAZULA DE GORDIANO JALISCO | F21: 49650 | G21: 111 | H21: 401 | I21: 99 | J21: HPM.- SERVICIO DE MANTENIMIENTO Y REFACCIONES PARA UTILIZARSE EN LOS VEHICULOS DE LOS DIFERENTES DEPARTAMENTOS DE ESTE H. AYUNTAMIENTO. | K21: 220.40 | L21: 27/02/2024 | M21: 2180
A22: 17 | B22: ABEL CHAVEZ MENDEZ | C22: CAMA810221K67 | D22: AV. EL CAMPESINO NO. 47 | E22: TAMAZULA DE GORDIANO JALISCO | F22: 49650 | G22: 111 | H22: 401 | I22: 99 | J22: HPM.- SERVICIO DE MANTENIMIENTO Y REFACCIONES PARA EL VEHICULO DEL DEPARTAMENTO DE ASEO PUBLICO DE ESTE H. AYUNTAMIENTO. | K22: 762.90 | L22: 27/02/2024 | M22: 2181
A23: 18 | B23: ABEL CHAVEZ MENDEZ | C23: CAMA810221K67 | D23: AV. EL CAMPESINO NO. 47 | E23: TAMAZULA DE GORDIANO JALISCO | F23: 49650 | G23: 111 | H23: 401 | I23: 99 | J23: HPM.- SERVICIO DE MANTENIMIENTO Y REFACCIONES PARA EL VEHICULO DEL DEPARTAMENTO DE ASEO PUBLICO DE ESTE H. AYUNTAMIENTO. | K23: 986.00 | L23: 27/02/2024 | M23: 2182
A24: 19 | B24: ABEL CHAVEZ MENDEZ | C24: CAMA810221K67 | D24: AV. EL CAMPESINO NO. 47 | E24: TAMAZULA DE GORDIANO JALISCO | F24: 49650 | G24: 252 | H24: 502 | I24: 99 | J24: (CH) COMPRA DE UNA BATERIA 34/78 Y SERVICIO DE CHECAR Y REVISAR BATERIA DEL CAMION DE BOMBEROS NO. 127 Y QUITAR INTALACION DE FAROLA Y REMOVERLA DEL VEHICULO NO. 10 DE PROTECCION CIVIL. | K24: 2,450.00 | L24: 27/02/2024 | M24: 2183
A25: 20 | B25: ABEL CHAVEZ MENDEZ | C25: CAMA810221K67 | D25: AV. EL CAMPESINO NO. 47 | E25: TAMAZULA DE GORDIANO JALISCO | F25: 49650 | G25: 252 | H25: 502 | I25: 99 | J25: (CH) COMPRA DE UNA BATERIA 34/78 Y SERVICIO DE CHECAR Y REVISAR BATERIA DEL CAMION DE BOMBEROS NO. 127 Y QUITAR INTALACION DE FAROLA Y REMOVERLA DEL VEHICULO NO. 10 DE PROTECCION CIVIL. | K25: 190.00 | L25: 27/02/2024 | M25: 2184
A26: 21 | B26: ABEL CHAVEZ MENDEZ | C26: CAMA810221K67 | D26: AV. EL CAMPESINO NO. 47 | E26: TAMAZULA DE GORDIANO JALISCO | F26: 49650 | G26: 252 | H26: 502 | I26: 99 | J26: (CH) COMPRA DE UNA BATERIA 34/78 Y SERVICIO DE CHECAR Y REVISAR BATERIA DEL CAMION DE BOMBEROS NO. 127 Y QUITAR INTALACION DE FAROLA Y REMOVERLA DEL VEHICULO NO. 10 DE PROTECCION CIVIL. | K26: 638.00 | L26: 27/02/2024 | M26: 2185
A27: 22 | B27: ALFONSO CHAVARIN UDAVE | C27: CAUA7907188K6 | D27: JUAN ALVAREZ NO.51 COL. CENTRO | E27: TAMAZULA DE GORDIANO JALISCO | F27: 49650 | G27: 251 | H27: 501 | I27: 99 | J27: PAGO DE ESTIMACION NO. 1 DE LA OBRA CONSTRUCCION DE ANDADOR EN AV EL CAMPESINO EN EL MUNICIPIO DE TAMAZULA, FOLIO: 2024-0001-01/2024 | K27: 796,999.43 | L27: 15/02/2024 | M27: 85B25
A28: 23 | B28: ARACELI GARCIA MENDEZ | C28: GAMA6912271V4 | D28: JUAREZ NO. 65 | E28: TAMAZULA DE GORDIANO, JAL | F28: 49650 | G28: 111 | H28: 401 | I28: 99 | J28: HPM.- MATERIAL NECESARIO PARA UTILIZARSE EN LAS ACTIVIDADES VARIAS DE LOS DIFERENTES DEPARTAMENTOS DE ESTE H. AYUNTAMIENTO. | K28: 1,200.99 | L28: 21/02/2024 | M28: 25319
A29: 24 | B29: ARACELI GARCIA MENDEZ | C29: GAMA6912271V4 | D29: JUAREZ NO. 65 | E29: TAMAZULA DE GORDIANO, JAL | F29: 49650 | G29: 111 | H29: 401 | I29: 99 | J29: HPM.- MATERIAL NECESARIO PARA UTILIZARSE EN LAS ACTIVIDADES VARIAS DE LOS DIFERENTES DEPARTAMENTOS DE ESTE H. AYUNTAMIENTO. | K29: 1,320.00 | L29: 21/02/2024 | M29: 25320
A30: 25 | B30: ARACELI GARCIA MENDEZ | C30: GAMA6912271V4 | D30: JUAREZ NO. 65 | E30: TAMAZULA DE GORDIANO, JAL | F30: 49650 | G30: 111 | H30: 401 | I30: 99 | J30: HPM.- MATERIAL NECESARIO PARA UTILIZARSE EN LAS ACTIVIDADES VARIAS DE LOS DIFERENTES DEPARTAMENTOS DE ESTE H. AYUNTAMIENTO. | K30: 1,738.29 | L30: 21/02/2024 | M30: 25321
A31: 26 | B31: ARACELI GARCIA MENDEZ | C31: GAMA6912271V4 | D31: JUAREZ NO. 65 | E31: TAMAZULA DE GORDIANO, JAL | F31: 49650 | G31: 111 | H31: 401 | I31: 99 | J31: HPM.- MATERIAL NECESARIO PARA UTILIZARSE EN LAS ACTIVIDADES VARIAS DE LOS DIFERENTES DEPARTAMENTOS DE ESTE H. AYUNTAMIENTO. | K31: 2,515.30 | L31: 21/02/2024 | M31: 25322
A32: 27 | B32: ARACELI GARCIA MENDEZ | C32: GAMA6912271V4 | D32: JUAREZ NO. 65 | E32: TAMAZULA DE GORDIANO, JAL | F32: 49650 | G32: 111 | H32: 401 | I32: 99 | J32: HPM.- MATERIAL NECESARIO PARA UTILIZARSE EN LAS ACTIVIDADES VARIAS DE LOS DIFERENTES DEPARTAMENTOS DE ESTE H. AYUNTAMIENTO. | K32: 2,011.25 | L32: 21/02/2024 | M32: 25323
A33: 28 | B33: ARACELI GARCIA MENDEZ | C33: GAMA6912271V4 | D33: JUAREZ NO. 65 | E33: TAMAZULA DE GORDIANO, JAL | F33: 49650 | G33: 111 | H33: 401 | I33: 99 | J33: HPM.- MATERIAL NECESARIO PARA UTILIZARSE EN LAS ACTIVIDADES VARIAS DE LOS DIFERENTES DEPARTAMENTOS DE ESTE H. AYUNTAMIENTO. | K33: 1,157.30 | L33: 21/02/2024 | M33: 25324
A34: 29 | B34: ARACELI GARCIA MENDEZ | C34: GAMA6912271V4 | D34: JUAREZ NO. 65 | E34: TAMAZULA DE GORDIANO, JAL | F34: 49650 | G34: 111 | H34: 401 | I34: 99 | J34: HPM.- MATERIAL NECESARIO PARA UTILIZARSE EN LAS ACTIVIDADES VARIAS DE LOS DIFERENTES DEPARTAMENTOS DE ESTE H. AYUNTAMIENTO. | K34: 1,751.12 | L34: 21/02/2024 | M34: 25325
A35: 30 | B35: ARACELI GARCIA MENDEZ | C35: GAMA6912271V4 | D35: JUAREZ NO. 65 | E35: TAMAZULA DE GORDIANO, JAL | F35: 49650 | G35: 111 | H35: 401 | I35: 99 | J35: HPM.- MATERIAL NECESARIO PARA UTILIZARSE EN LAS ACTIVIDADES VARIAS DE LOS DIFERENTES DEPARTAMENTOS DE ESTE H. AYUNTAMIENTO. | K35: 1,218.00 | L35: 21/02/2024 | M35: 25326
A36: 31 | B36: ARACELI GARCIA MENDEZ | C36: GAMA6912271V4 | D36: JUAREZ NO. 65 | E36: TAMAZULA DE GORDIANO, JAL | F36: 49650 | G36: 111 | H36: 401 | I36: 99 | J36: HPM.- MATERIAL NECESARIO PARA UTILIZARSE EN LAS ACTIVIDADES VARIAS DE LOS DIFERENTES DEPARTAMENTOS DE ESTE H. AYUNTAMIENTO. | K36: 935.60 | L36: 21/02/2024 | M36: 25327
A37: 32 | B37: ARACELI GARCIA MENDEZ | C37: GAMA6912271V4 | D37: JUAREZ NO. 65 | E37: TAMAZULA DE GORDIANO, JAL | F37: 49650 | G37: 111 | H37: 401 | I37: 99 | J37: HPM.- MATERIAL NECESARIO PARA UTILIZARSE EN LAS ACTIVIDADES VARIAS DE LOS DIFERENTES DEPARTAMENTOS DE ESTE H. AYUNTAMIENTO. | K37: 4,216.41 | L37: 21/02/2024 | M37: 25328
A38: 33 | B38: ARACELI GARCIA MENDEZ | C38: GAMA6912271V4 | D38: JUAREZ NO. 65 | E38: TAMAZULA DE GORDIANO, JAL | F38: 49650 | G38: 252 | H38: 502 | I38: 99 | J38: (E.F.) PAGO DE HERRAMIENTAS DE LIMPIEZA PARA LA TEMPORADA DE ESTIAJE D EL DEPARTAMENTO DE PROTECCION CIVIL, COMPRA DE 1 CANDADO DE ALTA SEGURIDAD PARA EL DEPARTAMENTO DE TRANSITO, MOVILIDAD Y TRANSPORTE, COMPRA DE MASCARILLAS-RESPIRADORES PARA UTILIZAR | K38: 7,398.67 | L38: 21/02/2024 | M38: 25329
A39: 34 | B39: ARACELI GARCIA MENDEZ | C39: GAMA6912271V4 | D39: JUAREZ NO. 65 | E39: TAMAZULA DE GORDIANO, JAL | F39: 49650 | G39: 252 | H39: 502 | I39: 99 | J39: (E.F.) PAGO DE HERRAMIENTAS DE LIMPIEZA PARA LA TEMPORADA DE ESTIAJE D EL DEPARTAMENTO DE PROTECCION CIVIL, COMPRA DE 1 CANDADO DE ALTA SEGURIDAD PARA EL DEPARTAMENTO DE TRANSITO, MOVILIDAD Y TRANSPORTE, COMPRA DE MASCARILLAS-RESPIRADORES PARA UTILIZAR | K39: 622.00 | L39: 21/02/2024 | M39: 25330
A40: 35 | B40: ARACELI GARCIA MENDEZ | C40: GAMA6912271V4 | D40: JUAREZ NO. 65 | E40: TAMAZULA DE GORDIANO, JAL | F40: 49650 | G40: 252 | H40: 502 | I40: 99 | J40: (E.F.) PAGO DE HERRAMIENTAS DE LIMPIEZA PARA LA TEMPORADA DE ESTIAJE D EL DEPARTAMENTO DE PROTECCION CIVIL, COMPRA DE 1 CANDADO DE ALTA SEGURIDAD PARA EL DEPARTAMENTO DE TRANSITO, MOVILIDAD Y TRANSPORTE, COMPRA DE MASCARILLAS-RESPIRADORES PARA UTILIZAR | K40: 1,290.00 | L40: 21/02/2024 | M40: 25331
A41: 36 | B41: ARACELI GARCIA MENDEZ | C41: GAMA6912271V4 | D41: JUAREZ NO. 65 | E41: TAMAZULA DE GORDIANO, JAL | F41: 49650 | G41: 252 | H41: 502 | I41: 99 | J41: (E.F.) PAGO DE ACIDO MURIATICO, MATERIAL ELECTRICO, MANGUERA, PARA LOS DEPARTAMENTOS DE SEGURIDAD PUBLICA, PROTECCION CIVIL Y BOMBEROS, TRANSITO MOVILIVAD Y TRANSPORTE | K41: 1,207.12 | L41: 19/02/2024 | M41: 25302
A42: 37 | B42: ARACELI GARCIA MENDEZ | C42: GAMA6912271V4 | D42: JUAREZ NO. 65 | E42: TAMAZULA DE GORDIANO, JAL | F42: 49650 | G42: 252 | H42: 502 | I42: 99 | J42: (E.F.) PAGO DE ACIDO MURIATICO, MATERIAL ELECTRICO, MANGUERA, PARA LOS DEPARTAMENTOS DE SEGURIDAD PUBLICA, PROTECCION CIVIL Y BOMBEROS, TRANSITO MOVILIVAD Y TRANSPORTE | K42: 355.31 | L42: 19/02/2024 | M42: 25303
A43: 38 | B43: ARNOLDO HERNANDEZ ARREOLA | C43: HEAA540716LU8 | D43: VENUSTIANO CARRANZA NO. 9 | E43: TAMAZULA DE GORDIANO JALISCO | F43: 49650 | G43: 111 | H43: 401 | I43: 99 | J43: HPM.- MATERIAL NECESARIO PARA UTILIZARSE EN LAS REPARACIONES DE MURO DE DRENAJE EN LA COMUNIDAD DE LA YERBABUENA DE ESTE MUNICIPIO. | K43: 14,848.00 | L43: 21/02/2024 | M43: 2506
A44: 39 | B44: AURELIA CUEVAS FLORES | C44: CUFA451112BA9 | D44: MELCHOR OCAMPO NO.55 NTE. COL. CENTRO | E44: TAMAZULA DE GORDIANO JALISCO | F44: 49650 | G44: 111 | H44: 401 | I44: 99 | J44: HPM.- ADQUISICION DE TELEFONO DE ESCRITORIO PARA USO DEL DEPARTAMENTO DE EGRESOS DE ESTE H. AYUNTAMIENTO. | K44: 570.00 | L44: 20/02/2024 | M44: C13E3
A45: 40 | B45: AURELIA CUEVAS FLORES | C45: CUFA451112BA9 | D45: MELCHOR OCAMPO NO.55 NTE. COL. CENTRO | E45: TAMAZULA DE GORDIANO JALISCO | F45: 49650 | G45: 111 | H45: 401 | I45: 99 | J45: HPM.- ADQUISICION DE TINTAS EPSON 544 COLOR ROJA Y NEGRA PARA SER UTILIZADAS EN LA IMPRESORA DEL INSTITUTO MUNICIPAL DE LAS MUJERES TAMAZULENCES. | K45: 435.00 | L45: 01/02/2024 | M45: 47E5E
A46: 41 | B46: COMERCIALIZADORA RAMOS FIGUEROA S.A. DE C.V. | C46: CRF020520HX7 | D46: JUAN ALVAREZ NO. 595 | E46: TAMAZULA DE GORDIANO, JAL | F46: 49650 | G46: 252 | H46: 502 | I46: 99 | J46: (E.F.) PAGO DE DESECHABLE Y COFEE BREAK PARA EL CURSO DE PRIMEROS AUXILIOS LOS DIAS 27,28,29 DE FEBRERO Y 01 DE MARZO PARA EL DEPARTAMENTO DE PROTECCION CIVIL, MATERIAL DE LIMPIEZA PARA LOS DEPARTAMENTOS DE SEGURIDAD PUBLICA Y TRANSITO, MOVILIDAD. | K46: 1,054.61 | L46: 23/02/2024 | M46: 5832
A47: 42 | B47: COMERCIALIZADORA RAMOS FIGUEROA S.A. DE C.V. | C47: CRF020520HX7 | D47: JUAN ALVAREZ NO. 595 | E47: TAMAZULA DE GORDIANO, JAL | F47: 49650 | G47: 111 | H47: 401 | I47: 99 | J47: HPM.- MATERIAL DE LIMPIEZA PARA UTILIZARSE EN LAS ACTIVIDADES VARIAS DEL DEPARTAMENTO DE CEMENTERIOS MUNICIPAL | K47: 517.04 | L47: 21/02/2024 | M47: 5822
A48: 43 | B48: COMERCIALIZADORA RAMOS FIGUEROA S.A. DE C.V. | C48: CRF020520HX7 | D48: JUAN ALVAREZ NO. 595 | E48: TAMAZULA DE GORDIANO, JAL | F48: 49650 | G48: 252 | H48: 502 | I48: 99 | J48: (E.F.) PAGO DE APOYO ECONOMICO PARA VIUDA DE POLICIA CORRESPONDIENTE AL MES DE FEBRERO 2024, PAGO DE ARTICULOS DE LIMPIEZA PARA LOS DEPARTAMENTOS DE PROTECCION CIVIL, TRANSITO, MOVILIDAD Y TRANSPORTE Y SEGURIDAD PUBLICA. | K48: 1,200.00 | L48: 13/02/2024 | M48: 42495
A49: 44 | B49: COMERCIALIZADORA RAMOS FIGUEROA S.A. DE C.V. | C49: CRF020520HX7 | D49: JUAN ALVAREZ NO. 595 | E49: TAMAZULA DE GORDIANO, JAL | F49: 49650 | G49: 111 | H49: 401 | I49: 99 | J49: HPM.- COMPRA DE MATERIAL DE LIMPIEZA PARA UTILIZARSE EN LAS DIFERENTES ACTIVIDADES DEL DEPARTAMENTO DE ASEO PUBLICO DE ESTE H. AYUNTAMIENTO. | K49: 2,089.74 | L49: 09/02/2024 | M49: 5674
A50: 45 | B50: COMERCIALIZADORA RAMOS FIGUEROA S.A. DE C.V. | C50: CRF020520HX7 | D50: JUAN ALVAREZ NO. 595 | E50: TAMAZULA DE GORDIANO, JAL | F50: 49650 | G50: 252 | H50: 502 | I50: 99 | J50: (E.F.) PAGO DE APOYO ECONOMICO PARA VIUDA DE POLICIA CORRESPONDIENTE AL MES DE FEBRERO 2024, PAGO DE ARTICULOS DE LIMPIEZA PARA LOS DEPARTAMENTOS DE PROTECCION CIVIL, TRANSITO, MOVILIDAD Y TRANSPORTE Y SEGURIDAD PUBLICA. | K50: 828.51 | L50: 09/02/2024 | M50: 5681
A51: 46 | B51: COMERCIALIZADORA RAMOS FIGUEROA S.A. DE C.V. | C51: CRF020520HX7 | D51: JUAN ALVAREZ NO. 595 | E51: TAMAZULA DE GORDIANO, JAL | F51: 49650 | G51: 252 | H51: 502 | I51: 99 | J51: (E.F.) PAGO DE APOYO ECONOMICO PARA VIUDA DE POLICIA CORRESPONDIENTE AL MES DE FEBRERO 2024, PAGO DE ARTICULOS DE LIMPIEZA PARA LOS DEPARTAMENTOS DE PROTECCION CIVIL, TRANSITO, MOVILIDAD Y TRANSPORTE Y SEGURIDAD PUBLICA. | K51: 879.50 | L51: 09/02/2024 | M51: 5682
A52: 47 | B52: COMERCIALIZADORA RAMOS FIGUEROA S.A. DE C.V. | C52: CRF020520HX7 | D52: JUAN ALVAREZ NO. 595 | E52: TAMAZULA DE GORDIANO, JAL | F52: 49650 | G52: 252 | H52: 502 | I52: 99 | J52: (E.F.) PAGO DE APOYO ECONOMICO PARA VIUDA DE POLICIA CORRESPONDIENTE AL MES DE FEBRERO 2024, PAGO DE ARTICULOS DE LIMPIEZA PARA LOS DEPARTAMENTOS DE PROTECCION CIVIL, TRANSITO, MOVILIDAD Y TRANSPORTE Y SEGURIDAD PUBLICA. | K52: 1,173.44 | L52: 08/02/2024 | M52: 5686
A53: 48 | B53: COMERCIALIZADORA RAMOS FIGUEROA S.A. DE C.V. | C53: CRF020520HX7 | D53: JUAN ALVAREZ NO. 595 | E53: TAMAZULA DE GORDIANO, JAL | F53: 49650 | G53: 111 | H53: 401 | I53: 99 | J53: HPM.- ADQUISICION DE DESECHABLE PARA SER UTILIZADO EN EL EVENTO "ROSCA DE REYES 2024" SOLICITADO POR EL DEPARTAMENTO DE TURISMO , ASI COMO LA ADQUISICION DE BOLSAS TRANSPARENTES PARA EL ARMADO DEPAQUETES DE UNIFORMES DEL DEPARTEMTNO DE OFICIALIA MAYOR. | K53: 209.98 | L53: 06/02/2024 | M53: 42449
A54: 49 | B54: DAVID CUEVAS JIMENEZ | C54: CUJD4405092H4 | D54: RAMON CORONA NO. 859 | E54: TAMAZULA DE GORDIANO JALISCO | F54: 49650 | G54: 252 | H54: 502 | I54: 99 | J54: (E.F.) COMPRA DE AMORTIGUADOR, FILTROS, BUJIA, ACIETES, POLEAS Y BALEROS PARA AMBULANCIAS 0872, 127 Y CHEVY DEL DEPARTAMENTO DE PROTECCION CIVIL, MANGUERA DE AGUA Y ABRAZADERA PARA PATRULLA NO. 4 DE SEGURIDAD PUBLICA, TORNILLOS, ABRAZADERA, MUEY 30X30 PAR | K54: 711.00 | L54: 28/02/2024 | M54: 23747
A55: 50 | B55: DAVID CUEVAS JIMENEZ | C55: CUJD4405092H4 | D55: RAMON CORONA NO. 859 | E55: TAMAZULA DE GORDIANO JALISCO | F55: 49650 | G55: 252 | H55: 502 | I55: 99 | J55: (E.F.) COMPRA DE AMORTIGUADOR, FILTROS, BUJIA, ACIETES, POLEAS Y BALEROS PARA AMBULANCIAS 0872, 127 Y CHEVY DEL DEPARTAMENTO DE PROTECCION CIVIL, MANGUERA DE AGUA Y ABRAZADERA PARA PATRULLA NO. 4 DE SEGURIDAD PUBLICA, TORNILLOS, ABRAZADERA, MUEY 30X30 PAR | K55: 5,757.00 | L55: 28/02/2024 | M55: 23748
A56: 51 | B56: DAVID CUEVAS JIMENEZ | C56: CUJD4405092H4 | D56: RAMON CORONA NO. 859 | E56: TAMAZULA DE GORDIANO JALISCO | F56: 49650 | G56: 252 | H56: 502 | I56: 99 | J56: (E.F.) COMPRA DE AMORTIGUADOR, FILTROS, BUJIA, ACIETES, POLEAS Y BALEROS PARA AMBULANCIAS 0872, 127 Y CHEVY DEL DEPARTAMENTO DE PROTECCION CIVIL, MANGUERA DE AGUA Y ABRAZADERA PARA PATRULLA NO. 4 DE SEGURIDAD PUBLICA, TORNILLOS, ABRAZADERA, MUEY 30X30 PAR | K56: 312.00 | L56: 28/02/2024 | M56: 23749
A57: 52 | B57: DAVID CUEVAS JIMENEZ | C57: CUJD4405092H4 | D57: RAMON CORONA NO. 859 | E57: TAMAZULA DE GORDIANO JALISCO | F57: 49650 | G57: 252 | H57: 502 | I57: 99 | J57: (E.F.) COMPRA DE AMORTIGUADOR, FILTROS, BUJIA, ACIETES, POLEAS Y BALEROS PARA AMBULANCIAS 0872, 127 Y CHEVY DEL DEPARTAMENTO DE PROTECCION CIVIL, MANGUERA DE AGUA Y ABRAZADERA PARA PATRULLA NO. 4 DE SEGURIDAD PUBLICA, TORNILLOS, ABRAZADERA, MUEY 30X30 PAR | K57: 1,126.00 | L57: 28/02/2024 | M57: 23750
A58: 53 | B58: DAVID CUEVAS JIMENEZ | C58: CUJD4405092H4 | D58: RAMON CORONA NO. 859 | E58: TAMAZULA DE GORDIANO JALISCO | F58: 49650 | G58: 252 | H58: 502 | I58: 99 | J58: (E.F.) COMPRA DE AMORTIGUADOR, FILTROS, BUJIA, ACIETES, POLEAS Y BALEROS PARA AMBULANCIAS 0872, 127 Y CHEVY DEL DEPARTAMENTO DE PROTECCION CIVIL, MANGUERA DE AGUA Y ABRAZADERA PARA PATRULLA NO. 4 DE SEGURIDAD PUBLICA, TORNILLOS, ABRAZADERA, MUEY 30X30 PAR | K58: 4,760.00 | L58: 28/02/2024 | M58: 23751
A59: 54 | B59: DAVID CUEVAS JIMENEZ | C59: CUJD4405092H4 | D59: RAMON CORONA NO. 859 | E59: TAMAZULA DE GORDIANO JALISCO | F59: 49650 | G59: 252 | H59: 502 | I59: 99 | J59: (E.F.) COMPRA DE AMORTIGUADOR, FILTROS, BUJIA, ACIETES, POLEAS Y BALEROS PARA AMBULANCIAS 0872, 127 Y CHEVY DEL DEPARTAMENTO DE PROTECCION CIVIL, MANGUERA DE AGUA Y ABRAZADERA PARA PATRULLA NO. 4 DE SEGURIDAD PUBLICA, TORNILLOS, ABRAZADERA, MUEY 30X30 PAR | K59: 296.00 | L59: 28/02/2024 | M59: 23752
A60: 55 | B60: DAVID CUEVAS JIMENEZ | C60: CUJD4405092H4 | D60: RAMON CORONA NO. 859 | E60: TAMAZULA DE GORDIANO JALISCO | F60: 49650 | G60: 111 | H60: 401 | I60: 99 | J60: HPM.- REFACCIONES, ACEITE Y ADITIVOS PARA USO DE LOS VEHICULOS DE LOS DIFERENTES DEPARTAMENTOS DE ESTE H. AYUNTAMIENTO. | K60: 5,393.00 | L60: 28/02/2024 | M60: 23753
A61: 56 | B61: DAVID CUEVAS JIMENEZ | C61: CUJD4405092H4 | D61: RAMON CORONA NO. 859 | E61: TAMAZULA DE GORDIANO JALISCO | F61: 49650 | G61: 111 | H61: 401 | I61: 99 | J61: HPM.- REFACCIONES, ACEITE Y ADITIVOS PARA UTILIZARSE EN LOS VEHICULOS DE LOS DIFERENTES DEPARTAMENTOS DE ESTE H. AYUNTAMIENTO. | K61: 757.00 | L61: 28/02/2024 | M61: 23754
A62: 57 | B62: DAVID CUEVAS JIMENEZ | C62: CUJD4405092H4 | D62: RAMON CORONA NO. 859 | E62: TAMAZULA DE GORDIANO JALISCO | F62: 49650 | G62: 111 | H62: 401 | I62: 99 | J62: HPM.- REFACCIONES, ACEITE Y ADITIVOS PARA UTILIZARSE EN LOS VEHICULOS DE LOS DIFERENTES DEPARTAMENTOS DE ESTE H. AYUNTAMIENTO. | K62: 290.00 | L62: 28/02/2024 | M62: 23755
A63: 58 | B63: DAVID CUEVAS JIMENEZ | C63: CUJD4405092H4 | D63: RAMON CORONA NO. 859 | E63: TAMAZULA DE GORDIANO JALISCO | F63: 49650 | G63: 111 | H63: 401 | I63: 99 | J63: HPM.- REFACCIONES, ACEITE Y ADITIVOS PARA UTILIZARSE EN LOS VEHICULOS DE LOS DIFERENTES DEPARTAMENTOS DE ESTE H. AYUNTAMIENTO. | K63: 1,260.00 | L63: 28/02/2024 | M63: 23756
A64: 59 | B64: DAVID CUEVAS JIMENEZ | C64: CUJD4405092H4 | D64: RAMON CORONA NO. 859 | E64: TAMAZULA DE GORDIANO JALISCO | F64: 49650 | G64: 111 | H64: 401 | I64: 99 | J64: HPM.- REFACCIONES, ACEITE Y ADITIVOS PARA UTILIZARSE EN LOS VEHICULOS DE LOS DIFERENTES DEPARTAMENTOS DE ESTE H. AYUNTAMIENTO. | K64: 1,258.00 | L64: 28/02/2024 | M64: 23757
A65: 60 | B65: DAVID CUEVAS JIMENEZ | C65: CUJD4405092H4 | D65: RAMON CORONA NO. 859 | E65: TAMAZULA DE GORDIANO JALISCO | F65: 49650 | G65: 111 | H65: 401 | I65: 99 | J65: HPM.- REFACCIONES, ACEITE Y ADITIVOS PARA UTILIZARSE EN LOS VEHICULOS DE LOS DIFERENTES DEPARTAMENTOS DE ESTE H. AYUNTAMIENTO. | K65: 518.00 | L65: 28/02/2024 | M65: 23758
A66: 61 | B66: DAVID CUEVAS JIMENEZ | C66: CUJD4405092H4 | D66: RAMON CORONA NO. 859 | E66: TAMAZULA DE GORDIANO JALISCO | F66: 49650 | G66: 111 | H66: 401 | I66: 99 | J66: HPM.- REFACCIONES, ACEITE Y ADITIVOS PARA USO DE LOS VEHICULOS DE LOS DIFERENTES DEPARTAMENTOS DE ESTE H. AYUNTAMIENTO. | K66: 5,901.00 | L66: 28/02/2024 | M66: 23759
A67: 62 | B67: DAVID CUEVAS JIMENEZ | C67: CUJD4405092H4 | D67: RAMON CORONA NO. 859 | E67: TAMAZULA DE GORDIANO JALISCO | F67: 49650 | G67: 111 | H67: 401 | I67: 99 | J67: HPM.- REFACCIONES, ACEITE Y ADITIVOS PARA UTILIZARSE EN LOS VEHICULOS DE LOS DIFERENTES DEPARTAMENTOS DE ESTE H. AYUNTAMIENTO. | K67: 10,202.99 | L67: 28/02/2024 | M67: 23760
A68: 63 | B68: DAVID CUEVAS JIMENEZ | C68: CUJD4405092H4 | D68: RAMON CORONA NO. 859 | E68: TAMAZULA DE GORDIANO JALISCO | F68: 49650 | G68: 111 | H68: 401 | I68: 99 | J68: HPM.- REFACCIONES, ACEITE Y ADITIVOS PARA UTILIZARSE EN LOS VEHICULOS DE LOS DIFERENTES DEPARTAMENTOS DE ESTE H. AYUNTAMIENTO. | K68: 6,035.00 | L68: 28/02/2024 | M68: 23761
A69: 64 | B69: DAVID CUEVAS JIMENEZ | C69: CUJD4405092H4 | D69: RAMON CORONA NO. 859 | E69: TAMAZULA DE GORDIANO JALISCO | F69: 49650 | G69: 111 | H69: 401 | I69: 99 | J69: HPM.- REFACCIONES, ACEITE Y ADITIVOS PARA UTILIZARSE EN LOS VEHICULOS DE LOS DIFERENTES DEPARTAMENTOS DE ESTE H. AYUNTAMIENTO. | K69: 790.00 | L69: 28/02/2024 | M69: 23762
A70: 65 | B70: DAVID CUEVAS JIMENEZ | C70: CUJD4405092H4 | D70: RAMON CORONA NO. 859 | E70: TAMAZULA DE GORDIANO JALISCO | F70: 49650 | G70: 111 | H70: 401 | I70: 99 | J70: HPM.- REFACCIONES, ACEITE Y ADITIVOS PARA USO DE LOS VEHICULOS DE LOS DIFERENTES DEPARTAMENTOS DE ESTE H. AYUNTAMIENTO. | K70: 1,432.00 | L70: 28/02/2024 | M70: 23763
A71: 66 | B71: DAVID CUEVAS JIMENEZ | C71: CUJD4405092H4 | D71: RAMON CORONA NO. 859 | E71: TAMAZULA DE GORDIANO JALISCO | F71: 49650 | G71: 111 | H71: 401 | I71: 99 | J71: HPM.- REFACCIONES, ACEITE Y ADITIVOS PARA USO DE LOS VEHICULOS DE LOS DIFERENTES DEPARTAMENTOS DE ESTE H. AYUNTAMIENTO. | K71: 248.00 | L71: 28/02/2024 | M71: 23764
A72: 67 | B72: DAVID CUEVAS JIMENEZ | C72: CUJD4405092H4 | D72: RAMON CORONA NO. 859 | E72: TAMAZULA DE GORDIANO JALISCO | F72: 49650 | G72: 111 | H72: 401 | I72: 99 | J72: HPM.- REFACCIONES, ACEITE Y ADITIVOS PARA USO DE LOS VEHICULOS DE LOS DIFERENTES DEPARTAMENTOS DE ESTE H. AYUNTAMIENTO. | K72: 4,693.00 | L72: 28/02/2024 | M72: 23765
A73: 68 | B73: DAVID CUEVAS JIMENEZ | C73: CUJD4405092H4 | D73: RAMON CORONA NO. 859 | E73: TAMAZULA DE GORDIANO JALISCO | F73: 49650 | G73: 111 | H73: 401 | I73: 99 | J73: HPM.- REFACCIONES, ACEITE Y ADITIVOS PARA USO DE LOS VEHICULOS DE LOS DIFERENTES DEPARTAMENTOS DE ESTE H. AYUNTAMIENTO. | K73: 1,562.00 | L73: 28/02/2024 | M73: 23766
A74: 69 | B74: DAVID CUEVAS JIMENEZ | C74: CUJD4405092H4 | D74: RAMON CORONA NO. 859 | E74: TAMAZULA DE GORDIANO JALISCO | F74: 49650 | G74: 111 | H74: 401 | I74: 99 | J74: HPM.- REFACCIONES, ACEITE Y ADITIVOS PARA USO DE LOS VEHICULOS DE LOS DIFERENTES DEPARTAMENTOS DE ESTE H. AYUNTAMIENTO. | K74: 5,970.00 | L74: 28/02/2024 | M74: 23767
A75: 70 | B75: DAVID CUEVAS JIMENEZ | C75: CUJD4405092H4 | D75: RAMON CORONA NO. 859 | E75: TAMAZULA DE GORDIANO JALISCO | F75: 49650 | G75: 111 | H75: 401 | I75: 99 | J75: HPM.- REFACCIONES, ACEITE Y ADITIVOS PARA UTILIZARSE EN LOS VEHICULOS DE LOS DIFERENTES DEPARTAMENTOS DE ESTE H. AYUNTAMIENTO. | K75: 120.00 | L75: 28/02/2024 | M75: 23768
A76: 71 | B76: DAVID CUEVAS JIMENEZ | C76: CUJD4405092H4 | D76: RAMON CORONA NO. 859 | E76: TAMAZULA DE GORDIANO JALISCO | F76: 49650 | G76: 111 | H76: 401 | I76: 99 | J76: HPM.- REFACCIONES, ACEITE Y ADITIVOS PARA UTILIZARSE EN LOS VEHICULOS DE LOS DIFERENTES DEPARTAMENTOS DE ESTE H. AYUNTAMIENTO. | K76: 90.00 | L76: 28/02/2024 | M76: 23769
A77: 72 | B77: DAVID CUEVAS JIMENEZ | C77: CUJD4405092H4 | D77: RAMON CORONA NO. 859 | E77: TAMAZULA DE GORDIANO JALISCO | F77: 49650 | G77: 111 | H77: 401 | I77: 99 | J77: HPM.- REFACCIONES, ACEITE Y ADITIVOS PARA UTILIZARSE EN LOS VEHICULOS DE LOS DIFERENTES DEPARTAMENTOS DE ESTE H. AYUNTAMIENTO. | K77: 98.00 | L77: 28/02/2024 | M77: 23770
A78: 73 | B78: DAVID CUEVAS JIMENEZ | C78: CUJD4405092H4 | D78: RAMON CORONA NO. 859 | E78: TAMAZULA DE GORDIANO JALISCO | F78: 49650 | G78: 111 | H78: 401 | I78: 99 | J78: HPM.- REFACCIONES, ACEITE Y ADITIVOS PARA UTILIZARSE EN LOS VEHICULOS DE LOS DIFERENTES DEPARTAMENTOS DE ESTE H. AYUNTAMIENTO. | K78: 56.00 | L78: 28/02/2024 | M78: 23771
A79: 74 | B79: DAVID CUEVAS JIMENEZ | C79: CUJD4405092H4 | D79: RAMON CORONA NO. 859 | E79: TAMAZULA DE GORDIANO JALISCO | F79: 49650 | G79: 111 | H79: 401 | I79: 99 | J79: HPM.- REFACCIONES, ACEITE Y ADITIVOS PARA UTILIZARSE EN LOS VEHICULOS DE LOS DIFERENTES DEPARTAMENTOS DE ESTE H. AYUNTAMIENTO. | K79: 6,484.00 | L79: 28/02/2024 | M79: 23772
A80: 75 | B80: DAVID CUEVAS JIMENEZ | C80: CUJD4405092H4 | D80: RAMON CORONA NO. 859 | E80: TAMAZULA DE GORDIANO JALISCO | F80: 49650 | G80: 111 | H80: 401 | I80: 99 | J80: HPM.- REFACCIONES, ACEITE Y ADITIVOS PARA UTILIZARSE EN LOS VEHICULOS DE LOS DIFERENTES DEPARTAMENTOS DE ESTE H. AYUNTAMIENTO. | K80: 1,158.00 | L80: 28/02/2024 | M80: 23773
A81: 76 | B81: DAVID CUEVAS JIMENEZ | C81: CUJD4405092H4 | D81: RAMON CORONA NO. 859 | E81: TAMAZULA DE GORDIANO JALISCO | F81: 49650 | G81: 111 | H81: 401 | I81: 99 | J81: HPM.- REFACCIONES, ACEITE Y ADITIVOS PARA UTILIZARSE EN LOS VEHICULOS DE LOS DIFERENTES DEPARTAMENTOS DE ESTE H. AYUNTAMIENTO. | K81: 3,013.00 | L81: 28/02/2024 | M81: 23774
A82: 77 | B82: DAVID CUEVAS JIMENEZ | C82: CUJD4405092H4 | D82: RAMON CORONA NO. 859 | E82: TAMAZULA DE GORDIANO JALISCO | F82: 49650 | G82: 111 | H82: 401 | I82: 99 | J82: HPM.- REFACCIONES, ACEITE Y ADITIVOS PARA UTILIZARSE EN LOS VEHICULOS DE LOS DIFERENTES DEPARTAMENTOS DE ESTE H. AYUNTAMIENTO. | K82: 2,021.00 | L82: 28/02/2024 | M82: 23775
A83: 78 | B83: DAVID CUEVAS JIMENEZ | C83: CUJD4405092H4 | D83: RAMON CORONA NO. 859 | E83: TAMAZULA DE GORDIANO JALISCO | F83: 49650 | G83: 111 | H83: 401 | I83: 99 | J83: HPM.- REFACCIONES, ACEITE Y ADITIVOS PARA UTILIZARSE EN LOS VEHICULOS DE LOS DIFERENTES DEPARTAMENTOS DE ESTE H. AYUNTAMIENTO. | K83: 4,230.00 | L83: 28/02/2024 | M83: 23776
A84: 79 | B84: DAVID CUEVAS JIMENEZ | C84: CUJD4405092H4 | D84: RAMON CORONA NO. 859 | E84: TAMAZULA DE GORDIANO JALISCO | F84: 49650 | G84: 111 | H84: 401 | I84: 99 | J84: HPM.- REFACCIONES, ACEITE Y ADITIVOS PARA UTILIZARSE EN LOS VEHICULOS DE LOS DIFERENTES DEPARTAMENTOS DE ESTE H. AYUNTAMIENTO. | K84: 502.00 | L84: 28/02/2024 | M84: 23777
A85: 80 | B85: DAVID CUEVAS JIMENEZ | C85: CUJD4405092H4 | D85: RAMON CORONA NO. 859 | E85: TAMAZULA DE GORDIANO JALISCO | F85: 49650 | G85: 111 | H85: 401 | I85: 99 | J85: HPM.- REFACCIONES, ACEITE Y ADITIVOS PARA UTILIZARSE EN LOS VEHICULOS DE LOS DIFERENTES DEPARTAMENTOS DE ESTE H. AYUNTAMIENTO. | K85: 98.00 | L85: 28/02/2024 | M85: 23778
A86: 81 | B86: DAVID CUEVAS JIMENEZ | C86: CUJD4405092H4 | D86: RAMON CORONA NO. 859 | E86: TAMAZULA DE GORDIANO JALISCO | F86: 49650 | G86: 111 | H86: 401 | I86: 99 | J86: HPM.- REFACCIONES, ACEITE Y ADITIVOS PARA UTILIZARSE EN LOS VEHICULOS DE LOS DIFERENTES DEPARTAMENTOS DE ESTE H. AYUNTAMIENTO. | K86: 5,933.00 | L86: 28/02/2024 | M86: 23779
A87: 82 | B87: DAVID CUEVAS JIMENEZ | C87: CUJD4405092H4 | D87: RAMON CORONA NO. 859 | E87: TAMAZULA DE GORDIANO JALISCO | F87: 49650 | G87: 111 | H87: 401 | I87: 99 | J87: HPM.- REFACCIONES, ACEITE Y ADITIVOS PARA UTILIZARSE EN LOS VEHICULOS DE LOS DIFERENTES DEPARTAMENTOS DE ESTE H. AYUNTAMIENTO. | K87: 2,985.00 | L87: 28/02/2024 | M87: 23780
A88: 83 | B88: DAVID CUEVAS JIMENEZ | C88: CUJD4405092H4 | D88: RAMON CORONA NO. 859 | E88: TAMAZULA DE GORDIANO JALISCO | F88: 49650 | G88: 111 | H88: 401 | I88: 99 | J88: HPM.- REFACCIONES, ACEITE Y ADITIVOS PARA UTILIZARSE EN LOS VEHICULOS DE LOS DIFERENTES DEPARTAMENTOS DE ESTE H. AYUNTAMIENTO. | K88: 3,064.00 | L88: 12/02/2024 | M88: 23699
A89: 84 | B89: DAVID CUEVAS JIMENEZ | C89: CUJD4405092H4 | D89: RAMON CORONA NO. 859 | E89: TAMAZULA DE GORDIANO JALISCO | F89: 49650 | G89: 111 | H89: 401 | I89: 99 | J89: HPM.- REFACCIONES, ACEITE Y ADITIVOS PARA UTILIZARSE EN LOS VEHICULOS DE LOS DIFERENTES DEPARTAMENTOS DE ESTE H. AYUNTAMIENTO. | K89: 4,900.00 | L89: 12/02/2024 | M89: 23700
A90: 85 | B90: DAVID CUEVAS JIMENEZ | C90: CUJD4405092H4 | D90: RAMON CORONA NO. 859 | E90: TAMAZULA DE GORDIANO JALISCO | F90: 49650 | G90: 111 | H90: 401 | I90: 99 | J90: HPM.- REFACCIONES, ACEITE Y ADITIVOS PARA UTILIZARSE EN LOS VEHICULOS DE LOS DIFERENTES DEPARTAMENTOS DE ESTE H. AYUNTAMIENTO. | K90: 938.00 | L90: 12/02/2024 | M90: 23701
A91: 86 | B91: DAVID CUEVAS JIMENEZ | C91: CUJD4405092H4 | D91: RAMON CORONA NO. 859 | E91: TAMAZULA DE GORDIANO JALISCO | F91: 49650 | G91: 111 | H91: 401 | I91: 99 | J91: HPM.- REFACCIONES, ACEITE Y ADITIVOS PARA UTILIZARSE EN LOS VEHICULOS DE LOS DIFERENTES DEPARTAMENTOS DE ESTE H. AYUNTAMIENTO. | K91: 3,980.00 | L91: 12/02/2024 | M91: 23702
A92: 87 | B92: DAVID CUEVAS JIMENEZ | C92: CUJD4405092H4 | D92: RAMON CORONA NO. 859 | E92: TAMAZULA DE GORDIANO JALISCO | F92: 49650 | G92: 111 | H92: 401 | I92: 99 | J92: HPM.- REFACCIONES, ACEITE Y ADITIVOS PARA UTILIZARSE EN LOS VEHICULOS DE LOS DIFERENTES DEPARTAMENTOS DE ESTE H. AYUNTAMIENTO. | K92: 3,018.00 | L92: 12/02/2024 | M92: 23703
A93: 88 | B93: DAVID CUEVAS JIMENEZ | C93: CUJD4405092H4 | D93: RAMON CORONA NO. 859 | E93: TAMAZULA DE GORDIANO JALISCO | F93: 49650 | G93: 111 | H93: 401 | I93: 99 | J93: HPM.- REFACCIONES, ACEITE Y ADITIVOS PARA UTILIZARSE EN LOS VEHICULOS DE LOS DIFERENTES DEPARTAMENTOS DE ESTE H. AYUNTAMIENTO. | K93: 1,497.00 | L93: 12/02/2024 | M93: 23704
A94: 89 | B94: DAVID CUEVAS JIMENEZ | C94: CUJD4405092H4 | D94: RAMON CORONA NO. 859 | E94: TAMAZULA DE GORDIANO JALISCO | F94: 49650 | G94: 111 | H94: 401 | I94: 99 | J94: HPM.- REFACCIONES, ACEITE Y ADITIVOS PARA UTILIZARSE EN LOS VEHICULOS DE LOS DIFERENTES DEPARTAMENTOS DE ESTE H. AYUNTAMIENTO. | K94: 481.00 | L94: 12/02/2024 | M94: 23705
A95: 90 | B95: DAVID CUEVAS JIMENEZ | C95: CUJD4405092H4 | D95: RAMON CORONA NO. 859 | E95: TAMAZULA DE GORDIANO JALISCO | F95: 49650 | G95: 252 | H95: 502 | I95: 99 | J95: (E.F.) PAGO DE COMPRA DE FILTROS, TAPON DE ACEITE PARA PIPA NO. 47 DEL MODULO DE MAQUINARIA, POLEA, BANDA Y HERRAJES PARA LAS AMBULANCIAS 0872 Y 2275 DEL DEPARTAMENTO DE PROTECCION CIVIL, COMPRA DE BALATAS, FILTRO, ROTULA, BUJE, ACEITE, LIMPIABRISAS PARA | K95: 1,240.02 | L95: 10/02/2024 | M95: 23675
A96: 91 | B96: DAVID CUEVAS JIMENEZ | C96: CUJD4405092H4 | D96: RAMON CORONA NO. 859 | E96: TAMAZULA DE GORDIANO JALISCO | F96: 49650 | G96: 252 | H96: 502 | I96: 99 | J96: (E.F.) PAGO DE COMPRA DE FILTROS, TAPON DE ACEITE PARA PIPA NO. 47 DEL MODULO DE MAQUINARIA, POLEA, BANDA Y HERRAJES PARA LAS AMBULANCIAS 0872 Y 2275 DEL DEPARTAMENTO DE PROTECCION CIVIL, COMPRA DE BALATAS, FILTRO, ROTULA, BUJE, ACEITE, LIMPIABRISAS PARA | K96: 7,070.00 | L96: 10/02/2024 | M96: 23676
A97: 92 | B97: DAVID CUEVAS JIMENEZ | C97: CUJD4405092H4 | D97: RAMON CORONA NO. 859 | E97: TAMAZULA DE GORDIANO JALISCO | F97: 49650 | G97: 252 | H97: 502 | I97: 99 | J97: (E.F.) PAGO DE COMPRA DE FILTROS, TAPON DE ACEITE PARA PIPA NO. 47 DEL MODULO DE MAQUINARIA, POLEA, BANDA Y HERRAJES PARA LAS AMBULANCIAS 0872 Y 2275 DEL DEPARTAMENTO DE PROTECCION CIVIL, COMPRA DE BALATAS, FILTRO, ROTULA, BUJE, ACEITE, LIMPIABRISAS PARA | K97: 964.00 | L97: 10/02/2024 | M97: 23677
A98: 93 | B98: DAVID CUEVAS JIMENEZ | C98: CUJD4405092H4 | D98: RAMON CORONA NO. 859 | E98: TAMAZULA DE GORDIANO JALISCO | F98: 49650 | G98: 252 | H98: 502 | I98: 99 | J98: (E.F.) PAGO DE COMPRA DE FILTROS, TAPON DE ACEITE PARA PIPA NO. 47 DEL MODULO DE MAQUINARIA, POLEA, BANDA Y HERRAJES PARA LAS AMBULANCIAS 0872 Y 2275 DEL DEPARTAMENTO DE PROTECCION CIVIL, COMPRA DE BALATAS, FILTRO, ROTULA, BUJE, ACEITE, LIMPIABRISAS PARA | K98: 540.00 | L98: 10/02/2024 | M98: 23678
A99: 94 | B99: DAVID CUEVAS JIMENEZ | C99: CUJD4405092H4 | D99: RAMON CORONA NO. 859 | E99: TAMAZULA DE GORDIANO JALISCO | F99: 49650 | G99: 252 | H99: 502 | I99: 99 | J99: (E.F.) PAGO DE COMPRA DE FILTROS, TAPON DE ACEITE PARA PIPA NO. 47 DEL MODULO DE MAQUINARIA, POLEA, BANDA Y HERRAJES PARA LAS AMBULANCIAS 0872 Y 2275 DEL DEPARTAMENTO DE PROTECCION CIVIL, COMPRA DE BALATAS, FILTRO, ROTULA, BUJE, ACEITE, LIMPIABRISAS PARA | K99: 312.00 | L99: 10/02/2024 | M99: 23679
A100: 95 | B100: DAVID CUEVAS JIMENEZ | C100: CUJD4405092H4 | D100: RAMON CORONA NO. 859 | E100: TAMAZULA DE GORDIANO JALISCO | F100: 49650 | G100: 252 | H100: 502 | I100: 99 | J100: (E.F.) PAGO DE COMPRA DE FILTROS, TAPON DE ACEITE PARA PIPA NO. 47 DEL MODULO DE MAQUINARIA, POLEA, BANDA Y HERRAJES PARA LAS AMBULANCIAS 0872 Y 2275 DEL DEPARTAMENTO DE PROTECCION CIVIL, COMPRA DE BALATAS, FILTRO, ROTULA, BUJE, ACEITE, LIMPIABRISAS PARA | K100: 1,775.02 | L100: 10/02/2024 | M100: 23680
A101: 96 | B101: DAVID CUEVAS JIMENEZ | C101: CUJD4405092H4 | D101: RAMON CORONA NO. 859 | E101: TAMAZULA DE GORDIANO JALISCO | F101: 49650 | G101: 252 | H101: 502 | I101: 99 | J101: (E.F.) PAGO DE COMPRA DE FILTROS, TAPON DE ACEITE PARA PIPA NO. 47 DEL MODULO DE MAQUINARIA, POLEA, BANDA Y HERRAJES PARA LAS AMBULANCIAS 0872 Y 2275 DEL DEPARTAMENTO DE PROTECCION CIVIL, COMPRA DE BALATAS, FILTRO, ROTULA, BUJE, ACEITE, LIMPIABRISAS PARA | K101: 1,754.00 | L101: 10/02/2024 | M101: 23681
A102: 97 | B102: DAVID CUEVAS JIMENEZ | C102: CUJD4405092H4 | D102: RAMON CORONA NO. 859 | E102: TAMAZULA DE GORDIANO JALISCO | F102: 49650 | G102: 252 | H102: 502 | I102: 99 | J102: (E.F.) PAGO DE COMPRA DE FILTROS, TAPON DE ACEITE PARA PIPA NO. 47 DEL MODULO DE MAQUINARIA, POLEA, BANDA Y HERRAJES PARA LAS AMBULANCIAS 0872 Y 2275 DEL DEPARTAMENTO DE PROTECCION CIVIL, COMPRA DE BALATAS, FILTRO, ROTULA, BUJE, ACEITE, LIMPIABRISAS PARA | K102: 871.00 | L102: 10/02/2024 | M102: 23682
A103: 98 | B103: DAVID CUEVAS JIMENEZ | C103: CUJD4405092H4 | D103: RAMON CORONA NO. 859 | E103: TAMAZULA DE GORDIANO JALISCO | F103: 49650 | G103: 252 | H103: 502 | I103: 99 | J103: (E.F.) PAGO DE COMPRA DE FILTROS, TAPON DE ACEITE PARA PIPA NO. 47 DEL MODULO DE MAQUINARIA, POLEA, BANDA Y HERRAJES PARA LAS AMBULANCIAS 0872 Y 2275 DEL DEPARTAMENTO DE PROTECCION CIVIL, COMPRA DE BALATAS, FILTRO, ROTULA, BUJE, ACEITE, LIMPIABRISAS PARA | K103: 2,337.00 | L103: 10/02/2024 | M103: 23683
A104: 99 | B104: DAVID CUEVAS JIMENEZ | C104: CUJD4405092H4 | D104: RAMON CORONA NO. 859 | E104: TAMAZULA DE GORDIANO JALISCO | F104: 49650 | G104: 252 | H104: 502 | I104: 99 | J104: (E.F.) PAGO DE COMPRA DE FILTROS, TAPON DE ACEITE PARA PIPA NO. 47 DEL MODULO DE MAQUINARIA, POLEA, BANDA Y HERRAJES PARA LAS AMBULANCIAS 0872 Y 2275 DEL DEPARTAMENTO DE PROTECCION CIVIL, COMPRA DE BALATAS, FILTRO, ROTULA, BUJE, ACEITE, LIMPIABRISAS PARA | K104: 1,232.00 | L104: 10/02/2024 | M104: 23684
A105: 100 | B105: DAVID CUEVAS JIMENEZ | C105: CUJD4405092H4 | D105: RAMON CORONA NO. 859 | E105: TAMAZULA DE GORDIANO JALISCO | F105: 49650 | G105: 111 | H105: 401 | I105: 99 | J105: HPM.- REFACCIONES, ACEITE Y ADITIVOS PARA LOS VEHICULOS DE LOS DIFERENTES DEPARTAMENTOS DE ESTE H. AYUNTAMIENTO. | K105: 746.00 | L105: 10/02/2024 | M105: 23685
A106: 101 | B106: DAVID CUEVAS JIMENEZ | C106: CUJD4405092H4 | D106: RAMON CORONA NO. 859 | E106: TAMAZULA DE GORDIANO JALISCO | F106: 49650 | G106: 111 | H106: 401 | I106: 99 | J106: HPM.- REFACCIONES, ACEITE Y ADITIVOS PARA LOS VEHICULOS DE LOS DIFERENTES DEPARTAMENTOS DE ESTE H. AYUNTAMIENTO. | K106: 1,754.00 | L106: 10/02/2024 | M106: 23686
A107: 102 | B107: DAVID CUEVAS JIMENEZ | C107: CUJD4405092H4 | D107: RAMON CORONA NO. 859 | E107: TAMAZULA DE GORDIANO JALISCO | F107: 49650 | G107: 111 | H107: 401 | I107: 99 | J107: HPM.- REFACCIONES, ACEITE Y ADITIVOS PARA LOS VEHICULOS DE LOS DIFERENTES DEPARTAMENTOS DE ESTE H. AYUNTAMIENTO. | K107: 293.00 | L107: 10/02/2024 | M107: 23687
A108: 103 | B108: DAVID CUEVAS JIMENEZ | C108: CUJD4405092H4 | D108: RAMON CORONA NO. 859 | E108: TAMAZULA DE GORDIANO JALISCO | F108: 49650 | G108: 111 | H108: 401 | I108: 99 | J108: HPM.- REFACCIONES, ACEITE Y ADITIVOS PARA LOS VEHICULOS DE LOS DIFERENTES DEPARTAMENTOS DE ESTE H. AYUNTAMIENTO. | K108: 1,750.00 | L108: 10/02/2024 | M108: 23688
A109: 104 | B109: DAVID CUEVAS JIMENEZ | C109: CUJD4405092H4 | D109: RAMON CORONA NO. 859 | E109: TAMAZULA DE GORDIANO JALISCO | F109: 49650 | G109: 111 | H109: 401 | I109: 99 | J109: HPM.- REFACCIONES, ACEITE Y ADITIVOS PARA LOS VEHICULOS DE LOS DIFERENTES DEPARTAMENTOS DE ESTE H. AYUNTAMIENTO. | K109: 550.00 | L109: 10/02/2024 | M109: 23689
A110: 105 | B110: DAVID CUEVAS JIMENEZ | C110: CUJD4405092H4 | D110: RAMON CORONA NO. 859 | E110: TAMAZULA DE GORDIANO JALISCO | F110: 49650 | G110: 111 | H110: 401 | I110: 99 | J110: HPM.- REFACCIONES, ACEITE Y ADITIVOS PARA LOS VEHICULOS DE LOS DIFERENTES DEPARTAMENTOS DE ESTE H. AYUNTAMIENTO. | K110: 850.00 | L110: 10/02/2024 | M110: 23690
A111: 106 | B111: DAVID CUEVAS JIMENEZ | C111: CUJD4405092H4 | D111: RAMON CORONA NO. 859 | E111: TAMAZULA DE GORDIANO JALISCO | F111: 49650 | G111: 111 | H111: 401 | I111: 99 | J111: HPM.- REFACCIONES, ACEITE Y ADITIVOS PARA LOS VEHICULOS DE LOS DIFERENTES DEPARTAMENTOS DE ESTE H. AYUNTAMIENTO. | K111: 43.00 | L111: 10/02/2024 | M111: 23691
A112: 107 | B112: DAVID CUEVAS JIMENEZ | C112: CUJD4405092H4 | D112: RAMON CORONA NO. 859 | E112: TAMAZULA DE GORDIANO JALISCO | F112: 49650 | G112: 111 | H112: 401 | I112: 99 | J112: HPM.- REFACCIONES, ACEITE Y ADITIVOS PARA LOS VEHICULOS DE LOS DIFERENTES DEPARTAMENTOS DE ESTE H. AYUNTAMIENTO. | K112: 550.00 | L112: 10/02/2024 | M112: 23692
A113: 108 | B113: DAVID CUEVAS JIMENEZ | C113: CUJD4405092H4 | D113: RAMON CORONA NO. 859 | E113: TAMAZULA DE GORDIANO JALISCO | F113: 49650 | G113: 111 | H113: 401 | I113: 99 | J113: HPM.- REFACCIONES, ACEITE Y ADITIVOS PARA LOS VEHICULOS DE LOS DIFERENTES DEPARTAMENTOS DE ESTE H. AYUNTAMIENTO. | K113: 13,553.00 | L113: 10/02/2024 | M113: 23693
A114: 109 | B114: DAVID CUEVAS JIMENEZ | C114: CUJD4405092H4 | D114: RAMON CORONA NO. 859 | E114: TAMAZULA DE GORDIANO JALISCO | F114: 49650 | G114: 111 | H114: 401 | I114: 99 | J114: HPM.- REFACCIONES, ACEITE Y ADITIVOS PARA LOS VEHICULOS DE LOS DIFERENTES DEPARTAMENTOS DE ESTE H. AYUNTAMIENTO. | K114: 5,825.00 | L114: 10/02/2024 | M114: 23694
A115: 110 | B115: DAVID CUEVAS JIMENEZ | C115: CUJD4405092H4 | D115: RAMON CORONA NO. 859 | E115: TAMAZULA DE GORDIANO JALISCO | F115: 49650 | G115: 111 | H115: 401 | I115: 99 | J115: HPM.- REFACCIONES, ACEITE Y ADITIVOS PARA UTILIZARSE EN LOS VEHICULOS DE LOS DIFERENTES DEPARTAMENTOS DE ESTE H. AYUNTAMIENTO. | K115: 250.00 | L115: 10/02/2024 | M115: 23695
A116: 111 | B116: DAVID CUEVAS JIMENEZ | C116: CUJD4405092H4 | D116: RAMON CORONA NO. 859 | E116: TAMAZULA DE GORDIANO JALISCO | F116: 49650 | G116: 111 | H116: 401 | I116: 99 | J116: HPM.- REFACCIONES, ACEITE Y ADITIVOS PARA UTILIZARSE EN LOS VEHICULOS DE LOS DIFERENTES DEPARTAMENTOS DE ESTE H. AYUNTAMIENTO. | K116: 2,994.00 | L116: 10/02/2024 | M116: 23696
A117: 112 | B117: DAVID CUEVAS JIMENEZ | C117: CUJD4405092H4 | D117: RAMON CORONA NO. 859 | E117: TAMAZULA DE GORDIANO JALISCO | F117: 49650 | G117: 111 | H117: 401 | I117: 99 | J117: HPM.- REFACCIONES, ACEITE Y ADITIVOS PARA UTILIZARSE EN LOS VEHICULOS DE LOS DIFERENTES DEPARTAMENTOS DE ESTE H. AYUNTAMIENTO. | K117: 5,960.00 | L117: 10/02/2024 | M117: 23697
A118: 113 | B118: DAVID CUEVAS JIMENEZ | C118: CUJD4405092H4 | D118: RAMON CORONA NO. 859 | E118: TAMAZULA DE GORDIANO JALISCO | F118: 49650 | G118: 111 | H118: 401 | I118: 99 | J118: HPM.- REFACCIONES, ACEITE Y ADITIVOS PARA UTILIZARSE EN LOS VEHICULOS DE LOS DIFERENTES DEPARTAMENTOS DE ESTE H. AYUNTAMIENTO. | K118: 4,365.00 | L118: 10/02/2024 | M118: 23698
A119: 114 | B119: FEDERICO TORRES SILVA | C119: TOSF560202QJ6 | D119: ZARAGOZA NO. 96 OTE. | E119: TAMAZULA DE GORDIANO JALISCO | F119: 49650 | G119: 252 | H119: 502 | I119: 99 | J119: HPM.- COMPRA DE REFACCIONES PARA SER UTILIZADOS EN LOS DIFERENTES VEHICULOS DE PROTECCION CIVIL Y SEGURIDAD PUBLICA DE ESTE H. AYUNTAMIENTO. | K119: 6,962.32 | L119: 13/02/2024 | M119: 1454
A120: 115 | B120: FEDERICO TORRES SILVA | C120: TOSF560202QJ6 | D120: ZARAGOZA NO. 96 OTE. | E120: TAMAZULA DE GORDIANO JALISCO | F120: 49650 | G120: 252 | H120: 502 | I120: 99 | J120: HPM.- COMPRA DE ACEITE MOBIL DELVAC PARA SER UTILIZADOS EN LOS DIFERENTES VEHICULOS DE PROTECCION CIVIL Y SEGURIDAD PUBLICA DE ESTE H. AYUNTAMIENTO. | K120: 26,680.00 | L120: 13/02/2024 | M120: 1455
A121: 116 | B121: FEDERICO TORRES SILVA | C121: TOSF560202QJ6 | D121: ZARAGOZA NO. 96 OTE. | E121: TAMAZULA DE GORDIANO JALISCO | F121: 49650 | G121: 252 | H121: 502 | I121: 99 | J121: HPM.- COMPRA DE REFACCIONES PARA SER UTILIZADOS EN LOS DIFERENTES VEHICULOS DE PROTECCION CIVIL Y SEGURIDAD PUBLICA DE ESTE H. AYUNTAMIENTO. | K121: 25,566.40 | L121: 13/02/2024 | M121: 1456
A122: 117 | B122: FEDERICO TORRES SILVA | C122: TOSF560202QJ6 | D122: ZARAGOZA NO. 96 OTE. | E122: TAMAZULA DE GORDIANO JALISCO | F122: 49650 | G122: 252 | H122: 502 | I122: 99 | J122: HPM.- COMPRA DE REFACCIONES PARA SER UTILIZADOS EN LOS DIFERENTES VEHICULOS DE PROTECCION CIVIL Y SEGURIDAD PUBLICA DE ESTE H. AYUNTAMIENTO. | K122: 2,749.20 | L122: 13/02/2024 | M122: 1457
A123: 118 | B123: HILDA GABRIELA MORENO IÑIGUEZ | C123: MOIH620731UU3 | D123: RAMON CORONA NO. 23 | E123: TAMAZULA DE GORDIANO JALISCO | F123: 49650 | G123: 111 | H123: 401 | I123: 99 | J123: HPM.- MATERIAL NECESARIO PARA UTILIZARSE EN LAS ACTIVIDADES VARIAS DE LOS DIFERENTES DEPARTAMENTOS DE ESTE H. AYUNTAMIENTO. | K123: 920.00 | L123: 29/02/2024 | M123: 579
A124: 119 | B124: HILDA GABRIELA MORENO IÑIGUEZ | C124: MOIH620731UU3 | D124: RAMON CORONA NO. 23 | E124: TAMAZULA DE GORDIANO JALISCO | F124: 49650 | G124: 111 | H124: 401 | I124: 99 | J124: HPM.- MATERIAL NECESARIO PARA UTILIZARSE EN LAS ACTIVIDADES VARIAS DE LOS DIFERENTES DEPARTAMENTOS DE ESTE H. AYUNTAMIENTO. | K124: 4,019.00 | L124: 29/02/2024 | M124: 580
A125: 120 | B125: HILDA GABRIELA MORENO IÑIGUEZ | C125: MOIH620731UU3 | D125: RAMON CORONA NO. 23 | E125: TAMAZULA DE GORDIANO JALISCO | F125: 49650 | G125: 111 | H125: 401 | I125: 99 | J125: HPM.- MATERIAL NECESARIO PARA UTILIZARSE EN LAS ACTIVIDADES VARIAS DE LOS DIFERENTES DEPARTAMENTOS DE ESTE H. AYUNTAMIENTO. | K125: 365.01 | L125: 28/02/2024 | M125: 565
A126: 121 | B126: HILDA GABRIELA MORENO IÑIGUEZ | C126: MOIH620731UU3 | D126: RAMON CORONA NO. 23 | E126: TAMAZULA DE GORDIANO JALISCO | F126: 49650 | G126: 111 | H126: 401 | I126: 99 | J126: HPM.- MATERIAL NECESARIO PARA UTILIZARSE EN LAS ACTIVIDADES VARIAS DE LOS DIFERENTES DEPARTAMENTOS DE ESTE H. AYUNTAMIENTO. | K126: 388.00 | L126: 27/02/2024 | M126: 556
A127: 122 | B127: HILDA GABRIELA MORENO IÑIGUEZ | C127: MOIH620731UU3 | D127: RAMON CORONA NO. 23 | E127: TAMAZULA DE GORDIANO JALISCO | F127: 49650 | G127: 111 | H127: 401 | I127: 99 | J127: HPM.- MATERIAL NECESARIO PARA UTILIZARSE EN LAS ACTIVIDADES VARIAS DE LOS DIFERENTES DEPARTAMENTOS DE ESTE H. AYUNTAMIENTO. | K127: 4,630.00 | L127: 27/02/2024 | M127: 557
A128: 123 | B128: HILDA GABRIELA MORENO IÑIGUEZ | C128: MOIH620731UU3 | D128: RAMON CORONA NO. 23 | E128: TAMAZULA DE GORDIANO JALISCO | F128: 49650 | G128: 111 | H128: 401 | I128: 99 | J128: HPM.- MATERIAL NECESARIO PARA UTILIZARSE EN LAS ACTIVIDADES VARIAS DE LOS DIFERENTES DEPARTAMENTOS DE ESTE H. AYUNTAMIENTO. | K128: 444.00 | L128: 27/02/2024 | M128: 558
A129: 124 | B129: HILDA GABRIELA MORENO IÑIGUEZ | C129: MOIH620731UU3 | D129: RAMON CORONA NO. 23 | E129: TAMAZULA DE GORDIANO JALISCO | F129: 49650 | G129: 111 | H129: 401 | I129: 99 | J129: HPM.- MATERIAL NECESARIO PARA UTILIZARSE EN LAS ACTIVIDADES VARIAS DE LOS DIFERENTES DEPARTAMENTOS DE ESTE H. AYUNTAMIENTO. | K129: 1,280.64 | L129: 27/02/2024 | M129: 559
A130: 125 | B130: HILDA GABRIELA MORENO IÑIGUEZ | C130: MOIH620731UU3 | D130: RAMON CORONA NO. 23 | E130: TAMAZULA DE GORDIANO JALISCO | F130: 49650 | G130: 111 | H130: 401 | I130: 99 | J130: HPM.- MATERIAL NECESARIO PARA UTILIZARSE EN LAS ACTIVIDADES VARIAS DE LOS DIFERENTES DEPARTAMENTOS DE ESTE H. AYUNTAMIENTO. | K130: 210.00 | L130: 27/02/2024 | M130: 560
A131: 126 | B131: HILDA GABRIELA MORENO IÑIGUEZ | C131: MOIH620731UU3 | D131: RAMON CORONA NO. 23 | E131: TAMAZULA DE GORDIANO JALISCO | F131: 49650 | G131: 111 | H131: 401 | I131: 99 | J131: HPM.- MATERIAL NECESARIO PARA UTILIZARSE EN LAS ACTIVIDADES VARIAS DE LOS DIFERENTES DEPARTAMENTOS DE ESTE H. AYUNTAMIENTO. | K131: 309.00 | L131: 27/02/2024 | M131: 561
A132: 127 | B132: HILDA GABRIELA MORENO IÑIGUEZ | C132: MOIH620731UU3 | D132: RAMON CORONA NO. 23 | E132: TAMAZULA DE GORDIANO JALISCO | F132: 49650 | G132: 111 | H132: 401 | I132: 99 | J132: HPM.- MATERIAL NECESARIO PARA UTILIZARSE EN LAS ACTIVIDADES VARIAS DE LOS DIFERENTES DEPARTAMENTOS DE ESTE H. AYUNTAMIENTO. | K132: 740.00 | L132: 23/02/2024 | M132: 547
A133: 128 | B133: HILDA GABRIELA MORENO IÑIGUEZ | C133: MOIH620731UU3 | D133: RAMON CORONA NO. 23 | E133: TAMAZULA DE GORDIANO JALISCO | F133: 49650 | G133: 111 | H133: 401 | I133: 99 | J133: HPM.- MATERIAL NECESARIO PARA UTILIZARSE EN LAS ACTIVIDADES VARIAS DE LOS DIFERENTES DEPARTAMENTOS DE ESTE H. AYUNTAMIENTO. | K133: 2,675.00 | L133: 20/02/2024 | M133: 529
A134: 129 | B134: HILDA GABRIELA MORENO IÑIGUEZ | C134: MOIH620731UU3 | D134: RAMON CORONA NO. 23 | E134: TAMAZULA DE GORDIANO JALISCO | F134: 49650 | G134: 111 | H134: 401 | I134: 99 | J134: HPM.- MATERIAL NECESARIO PARA UTILIZARSE EN LAS ACTIVIDADES VARIAS DE LOS DIFERENTES DEPARTAMENTOS DE ESTE H. AYUNTAMIENTO. | K134: 3,510.00 | L134: 20/02/2024 | M134: 530
A135: 130 | B135: HILDA GABRIELA MORENO IÑIGUEZ | C135: MOIH620731UU3 | D135: RAMON CORONA NO. 23 | E135: TAMAZULA DE GORDIANO JALISCO | F135: 49650 | G135: 111 | H135: 401 | I135: 99 | J135: HPM.- MATERIAL NECESARIO PARA UTILIZARSE EN LAS ACTIVIDADES VARIAS DE LOS DIFERENTES DEPARTAMENTOS DE ESTE H. AYUNTAMIENTO. | K135: 502.28 | L135: 20/02/2024 | M135: 531
A136: 131 | B136: HILDA GABRIELA MORENO IÑIGUEZ | C136: MOIH620731UU3 | D136: RAMON CORONA NO. 23 | E136: TAMAZULA DE GORDIANO JALISCO | F136: 49650 | G136: 111 | H136: 401 | I136: 99 | J136: HPM.- MATERIAL NECESARIO PARA UTILIZARSE EN LAS ACTIVIDADES VARIAS DE LOS DIFERENTES DEPARTAMENTOS DE ESTE H. AYUNTAMIENTO. | K136: 7,879.95 | L136: 20/02/2024 | M136: 532
A137: 132 | B137: HILDA GABRIELA MORENO IÑIGUEZ | C137: MOIH620731UU3 | D137: RAMON CORONA NO. 23 | E137: TAMAZULA DE GORDIANO JALISCO | F137: 49650 | G137: 252 | H137: 502 | I137: 99 | J137: (E.F.) COMPRA DE 10 CINTAS DE PRECAUCION PARA EL DEPARTAMENTO DE TRANSITO, MOVILIDAD Y TRANSPORTE, COMPRA DE 4 CINTAS DE PRECAUCION PARA EL DEPARTAMENTO DE PROTECCION CIVIL. | K137: 650.10 | L137: 14/02/2024 | M137: 509
A138: 133 | B138: HILDA GABRIELA MORENO IÑIGUEZ | C138: MOIH620731UU3 | D138: RAMON CORONA NO. 23 | E138: TAMAZULA DE GORDIANO JALISCO | F138: 49650 | G138: 252 | H138: 502 | I138: 99 | J138: (E.F.) COMPRA DE 10 CINTAS DE PRECAUCION PARA EL DEPARTAMENTO DE TRANSITO, MOVILIDAD Y TRANSPORTE, COMPRA DE 4 CINTAS DE PRECAUCION PARA EL DEPARTAMENTO DE PROTECCION CIVIL. | K138: 260.00 | L138: 14/02/2024 | M138: 510
A139: 134 | B139: HILDA GABRIELA MORENO IÑIGUEZ | C139: MOIH620731UU3 | D139: RAMON CORONA NO. 23 | E139: TAMAZULA DE GORDIANO JALISCO | F139: 49650 | G139: 252 | H139: 502 | I139: 99 | J139: (E.F.) COMPRA DE 10 CINTAS DE PRECAUCION PARA EL DEPARTAMENTO DE TRANSITO, MOVILIDAD Y TRANSPORTE, COMPRA DE 4 CINTAS DE PRECAUCION PARA EL DEPARTAMENTO DE PROTECCION CIVIL. | K139: 205.00 | L139: 13/02/2024 | M139: 506
A140: 135 | B140: HILDA GABRIELA MORENO IÑIGUEZ | C140: MOIH620731UU3 | D140: RAMON CORONA NO. 23 | E140: TAMAZULA DE GORDIANO JALISCO | F140: 49650 | G140: 111 | H140: 401 | I140: 99 | J140: HPM.- MATERIAL NECESARIO PARA UTILIZARSE EN LAS ACTIVIDADES VARIAS DE LOS DIFERENTES DEPARTAMENTOS DE ESTE H. AYUNTAMIENTO. | K140: 255.00 | L140: 13/02/2024 | M140: 507
A141: 136 | B141: HILDA GABRIELA MORENO IÑIGUEZ | C141: MOIH620731UU3 | D141: RAMON CORONA NO. 23 | E141: TAMAZULA DE GORDIANO JALISCO | F141: 49650 | G141: 111 | H141: 401 | I141: 99 | J141: HPM.- MATERIAL NECESARIO PARA UTILIZARSE EN LAS ACTIVIDADES VARIAS DE LOS DIFERENTES DEPARTAMENTOS DE ESTE H. AYUNTAMIENTO. | K141: 205.00 | L141: 10/02/2024 | M141: 491
A142: 137 | B142: HILDA GABRIELA MORENO IÑIGUEZ | C142: MOIH620731UU3 | D142: RAMON CORONA NO. 23 | E142: TAMAZULA DE GORDIANO JALISCO | F142: 49650 | G142: 111 | H142: 401 | I142: 99 | J142: HPM.- MATERIAL NECESARIO PARA UTILIZARSE EN LAS ACTIVIDADES VARIAS DE LOS DIFERENTES DEPARTAMENTOS DE ESTE H. AYUNTAMIENTO. | K142: 1,615.00 | L142: 10/02/2024 | M142: 492
A143: 138 | B143: HILDA GABRIELA MORENO IÑIGUEZ | C143: MOIH620731UU3 | D143: RAMON CORONA NO. 23 | E143: TAMAZULA DE GORDIANO JALISCO | F143: 49650 | G143: 111 | H143: 401 | I143: 99 | J143: HPM.- MATERIAL NECESARIO PARA UTILIZARSE EN LAS ACTIVIDADES VARIAS DE LOS DIFERENTES DEPARTAMENTOS DE ESTE H. AYUNTAMIENTO. | K143: 2,640.76 | L143: 10/02/2024 | M143: 493
A144: 139 | B144: HILDA GABRIELA MORENO IÑIGUEZ | C144: MOIH620731UU3 | D144: RAMON CORONA NO. 23 | E144: TAMAZULA DE GORDIANO JALISCO | F144: 49650 | G144: 111 | H144: 401 | I144: 99 | J144: HPM.- MATERIAL NECESARIO PARA UTILIZARSE EN LAS ACTIVIDADES VARIAS DE LOS DIFERENTES DEPARTAMENTOS DE ESTE H. AYUNTAMIENTO. | K144: 2,260.00 | L144: 10/02/2024 | M144: 494
A145: 140 | B145: HILDA GABRIELA MORENO IÑIGUEZ | C145: MOIH620731UU3 | D145: RAMON CORONA NO. 23 | E145: TAMAZULA DE GORDIANO JALISCO | F145: 49650 | G145: 111 | H145: 401 | I145: 99 | J145: HPM.- MATERIAL NECESARIO PARA UTILIZARSE EN LAS ACTIVIDADES VARIAS DE LOS DIFERENTES DEPARTAMENTOS DE ESTE H. AYUNTAMIENTO. | K145: 4,559.01 | L145: 10/02/2024 | M145: 495
A146: 141 | B146: HILDA GABRIELA MORENO IÑIGUEZ | C146: MOIH620731UU3 | D146: RAMON CORONA NO. 23 | E146: TAMAZULA DE GORDIANO JALISCO | F146: 49650 | G146: 111 | H146: 401 | I146: 99 | J146: HPM.- MATERIAL NECESARIO PARA UTILIZARSE EN LAS ACTIVIDADES VARIAS DE LOS DIFERENTES DEPARTAMENTOS DE ESTE H. AYUNTAMIENTO. | K146: 925.00 | L146: 10/02/2024 | M146: 497
A147: 142 | B147: HILDA GABRIELA MORENO IÑIGUEZ | C147: MOIH620731UU3 | D147: RAMON CORONA NO. 23 | E147: TAMAZULA DE GORDIANO JALISCO | F147: 49650 | G147: 111 | H147: 401 | I147: 99 | J147: HPM.- MATERIAL NECESARIO PARA UTILIZARSE EN LAS ACTIVIDADES VARIAS DE LOS DIFERENTES DEPARTAMENTOS DE ESTE H. AYUNTAMIENTO. | K147: 350.00 | L147: 02/02/2024 | M147: 461
A148: 143 | B148: HILDA GABRIELA MORENO IÑIGUEZ | C148: MOIH620731UU3 | D148: RAMON CORONA NO. 23 | E148: TAMAZULA DE GORDIANO JALISCO | F148: 49650 | G148: 111 | H148: 401 | I148: 99 | J148: HPM.- ADQUISICION DE GUANTES DE PIEL DE CABRA PARA EL PERSONAL DEL DEPARTAMENTO DE ALUMBRADO PUBLICO. | K148: 1,220.00 | L148: 01/02/2024 | M148: 455
A149: 144 | B149: ISELA CONTRERAS ARECHIGA | C149: COAI750401T95 | D149: CALZ. CUAUTEMOC NO. 66 COL. CENTRO | E149: TAMAZULA DE GORDIANO JALISCO | F149: 49650 | G149: 111 | H149: 401 | I149: 99 | J149: HPM.- MATERIAL NECESARIO PARA UTILIZARSE EN LAS ACTIVIDADES VARIAS DE LOS DIFERENTES DEPARTAMENTOS DE ESTE H. AYUNTAMIENTO. | K149: 9,844.00 | L149: 28/02/2024 | M149: 2878
A150: 145 | B150: ISELA CONTRERAS ARECHIGA | C150: COAI750401T95 | D150: CALZ. CUAUTEMOC NO. 66 COL. CENTRO | E150: TAMAZULA DE GORDIANO JALISCO | F150: 49650 | G150: 111 | H150: 401 | I150: 99 | J150: HPM.- MATERIAL NECESARIO PARA UTILIZARSE EN LAS ACTIVIDADES VARIAS DE LOS DIFERENTES DEPARTAMENTOS DE ESTE H. AYUNTAMIENTO. | K150: 1,290.00 | L150: 28/02/2024 | M150: 2879
A151: 146 | B151: ISELA CONTRERAS ARECHIGA | C151: COAI750401T95 | D151: CALZ. CUAUTEMOC NO. 66 COL. CENTRO | E151: TAMAZULA DE GORDIANO JALISCO | F151: 49650 | G151: 111 | H151: 401 | I151: 99 | J151: HPM.- MATERIAL NECESARIO PARA UTILIZARSE EN LAS ACTIVIDADES VARIAS DE LOS DIFERENTES DEPARTAMENTOS DE ESTE H. AYUNTAMIENTO. | K151: 365.00 | L151: 28/02/2024 | M151: 2880
A152: 147 | B152: ISELA CONTRERAS ARECHIGA | C152: COAI750401T95 | D152: CALZ. CUAUTEMOC NO. 66 COL. CENTRO | E152: TAMAZULA DE GORDIANO JALISCO | F152: 49650 | G152: 111 | H152: 401 | I152: 99 | J152: HPM.- MATERIAL NECESARIO PARA UTILIZARSE EN LAS ACTIVIDADES VARIAS DE LOS DIFERENTES DEPARTAMENTOS DE ESTE H. AYUNTAMIENTO. | K152: 13,395.00 | L152: 21/02/2024 | M152: 2869
A153: 148 | B153: ISELA CONTRERAS ARECHIGA | C153: COAI750401T95 | D153: CALZ. CUAUTEMOC NO. 66 COL. CENTRO | E153: TAMAZULA DE GORDIANO JALISCO | F153: 49650 | G153: 111 | H153: 401 | I153: 99 | J153: HPM.- MATERIAL NECESARIO PARA UTILIZARSE EN LAS ACTIVIDADES VARIAS DE LOS DIFERENTES DEPARTAMENTOS DE ESTE H. AYUNTAMIENTO. | K153: 275.00 | L153: 21/02/2024 | M153: 2870
A154: 149 | B154: ISELA CONTRERAS ARECHIGA | C154: COAI750401T95 | D154: CALZ. CUAUTEMOC NO. 66 COL. CENTRO | E154: TAMAZULA DE GORDIANO JALISCO | F154: 49650 | G154: 111 | H154: 401 | I154: 99 | J154: HPM.- MATERIAL DE CONSTRUCCION PARA UTILIZARSE EN LAS REPARACIONES VARIAS DEL MUNICIPIO. | K154: 1,175.01 | L154: 13/02/2024 | M154: 2859
A155: 150 | B155: ISELA CONTRERAS ARECHIGA | C155: COAI750401T95 | D155: CALZ. CUAUTEMOC NO. 66 COL. CENTRO | E155: TAMAZULA DE GORDIANO JALISCO | F155: 49650 | G155: 111 | H155: 401 | I155: 99 | J155: HPM.- MATERIAL DE CONSTRUCCION PARA UTILIZARSE EN LAS REPARACIONES VARIAS DEL MUNICIPIO. | K155: 2,723.00 | L155: 13/02/2024 | M155: 2860
A156: 151 | B156: ISELA CONTRERAS ARECHIGA | C156: COAI750401T95 | D156: CALZ. CUAUTEMOC NO. 66 COL. CENTRO | E156: TAMAZULA DE GORDIANO JALISCO | F156: 49650 | G156: 111 | H156: 401 | I156: 99 | J156: HPM.- MATERIAL DE CONSTRUCCION PARA UTILIZARSE EN LAS REPARACIONES VARIAS DEL MUNICIPIO. | K156: 910.00 | L156: 07/02/2024 | M156: 2844
A157: 152 | B157: ISELA CONTRERAS ARECHIGA | C157: COAI750401T95 | D157: CALZ. CUAUTEMOC NO. 66 COL. CENTRO | E157: TAMAZULA DE GORDIANO JALISCO | F157: 49650 | G157: 111 | H157: 401 | I157: 99 | J157: HPM.- MATERIAL DE CONSTRUCCION PARA UTILIZARSE EN LAS REPARACIONES VARIAS DEL MUNICIPIO. | K157: 1,157.00 | L157: 07/02/2024 | M157: 2845
A158: 153 | B158: ISELA CONTRERAS ARECHIGA | C158: COAI750401T95 | D158: CALZ. CUAUTEMOC NO. 66 COL. CENTRO | E158: TAMAZULA DE GORDIANO JALISCO | F158: 49650 | G158: 111 | H158: 401 | I158: 99 | J158: HPM.- MATERIAL DE CONSTRUCCION PARA UTILIZARSE EN LAS REPARACIONES VARIAS DEL MUNICIPIO. | K158: 716.00 | L158: 07/02/2024 | M158: 2846
A159: 154 | B159: ISELA CONTRERAS ARECHIGA | C159: COAI750401T95 | D159: CALZ. CUAUTEMOC NO. 66 COL. CENTRO | E159: TAMAZULA DE GORDIANO JALISCO | F159: 49650 | G159: 111 | H159: 401 | I159: 99 | J159: HPM.- MATERIAL DE CONSTRUCCION PARA UTILIZARSE EN LAS REPARACIONES VARIAS DEL MUNICIPIO. | K159: 2,805.00 | L159: 07/02/2024 | M159: 2847
A160: 155 | B160: ISELA CONTRERAS ARECHIGA | C160: COAI750401T95 | D160: CALZ. CUAUTEMOC NO. 66 COL. CENTRO | E160: TAMAZULA DE GORDIANO JALISCO | F160: 49650 | G160: 111 | H160: 401 | I160: 99 | J160: HPM.- MATERIAL DE CONSTRUCCION PARA UTILIZARSE EN LAS REPARACIONES VARIAS DEL MUNICIPIO. | K160: 600.00 | L160: 07/02/2024 | M160: 2848
A161: 156 | B161: ISELA CONTRERAS ARECHIGA | C161: COAI750401T95 | D161: CALZ. CUAUTEMOC NO. 66 COL. CENTRO | E161: TAMAZULA DE GORDIANO JALISCO | F161: 49650 | G161: 111 | H161: 401 | I161: 99 | J161: HPM.- MATERIAL DE CONSTRUCCION PARA UTILIZARSE EN LAS REPARACIONES VARIAS DEL MUNICIPIO. | K161: 240.00 | L161: 07/02/2024 | M161: 2849
A162: 157 | B162: ISELA CONTRERAS ARECHIGA | C162: COAI750401T95 | D162: CALZ. CUAUTEMOC NO. 66 COL. CENTRO | E162: TAMAZULA DE GORDIANO JALISCO | F162: 49650 | G162: 111 | H162: 401 | I162: 99 | J162: HPM.- MATERIAL DE CONSTRUCCION PARA UTILIZARSE EN LAS REPARACIONES VARIAS DEL MUNICIPIO. | K162: 1,100.00 | L162: 07/02/2024 | M162: 2850
A163: 158 | B163: J. JESUS BERNAL CABALLERO | C163: BECJ561205SA8 | D163: MORELOS NO. 976 NTE. COL. | E163: TAMAZULA DE GORDIANO JALISCO | F163: 49650 | G163: 111 | H163: 401 | I163: 99 | J163: HPM.- SERVICIO DE ARRENDAMIENTO DE MOBILIARIO PARA EL EVENTO "CIENCIA-TECNOLOGIA 2024" , SOLICITADO POR EL DEPARTAMENTO DE EDUCACION. | K163: 1,252.80 | L163: 06/02/2024 | M163: 3435
A164: 159 | B164: JORGE ARMANDO BARAJAS GONZALEZ | C164: BAGJ790705KV7 | D164: 05 DE FEBRERO NO.44 COL. | E164: TAMAZULA DE GORDIANO JALISCO | F164: 49650 | G164: 111 | H164: 401 | I164: 99 | J164: HPM.- ADQUISICION DE PLACA PARA LA CONMEMORACION DEL ARBOL DEL MANGUITO COMO PATRIMONIO MUNICIPAL. | K164: 3,364.00 | L164: 02/02/2024 | M164: D660F
A165: 160 | B165: JOSE DE JESUS BERNARDINO RAMOS | C165: BERJ671219FZ4 | D165: RAMON CORONA NO.150-A | E165: TAMAZULA DE GORDIANO JALISCO | F165: 49650 | G165: 111 | H165: 401 | I165: 99 | J165: HPM.- MATERIAL NECESARIO PARA UTILIZARSE EN EL MANTENIMIENTO DEL INMUEBLE DEL CEMENTERIO MUNICIPAL. | K165: 26,420.98 | L165: 23/02/2024 | M165: 7531
A166: 161 | B166: JOSE DE JESUS BERNARDINO RAMOS | C166: BERJ671219FZ4 | D166: RAMON CORONA NO.150-A | E166: TAMAZULA DE GORDIANO JALISCO | F166: 49650 | G166: 111 | H166: 401 | I166: 99 | J166: HPM.- MATERIAL NECESARIO PARA UTILIZARSE EN LAS ACTIVIDADES VARIAS DE LOS DIFERENTES DEPARTAMENTOS DE ESTE H. AYUNTAMIENTO. | K166: 560.05 | L166: 20/02/2024 | M166: 7520
A167: 162 | B167: JOSE DE JESUS BERNARDINO RAMOS | C167: BERJ671219FZ4 | D167: RAMON CORONA NO.150-A | E167: TAMAZULA DE GORDIANO JALISCO | F167: 49650 | G167: 111 | H167: 401 | I167: 99 | J167: HPM.- MATERIAL NECESARIO PARA UTILIZARSE EN LAS ACTIVIDADES VARIAS DE LOS DIFERENTES DEPARTAMENTOS DE ESTE H. AYUNTAMIENTO. | K167: 844.00 | L167: 20/02/2024 | M167: 7521
A168: 163 | B168: JOSE DE JESUS BERNARDINO RAMOS | C168: BERJ671219FZ4 | D168: RAMON CORONA NO.150-A | E168: TAMAZULA DE GORDIANO JALISCO | F168: 49650 | G168: 111 | H168: 401 | I168: 99 | J168: HPM.- MATERIAL NECESARIO PARA UTILIZARSE EN EL MANTENIMIENTO DE LOS MACHUELOS Y COJONES DE LOS ESTACIONOMETROS DEL DEPARTAMENTO DE ESTACIONOMETROS DE ESTE H. AYUNTAMIENTO. | K168: 35,350.07 | L168: 07/02/2024 | M168: 7481
A169: 164 | B169: JOSE DE JESUS BERNARDINO RAMOS | C169: BERJ671219FZ4 | D169: RAMON CORONA NO.150-A | E169: TAMAZULA DE GORDIANO JALISCO | F169: 49650 | G169: 111 | H169: 401 | I169: 99 | J169: HPM.- MATERIAL NECESARIO PARA UTILIZARSE EN LA PINTADA DE LOS ESPACIOS EXCLUSIVOS NUEVOS DEL DEPARTAMENTO DE REGLAMENTOS. | K169: 11,262.03 | L169: 07/02/2024 | M169: 7482
A170: 165 | B170: JOSE GUADALUPE CARDENAS PEREZ | C170: CAPG750312BC0 | D170: CARR. A STA ROSA KM.2.5 | E170: TAMAZULA DE GORDIANO JALISCO | F170: 49650 | G170: 111 | H170: 401 | I170: 99 | J170: HPM.- SERVICIO DE MANTENIMIENTO DE LOS VEHICULOS DE LOS DIFERENTES DEPARTAMENTOS DE ESTE H. AYUNTAMIENTO. | K170: 1,721.25 | L170: 28/02/2024 | M170: 0DEA0
A171: 166 | B171: JOSE GUADALUPE CARDENAS PEREZ | C171: CAPG750312BC0 | D171: CARR. A STA ROSA KM.2.5 | E171: TAMAZULA DE GORDIANO JALISCO | F171: 49650 | G171: 111 | H171: 401 | I171: 99 | J171: HPM.- SERVICIO DE MANTENIMIENTO DE LOS VEHICULOS DE LOS DIFERENTES DEPARTAMENTOS DE ESTE H. AYUNTAMIENTO. | K171: 5,163.75 | L171: 28/02/2024 | M171: 11C89
A172: 167 | B172: JOSE GUADALUPE CARDENAS PEREZ | C172: CAPG750312BC0 | D172: CARR. A STA ROSA KM.2.5 | E172: TAMAZULA DE GORDIANO JALISCO | F172: 49650 | G172: 111 | H172: 401 | I172: 99 | J172: HPM.- SERVICIO DE MANTENIMIENTO DE LOS VEHICULOS DE LOS DIFERENTES DEPARTAMENTOS DE ESTE H. AYUNTAMIENTO. | K172: 4,245.75 | L172: 28/02/2024 | M172: 378A4
A173: 168 | B173: JOSE GUADALUPE CARDENAS PEREZ | C173: CAPG750312BC0 | D173: CARR. A STA ROSA KM.2.5 | E173: TAMAZULA DE GORDIANO JALISCO | F173: 49650 | G173: 252 | H173: 502 | I173: 99 | J173: (E.F.) PAGO DE REPARACION DE BASTIDOR FRONTAL Y BASE DE CHAPA DE COFRE PARA UNIDAD NO.3 DEL DEPARTAMENTO DE SEGURIDAD PUBLICA. | K173: 1,377.00 | L173: 28/02/2024 | M173: 435D6
A174: 169 | B174: JOSE GUADALUPE CARDENAS PEREZ | C174: CAPG750312BC0 | D174: CARR. A STA ROSA KM.2.5 | E174: TAMAZULA DE GORDIANO JALISCO | F174: 49650 | G174: 111 | H174: 401 | I174: 99 | J174: HPM.- SERVICIO DE MANTENIMIENTO DE LOS VEHICULOS DE LOS DIFERENTES DEPARTAMENTOS DE ESTE H. AYUNTAMIENTO. | K174: 1,377.00 | L174: 28/02/2024 | M174: 608AA
A175: 170 | B175: JOSE GUADALUPE CARDENAS PEREZ | C175: CAPG750312BC0 | D175: CARR. A STA ROSA KM.2.5 | E175: TAMAZULA DE GORDIANO JALISCO | F175: 49650 | G175: 111 | H175: 401 | I175: 99 | J175: HPM.- SERVICIO DE MANTENIMIENTO DE LOS VEHICULOS DE LOS DIFERENTES DEPARTAMENTOS DE ESTE H. AYUNTAMIENTO. | K175: 6,081.75 | L175: 28/02/2024 | M175: 85DD6
A176: 171 | B176: JOSE GUADALUPE CARDENAS PEREZ | C176: CAPG750312BC0 | D176: CARR. A STA ROSA KM.2.5 | E176: TAMAZULA DE GORDIANO JALISCO | F176: 49650 | G176: 111 | H176: 401 | I176: 99 | J176: HPM.- SERVICIO DE MANTENIMIENTO DE LOS VEHICULOS DE LOS DIFERENTES DEPARTAMENTOS DE ESTE H. AYUNTAMIENTO. | K176: 2,754.00 | L176: 28/02/2024 | M176: 9BF7B
A177: 172 | B177: JOSE GUADALUPE CARDENAS PEREZ | C177: CAPG750312BC0 | D177: CARR. A STA ROSA KM.2.5 | E177: TAMAZULA DE GORDIANO JALISCO | F177: 49650 | G177: 111 | H177: 401 | I177: 99 | J177: HPM.- SERVICIO DE MANTENIMIENTO DE LOS VEHICULOS DE LOS DIFERENTES DEPARTAMENTOS DE ESTE H. AYUNTAMIENTO. | K177: 2,065.50 | L177: 28/02/2024 | M177: 9D183
A178: 173 | B178: JOSE GUADALUPE CARDENAS PEREZ | C178: CAPG750312BC0 | D178: CARR. A STA ROSA KM.2.5 | E178: TAMAZULA DE GORDIANO JALISCO | F178: 49650 | G178: 111 | H178: 401 | I178: 99 | J178: HPM.- SERVICIO DE MANTENIMIENTO DE LOS VEHICULOS DE LOS DIFERENTES DEPARTAMENTOS DE ESTE H. AYUNTAMIENTO. | K178: 1,377.00 | L178: 28/02/2024 | M178: B2013
A179: 174 | B179: JOSE GUADALUPE CARDENAS PEREZ | C179: CAPG750312BC0 | D179: CARR. A STA ROSA KM.2.5 | E179: TAMAZULA DE GORDIANO JALISCO | F179: 49650 | G179: 111 | H179: 401 | I179: 99 | J179: HPM.- SERVICIO DE MANTENIMIENTO DE LOS VEHICULOS DE LOS DIFERENTES DEPARTAMENTOS DE ESTE H. AYUNTAMIENTO. | K179: 1,491.75 | L179: 28/02/2024 | M179: FC12F
A180: 175 | B180: JOSE GUADALUPE CARDENAS PEREZ | C180: CAPG750312BC0 | D180: CARR. A STA ROSA KM.2.5 | E180: TAMAZULA DE GORDIANO JALISCO | F180: 49650 | G180: 111 | H180: 401 | I180: 99 | J180: HPM.- SERVICIO DE MANTENIMIENTO DE LOS VEHICULOS NO. 46 Y 86 DEL DEPARTAMENTO DE ASEO PUBLICO DE ESTE H. AYUNTAMIENTO. | K180: 11,245.50 | L180: 14/02/2024 | M180: 136B4
A181: 176 | B181: JOSE GUADALUPE CARDENAS PEREZ | C181: CAPG750312BC0 | D181: CARR. A STA ROSA KM.2.5 | E181: TAMAZULA DE GORDIANO JALISCO | F181: 49650 | G181: 252 | H181: 502 | I181: 99 | J181: (E.F.) PAGO DE LA MANO DE OBRA PARA LA REPARACION DE LA SUSPENCION DE LA PIPA MORADA NO. 47 DEL MODULO DE MAQUINARIA QUE SE ENCUENTRA REHABILITANDO BRECHAS Y CAMINOS EN ZONA RURAL EN EL MUNICIPIO. | K181: 4,360.50 | L181: 06/02/2024 | M181: 04314
A182: 177 | B182: JUAN JOSE CAMACHO GUERRERO | C182: CAGJ4606261S1 | D182: HIDALGO PTE. No. 41 COL. CENTRO | E182: TAMAZULA DE GORDIANO JALISCO | F182: 49650 | G182: 252 | H182: 502 | I182: 99 | J182: (E.F.) DIRECTORIO, 4 CAJAS DE ARCHIVO MUERTO, CLIP, 4 LEFORT, PARA UTILIZAR EN EL DEPARTAMENTO DE TRANSITO, MOVILIDAD Y TRANSPORTE. | K182: 482.00 | L182: 27/02/2024 | M182: 12860
A183: 178 | B183: JUAN JOSE CAMACHO GUERRERO | C183: CAGJ4606261S1 | D183: HIDALGO PTE. No. 41 COL. CENTRO | E183: TAMAZULA DE GORDIANO JALISCO | F183: 49650 | G183: 111 | H183: 401 | I183: 99 | J183: HPM.- SERVICIO DE IMPRESION DE HOJA MEMBRETADA, PAPELERIA Y SERVICIO DE FLETE. | K183: 19.00 | L183: 27/02/2024 | M183: 12861
A184: 179 | B184: JUAN JOSE CAMACHO GUERRERO | C184: CAGJ4606261S1 | D184: HIDALGO PTE. No. 41 COL. CENTRO | E184: TAMAZULA DE GORDIANO JALISCO | F184: 49650 | G184: 111 | H184: 401 | I184: 99 | J184: HPM.- SERVICIO DE IMPRESION DE HOJA MEMBRETADA, PAPELERIA Y SERVICIO DE FLETE. | K184: 300.00 | L184: 27/02/2024 | M184: 12862
A185: 180 | B185: JUAN JOSE CAMACHO GUERRERO | C185: CAGJ4606261S1 | D185: HIDALGO PTE. No. 41 COL. CENTRO | E185: TAMAZULA DE GORDIANO JALISCO | F185: 49650 | G185: 111 | H185: 401 | I185: 99 | J185: HPM.- SERVICIO DE IMPRESION DE HOJA MEMBRETADA, PAPELERIA Y SERVICIO DE FLETE. | K185: 24,186.00 | L185: 27/02/2024 | M185: 12863
A186: 181 | B186: JUAN JOSE CAMACHO GUERRERO | C186: CAGJ4606261S1 | D186: HIDALGO PTE. No. 41 COL. CENTRO | E186: TAMAZULA DE GORDIANO JALISCO | F186: 49650 | G186: 111 | H186: 401 | I186: 99 | J186: HPM.- ADQUISICION DE SELLO AUTOMATICO PARA UTILIZARSE EN LAS ACTIVIDADES VARIAS DEL DESPACHO JURIDICO DE ESTE H. AYUNTAMIENTO. | K186: 438.00 | L186: 20/02/2024 | M186: 12827
A187: 182 | B187: JUAN JOSE CAMACHO GUERRERO | C187: CAGJ4606261S1 | D187: HIDALGO PTE. No. 41 COL. CENTRO | E187: TAMAZULA DE GORDIANO JALISCO | F187: 49650 | G187: 252 | H187: 502 | I187: 99 | J187: (E.F.) DIRECTORIO, 4 CAJAS DE ARCHIVO MUERTO, CLIP, 4 LEFORT, PARA UTILIZAR EN EL DEPARTAMENTO DE TRANSITO, MOVILIDAD Y TRANSPORTE. | K187: 228.00 | L187: 13/02/2024 | M187: 12798
A188: 183 | B188: JUAN JOSE CAMACHO GUERRERO | C188: CAGJ4606261S1 | D188: HIDALGO PTE. No. 41 COL. CENTRO | E188: TAMAZULA DE GORDIANO JALISCO | F188: 49650 | G188: 115 | H188: 401 | I188: 99 | J188: D.C.- ADQUISICION DE SELLO CON LEYENDA "DELEGACION MUNCIPAL, CONTLA MPIO. TAMAZULA DE G. JAL." MARCA DESKMATE, MODELO KL-03040, COLOR NEGRO PARA USO DE LA OFICINA DE LA DELEGACION DE CONTLA, SEGUN FACTURA NO. 12799 ADJUNTA. | K188: 438.00 | L188: 13/02/2024 | M188: 12799
A189: 184 | B189: JUAN JOSE CAMACHO GUERRERO | C189: CAGJ4606261S1 | D189: HIDALGO PTE. No. 41 COL. CENTRO | E189: TAMAZULA DE GORDIANO JALISCO | F189: 49650 | G189: 252 | H189: 502 | I189: 99 | J189: (E.F.) DIRECTORIO, 4 CAJAS DE ARCHIVO MUERTO, CLIP, 4 LEFORT, PARA UTILIZAR EN EL DEPARTAMENTO DE TRANSITO, MOVILIDAD Y TRANSPORTE. | K189: 588.00 | L189: 07/02/2024 | M189: 12766
A190: 185 | B190: JUAN JOSE CAMACHO GUERRERO | C190: CAGJ4606261S1 | D190: HIDALGO PTE. No. 41 COL. CENTRO | E190: TAMAZULA DE GORDIANO JALISCO | F190: 49650 | G190: 111 | H190: 401 | I190: 99 | J190: HPM.- ADQUISICION DE PAPELERIA PARA UTILIZARSE EN EL DEPARTAMENTO DE EGRESOS DE ESTE H. AYUNTAMIENTO. | K190: 402.00 | L190: 07/02/2024 | M190: 12767
A191: 186 | B191: MARCO ANTONIO GONZALEZ VILLALOBOS | C191: GOVM660509SU0 | D191: JOSE MA. MARTINEZ 1582 | E191: TAMAZULA DE GORDIANO JALISCO | F191: 49650 | G191: 111 | H191: 401 | I191: 99 | J191: HPM.- SERVICIO DE MANTENIMIENTO DE LOS VEHICULOS DE LOS DEPARTAMENTOS DE ASEO PUBLICO Y TRANSPORTE ESCOLAR DE ESTE H. AYUNTAMIENTO. | K191: 180.00 | L191: 13/02/2024 | M191: 3951
A192: 187 | B192: MARCO ANTONIO GONZALEZ VILLALOBOS | C192: GOVM660509SU0 | D192: JOSE MA. MARTINEZ 1582 | E192: TAMAZULA DE GORDIANO JALISCO | F192: 49650 | G192: 111 | H192: 401 | I192: 99 | J192: HPM.- SERVICIO DE MANTENIMIENTO DE LOS VEHICULOS DE LOS DEPARTAMENTOS DE ASEO PUBLICO Y TRANSPORTE ESCOLAR DE ESTE H. AYUNTAMIENTO. | K192: 986.00 | L192: 13/02/2024 | M192: 3952
A193: 188 | B193: MARCO ANTONIO GONZALEZ VILLALOBOS | C193: GOVM660509SU0 | D193: JOSE MA. MARTINEZ 1582 | E193: TAMAZULA DE GORDIANO JALISCO | F193: 49650 | G193: 111 | H193: 401 | I193: 99 | J193: HPM.- SERVICIO DE MANTENIMIENTO DE LOS VEHICULOS DE LOS DEPARTAMENTOS DE ASEO PUBLICO Y TRANSPORTE ESCOLAR DE ESTE H. AYUNTAMIENTO. | K193: 810.00 | L193: 13/02/2024 | M193: 3953
A194: 189 | B194: MARCO ANTONIO GONZALEZ VILLALOBOS | C194: GOVM660509SU0 | D194: JOSE MA. MARTINEZ 1582 | E194: TAMAZULA DE GORDIANO JALISCO | F194: 49650 | G194: 111 | H194: 401 | I194: 99 | J194: HPM.- SERVICIO DE MANTENIMIENTO DE LOS VEHICULOS DE LOS DEPARTAMENTOS DE ASEO PUBLICO Y TRANSPORTE ESCOLAR DE ESTE H. AYUNTAMIENTO. | K194: 348.00 | L194: 13/02/2024 | M194: 3954
A195: 190 | B195: MARIA DEL SAGRARIO TORRES OCHOA | C195: TOOS5105215F0 | D195: CARR STA. ROSA KM. 4.4 S/N COL. TAMAZULA | E195: TAMAZULA DE GORDIANO JALISCO | F195: 49650 | G195: 111 | H195: 401 | I195: 99 | J195: HPM.- MATERIAL NECESARIO PARA UTILIZARSE PARA LAS DIFERENTES REPARACIONES DE LAS DIFERENTES LOCALIDADES DE ESTE MUNICIPIO. | K195: 2,382.00 | L195: 15/02/2024 | M195: 4651
A196: 191 | B196: MARIA DEL SAGRARIO TORRES OCHOA | C196: TOOS5105215F0 | D196: CARR STA. ROSA KM. 4.4 S/N COL. TAMAZULA | E196: TAMAZULA DE GORDIANO JALISCO | F196: 49650 | G196: 111 | H196: 401 | I196: 99 | J196: HPM.- MATERIAL NECESARIO PARA UTILIZARSE PARA LAS DIFERENTES REPARACIONES DE LAS DIFERENTES LOCALIDADES DE ESTE MUNICIPIO. | K196: 2,340.01 | L196: 15/02/2024 | M196: 4652
A197: 192 | B197: MARIA DEL SAGRARIO TORRES OCHOA | C197: TOOS5105215F0 | D197: CARR STA. ROSA KM. 4.4 S/N COL. TAMAZULA | E197: TAMAZULA DE GORDIANO JALISCO | F197: 49650 | G197: 111 | H197: 401 | I197: 99 | J197: HPM.- MATERIAL NECESARIO PARA UTILIZARSE PARA LAS DIFERENTES REPARACIONES DE LAS DIFERENTES LOCALIDADES DE ESTE MUNICIPIO. | K197: 2,035.99 | L197: 15/02/2024 | M197: 4653
A198: 193 | B198: MARICELA MADRIGAL VARGAS | C198: MAVM7006179G8 | D198: AVE.JOSE MARIA MARTINEZ NO.1270 COL. | E198: TAMAZULA DE GORDIANO JALISCO | F198: 49650 | G198: 111 | H198: 401 | I198: 99 | J198: HPM.- REFACCIONES, ACEITE Y ADITIVOS PARA LOS VEHICULOS DE LOS DIFERENTES DEPARTAMENTOS DE ESTE H. AYUNTAMIENTO. | K198: 493.44 | L198: 14/02/2024 | M198: 16722
A199: 194 | B199: MARICELA MADRIGAL VARGAS | C199: MAVM7006179G8 | D199: AVE.JOSE MARIA MARTINEZ NO.1270 COL. | E199: TAMAZULA DE GORDIANO JALISCO | F199: 49650 | G199: 111 | H199: 401 | I199: 99 | J199: HPM.- REFACCIONES, ACEITE Y ADITIVOS PARA LOS VEHICULOS DE LOS DIFERENTES DEPARTAMENTOS DE ESTE H. AYUNTAMIENTO. | K199: 2,592.00 | L199: 14/02/2024 | M199: 16723
A200: 195 | B200: MARICELA MADRIGAL VARGAS | C200: MAVM7006179G8 | D200: AVE.JOSE MARIA MARTINEZ NO.1270 COL. | E200: TAMAZULA DE GORDIANO JALISCO | F200: 49650 | G200: 111 | H200: 401 | I200: 99 | J200: HPM.- REFACCIONES, ACEITE Y ADITIVOS PARA LOS VEHICULOS DE LOS DIFERENTES DEPARTAMENTOS DE ESTE H. AYUNTAMIENTO. | K200: 1,085.00 | L200: 14/02/2024 | M200: 16724
... 386 more rows

Sheet F11
A1: =Validacion!A2 -> Tamazula de Gordiano
A2: INFORME SOBRE PASIVOS CONTINGENTES
A3: ='F1'!B3 -> Al 29 de Febrero de 2024
A4: (Cifras en pesos)
A5: DESCRIPCIÓN | AE5: IMPORTE
A6: NO EXISTEN PASIVOS CONTINGENTES PARA ESTE PERIODO.
A207: Bajo protesta de decir verdad declaramos que los Estados Financieros y sus Notas son razonablemente correctos y resposabilidad del emisor
B210: =Validacion!A7 -> ING. RAÚL EVERARDO GUTIÉRREZ CASTAÑEDA | W210: =Validacion!A9 -> MTRO. ARNOLDO SOLÓRZANO CUEVAS
B212: Presidente Municipal o Titular del ente público | W212: Encargado de la Hacienda Municipal o Responsable de las finanzas del ente público

Sheet F13 (hidden)
A1: ='F9-EDP'!A1:BJ1 -> Tamazula de Gordiano
A2: AVANCE DE PROGRAMAS Y/O PROCESOS CONCLUIDOS
A3: ='F9-EDP'!A3:BJ3 -> Del 1° de Enero al 29 de Febrero de 2024
A4: (Cifras en pesos)
A5: ID | B5: Denominación del programa | C5: Tipo de programa | D5: Finalidad | E5: Función | F5: Sub-función | G5: Nivel MIR | H5: Código del nivel MIR | I5: Resumen Narrativo (objetivos) | J5: Nombre del indicador | K5: Método de cálculo del indicador | L5: Valor meta programado 1 (Numerador) | M5: Valor meta programado 2 (Denominador) | N5: Frecuencia de medición del indicador | O5: Tipo de indicador | P5: Capítulo 1000 (Modificado) | Q5: Capítulo 2000 (Modificado) | R5: Capítulo 3000 (Modificado) | S5: Capítulo 4000 (Modificado) | T5: Capítulo 5000 (Modificado) | U5: Capítulo 6000 (Modificado) | V5: Capítulo 7000 (Modificado) | W5: Capítulo 8000 (Modificado) | X5: Capítulo 9000 (Modificado) | Y5: Avance del Valor programado 1 (Numerador) | Z5: Avance del Valor programado 2 (Denominador) | AA5: Avance del Capítulo 1000 (Devengado) | AB5: Avance del Capítulo 2000 (Devengado) | AC5: Avance del Capítulo 3000 (Devengado) | AD5: Avance del Capítulo 4000 (Devengado) | AE5: Avance del Capítulo 5000 (Devengado) | AF5: Avance del Capítulo 6000 (Devengado) | AG5: Avance del Capítulo 7000 (Devengado) | AH5: Avance del Capítulo 8000 (Devengado) | AI5: Avance del Capítulo 9000 (Devengado)
P6: =SUM(P7:P1006) -> 0.00 | Q6: 0.00 | R6: 0.00 | S6: 0.00 | T6: 0.00 | U6: 0.00 | V6: 0.00 | W6: 0.00 | X6: 0.00 | AA6: =SUM(AA7:AA1006) -> 0.00 | AB6: 0.00 | AC6: 0.00 | AD6: 0.00 | AE6: 0.00 | AF6: 0.00 | AG6: 0.00 | AH6: 0.00 | AI6: 0.00
A7: =IF(B7>0,1,"") ->  | D7: =IF(F7="","",INDEX(EF!$A$2:$A$112,MATCH(F7,EF!$C$2:$C$112,0))) ->  | E7: =IF(F7="","",INDEX(EF!$B$2:$B$112,MATCH(F7,EF!$C$2:$C$112,0))) -> 
A8: =IF(B8>0,A7+1,"") ->  | D8: =IF(F8="","",INDEX(EF!$A$2:$A$112,MATCH(F8,EF!$C$2:$C$112,0))) ->  | E8: =IF(F8="","",INDEX(EF!$B$2:$B$112,MATCH(F8,EF!$C$2:$C$112,0))) -> 
A9: =IF(B9>0,A8+1,"") ->  | D9: =IF(F9="","",INDEX(EF!$A$2:$A$112,MATCH(F9,EF!$C$2:$C$112,0))) ->  | E9: =IF(F9="","",INDEX(EF!$B$2:$B$112,MATCH(F9,EF!$C$2:$C$112,0))) -> 
D10: =IF(F10="","",INDEX(EF!$A$2:$A$112,MATCH(F10,EF!$C$2:$C$112,0))) ->  | E10: =IF(F10="","",INDEX(EF!$B$2:$B$112,MATCH(F10,EF!$C$2:$C$112,0))) -> 
D11: =IF(F11="","",INDEX(EF!$A$2:$A$112,MATCH(F11,EF!$C$2:$C$112,0))) ->  | E11: =IF(F11="","",INDEX(EF!$B$2:$B$112,MATCH(F11,EF!$C$2:$C$112,0))) -> 
D12: =IF(F12="","",INDEX(EF!$A$2:$A$112,MATCH(F12,EF!$C$2:$C$112,0))) ->  | E12: =IF(F12="","",INDEX(EF!$B$2:$B$112,MATCH(F12,EF!$C$2:$C$112,0))) -> 
D13: =IF(F13="","",INDEX(EF!$A$2:$A$112,MATCH(F13,EF!$C$2:$C$112,0))) ->  | E13: =IF(F13="","",INDEX(EF!$B$2:$B$112,MATCH(F13,EF!$C$2:$C$112,0))) -> 
D14: =IF(F14="","",INDEX(EF!$A$2:$A$112,MATCH(F14,EF!$C$2:$C$112,0))) ->  | E14: =IF(F14="","",INDEX(EF!$B$2:$B$112,MATCH(F14,EF!$C$2:$C$112,0))) -> 
D15: =IF(F15="","",INDEX(EF!$A$2:$A$112,MATCH(F15,EF!$C$2:$C$112,0))) ->  | E15: =IF(F15="","",INDEX(EF!$B$2:$B$112,MATCH(F15,EF!$C$2:$C$112,0))) -> 
D16: =IF(F16="","",INDEX(EF!$A$2:$A$112,MATCH(F16,EF!$C$2:$C$112,0))) ->  | E16: =IF(F16="","",INDEX(EF!$B$2:$B$112,MATCH(F16,EF!$C$2:$C$112,0))) -> 
D17: =IF(F17="","",INDEX(EF!$A$2:$A$112,MATCH(F17,EF!$C$2:$C$112,0))) ->  | E17: =IF(F17="","",INDEX(EF!$B$2:$B$112,MATCH(F17,EF!$C$2:$C$112,0))) -> 
D18: =IF(F18="","",INDEX(EF!$A$2:$A$112,MATCH(F18,EF!$C$2:$C$112,0))) ->  | E18: =IF(F18="","",INDEX(EF!$B$2:$B$112,MATCH(F18,EF!$C$2:$C$112,0))) -> 
D19: =IF(F19="","",INDEX(EF!$A$2:$A$112,MATCH(F19,EF!$C$2:$C$112,0))) ->  | E19: =IF(F19="","",INDEX(EF!$B$2:$B$112,MATCH(F19,EF!$C$2:$C$112,0))) -> 
D20: =IF(F20="","",INDEX(EF!$A$2:$A$112,MATCH(F20,EF!$C$2:$C$112,0))) ->  | E20: =IF(F20="","",INDEX(EF!$B$2:$B$112,MATCH(F20,EF!$C$2:$C$112,0))) -> 
D21: =IF(F21="","",INDEX(EF!$A$2:$A$112,MATCH(F21,EF!$C$2:$C$112,0))) ->  | E21: =IF(F21="","",INDEX(EF!$B$2:$B$112,MATCH(F21,EF!$C$2:$C$112,0))) -> 
D22: =IF(F22="","",INDEX(EF!$A$2:$A$112,MATCH(F22,EF!$C$2:$C$112,0))) ->  | E22: =IF(F22="","",INDEX(EF!$B$2:$B$112,MATCH(F22,EF!$C$2:$C$112,0))) -> 
D23: =IF(F23="","",INDEX(EF!$A$2:$A$112,MATCH(F23,EF!$C$2:$C$112,0))) ->  | E23: =IF(F23="","",INDEX(EF!$B$2:$B$112,MATCH(F23,EF!$C$2:$C$112,0))) -> 
D24: =IF(F24="","",INDEX(EF!$A$2:$A$112,MATCH(F24,EF!$C$2:$C$112,0))) ->  | E24: =IF(F24="","",INDEX(EF!$B$2:$B$112,MATCH(F24,EF!$C$2:$C$112,0))) -> 
D25: =IF(F25="","",INDEX(EF!$A$2:$A$112,MATCH(F25,EF!$C$2:$C$112,0))) ->  | E25: =IF(F25="","",INDEX(EF!$B$2:$B$112,MATCH(F25,EF!$C$2:$C$112,0))) -> 
D26: =IF(F26="","",INDEX(EF!$A$2:$A$112,MATCH(F26,EF!$C$2:$C$112,0))) ->  | E26: =IF(F26="","",INDEX(EF!$B$2:$B$112,MATCH(F26,EF!$C$2:$C$112,0))) -> 
D27: =IF(F27="","",INDEX(EF!$A$2:$A$112,MATCH(F27,EF!$C$2:$C$112,0))) ->  | E27: =IF(F27="","",INDEX(EF!$B$2:$B$112,MATCH(F27,EF!$C$2:$C$112,0))) -> 
D28: =IF(F28="","",INDEX(EF!$A$2:$A$112,MATCH(F28,EF!$C$2:$C$112,0))) ->  | E28: =IF(F28="","",INDEX(EF!$B$2:$B$112,MATCH(F28,EF!$C$2:$C$112,0))) -> 
D29: =IF(F29="","",INDEX(EF!$A$2:$A$112,MATCH(F29,EF!$C$2:$C$112,0))) ->  | E29: =IF(F29="","",INDEX(EF!$B$2:$B$112,MATCH(F29,EF!$C$2:$C$112,0))) -> 
D30: =IF(F30="","",INDEX(EF!$A$2:$A$112,MATCH(F30,EF!$C$2:$C$112,0))) ->  | E30: =IF(F30="","",INDEX(EF!$B$2:$B$112,MATCH(F30,EF!$C$2:$C$112,0))) -> 
D31: =IF(F31="","",INDEX(EF!$A$2:$A$112,MATCH(F31,EF!$C$2:$C$112,0))) ->  | E31: =IF(F31="","",INDEX(EF!$B$2:$B$112,MATCH(F31,EF!$C$2:$C$112,0))) -> 
D32: =IF(F32="","",INDEX(EF!$A$2:$A$112,MATCH(F32,EF!$C$2:$C$112,0))) ->  | E32: =IF(F32="","",INDEX(EF!$B$2:$B$112,MATCH(F32,EF!$C$2:$C$112,0))) -> 
D33: =IF(F33="","",INDEX(EF!$A$2:$A$112,MATCH(F33,EF!$C$2:$C$112,0))) ->  | E33: =IF(F33="","",INDEX(EF!$B$2:$B$112,MATCH(F33,EF!$C$2:$C$112,0))) -> 
D34: =IF(F34="","",INDEX(EF!$A$2:$A$112,MATCH(F34,EF!$C$2:$C$112,0))) ->  | E34: =IF(F34="","",INDEX(EF!$B$2:$B$112,MATCH(F34,EF!$C$2:$C$112,0))) -> 
D35: =IF(F35="","",INDEX(EF!$A$2:$A$112,MATCH(F35,EF!$C$2:$C$112,0))) ->  | E35: =IF(F35="","",INDEX(EF!$B$2:$B$112,MATCH(F35,EF!$C$2:$C$112,0))) -> 
D36: =IF(F36="","",INDEX(EF!$A$2:$A$112,MATCH(F36,EF!$C$2:$C$112,0))) ->  | E36: =IF(F36="","",INDEX(EF!$B$2:$B$112,MATCH(F36,EF!$C$2:$C$112,0))) -> 
D37: =IF(F37="","",INDEX(EF!$A$2:$A$112,MATCH(F37,EF!$C$2:$C$112,0))) ->  | E37: =IF(F37="","",INDEX(EF!$B$2:$B$112,MATCH(F37,EF!$C$2:$C$112,0))) -> 
D38: =IF(F38="","",INDEX(EF!$A$2:$A$112,MATCH(F38,EF!$C$2:$C$112,0))) ->  | E38: =IF(F38="","",INDEX(EF!$B$2:$B$112,MATCH(F38,EF!$C$2:$C$112,0))) -> 
D39: =IF(F39="","",INDEX(EF!$A$2:$A$112,MATCH(F39,EF!$C$2:$C$112,0))) ->  | E39: =IF(F39="","",INDEX(EF!$B$2:$B$112,MATCH(F39,EF!$C$2:$C$112,0))) -> 
D40: =IF(F40="","",INDEX(EF!$A$2:$A$112,MATCH(F40,EF!$C$2:$C$112,0))) ->  | E40: =IF(F40="","",INDEX(EF!$B$2:$B$112,MATCH(F40,EF!$C$2:$C$112,0))) -> 
D41: =IF(F41="","",INDEX(EF!$A$2:$A$112,MATCH(F41,EF!$C$2:$C$112,0))) ->  | E41: =IF(F41="","",INDEX(EF!$B$2:$B$112,MATCH(F41,EF!$C$2:$C$112,0))) -> 
D42: =IF(F42="","",INDEX(EF!$A$2:$A$112,MATCH(F42,EF!$C$2:$C$112,0))) ->  | E42: =IF(F42="","",INDEX(EF!$B$2:$B$112,MATCH(F42,EF!$C$2:$C$112,0))) -> 
D43: =IF(F43="","",INDEX(EF!$A$2:$A$112,MATCH(F43,EF!$C$2:$C$112,0))) ->  | E43: =IF(F43="","",INDEX(EF!$B$2:$B$112,MATCH(F43,EF!$C$2:$C$112,0))) -> 
D44: =IF(F44="","",INDEX(EF!$A$2:$A$112,MATCH(F44,EF!$C$2:$C$112,0))) ->  | E44: =IF(F44="","",INDEX(EF!$B$2:$B$112,MATCH(F44,EF!$C$2:$C$112,0))) -> 
D45: =IF(F45="","",INDEX(EF!$A$2:$A$112,MATCH(F45,EF!$C$2:$C$112,0))) ->  | E45: =IF(F45="","",INDEX(EF!$B$2:$B$112,MATCH(F45,EF!$C$2:$C$112,0))) -> 
D46: =IF(F46="","",INDEX(EF!$A$2:$A$112,MATCH(F46,EF!$C$2:$C$112,0))) ->  | E46: =IF(F46="","",INDEX(EF!$B$2:$B$112,MATCH(F46,EF!$C$2:$C$112,0))) -> 
D47: =IF(F47="","",INDEX(EF!$A$2:$A$112,MATCH(F47,EF!$C$2:$C$112,0))) ->  | E47: =IF(F47="","",INDEX(EF!$B$2:$B$112,MATCH(F47,EF!$C$2:$C$112,0))) -> 
D48: =IF(F48="","",INDEX(EF!$A$2:$A$112,MATCH(F48,EF!$C$2:$C$112,0))) ->  | E48: =IF(F48="","",INDEX(EF!$B$2:$B$112,MATCH(F48,EF!$C$2:$C$112,0))) -> 
D49: =IF(F49="","",INDEX(EF!$A$2:$A$112,MATCH(F49,EF!$C$2:$C$112,0))) ->  | E49: =IF(F49="","",INDEX(EF!$B$2:$B$112,MATCH(F49,EF!$C$2:$C$112,0))) -> 
D50: =IF(F50="","",INDEX(EF!$A$2:$A$112,MATCH(F50,EF!$C$2:$C$112,0))) ->  | E50: =IF(F50="","",INDEX(EF!$B$2:$B$112,MATCH(F50,EF!$C$2:$C$112,0))) -> 
D51: =IF(F51="","",INDEX(EF!$A$2:$A$112,MATCH(F51,EF!$C$2:$C$112,0))) ->  | E51: =IF(F51="","",INDEX(EF!$B$2:$B$112,MATCH(F51,EF!$C$2:$C$112,0))) -> 
D52: =IF(F52="","",INDEX(EF!$A$2:$A$112,MATCH(F52,EF!$C$2:$C$112,0))) ->  | E52: =IF(F52="","",INDEX(EF!$B$2:$B$112,MATCH(F52,EF!$C$2:$C$112,0))) -> 
D53: =IF(F53="","",INDEX(EF!$A$2:$A$112,MATCH(F53,EF!$C$2:$C$112,0))) ->  | E53: =IF(F53="","",INDEX(EF!$B$2:$B$112,MATCH(F53,EF!$C$2:$C$112,0))) -> 
D54: =IF(F54="","",INDEX(EF!$A$2:$A$112,MATCH(F54,EF!$C$2:$C$112,0))) ->  | E54: =IF(F54="","",INDEX(EF!$B$2:$B$112,MATCH(F54,EF!$C$2:$C$112,0))) -> 
D55: =IF(F55="","",INDEX(EF!$A$2:$A$112,MATCH(F55,EF!$C$2:$C$112,0))) ->  | E55: =IF(F55="","",INDEX(EF!$B$2:$B$112,MATCH(F55,EF!$C$2:$C$112,0))) -> 
D56: =IF(F56="","",INDEX(EF!$A$2:$A$112,MATCH(F56,EF!$C$2:$C$112,0))) ->  | E56: =IF(F56="","",INDEX(EF!$B$2:$B$112,MATCH(F56,EF!$C$2:$C$112,0))) -> 
D57: =IF(F57="","",INDEX(EF!$A$2:$A$112,MATCH(F57,EF!$C$2:$C$112,0))) ->  | E57: =IF(F57="","",INDEX(EF!$B$2:$B$112,MATCH(F57,EF!$C$2:$C$112,0))) -> 
D58: =IF(F58="","",INDEX(EF!$A$2:$A$112,MATCH(F58,EF!$C$2:$C$112,0))) ->  | E58: =IF(F58="","",INDEX(EF!$B$2:$B$112,MATCH(F58,EF!$C$2:$C$112,0))) -> 
D59: =IF(F59="","",INDEX(EF!$A$2:$A$112,MATCH(F59,EF!$C$2:$C$112,0))) ->  | E59: =IF(F59="","",INDEX(EF!$B$2:$B$112,MATCH(F59,EF!$C$2:$C$112,0))) -> 
D60: =IF(F60="","",INDEX(EF!$A$2:$A$112,MATCH(F60,EF!$C$2:$C$112,0))) ->  | E60: =IF(F60="","",INDEX(EF!$B$2:$B$112,MATCH(F60,EF!$C$2:$C$112,0))) -> 
D61: =IF(F61="","",INDEX(EF!$A$2:$A$112,MATCH(F61,EF!$C$2:$C$112,0))) ->  | E61: =IF(F61="","",INDEX(EF!$B$2:$B$112,MATCH(F61,EF!$C$2:$C$112,0))) -> 
D62: =IF(F62="","",INDEX(EF!$A$2:$A$112,MATCH(F62,EF!$C$2:$C$112,0))) ->  | E62: =IF(F62="","",INDEX(EF!$B$2:$B$112,MATCH(F62,EF!$C$2:$C$112,0))) -> 
D63: =IF(F63="","",INDEX(EF!$A$2:$A$112,MATCH(F63,EF!$C$2:$C$112,0))) ->  | E63: =IF(F63="","",INDEX(EF!$B$2:$B$112,MATCH(F63,EF!$C$2:$C$112,0))) -> 
D64: =IF(F64="","",INDEX(EF!$A$2:$A$112,MATCH(F64,EF!$C$2:$C$112,0))) ->  | E64: =IF(F64="","",INDEX(EF!$B$2:$B$112,MATCH(F64,EF!$C$2:$C$112,0))) -> 
D65: =IF(F65="","",INDEX(EF!$A$2:$A$112,MATCH(F65,EF!$C$2:$C$112,0))) ->  | E65: =IF(F65="","",INDEX(EF!$B$2:$B$112,MATCH(F65,EF!$C$2:$C$112,0))) -> 
D66: =IF(F66="","",INDEX(EF!$A$2:$A$112,MATCH(F66,EF!$C$2:$C$112,0))) ->  | E66: =IF(F66="","",INDEX(EF!$B$2:$B$112,MATCH(F66,EF!$C$2:$C$112,0))) -> 
D67: =IF(F67="","",INDEX(EF!$A$2:$A$112,MATCH(F67,EF!$C$2:$C$112,0))) ->  | E67: =IF(F67="","",INDEX(EF!$B$2:$B$112,MATCH(F67,EF!$C$2:$C$112,0))) -> 
D68: =IF(F68="","",INDEX(EF!$A$2:$A$112,MATCH(F68,EF!$C$2:$C$112,0))) ->  | E68: =IF(F68="","",INDEX(EF!$B$2:$B$112,MATCH(F68,EF!$C$2:$C$112,0))) -> 
D69: =IF(F69="","",INDEX(EF!$A$2:$A$112,MATCH(F69,EF!$C$2:$C$112,0))) ->  | E69: =IF(F69="","",INDEX(EF!$B$2:$B$112,MATCH(F69,EF!$C$2:$C$112,0))) -> 
D70: =IF(F70="","",INDEX(EF!$A$2:$A$112,MATCH(F70,EF!$C$2:$C$112,0))) ->  | E70: =IF(F70="","",INDEX(EF!$B$2:$B$112,MATCH(F70,EF!$C$2:$C$112,0))) -> 
D71: =IF(F71="","",INDEX(EF!$A$2:$A$112,MATCH(F71,EF!$C$2:$C$112,0))) ->  | E71: =IF(F71="","",INDEX(EF!$B$2:$B$112,MATCH(F71,EF!$C$2:$C$112,0))) -> 
D72: =IF(F72="","",INDEX(EF!$A$2:$A$112,MATCH(F72,EF!$C$2:$C$112,0))) ->  | E72: =IF(F72="","",INDEX(EF!$B$2:$B$112,MATCH(F72,EF!$C$2:$C$112,0))) -> 
A73: =IF(B73>0,A72+1,"") ->  | D73: =IF(F73="","",INDEX(EF!$A$2:$A$112,MATCH(F73,EF!$C$2:$C$112,0))) ->  | E73: =IF(F73="","",INDEX(EF!$B$2:$B$112,MATCH(F73,EF!$C$2:$C$112,0))) -> 
D74: =IF(F74="","",INDEX(EF!$A$2:$A$112,MATCH(F74,EF!$C$2:$C$112,0))) ->  | E74: =IF(F74="","",INDEX(EF!$B$2:$B$112,MATCH(F74,EF!$C$2:$C$112,0))) -> 
D75: =IF(F75="","",INDEX(EF!$A$2:$A$112,MATCH(F75,EF!$C$2:$C$112,0))) ->  | E75: =IF(F75="","",INDEX(EF!$B$2:$B$112,MATCH(F75,EF!$C$2:$C$112,0))) -> 
D76: =IF(F76="","",INDEX(EF!$A$2:$A$112,MATCH(F76,EF!$C$2:$C$112,0))) ->  | E76: =IF(F76="","",INDEX(EF!$B$2:$B$112,MATCH(F76,EF!$C$2:$C$112,0))) -> 
D77: =IF(F77="","",INDEX(EF!$A$2:$A$112,MATCH(F77,EF!$C$2:$C$112,0))) ->  | E77: =IF(F77="","",INDEX(EF!$B$2:$B$112,MATCH(F77,EF!$C$2:$C$112,0))) -> 
D78: =IF(F78="","",INDEX(EF!$A$2:$A$112,MATCH(F78,EF!$C$2:$C$112,0))) ->  | E78: =IF(F78="","",INDEX(EF!$B$2:$B$112,MATCH(F78,EF!$C$2:$C$112,0))) -> 
D79: =IF(F79="","",INDEX(EF!$A$2:$A$112,MATCH(F79,EF!$C$2:$C$112,0))) ->  | E79: =IF(F79="","",INDEX(EF!$B$2:$B$112,MATCH(F79,EF!$C$2:$C$112,0))) -> 
D80: =IF(F80="","",INDEX(EF!$A$2:$A$112,MATCH(F80,EF!$C$2:$C$112,0))) ->  | E80: =IF(F80="","",INDEX(EF!$B$2:$B$112,MATCH(F80,EF!$C$2:$C$112,0))) -> 
D81: =IF(F81="","",INDEX(EF!$A$2:$A$112,MATCH(F81,EF!$C$2:$C$112,0))) ->  | E81: =IF(F81="","",INDEX(EF!$B$2:$B$112,MATCH(F81,EF!$C$2:$C$112,0))) -> 
D82: =IF(F82="","",INDEX(EF!$A$2:$A$112,MATCH(F82,EF!$C$2:$C$112,0))) ->  | E82: =IF(F82="","",INDEX(EF!$B$2:$B$112,MATCH(F82,EF!$C$2:$C$112,0))) -> 
D83: =IF(F83="","",INDEX(EF!$A$2:$A$112,MATCH(F83,EF!$C$2:$C$112,0))) ->  | E83: =IF(F83="","",INDEX(EF!$B$2:$B$112,MATCH(F83,EF!$C$2:$C$112,0))) -> 
D84: =IF(F84="","",INDEX(EF!$A$2:$A$112,MATCH(F84,EF!$C$2:$C$112,0))) ->  | E84: =IF(F84="","",INDEX(EF!$B$2:$B$112,MATCH(F84,EF!$C$2:$C$112,0))) -> 
D85: =IF(F85="","",INDEX(EF!$A$2:$A$112,MATCH(F85,EF!$C$2:$C$112,0))) ->  | E85: =IF(F85="","",INDEX(EF!$B$2:$B$112,MATCH(F85,EF!$C$2:$C$112,0))) -> 
D86: =IF(F86="","",INDEX(EF!$A$2:$A$112,MATCH(F86,EF!$C$2:$C$112,0))) ->  | E86: =IF(F86="","",INDEX(EF!$B$2:$B$112,MATCH(F86,EF!$C$2:$C$112,0))) -> 
D87: =IF(F87="","",INDEX(EF!$A$2:$A$112,MATCH(F87,EF!$C$2:$C$112,0))) ->  | E87: =IF(F87="","",INDEX(EF!$B$2:$B$112,MATCH(F87,EF!$C$2:$C$112,0))) -> 
D88: =IF(F88="","",INDEX(EF!$A$2:$A$112,MATCH(F88,EF!$C$2:$C$112,0))) ->  | E88: =IF(F88="","",INDEX(EF!$B$2:$B$112,MATCH(F88,EF!$C$2:$C$112,0))) -> 
D89: =IF(F89="","",INDEX(EF!$A$2:$A$112,MATCH(F89,EF!$C$2:$C$112,0))) ->  | E89: =IF(F89="","",INDEX(EF!$B$2:$B$112,MATCH(F89,EF!$C$2:$C$112,0))) -> 
D90: =IF(F90="","",INDEX(EF!$A$2:$A$112,MATCH(F90,EF!$C$2:$C$112,0))) ->  | E90: =IF(F90="","",INDEX(EF!$B$2:$B$112,MATCH(F90,EF!$C$2:$C$112,0))) -> 
D91: =IF(F91="","",INDEX(EF!$A$2:$A$112,MATCH(F91,EF!$C$2:$C$112,0))) ->  | E91: =IF(F91="","",INDEX(EF!$B$2:$B$112,MATCH(F91,EF!$C$2:$C$112,0))) -> 
D92: =IF(F92="","",INDEX(EF!$A$2:$A$112,MATCH(F92,EF!$C$2:$C$112,0))) ->  | E92: =IF(F92="","",INDEX(EF!$B$2:$B$112,MATCH(F92,EF!$C$2:$C$112,0))) -> 
D93: =IF(F93="","",INDEX(EF!$A$2:$A$112,MATCH(F93,EF!$C$2:$C$112,0))) ->  | E93: =IF(F93="","",INDEX(EF!$B$2:$B$112,MATCH(F93,EF!$C$2:$C$112,0))) -> 
D94: =IF(F94="","",INDEX(EF!$A$2:$A$112,MATCH(F94,EF!$C$2:$C$112,0))) ->  | E94: =IF(F94="","",INDEX(EF!$B$2:$B$112,MATCH(F94,EF!$C$2:$C$112,0))) -> 
D95: =IF(F95="","",INDEX(EF!$A$2:$A$112,MATCH(F95,EF!$C$2:$C$112,0))) ->  | E95: =IF(F95="","",INDEX(EF!$B$2:$B$112,MATCH(F95,EF!$C$2:$C$112,0))) -> 
D96: =IF(F96="","",INDEX(EF!$A$2:$A$112,MATCH(F96,EF!$C$2:$C$112,0))) ->  | E96: =IF(F96="","",INDEX(EF!$B$2:$B$112,MATCH(F96,EF!$C$2:$C$112,0))) -> 
D97: =IF(F97="","",INDEX(EF!$A$2:$A$112,MATCH(F97,EF!$C$2:$C$112,0))) ->  | E97: =IF(F97="","",INDEX(EF!$B$2:$B$112,MATCH(F97,EF!$C$2:$C$112,0))) -> 
D98: =IF(F98="","",INDEX(EF!$A$2:$A$112,MATCH(F98,EF!$C$2:$C$112,0))) ->  | E98: =IF(F98="","",INDEX(EF!$B$2:$B$112,MATCH(F98,EF!$C$2:$C$112,0))) -> 
D99: =IF(F99="","",INDEX(EF!$A$2:$A$112,MATCH(F99,EF!$C$2:$C$112,0))) ->  | E99: =IF(F99="","",INDEX(EF!$B$2:$B$112,MATCH(F99,EF!$C$2:$C$112,0))) -> 
D100: =IF(F100="","",INDEX(EF!$A$2:$A$112,MATCH(F100,EF!$C$2:$C$112,0))) ->  | E100: =IF(F100="","",INDEX(EF!$B$2:$B$112,MATCH(F100,EF!$C$2:$C$112,0))) -> 
D101: =IF(F101="","",INDEX(EF!$A$2:$A$112,MATCH(F101,EF!$C$2:$C$112,0))) ->  | E101: =IF(F101="","",INDEX(EF!$B$2:$B$112,MATCH(F101,EF!$C$2:$C$112,0))) -> 
D102: =IF(F102="","",INDEX(EF!$A$2:$A$112,MATCH(F102,EF!$C$2:$C$112,0))) ->  | E102: =IF(F102="","",INDEX(EF!$B$2:$B$112,MATCH(F102,EF!$C$2:$C$112,0))) -> 
D103: =IF(F103="","",INDEX(EF!$A$2:$A$112,MATCH(F103,EF!$C$2:$C$112,0))) ->  | E103: =IF(F103="","",INDEX(EF!$B$2:$B$112,MATCH(F103,EF!$C$2:$C$112,0))) -> 
D104: =IF(F104="","",INDEX(EF!$A$2:$A$112,MATCH(F104,EF!$C$2:$C$112,0))) ->  | E104: =IF(F104="","",INDEX(EF!$B$2:$B$112,MATCH(F104,EF!$C$2:$C$112,0))) -> 
D105: =IF(F105="","",INDEX(EF!$A$2:$A$112,MATCH(F105,EF!$C$2:$C$112,0))) ->  | E105: =IF(F105="","",INDEX(EF!$B$2:$B$112,MATCH(F105,EF!$C$2:$C$112,0))) -> 
D106: =IF(F106="","",INDEX(EF!$A$2:$A$112,MATCH(F106,EF!$C$2:$C$112,0))) ->  | E106: =IF(F106="","",INDEX(EF!$B$2:$B$112,MATCH(F106,EF!$C$2:$C$112,0))) -> 
D107: =IF(F107="","",INDEX(EF!$A$2:$A$112,MATCH(F107,EF!$C$2:$C$112,0))) ->  | E107: =IF(F107="","",INDEX(EF!$B$2:$B$112,MATCH(F107,EF!$C$2:$C$112,0))) -> 
D108: =IF(F108="","",INDEX(EF!$A$2:$A$112,MATCH(F108,EF!$C$2:$C$112,0))) ->  | E108: =IF(F108="","",INDEX(EF!$B$2:$B$112,MATCH(F108,EF!$C$2:$C$112,0))) -> 
D109: =IF(F109="","",INDEX(EF!$A$2:$A$112,MATCH(F109,EF!$C$2:$C$112,0))) ->  | E109: =IF(F109="","",INDEX(EF!$B$2:$B$112,MATCH(F109,EF!$C$2:$C$112,0))) -> 
D110: =IF(F110="","",INDEX(EF!$A$2:$A$112,MATCH(F110,EF!$C$2:$C$112,0))) ->  | E110: =IF(F110="","",INDEX(EF!$B$2:$B$112,MATCH(F110,EF!$C$2:$C$112,0))) -> 
D111: =IF(F111="","",INDEX(EF!$A$2:$A$112,MATCH(F111,EF!$C$2:$C$112,0))) ->  | E111: =IF(F111="","",INDEX(EF!$B$2:$B$112,MATCH(F111,EF!$C$2:$C$112,0))) -> 
D112: =IF(F112="","",INDEX(EF!$A$2:$A$112,MATCH(F112,EF!$C$2:$C$112,0))) ->  | E112: =IF(F112="","",INDEX(EF!$B$2:$B$112,MATCH(F112,EF!$C$2:$C$112,0))) -> 
D113: =IF(F113="","",INDEX(EF!$A$2:$A$112,MATCH(F113,EF!$C$2:$C$112,0))) ->  | E113: =IF(F113="","",INDEX(EF!$B$2:$B$112,MATCH(F113,EF!$C$2:$C$112,0))) -> 
D114: =IF(F114="","",INDEX(EF!$A$2:$A$112,MATCH(F114,EF!$C$2:$C$112,0))) ->  | E114: =IF(F114="","",INDEX(EF!$B$2:$B$112,MATCH(F114,EF!$C$2:$C$112,0))) -> 
D115: =IF(F115="","",INDEX(EF!$A$2:$A$112,MATCH(F115,EF!$C$2:$C$112,0))) ->  | E115: =IF(F115="","",INDEX(EF!$B$2:$B$112,MATCH(F115,EF!$C$2:$C$112,0))) -> 
D116: =IF(F116="","",INDEX(EF!$A$2:$A$112,MATCH(F116,EF!$C$2:$C$112,0))) ->  | E116: =IF(F116="","",INDEX(EF!$B$2:$B$112,MATCH(F116,EF!$C$2:$C$112,0))) -> 
D117: =IF(F117="","",INDEX(EF!$A$2:$A$112,MATCH(F117,EF!$C$2:$C$112,0))) ->  | E117: =IF(F117="","",INDEX(EF!$B$2:$B$112,MATCH(F117,EF!$C$2:$C$112,0))) -> 
D118: =IF(F118="","",INDEX(EF!$A$2:$A$112,MATCH(F118,EF!$C$2:$C$112,0))) ->  | E118: =IF(F118="","",INDEX(EF!$B$2:$B$112,MATCH(F118,EF!$C$2:$C$112,0))) -> 
D119: =IF(F119="","",INDEX(EF!$A$2:$A$112,MATCH(F119,EF!$C$2:$C$112,0))) ->  | E119: =IF(F119="","",INDEX(EF!$B$2:$B$112,MATCH(F119,EF!$C$2:$C$112,0))) -> 
D120: =IF(F120="","",INDEX(EF!$A$2:$A$112,MATCH(F120,EF!$C$2:$C$112,0))) ->  | E120: =IF(F120="","",INDEX(EF!$B$2:$B$112,MATCH(F120,EF!$C$2:$C$112,0))) -> 
D121: =IF(F121="","",INDEX(EF!$A$2:$A$112,MATCH(F121,EF!$C$2:$C$112,0))) ->  | E121: =IF(F121="","",INDEX(EF!$B$2:$B$112,MATCH(F121,EF!$C$2:$C$112,0))) -> 
D122: =IF(F122="","",INDEX(EF!$A$2:$A$112,MATCH(F122,EF!$C$2:$C$112,0))) ->  | E122: =IF(F122="","",INDEX(EF!$B$2:$B$112,MATCH(F122,EF!$C$2:$C$112,0))) -> 
D123: =IF(F123="","",INDEX(EF!$A$2:$A$112,MATCH(F123,EF!$C$2:$C$112,0))) ->  | E123: =IF(F123="","",INDEX(EF!$B$2:$B$112,MATCH(F123,EF!$C$2:$C$112,0))) -> 
D124: =IF(F124="","",INDEX(EF!$A$2:$A$112,MATCH(F124,EF!$C$2:$C$112,0))) ->  | E124: =IF(F124="","",INDEX(EF!$B$2:$B$112,MATCH(F124,EF!$C$2:$C$112,0))) -> 
D125: =IF(F125="","",INDEX(EF!$A$2:$A$112,MATCH(F125,EF!$C$2:$C$112,0))) ->  | E125: =IF(F125="","",INDEX(EF!$B$2:$B$112,MATCH(F125,EF!$C$2:$C$112,0))) -> 
D126: =IF(F126="","",INDEX(EF!$A$2:$A$112,MATCH(F126,EF!$C$2:$C$112,0))) ->  | E126: =IF(F126="","",INDEX(EF!$B$2:$B$112,MATCH(F126,EF!$C$2:$C$112,0))) -> 
D127: =IF(F127="","",INDEX(EF!$A$2:$A$112,MATCH(F127,EF!$C$2:$C$112,0))) ->  | E127: =IF(F127="","",INDEX(EF!$B$2:$B$112,MATCH(F127,EF!$C$2:$C$112,0))) -> 
D128: =IF(F128="","",INDEX(EF!$A$2:$A$112,MATCH(F128,EF!$C$2:$C$112,0))) ->  | E128: =IF(F128="","",INDEX(EF!$B$2:$B$112,MATCH(F128,EF!$C$2:$C$112,0))) -> 
D129: =IF(F129="","",INDEX(EF!$A$2:$A$112,MATCH(F129,EF!$C$2:$C$112,0))) ->  | E129: =IF(F129="","",INDEX(EF!$B$2:$B$112,MATCH(F129,EF!$C$2:$C$112,0))) -> 
D130: =IF(F130="","",INDEX(EF!$A$2:$A$112,MATCH(F130,EF!$C$2:$C$112,0))) ->  | E130: =IF(F130="","",INDEX(EF!$B$2:$B$112,MATCH(F130,EF!$C$2:$C$112,0))) -> 
D131: =IF(F131="","",INDEX(EF!$A$2:$A$112,MATCH(F131,EF!$C$2:$C$112,0))) ->  | E131: =IF(F131="","",INDEX(EF!$B$2:$B$112,MATCH(F131,EF!$C$2:$C$112,0))) -> 
D132: =IF(F132="","",INDEX(EF!$A$2:$A$112,MATCH(F132,EF!$C$2:$C$112,0))) ->  | E132: =IF(F132="","",INDEX(EF!$B$2:$B$112,MATCH(F132,EF!$C$2:$C$112,0))) -> 
D133: =IF(F133="","",INDEX(EF!$A$2:$A$112,MATCH(F133,EF!$C$2:$C$112,0))) ->  | E133: =IF(F133="","",INDEX(EF!$B$2:$B$112,MATCH(F133,EF!$C$2:$C$112,0))) -> 
D134: =IF(F134="","",INDEX(EF!$A$2:$A$112,MATCH(F134,EF!$C$2:$C$112,0))) ->  | E134: =IF(F134="","",INDEX(EF!$B$2:$B$112,MATCH(F134,EF!$C$2:$C$112,0))) -> 
D135: =IF(F135="","",INDEX(EF!$A$2:$A$112,MATCH(F135,EF!$C$2:$C$112,0))) ->  | E135: =IF(F135="","",INDEX(EF!$B$2:$B$112,MATCH(F135,EF!$C$2:$C$112,0))) -> 
D136: =IF(F136="","",INDEX(EF!$A$2:$A$112,MATCH(F136,EF!$C$2:$C$112,0))) ->  | E136: =IF(F136="","",INDEX(EF!$B$2:$B$112,MATCH(F136,EF!$C$2:$C$112,0))) -> 
A137: =IF(B137>0,A136+1,"") ->  | D137: =IF(F137="","",INDEX(EF!$A$2:$A$112,MATCH(F137,EF!$C$2:$C$112,0))) ->  | E137: =IF(F137="","",INDEX(EF!$B$2:$B$112,MATCH(F137,EF!$C$2:$C$112,0))) -> 
D138: =IF(F138="","",INDEX(EF!$A$2:$A$112,MATCH(F138,EF!$C$2:$C$112,0))) ->  | E138: =IF(F138="","",INDEX(EF!$B$2:$B$112,MATCH(F138,EF!$C$2:$C$112,0))) -> 
D139: =IF(F139="","",INDEX(EF!$A$2:$A$112,MATCH(F139,EF!$C$2:$C$112,0))) ->  | E139: =IF(F139="","",INDEX(EF!$B$2:$B$112,MATCH(F139,EF!$C$2:$C$112,0))) -> 
D140: =IF(F140="","",INDEX(EF!$A$2:$A$112,MATCH(F140,EF!$C$2:$C$112,0))) ->  | E140: =IF(F140="","",INDEX(EF!$B$2:$B$112,MATCH(F140,EF!$C$2:$C$112,0))) -> 
D141: =IF(F141="","",INDEX(EF!$A$2:$A$112,MATCH(F141,EF!$C$2:$C$112,0))) ->  | E141: =IF(F141="","",INDEX(EF!$B$2:$B$112,MATCH(F141,EF!$C$2:$C$112,0))) -> 
D142: =IF(F142="","",INDEX(EF!$A$2:$A$112,MATCH(F142,EF!$C$2:$C$112,0))) ->  | E142: =IF(F142="","",INDEX(EF!$B$2:$B$112,MATCH(F142,EF!$C$2:$C$112,0))) -> 
D143: =IF(F143="","",INDEX(EF!$A$2:$A$112,MATCH(F143,EF!$C$2:$C$112,0))) ->  | E143: =IF(F143="","",INDEX(EF!$B$2:$B$112,MATCH(F143,EF!$C$2:$C$112,0))) -> 
D144: =IF(F144="","",INDEX(EF!$A$2:$A$112,MATCH(F144,EF!$C$2:$C$112,0))) ->  | E144: =IF(F144="","",INDEX(EF!$B$2:$B$112,MATCH(F144,EF!$C$2:$C$112,0))) -> 
D145: =IF(F145="","",INDEX(EF!$A$2:$A$112,MATCH(F145,EF!$C$2:$C$112,0))) ->  | E145: =IF(F145="","",INDEX(EF!$B$2:$B$112,MATCH(F145,EF!$C$2:$C$112,0))) -> 
D146: =IF(F146="","",INDEX(EF!$A$2:$A$112,MATCH(F146,EF!$C$2:$C$112,0))) ->  | E146: =IF(F146="","",INDEX(EF!$B$2:$B$112,MATCH(F146,EF!$C$2:$C$112,0))) -> 
D147: =IF(F147="","",INDEX(EF!$A$2:$A$112,MATCH(F147,EF!$C$2:$C$112,0))) ->  | E147: =IF(F147="","",INDEX(EF!$B$2:$B$112,MATCH(F147,EF!$C$2:$C$112,0))) -> 
D148: =IF(F148="","",INDEX(EF!$A$2:$A$112,MATCH(F148,EF!$C$2:$C$112,0))) ->  | E148: =IF(F148="","",INDEX(EF!$B$2:$B$112,MATCH(F148,EF!$C$2:$C$112,0))) -> 
D149: =IF(F149="","",INDEX(EF!$A$2:$A$112,MATCH(F149,EF!$C$2:$C$112,0))) ->  | E149: =IF(F149="","",INDEX(EF!$B$2:$B$112,MATCH(F149,EF!$C$2:$C$112,0))) -> 
D150: =IF(F150="","",INDEX(EF!$A$2:$A$112,MATCH(F150,EF!$C$2:$C$112,0))) ->  | E150: =IF(F150="","",INDEX(EF!$B$2:$B$112,MATCH(F150,EF!$C$2:$C$112,0))) -> 
D151: =IF(F151="","",INDEX(EF!$A$2:$A$112,MATCH(F151,EF!$C$2:$C$112,0))) ->  | E151: =IF(F151="","",INDEX(EF!$B$2:$B$112,MATCH(F151,EF!$C$2:$C$112,0))) -> 
D152: =IF(F152="","",INDEX(EF!$A$2:$A$112,MATCH(F152,EF!$C$2:$C$112,0))) ->  | E152: =IF(F152="","",INDEX(EF!$B$2:$B$112,MATCH(F152,EF!$C$2:$C$112,0))) -> 
D153: =IF(F153="","",INDEX(EF!$A$2:$A$112,MATCH(F153,EF!$C$2:$C$112,0))) ->  | E153: =IF(F153="","",INDEX(EF!$B$2:$B$112,MATCH(F153,EF!$C$2:$C$112,0))) -> 
D154: =IF(F154="","",INDEX(EF!$A$2:$A$112,MATCH(F154,EF!$C$2:$C$112,0))) ->  | E154: =IF(F154="","",INDEX(EF!$B$2:$B$112,MATCH(F154,EF!$C$2:$C$112,0))) -> 
D155: =IF(F155="","",INDEX(EF!$A$2:$A$112,MATCH(F155,EF!$C$2:$C$112,0))) ->  | E155: =IF(F155="","",INDEX(EF!$B$2:$B$112,MATCH(F155,EF!$C$2:$C$112,0))) -> 
D156: =IF(F156="","",INDEX(EF!$A$2:$A$112,MATCH(F156,EF!$C$2:$C$112,0))) ->  | E156: =IF(F156="","",INDEX(EF!$B$2:$B$112,MATCH(F156,EF!$C$2:$C$112,0))) -> 
D157: =IF(F157="","",INDEX(EF!$A$2:$A$112,MATCH(F157,EF!$C$2:$C$112,0))) ->  | E157: =IF(F157="","",INDEX(EF!$B$2:$B$112,MATCH(F157,EF!$C$2:$C$112,0))) -> 
D158: =IF(F158="","",INDEX(EF!$A$2:$A$112,MATCH(F158,EF!$C$2:$C$112,0))) ->  | E158: =IF(F158="","",INDEX(EF!$B$2:$B$112,MATCH(F158,EF!$C$2:$C$112,0))) -> 
D159: =IF(F159="","",INDEX(EF!$A$2:$A$112,MATCH(F159,EF!$C$2:$C$112,0))) ->  | E159: =IF(F159="","",INDEX(EF!$B$2:$B$112,MATCH(F159,EF!$C$2:$C$112,0))) -> 
D160: =IF(F160="","",INDEX(EF!$A$2:$A$112,MATCH(F160,EF!$C$2:$C$112,0))) ->  | E160: =IF(F160="","",INDEX(EF!$B$2:$B$112,MATCH(F160,EF!$C$2:$C$112,0))) -> 
D161: =IF(F161="","",INDEX(EF!$A$2:$A$112,MATCH(F161,EF!$C$2:$C$112,0))) ->  | E161: =IF(F161="","",INDEX(EF!$B$2:$B$112,MATCH(F161,EF!$C$2:$C$112,0))) -> 
D162: =IF(F162="","",INDEX(EF!$A$2:$A$112,MATCH(F162,EF!$C$2:$C$112,0))) ->  | E162: =IF(F162="","",INDEX(EF!$B$2:$B$112,MATCH(F162,EF!$C$2:$C$112,0))) -> 
D163: =IF(F163="","",INDEX(EF!$A$2:$A$112,MATCH(F163,EF!$C$2:$C$112,0))) ->  | E163: =IF(F163="","",INDEX(EF!$B$2:$B$112,MATCH(F163,EF!$C$2:$C$112,0))) -> 
D164: =IF(F164="","",INDEX(EF!$A$2:$A$112,MATCH(F164,EF!$C$2:$C$112,0))) ->  | E164: =IF(F164="","",INDEX(EF!$B$2:$B$112,MATCH(F164,EF!$C$2:$C$112,0))) -> 
D165: =IF(F165="","",INDEX(EF!$A$2:$A$112,MATCH(F165,EF!$C$2:$C$112,0))) ->  | E165: =IF(F165="","",INDEX(EF!$B$2:$B$112,MATCH(F165,EF!$C$2:$C$112,0))) -> 
D166: =IF(F166="","",INDEX(EF!$A$2:$A$112,MATCH(F166,EF!$C$2:$C$112,0))) ->  | E166: =IF(F166="","",INDEX(EF!$B$2:$B$112,MATCH(F166,EF!$C$2:$C$112,0))) -> 
D167: =IF(F167="","",INDEX(EF!$A$2:$A$112,MATCH(F167,EF!$C$2:$C$112,0))) ->  | E167: =IF(F167="","",INDEX(EF!$B$2:$B$112,MATCH(F167,EF!$C$2:$C$112,0))) -> 
D168: =IF(F168="","",INDEX(EF!$A$2:$A$112,MATCH(F168,EF!$C$2:$C$112,0))) ->  | E168: =IF(F168="","",INDEX(EF!$B$2:$B$112,MATCH(F168,EF!$C$2:$C$112,0))) -> 
D169: =IF(F169="","",INDEX(EF!$A$2:$A$112,MATCH(F169,EF!$C$2:$C$112,0))) ->  | E169: =IF(F169="","",INDEX(EF!$B$2:$B$112,MATCH(F169,EF!$C$2:$C$112,0))) -> 
D170: =IF(F170="","",INDEX(EF!$A$2:$A$112,MATCH(F170,EF!$C$2:$C$112,0))) ->  | E170: =IF(F170="","",INDEX(EF!$B$2:$B$112,MATCH(F170,EF!$C$2:$C$112,0))) -> 
D171: =IF(F171="","",INDEX(EF!$A$2:$A$112,MATCH(F171,EF!$C$2:$C$112,0))) ->  | E171: =IF(F171="","",INDEX(EF!$B$2:$B$112,MATCH(F171,EF!$C$2:$C$112,0))) -> 
D172: =IF(F172="","",INDEX(EF!$A$2:$A$112,MATCH(F172,EF!$C$2:$C$112,0))) ->  | E172: =IF(F172="","",INDEX(EF!$B$2:$B$112,MATCH(F172,EF!$C$2:$C$112,0))) -> 
D173: =IF(F173="","",INDEX(EF!$A$2:$A$112,MATCH(F173,EF!$C$2:$C$112,0))) ->  | E173: =IF(F173="","",INDEX(EF!$B$2:$B$112,MATCH(F173,EF!$C$2:$C$112,0))) -> 
D174: =IF(F174="","",INDEX(EF!$A$2:$A$112,MATCH(F174,EF!$C$2:$C$112,0))) ->  | E174: =IF(F174="","",INDEX(EF!$B$2:$B$112,MATCH(F174,EF!$C$2:$C$112,0))) -> 
D175: =IF(F175="","",INDEX(EF!$A$2:$A$112,MATCH(F175,EF!$C$2:$C$112,0))) ->  | E175: =IF(F175="","",INDEX(EF!$B$2:$B$112,MATCH(F175,EF!$C$2:$C$112,0))) -> 
D176: =IF(F176="","",INDEX(EF!$A$2:$A$112,MATCH(F176,EF!$C$2:$C$112,0))) ->  | E176: =IF(F176="","",INDEX(EF!$B$2:$B$112,MATCH(F176,EF!$C$2:$C$112,0))) -> 
D177: =IF(F177="","",INDEX(EF!$A$2:$A$112,MATCH(F177,EF!$C$2:$C$112,0))) ->  | E177: =IF(F177="","",INDEX(EF!$B$2:$B$112,MATCH(F177,EF!$C$2:$C$112,0))) -> 
D178: =IF(F178="","",INDEX(EF!$A$2:$A$112,MATCH(F178,EF!$C$2:$C$112,0))) ->  | E178: =IF(F178="","",INDEX(EF!$B$2:$B$112,MATCH(F178,EF!$C$2:$C$112,0))) -> 
D179: =IF(F179="","",INDEX(EF!$A$2:$A$112,MATCH(F179,EF!$C$2:$C$112,0))) ->  | E179: =IF(F179="","",INDEX(EF!$B$2:$B$112,MATCH(F179,EF!$C$2:$C$112,0))) -> 
D180: =IF(F180="","",INDEX(EF!$A$2:$A$112,MATCH(F180,EF!$C$2:$C$112,0))) ->  | E180: =IF(F180="","",INDEX(EF!$B$2:$B$112,MATCH(F180,EF!$C$2:$C$112,0))) -> 
D181: =IF(F181="","",INDEX(EF!$A$2:$A$112,MATCH(F181,EF!$C$2:$C$112,0))) ->  | E181: =IF(F181="","",INDEX(EF!$B$2:$B$112,MATCH(F181,EF!$C$2:$C$112,0))) -> 
D182: =IF(F182="","",INDEX(EF!$A$2:$A$112,MATCH(F182,EF!$C$2:$C$112,0))) ->  | E182: =IF(F182="","",INDEX(EF!$B$2:$B$112,MATCH(F182,EF!$C$2:$C$112,0))) -> 
D183: =IF(F183="","",INDEX(EF!$A$2:$A$112,MATCH(F183,EF!$C$2:$C$112,0))) ->  | E183: =IF(F183="","",INDEX(EF!$B$2:$B$112,MATCH(F183,EF!$C$2:$C$112,0))) -> 
D184: =IF(F184="","",INDEX(EF!$A$2:$A$112,MATCH(F184,EF!$C$2:$C$112,0))) ->  | E184: =IF(F184="","",INDEX(EF!$B$2:$B$112,MATCH(F184,EF!$C$2:$C$112,0))) -> 
D185: =IF(F185="","",INDEX(EF!$A$2:$A$112,MATCH(F185,EF!$C$2:$C$112,0))) ->  | E185: =IF(F185="","",INDEX(EF!$B$2:$B$112,MATCH(F185,EF!$C$2:$C$112,0))) -> 
D186: =IF(F186="","",INDEX(EF!$A$2:$A$112,MATCH(F186,EF!$C$2:$C$112,0))) ->  | E186: =IF(F186="","",INDEX(EF!$B$2:$B$112,MATCH(F186,EF!$C$2:$C$112,0))) -> 
D187: =IF(F187="","",INDEX(EF!$A$2:$A$112,MATCH(F187,EF!$C$2:$C$112,0))) ->  | E187: =IF(F187="","",INDEX(EF!$B$2:$B$112,MATCH(F187,EF!$C$2:$C$112,0))) -> 
D188: =IF(F188="","",INDEX(EF!$A$2:$A$112,MATCH(F188,EF!$C$2:$C$112,0))) ->  | E188: =IF(F188="","",INDEX(EF!$B$2:$B$112,MATCH(F188,EF!$C$2:$C$112,0))) -> 
D189: =IF(F189="","",INDEX(EF!$A$2:$A$112,MATCH(F189,EF!$C$2:$C$112,0))) ->  | E189: =IF(F189="","",INDEX(EF!$B$2:$B$112,MATCH(F189,EF!$C$2:$C$112,0))) -> 
D190: =IF(F190="","",INDEX(EF!$A$2:$A$112,MATCH(F190,EF!$C$2:$C$112,0))) ->  | E190: =IF(F190="","",INDEX(EF!$B$2:$B$112,MATCH(F190,EF!$C$2:$C$112,0))) -> 
D191: =IF(F191="","",INDEX(EF!$A$2:$A$112,MATCH(F191,EF!$C$2:$C$112,0))) ->  | E191: =IF(F191="","",INDEX(EF!$B$2:$B$112,MATCH(F191,EF!$C$2:$C$112,0))) -> 
D192: =IF(F192="","",INDEX(EF!$A$2:$A$112,MATCH(F192,EF!$C$2:$C$112,0))) ->  | E192: =IF(F192="","",INDEX(EF!$B$2:$B$112,MATCH(F192,EF!$C$2:$C$112,0))) -> 
D193: =IF(F193="","",INDEX(EF!$A$2:$A$112,MATCH(F193,EF!$C$2:$C$112,0))) ->  | E193: =IF(F193="","",INDEX(EF!$B$2:$B$112,MATCH(F193,EF!$C$2:$C$112,0))) -> 
D194: =IF(F194="","",INDEX(EF!$A$2:$A$112,MATCH(F194,EF!$C$2:$C$112,0))) ->  | E194: =IF(F194="","",INDEX(EF!$B$2:$B$112,MATCH(F194,EF!$C$2:$C$112,0))) -> 
D195: =IF(F195="","",INDEX(EF!$A$2:$A$112,MATCH(F195,EF!$C$2:$C$112,0))) ->  | E195: =IF(F195="","",INDEX(EF!$B$2:$B$112,MATCH(F195,EF!$C$2:$C$112,0))) -> 
D196: =IF(F196="","",INDEX(EF!$A$2:$A$112,MATCH(F196,EF!$C$2:$C$112,0))) ->  | E196: =IF(F196="","",INDEX(EF!$B$2:$B$112,MATCH(F196,EF!$C$2:$C$112,0))) -> 
D197: =IF(F197="","",INDEX(EF!$A$2:$A$112,MATCH(F197,EF!$C$2:$C$112,0))) ->  | E197: =IF(F197="","",INDEX(EF!$B$2:$B$112,MATCH(F197,EF!$C$2:$C$112,0))) -> 
D198: =IF(F198="","",INDEX(EF!$A$2:$A$112,MATCH(F198,EF!$C$2:$C$112,0))) ->  | E198: =IF(F198="","",INDEX(EF!$B$2:$B$112,MATCH(F198,EF!$C$2:$C$112,0))) -> 
D199: =IF(F199="","",INDEX(EF!$A$2:$A$112,MATCH(F199,EF!$C$2:$C$112,0))) ->  | E199: =IF(F199="","",INDEX(EF!$B$2:$B$112,MATCH(F199,EF!$C$2:$C$112,0))) -> 
D200: =IF(F200="","",INDEX(EF!$A$2:$A$112,MATCH(F200,EF!$C$2:$C$112,0))) ->  | E200: =IF(F200="","",INDEX(EF!$B$2:$B$112,MATCH(F200,EF!$C$2:$C$112,0))) -> 
... 806 more rows

Sheet F18A (hidden)
A1: =Validacion!A2 -> Tamazula de Gordiano
A2: ESTADO ANALÍTICO DEL EJERCICIO DEL PRESUPUESTO DE EGRESOS DETALLADO - LDF
A3: CLASIFICACIÓN ADMINISTRATIVA
A4: ='F6'!A3 -> Del 1° de Enero al 29 de Febrero de 2024
A5: (Pesos)
A6: CONCEPTO | B6: EGRESOS | G6: SUBEJERCICIO
B7: APROBADO | C7: AMPLIACIONES/ (REDUCCIONES) | D7: MODIFICADO | E7: DEVENGADO | F7: PAGADO
A8: I. GASTO NO ETIQUETADO
D9: =B9+C9 -> 0.00 | G9: =D9-E9 -> 0.00
D10: =B10+C10 -> 0.00 | G10: =D10-E10 -> 0.00
D11: 0.00 | G11: 0.00
D12: 0.00 | G12: 0.00
D13: 0.00 | G13: 0.00
D14: 0.00 | G14: 0.00
D15: 0.00 | G15: 0.00
D16: 0.00 | G16: 0.00
D17: 0.00 | G17: 0.00
D18: 0.00 | G18: 0.00
D19: 0.00 | G19: 0.00
D20: 0.00 | G20: 0.00
D21: 0.00 | G21: 0.00
D22: 0.00 | G22: 0.00
D23: 0.00 | G23: 0.00
D24: 0.00 | G24: 0.00
D25: 0.00 | G25: 0.00
D26: 0.00 | G26: 0.00
D27: 0.00 | G27: 0.00
D28: 0.00 | G28: 0.00
D29: 0.00 | G29: 0.00
D30: 0.00 | G30: 0.00
D31: 0.00 | G31: 0.00
D32: 0.00 | G32: 0.00
D33: 0.00 | G33: 0.00
A34: TOTAL DEL GASTO NO ETIQUETADO | B34: =SUM(B8:B33) -> 0.00 | C34: =SUM(C8:C33) -> 0.00 | D34: 0.00 | E34: 0.00 | F34: 0.00 | G34: 0.00
A35: II. GASTO ETIQUETADO
D36: =B36+C36 -> 0.00 | G36: =D36-E36 -> 0.00
D37: =B37+C37 -> 0.00 | G37: =D37-E37 -> 0.00
D38: 0.00 | G38: 0.00
D39: 0.00 | G39: 0.00
D40: 0.00 | G40: 0.00
D41: 0.00 | G41: 0.00
D42: 0.00 | G42: 0.00
D43: 0.00 | G43: 0.00
D44: 0.00 | G44: 0.00
D45: 0.00 | G45: 0.00
D46: 0.00 | G46: 0.00
D47: 0.00 | G47: 0.00
D48: 0.00 | G48: 0.00
D49: 0.00 | G49: 0.00
D50: 0.00 | G50: 0.00
D51: 0.00 | G51: 0.00
D52: 0.00 | G52: 0.00
D53: 0.00 | G53: 0.00
D54: 0.00 | G54: 0.00
D55: 0.00 | G55: 0.00
D56: 0.00 | G56: 0.00
D57: 0.00 | G57: 0.00
D58: 0.00 | G58: 0.00
D59: 0.00 | G59: 0.00
D60: 0.00 | G60: 0.00
A61: TOTAL DEL GASTO ETIQUETADO | B61: =SUM(B35:B60) -> 0.00 | C61: =SUM(C35:C60) -> 0.00 | D61: 0.00 | E61: 0.00 | F61: 0.00 | G61: 0.00
A62: TOTAL DEL GASTO | B62: =B34+B61 -> 0.00 | C62: =C34+C61 -> 0.00 | D62: 0.00 | E62: 0.00 | F62: 0.00 | G62: 0.00
A64: Bajo protesta de decir verdad declaramos que los estados financieros y sus notas, son razonablemente correctos y son responsabilidad del emisor.
A68: =Validacion!A7 -> ING. RAÚL EVERARDO GUTIÉRREZ CASTAÑEDA | D68: =Validacion!A9 -> MTRO. ARNOLDO SOLÓRZANO CUEVAS
A70: Presidente Municipal o titular del ente público | D70: Encargado de la Hacienda Municipal o Responsable de las finanzas del ente público

Sheet F19A (hidden)
B1: =Validacion!A2 -> Tamazula de Gordiano
B2: ESTADO ANALÍTICO DEL EJERCICIO DEL PRESUPUESTO DE EGRESOS DETALLADO - LDF
B3: CLASIFICACIÓN FUNCIONAL (FINALIDAD Y FUNCIÓN)
C4: ='F6'!A3 -> Del 1° de Enero al 29 de Febrero de 2024
C5: (Pesos)
A6: CONCEPTO | D6: EGRESOS | I6: SUBEJERCICIO
D7: APROBADO | E7: AMPLIACIONES/ (REDUCCIONES) | F7: MODIFICADO | G7: DEVENGADO | H7: PAGADO
A8: I | B8: GASTO NO ETIQUETADO
B9: A Gobierno | D9: =SUM(D10:D17) -> 0.00 | E9: =SUM(E10:E17) -> 0.00 | F9: =D9+E9 -> 0.00 | G9: =SUM(G10:G17) -> 0.00 | H9: 0.00 | I9: =F9-G9 -> 0.00
C10: Legislación | F10: =D10+E10 -> 0.00 | I10: =F10-G10 -> 0.00
C11: Justicia | F11: 0.00 | I11: 0.00
C12: Coordinación de la política de gobierno | F12: 0.00 | I12: 0.00
C13: Relaciones exteriores | F13: 0.00 | I13: 0.00
C14: Asuntos financieros y hacendarios | F14: 0.00 | I14: 0.00
C15: Seguridad nacional | F15: 0.00 | I15: 0.00
C16: Asuntos de orden público y de seguridad interior | F16: 0.00 | I16: 0.00
C17: Otros servicios generales | F17: 0.00 | I17: 0.00
B18: B Desarrollo social | D18: =SUM(D19:D25) -> 0.00 | E18: =SUM(E19:E25) -> 0.00 | F18: 0.00 | G18: =SUM(G19:G25) -> 0.00 | H18: 0.00 | I18: 0.00
C19: Protección ambiental | F19: 0.00 | I19: 0.00
C20: Vivienda y servicios a la comunidad | F20: 0.00 | I20: 0.00
C21: Salud | F21: 0.00 | I21: 0.00
C22: Recreación, cultura y otras manifestaciones sociales | F22: 0.00 | I22: 0.00
C23: Educación | F23: 0.00 | I23: 0.00
C24: Protección social | F24: 0.00 | I24: 0.00
C25: Otros asuntos sociales | F25: 0.00 | I25: 0.00
B26: C Desarrollo económico | D26: =SUM(D27:D35) -> 0.00 | E26: =SUM(E27:E35) -> 0.00 | F26: 0.00 | G26: =SUM(G27:G35) -> 0.00 | H26: 0.00 | I26: 0.00
C27: Asuntos económicos, comerciales y laborales en general | F27: 0.00 | I27: 0.00
C28: Agropecuaria, silvicultura, pesca y caza | F28: 0.00 | I28: 0.00
C29: Combustibles y energía | F29: 0.00 | I29: 0.00
C30: Minería, manufacturas y construcción | F30: 0.00 | I30: 0.00
C31: Transporte | F31: 0.00 | I31: 0.00
C32: Comunicaciones | F32: 0.00 | I32: 0.00
C33: Turismo | F33: 0.00 | I33: 0.00
C34: Ciencia, tecnología e innovación | F34: 0.00 | I34: 0.00
C35: Otras industrias y otros asuntos económicos | F35: 0.00 | I35: 0.00
B36: D Otras no clasificadas en fdunciones anteriores | D36: =SUM(D37:D40) -> 0.00 | E36: =SUM(E37:E40) -> 0.00 | F36: 0.00 | G36: =SUM(G37:G40) -> 0.00 | H36: =SUM(H37:H40) -> 0.00 | I36: 0.00
C37: Transacciones de la deuda publica / costo financiero de la deuda | F37: 0.00 | I37: 0.00
C38: Transferencias, participaciones y aportaciones entre diferentes niveles y órdenes de gobierno | F38: 0.00 | I38: 0.00
C39: Saneamiento del sistema financiero | F39: 0.00 | I39: 0.00
C40: Adeudos de ejercicios fiscales anteriores | F40: 0.00 | I40: 0.00
C41: TOTAL DEL GASTO NO ETIQUETADO | D41: =D9+D18+D26+D36 -> 0.00 | E41: =E9+E18+E26+E36 -> 0.00 | F41: 0.00 | G41: =G9+G18+G26+G36 -> 0.00 | H41: =H9+H18+H26+H36 -> 0.00 | I41: 0.00
A42: II | B42: GASTO ETIQUETADO
B43: A Gobierno | D43: =SUM(D44:D51) -> 0.00 | E43: =SUM(E44:E51) -> 0.00 | F43: =D43+E43 -> 0.00 | G43: =SUM(G44:G51) -> 0.00 | H43: 0.00 | I43: =F43-G43 -> 0.00
C44: Legislación | F44: =D44+E44 -> 0.00 | I44: =F44-G44 -> 0.00
C45: Justicia | F45: 0.00 | I45: 0.00
C46: Coordinación de la política de gobierno | F46: 0.00 | I46: 0.00
C47: Relaciones exteriores | F47: 0.00 | I47: 0.00
C48: Asuntos financieros y hacendarios | F48: 0.00 | I48: 0.00
C49: Seguridad nacional | F49: 0.00 | I49: 0.00
C50: Asuntos de orden público y de seguridad interior | F50: 0.00 | I50: 0.00
C51: Otros servicios generales | F51: 0.00 | I51: 0.00
B52: B Desarrollo social | D52: =SUM(D53:D59) -> 0.00 | E52: =SUM(E53:E59) -> 0.00 | F52: 0.00 | G52: =SUM(G53:G59) -> 0.00 | H52: 0.00 | I52: 0.00
C53: Protección ambiental | F53: 0.00 | I53: 0.00
C54: Vivienda y servicios a la comunidad | F54: 0.00 | I54: 0.00
C55: Salud | F55: 0.00 | I55: 0.00
C56: Recreación, cultura y otras manifestaciones sociales | F56: 0.00 | I56: 0.00
C57: Educación | F57: 0.00 | I57: 0.00
C58: Protección social | F58: 0.00 | I58: 0.00
C59: Otros asuntos sociales | F59: 0.00 | I59: 0.00
B60: C Desarrollo económico | D60: =SUM(D61:D69) -> 0.00 | E60: =SUM(E61:E69) -> 0.00 | F60: 0.00 | G60: =SUM(G61:G69) -> 0.00 | H60: 0.00 | I60: 0.00
C61: Asuntos económicos, comerciales y laborales en general | F61: 0.00 | I61: 0.00
C62: Agropecuaria, silvicultura, pesca y caza | F62: 0.00 | I62: 0.00
C63: Combustibles y energía | F63: 0.00 | I63: 0.00
C64: Minería, manufacturas y construcción | F64: 0.00 | I64: 0.00
C65: Transporte | F65: 0.00 | I65: 0.00
C66: Comunicaciones | F66: 0.00 | I66: 0.00
C67: Turismo | F67: 0.00 | I67: 0.00
C68: Ciencia, tecnología e innovación | F68: 0.00 | I68: 0.00
C69: Otras industrias y otros asuntos económicos | F69: 0.00 | I69: 0.00
B70: D Otras no clasificadas en fdunciones anteriores | D70: =SUM(D71:D74) -> 0.00 | E70: =SUM(E71:E74) -> 0.00 | F70: 0.00 | G70: =SUM(G71:G74) -> 0.00 | H70: =SUM(H71:H74) -> 0.00 | I70: 0.00
C71: Transacciones de la deuda publica / costo financiero de la deuda | F71: 0.00 | I71: 0.00
C72: Transferencias, participaciones y aportaciones entre diferentes niveles y órdenes de gobierno | F72: 0.00 | I72: 0.00
C73: Saneamiento del sistema financiero | F73: 0.00 | I73: 0.00
C74: Adeudos de ejercicios fiscales anteriores | F74: 0.00 | I74: 0.00
C75: TOTAL DEL GASTO ETIQUETADO | D75: =D43+D52+D60+D70 -> 0.00 | E75: =E43+E52+E60+E70 -> 0.00 | F75: =D75+E75 -> 0.00 | G75: =G43+G52+G60+G70 -> 0.00 | H75: =H43+H52+H60+H70 -> 0.00 | I75: 0.00
C76: TOTAL DEL EGRESOS | D76: =D41+D75 -> 0.00 | E76: =E41+E75 -> 0.00 | F76: =F41+F75 -> 0.00 | G76: 0.00 | H76: 0.00 | I76: 0.00
B78: Bajo protesta de decir verdad declaramos que los estados financieros y sus notas, son razonablemente correctos y son responsabilidad del emisor.
C81: =Validacion!A7 -> ING. RAÚL EVERARDO GUTIÉRREZ CASTAÑEDA | E81: =Validacion!A9 -> MTRO. ARNOLDO SOLÓRZANO CUEVAS
C83: Presidente Municipal o titular del ente público | E83: Encargado de la Hacienda Municipal o Responsable de las finanzas del ente público

Sheet F21 (hidden)
A1: =Validacion!A2 -> Tamazula de Gordiano
A2: ESTADO ANALÍTICO DEL EJERCICIO DEL PRESPUESTO DE EGRESOS DETALLADO - LDF
A3: CLASIFICACIÓN DE SERVICIOS PERSONALES POR CATEGORÍA
A4: ='F6'!A3 -> Del 1° de Enero al 29 de Febrero de 2024
A5: (Pesos)
A6: CONCEPTO | D6: EGRESOS | I6: SUBEJERCICIO
D7: APROBADO | E7: AMPLIACIONES/ (REDUCCIONES) | F7: MODFICADO | G7: DEVENGADO | H7: PAGADO
A8: I | B8: GASTOS NO ETIQUETADOS
B9: A | C9: Personal administrativo y de servicio público | F9: =D9+E9 -> 0.00 | I9: =F9-G9 -> 0.00
B10: B | C10: Magisterio | F10: =D10+E10 -> 0.00 | I10: =F10-G10 -> 0.00
B11: C | C11: Servicios de salud | D11: =D12+D13 -> 0.00 | E11: =E12+E13 -> 0.00 | F11: 0.00 | G11: =G12+G13 -> 0.00 | H11: =H12+H13 -> 0.00 | I11: 0.00
C12: Personal administrativo | F12: 0.00 | I12: 0.00
C13: Personal médico, paramédico y afín | F13: 0.00 | I13: 0.00
B14: D | C14: Seguridad pública | F14: 0.00 | I14: 0.00
B15: E | C15: Gastos asociados a la implementación de nuevas leyes federales o reformas a las mismas | D15: =D16+D17 -> 0.00 | E15: =E16+E17 -> 0.00 | F15: 0.00 | G15: =G16+G17 -> 0.00 | H15: =H16+H17 -> 0.00 | I15: 0.00
C16: Nombre del programa o ley | F16: 0.00 | I16: 0.00
C17: Nombre del programa o ley | F17: 0.00 | I17: 0.00
B18: F | C18: Sentencias laborales definitivas | F18: 0.00 | I18: 0.00
C19: TOTAL DEL GASTO NO ETIQUETADO | D19: =D9+D10+D11+D14+D15+D18 -> 0.00 | E19: =E9+E10+E11+E14+E15+E18 -> 0.00 | F19: 0.00 | G19: 0.00 | H19: 0.00 | I19: 0.00
A20: II | B20: GASTOS ETIQUETADOS
B21: A | C21: Personal administrativo y de servicio público | F21: =D21+E21 -> 0.00 | I21: =F21-G21 -> 0.00
B22: B | C22: Magisterio | F22: =D22+E22 -> 0.00 | I22: 0.00
B23: C | C23: Servicios de salud | D23: =D24+D25 -> 0.00 | E23: =E24+E25 -> 0.00 | F23: =D23+E23 -> 0.00 | G23: =G24+G25 -> 0.00 | H23: 0.00 | I23: 0.00
C24: Personal administrativo | F24: =D24+E24 -> 0.00 | I24: 0.00
C25: Personal médico, paramédico y afín | F25: 0.00 | I25: 0.00
B26: D | C26: Seguridad pública | F26: =D26+E26 -> 0.00 | I26: 0.00
B27: E | C27: Gastos asociados a la implementación de nuevas leyes federales o reformas a las mismas | D27: =D28+D29 -> 0.00 | E27: =E28+E29 -> 0.00 | F27: =D27+E27 -> 0.00 | G27: =G28+G29 -> 0.00 | H27: 0.00 | I27: 0.00
C28: Nombre del programa o ley | F28: =D28+E28 -> 0.00 | I28: 0.00
C29: Nombre del programa o ley | F29: 0.00 | I29: 0.00
B30: F | C30: Sentencias laborales definitivas | F30: =D30+E30 -> 0.00 | I30: 0.00
C31: TOTAL DEL GASTO ETIQUETADO | D31: =D21+D22+D23+D26+D27+D30 -> 0.00 | E31: =E21+E22+E23+E26+E27+E30 -> 0.00 | F31: =D31+E31 -> 0.00 | G31: =G21+G22+G23+G26+G27+G30 -> 0.00 | H31: =H21+H22+H23+H26+H27+H30 -> 0.00 | I31: 0.00
A32: III | B32: TOTAL DEL GASTO DE SERVICIOS PERSONALES | D32: =D19+D31 -> 0.00 | E32: =E19+E31 -> 0.00 | F32: =F19+F31 -> 0.00 | G32: 0.00 | H32: 0.00 | I32: =F32-G32 -> 0.00
A34: Bajo protesta de decir verdad declaramos que los estados financieros y sus notas, son razonablemente correctos y son responsabilidad del emisor.
C37: =Validacion!A7 -> ING. RAÚL EVERARDO GUTIÉRREZ CASTAÑEDA | F37: =Validacion!A9 -> MTRO. ARNOLDO SOLÓRZANO CUEVAS
C39: Presidente Municipal o titular del ente público | F39: Encargado de la Hacienda Municipal o Responsable de las finanzas del ente público

Sheet F22 (hidden)
A1: =Validacion!A2 -> Tamazula de Gordiano
A2: BALANCE PRESUPUESTARIO - LDF
A3: ='F6'!A3 -> Del 1° de Enero al 29 de Febrero de 2024
A4: (Pesos)
A5: CONCEPTO | E5: ESTIMADO/ APROBADO | F5: DEVENGADO | G5: RECAUDADO/ PAGADO
A6: A | C6: Ingresos totales | E6: =SUM(E7:E9) -> 0.00 | F6: =SUM(F7:F9) -> 0.00 | G6: 0.00
B7: A1 | C7: Ingresos de libre disposición | E7: =F7B!C39 -> 0.00 | F7: =F7B!F39 -> 0.00 | G7: =F7B!G39 -> 0.00
B8: A2 | C8: Transferencias federales etiquetadas | E8: =F7B!C61 -> 0.00 | F8: =F7B!F61 -> 0.00 | G8: =F7B!G61 -> 0.00
B9: A3 | C9: Financiamiento neto | E9: =E33 -> 0.00 | F9: =F33 -> 0.00 | G9: =G33 -> 0.00
A10: B | C10: Egresos presupuestarios | E10: =SUM(E11:E12) -> 0.00 | F10: =SUM(F11:F12) -> 0.00 | G10: 0.00
B11: B1 | C11: Gastos no etiquetado (sin incluir amortización de la deuda pública) | E11: =F8B!D80-E31 -> 0.00 | F11: =F8B!G80-F31 -> 0.00 | G11: =F8B!H80-G31 -> 0.00
B12: B2 | C12: Gasto etiquetado (sin incluir amortización de la deuda pública) | E12: =F8B!D154-E32 -> 0.00 | F12: =F8B!G154-F32 -> 0.00 | G12: =F8B!H154-G32 -> 0.00
A13: C | C13: Remanentes del ejercicio anterior | E13: =SUM(E14:E15) -> 0.00 | F13: =SUM(F14:F15) -> 0.00 | G13: 0.00
B14: C1 | C14: Remanentes de ingresos de libre disposición aplicados en el periodo
B15: C2 | C15: Remanentes de transferencias federales etiquetadas aplicados en el periodo
A16: I | C16: Balance presupuestario | E16: =E6-E10+E13 -> 0.00 | F16: =F6-F10+F13 -> 0.00 | G16: 0.00
A17: II | C17: Balance presupuestario sin financiamiento neto | E17: =E16-E9 -> 0.00 | F17: =F16-F9 -> 0.00 | G17: 0.00
A18: III | C18: Balance presupuestario sin financiamiento neto y sin remanentes del ejercicio anterior | E18: =E17-E13 -> 0.00 | F18: =F17-F13 -> 0.00 | G18: 0.00
A20: CONCEPTO | E20: APROBADO | F20: DEVENGADO | G20: PAGADO
A21: E | C21: Intereses, comisiones y gastos de la deuda | E21: =SUM(E22:E23) -> 0.00 | F21: =SUM(F22:F23) -> 0.00 | G21: 0.00
B22: E1 | C22: Intereses, comisiones y gastos de la deuda con gasto no etiquetado | E22: =SUM(F8B!D74:D77) -> 0.00 | F22: =SUM(F8B!G74:G77) -> 0.00 | G22: =SUM(F8B!H74:H77) -> 0.00
B23: E2 | C23: Intereses, comisiones y gastos de la deuda con gasto etiquetado | E23: =SUM(F8B!D148:D151) -> 0.00 | F23: =SUM(F8B!G148:G151) -> 0.00 | G23: =SUM(F8B!H148:H151) -> 0.00
A24: IV | C24: Balance primario | E24: =E18+E21 -> 0.00 | F24: =F18+F21 -> 0.00 | G24: 0.00
A26: CONCEPTO | E26: ESTIMADO/ APROBADO | F26: DEVENGADO | G26: RECAUDADO/ PAGADO
A27: F | C27: Financiamiento | E27: =SUM(E28:E29) -> 0.00 | F27: =SUM(F28:F29) -> 0.00 | G27: 0.00
B28: F1 | C28: Financiamiento con fuente de pago de ingresos de libre disposición | E28: =F7B!C66 -> 0.00 | F28: =F7B!F66 -> 0.00 | G28: =F7B!G66 -> 0.00
B29: F2 | C29: Financiamiento con fuente de pago de transferencias federales etiquetadas | E29: =F7B!C67 -> 0.00 | F29: =F7B!F67 -> 0.00 | G29: =F7B!G67 -> 0.00
A30: G | C30: Amortización de la deuda | E30: =SUM(E31:E32) -> 0.00 | F30: =SUM(F31:F32) -> 0.00 | G30: 0.00
B31: G1 | C31: Amortización de la deuda pública con gasto no etiquetado | E31: =F8B!D73 -> 0.00 | F31: =F8B!G73 -> 0.00 | G31: =F8B!H73 -> 0.00
B32: G2 | C32: Amortización de la deuda pública con gasto etiquetado | E32: =F8B!D147 -> 0.00 | F32: =F8B!G147 -> 0.00 | G32: =F8B!H147 -> 0.00
A33: A3 | C33: Financiamiento Neto | E33: =E27-E30 -> 0.00 | F33: =F27-F30 -> 0.00 | G33: 0.00
A35: CONCEPTO | E35: ESTIMADO/ APROBADO | F35: DEVENGADO | G35: RECAUDADO/ PAGADO
A36: A1 | C36: Ingresos de libre disposición | E36: =E7 -> 0.00 | F36: =F7 -> 0.00 | G36: =G7 -> 0.00
A37: A3.1 | C37: Financiamiento neto con fuente de pago de ingresos de libre disposición | E37: =E38-E39 -> 0.00 | F37: =F38-F39 -> 0.00 | G37: =G38-G39 -> 0.00
B38: F1 | C38: Financiamiento con fuente de pago de ingresos de libre disposición | E38: =E28 -> 0.00 | F38: =F28 -> 0.00 | G38: =G28 -> 0.00
B39: G1 | C39: Amortización de la deuda pública con gasto etiquetado | E39: =E31 -> 0.00 | F39: =F31 -> 0.00 | G39: =G31 -> 0.00
A40: B1 | C40: Gasto no etiquetado (sin incluir amortización de la deuda pública) | E40: =E11 -> 0.00 | F40: =F11 -> 0.00 | G40: =G11 -> 0.00
A41: C1 | C41: Remanente de ingresos de libre disposición aplicados en el periodo | F41: =F14 -> 0.00 | G41: =G14 -> 0.00
A42: V | C42: Balance presupuestario de recursos disponibles | E42: =E36+E37-E40+E41 -> 0.00 | F42: =F36+F37-F40+F41 -> 0.00 | G42: =G36+G37-G40+G41 -> 0.00
A43: VI | C43: Balance presupuestario de recursos disponibles sin financiamiento neto | E43: =E42-E37 -> 0.00 | F43: =F42-F37 -> 0.00 | G43: =G42-G37 -> 0.00
A45: CONCEPTO | E45: ESTIMADO/ APROBADO | F45: DEVENGADO | G45: RECAUDADO/ PAGADO
A46: A2 | C46: Transferencias federales etiquetadas | E46: =E8 -> 0.00 | F46: =F8 -> 0.00 | G46: =G8 -> 0.00
A47: A3.2 | C47: Financiamiento neto con fuente de pago de transferencias federales etiquetadas | E47: =E48-E49 -> 0.00 | F47: =F48-F49 -> 0.00 | G47: 0.00
B48: F2 | C48: Financiamiento con fuente de pago de transferencias federales | E48: =E29 -> 0.00 | F48: =F29 -> 0.00 | G48: =G29 -> 0.00
B49: G2 | C49: Amortización de la deuda pública con gasto etiquetado | E49: =E32 -> 0.00 | F49: =F32 -> 0.00 | G49: =G32 -> 0.00
A50: B2 | C50: Gasto etiquetado (sin incluir amortización de la deuda pública) | E50: =E12 -> 0.00 | F50: =F12 -> 0.00 | G50: =G12 -> 0.00
A51: C2 | C51: Remanente de transferencias federales etiquetadas aplicados en el periodo | F51: =F15 -> 0.00 | G51: =G15 -> 0.00
A52: VII | C52: Balance presupuestario de recursos etiquetados | E52: =E46+E47-E50+E51 -> 0.00 | F52: =F46+F47-F50+F51 -> 0.00 | G52: =G46+G47-G50+G51 -> 0.00
A53: VIII | C53: Balance presupuestario de recursos etiquetados sin financiamiento neto | E53: =E52-E47 -> 0.00 | F53: =F52-F47 -> 0.00 | G53: =G52-G47 -> 0.00
A55: Bajo protesta de decir verdad declaramos que los estados financieros y sus notas, son razonablemente correctos y son responsabilidad del emisor.
C59: =Validacion!A7 -> ING. RAÚL EVERARDO GUTIÉRREZ CASTAÑEDA | E59: =Validacion!A9 -> MTRO. ARNOLDO SOLÓRZANO CUEVAS
C61: Presidente Municipal o titular del ente público | E61: Encargado de la Hacienda Municipal o Responsable de las finanzas del ente público

Sheet F23 (hidden)
A1: =Validacion!A2 -> Tamazula de Gordiano
A2: INFORMATIVA ANUAL DE OBRAS
A3: ='F6'!A3 -> Del 1° de Enero al 29 de Febrero de 2024
A4: (Cifra en pesos)
A5: NOMBRE DE OBRA O NÚMERO DE ORDEN DE TRABAJO | B5: LOCALIDAD | C5: DESCRIPCIÓN DE LA OBRA U OBJETO DEL CONTRATO | D5: NOMBRE DEL EJECUTOR DE LA OBRA | E5: UBICACIÓN GEOGRÁFICA | G5: MODALIDAD DE EJECUCIÓN | K5: PLAZO DE EJECUCIÓN | N5: PRORROGA Y/O DIFERIMIENTO | P5: ORIGEN DEL RECURSO (MONTO) | T5: IMPORTE TOTAL DEL PAGO | U5: ESTATUS DE LA OBRA | V5: ENTREGA RECEPCIÓN Y/O MINUTA DE TERMINACIÓIN
G7: ADMÓN. DIRECTA | H7: CONTRATO
E8: LATITUD | F8: LONGITUD | H8: ADJ. DIRECTA | I8: CONCURSO SIMPL. | J8: LICITA. PÚBLICA | K8: INICIO | L8: TERMINO | M8: DÍAS NATURALES | N8: SI | O8: NO | P8: PROPIOS | Q8: ESTATAL | R8: FISMDF | S8: CONVENIO FEDERAL | V8: SI | W8: NO
M9: =L9-K9 -> 0 | T9: =SUM(P9:S9) -> 0.00
M10: =L10-K10 -> 0 | T10: =SUM(P10:S10) -> 0.00
M11: 0 | T11: 0.00
M12: 0 | T12: 0.00
M13: 0 | T13: 0.00
M14: 0 | T14: 0.00
M15: 0 | T15: 0.00
M16: 0 | T16: 0.00
M17: 0 | T17: 0.00
M18: 0 | T18: 0.00
M19: 0 | T19: 0.00
M20: 0 | T20: 0.00
M21: 0 | T21: 0.00
M22: 0 | T22: 0.00
M23: 0 | T23: 0.00
M24: 0 | T24: 0.00
M25: 0 | T25: 0.00
M26: 0 | T26: 0.00
M27: 0 | T27: 0.00
M28: 0 | T28: 0.00
M29: 0 | T29: 0.00
M30: 0 | T30: 0.00
M31: 0 | T31: 0.00
M32: 0 | T32: 0.00
M33: 0 | T33: 0.00
M34: 0 | T34: 0.00
M35: 0 | T35: 0.00
M36: 0 | T36: 0.00
M37: 0 | T37: 0.00
M38: 0 | T38: 0.00
M39: 0 | T39: 0.00
M40: 0 | T40: 0.00
M41: 0 | T41: 0.00
M42: 0 | T42: 0.00
M43: 0 | T43: 0.00
M44: 0 | T44: 0.00
M45: 0 | T45: 0.00
M46: 0 | T46: 0.00
M47: 0 | T47: 0.00
M48: 0 | T48: 0.00
M49: 0 | T49: 0.00
M50: 0 | T50: 0.00
M51: 0 | T51: 0.00
M52: 0 | T52: 0.00
M53: 0 | T53: 0.00
M54: 0 | T54: 0.00
M55: 0 | T55: 0.00
M56: 0 | T56: 0.00
M57: 0 | T57: 0.00
M58: 0 | T58: 0.00
M59: 0 | T59: 0.00
M60: 0 | T60: 0.00
M61: 0 | T61: 0.00
M62: 0 | T62: 0.00
M63: 0 | T63: 0.00
M64: 0 | T64: 0.00
M65: 0 | T65: 0.00
M66: 0 | T66: 0.00
M67: 0 | T67: 0.00
M68: 0 | T68: 0.00
M69: 0 | T69: 0.00
M70: 0 | T70: 0.00
M71: 0 | T71: 0.00
M72: 0 | T72: 0.00
M73: 0 | T73: 0.00
M74: =L74-K74 -> 0 | T74: =SUM(P74:S74) -> 0.00
M75: 0 | T75: 0.00
M76: 0 | T76: 0.00
M77: 0 | T77: 0.00
M78: 0 | T78: 0.00
M79: 0 | T79: 0.00
M80: 0 | T80: 0.00
M81: 0 | T81: 0.00
M82: 0 | T82: 0.00
M83: 0 | T83: 0.00
M84: 0 | T84: 0.00
M85: 0 | T85: 0.00
M86: 0 | T86: 0.00
M87: 0 | T87: 0.00
M88: 0 | T88: 0.00
M89: 0 | T89: 0.00
M90: 0 | T90: 0.00
M91: 0 | T91: 0.00
M92: 0 | T92: 0.00
M93: 0 | T93: 0.00
M94: 0 | T94: 0.00
M95: 0 | T95: 0.00
M96: 0 | T96: 0.00
M97: 0 | T97: 0.00
M98: 0 | T98: 0.00
M99: 0 | T99: 0.00
M100: 0 | T100: 0.00
M101: 0 | T101: 0.00
M102: 0 | T102: 0.00
M103: 0 | T103: 0.00
M104: 0 | T104: 0.00
M105: 0 | T105: 0.00
M106: 0 | T106: 0.00
M107: 0 | T107: 0.00
M108: 0 | T108: 0.00
M109: 0 | T109: 0.00
M110: 0 | T110: 0.00
M111: 0 | T111: 0.00
M112: 0 | T112: 0.00
M113: 0 | T113: 0.00
M114: 0 | T114: 0.00
M115: 0 | T115: 0.00
M116: 0 | T116: 0.00
M117: 0 | T117: 0.00
M118: 0 | T118: 0.00
M119: 0 | T119: 0.00
M120: 0 | T120: 0.00
M121: 0 | T121: 0.00
M122: 0 | T122: 0.00
M123: 0 | T123: 0.00
M124: 0 | T124: 0.00
M125: 0 | T125: 0.00
M126: 0 | T126: 0.00
M127: 0 | T127: 0.00
M128: 0 | T128: 0.00
M129: 0 | T129: 0.00
M130: 0 | T130: 0.00
M131: 0 | T131: 0.00
M132: 0 | T132: 0.00
M133: 0 | T133: 0.00
M134: 0 | T134: 0.00
M135: 0 | T135: 0.00
M136: 0 | T136: 0.00
M137: 0 | T137: 0.00
M138: =L138-K138 -> 0 | T138: =SUM(P138:S138) -> 0.00
M139: 0 | T139: 0.00
M140: 0 | T140: 0.00
M141: 0 | T141: 0.00
M142: 0 | T142: 0.00
M143: 0 | T143: 0.00
M144: 0 | T144: 0.00
M145: 0 | T145: 0.00
M146: 0 | T146: 0.00
M147: 0 | T147: 0.00
M148: 0 | T148: 0.00
M149: 0 | T149: 0.00
M150: 0 | T150: 0.00
M151: 0 | T151: 0.00
M152: 0 | T152: 0.00
M153: 0 | T153: 0.00
M154: 0 | T154: 0.00
M155: 0 | T155: 0.00
M156: 0 | T156: 0.00
M157: 0 | T157: 0.00
M158: 0 | T158: 0.00
M159: 0 | T159: 0.00
M160: 0 | T160: 0.00
M161: 0 | T161: 0.00
M162: 0 | T162: 0.00
M163: 0 | T163: 0.00
M164: 0 | T164: 0.00
M165: 0 | T165: 0.00
M166: 0 | T166: 0.00
M167: 0 | T167: 0.00
M168: 0 | T168: 0.00
M169: 0 | T169: 0.00
M170: 0 | T170: 0.00
M171: 0 | T171: 0.00
M172: 0 | T172: 0.00
M173: 0 | T173: 0.00
M174: 0 | T174: 0.00
M175: 0 | T175: 0.00
M176: 0 | T176: 0.00
M177: 0 | T177: 0.00
M178: 0 | T178: 0.00
M179: 0 | T179: 0.00
M180: 0 | T180: 0.00
M181: 0 | T181: 0.00
M182: 0 | T182: 0.00
M183: 0 | T183: 0.00
M184: 0 | T184: 0.00
M185: 0 | T185: 0.00
M186: 0 | T186: 0.00
M187: 0 | T187: 0.00
M188: 0 | T188: 0.00
M189: 0 | T189: 0.00
M190: 0 | T190: 0.00
M191: 0 | T191: 0.00
M192: 0 | T192: 0.00
M193: 0 | T193: 0.00
M194: 0 | T194: 0.00
M195: 0 | T195: 0.00
M196: 0 | T196: 0.00
M197: 0 | T197: 0.00
M198: 0 | T198: 0.00
M199: 0 | T199: 0.00
M200: 0 | T200: 0.00
M201: 0 | T201: 0.00
... 299 more rows

Sheet F1 (hidden)
B1: =Validacion!A2 -> Tamazula de Gordiano
B2: ESTADO ANALÍTICO DE SITUACIÓN FINANCIERA
B3: ="Al "&INDEX(Validacion!D185:D196,MATCH(Validacion!A11,Validacion!C185:C196,0)) -> Al 29 de Febrero de 2024
B4: (Cifra en pesos)
A5: CTA. | B5: CONCEPTO | AF5: =Validacion!F185 -> 2024 | AG5: =Validacion!F186 -> 2023 | AH5: CTA | AI5: CONCEPTO | BM5: =Validacion!F185 -> 2024 | BN5: =Validacion!F186 -> 2023
A6: 10000 | B6: ACTIVO | AH6: 20000 | AI6: PASIVO
A7: 11000 | B7: ACTIVO CIRCULANTE | AH7: 21000 | AI7: PASIVO CIRCULANTE
A8: 11100 | B8: EFECTIVO Y EQUIVALENTES | AF8: =SUM(AF9:AF15) -> 23,965,674.10 | AG8: =SUM(AG9:AG15) -> 11,502,299.08 | AH8: 21100 | AI8: CUENTAS POR PAGAR A CORTO PLAZO | BM8: =SUM(BM9:BM17) -> 24,412,651.47 | BN8: =SUM(BN9:BN17) -> 24,598,540.93
A9: 11110 | B9: Efectivo | AF9: =Balanza!G6 -> 431,563.12 | AG9: =Balanza!C6 -> -1,103,186.39 | AH9: 21110 | AI9: Servicios personales por pagar a corto plazo | BM9: =Balanza!H104 -> 4,467.11 | BN9: =Balanza!D104 -> 0.00
A10: 11120 | B10: Bancos/Tesorería | AF10: =Balanza!G7 -> 23,534,110.98 | AG10: =Balanza!C7 -> 12,605,485.47 | AH10: 21120 | AI10: Proveedores por pagar a corto plazo | BM10: =Balanza!H105 -> 1,794,587.43 | BN10: =Balanza!D105 -> 2,002,671.81
A11: 11130 | B11: Bancos/Dependencias y otros | AF11: =Balanza!G8 -> 0.00 | AG11: =Balanza!C8 -> 0.00 | AH11: 21130 | AI11: Contratistas por obras públicas por pagar a corto plazo | BM11: =Balanza!H106 -> 3,951,032.54 | BN11: =Balanza!D106 -> 3,951,032.54
A12: 11140 | B12: Inversiones temporales (hasta 3 meses) | AF12: =Balanza!G9 -> 0.00 | AG12: =Balanza!C9 -> 0.00 | AH12: 21140 | AI12: Participaciones y aportaciones por pagar a corto plazo | BM12: =Balanza!H107 -> 0.00 | BN12: =Balanza!D107 -> 0.00
A13: 11150 | B13: Fondos con afectación específica | AF13: =Balanza!G10 -> 0.00 | AG13: =Balanza!C10 -> 0.00 | AH13: 21150 | AI13: Transferencias otorgadas por pagar a corto plazo | BM13: =Balanza!H108 -> 200,304.41 | BN13: =Balanza!D108 -> 265,054.41
A14: 11160 | B14: Depósitos de fondos de terceros en garantía y/o administración | AF14: =Balanza!G11 -> 0.00 | AG14: =Balanza!C11 -> 0.00 | AH14: 21160 | AI14: Intereses, comisiones y otros gastos de la deuda pública por pagar a corto plazo | BM14: =Balanza!H109 -> 0.00 | BN14: =Balanza!D109 -> 0.00
A15: 11190 | B15: Otros efectivos y equivalentes | AF15: =Balanza!G12 -> 0.00 | AG15: =Balanza!C12 -> 0.00 | AH15: 21170 | AI15: Retenciones y contribuciones por pagar a corto plazo | BM15: =Balanza!H110 -> 18,462,259.98 | BN15: =Balanza!D110 -> 18,379,782.17
A16: 11200 | B16: DERECHOS A RECIBIR EFECTIVO O EQUIVALENTES | AF16: =SUM(AF17:AF23) -> 5,361,392.28 | AG16: =SUM(AG17:AG23) -> 4,345,705.35 | AH16: 21180 | AI16: Devoluciones de la ley de ingresos por pagar a corto plazo | BM16: =Balanza!H111 -> 0.00 | BN16: =Balanza!D111 -> 0.00
A17: 11210 | B17: Inversiones financieras de corto plazo | AF17: =Balanza!G14 -> 0.00 | AG17: =Balanza!C14 -> 0.00 | AH17: 21190 | AI17: Otras cuentas por pagar a corto plazo | BM17: =Balanza!H112 -> 0.00 | BN17: =Balanza!D112 -> 0.00
A18: 11220 | B18: Cuentas por cobrar a corto plazo | AF18: =Balanza!G15 -> 0.00 | AG18: =Balanza!C15 -> 0.00 | AH18: 21200 | AI18: DOCUMENTOS POR PAGAR A CORTO PLAZO | BM18: =SUM(BM19:BM21) -> 0.00 | BN18: =SUM(BN19:BN21) -> 0.00
A19: 11230 | B19: Deudores diversos por cobrar a corto plazo | AF19: =Balanza!G16 -> 2,514,938.94 | AG19: =Balanza!C16 -> 1,893,819.54 | AH19: 21210 | AI19: Documentos comerciales por pagar a corto plazo | BM19: =Balanza!H114 -> 0.00 | BN19: =Balanza!D114 -> 0.00
A20: 11240 | B20: Ingresos por recuperar a corto plazo | AF20: =Balanza!G17 -> 0.00 | AG20: =Balanza!C17 -> 0.00 | AH20: 21220 | AI20: Documentos con contratistas por obras públicas por pagar a corto plazo | BM20: =Balanza!H115 -> 0.00 | BN20: =Balanza!D115 -> 0.00
A21: 11250 | B21: Deudores por anticipos de la tesorería a corto plazo | AF21: =Balanza!G18 -> 2,846,453.34 | AG21: =Balanza!C18 -> 2,451,885.81 | AH21: 21290 | AI21: Otros documentos por pagar a corto plazo | BM21: =Balanza!H116 -> 0.00 | BN21: =Balanza!D116 -> 0.00
A22: 11260 | B22: Préstamos otorgados a corto plazo | AF22: =Balanza!G19 -> 0.00 | AG22: =Balanza!C19 -> 0.00 | AH22: 21300 | AI22: PORCIÓN A CORTO PLAZO DE LA DEUDA PÚBLICA A LARGO PLAZO | BM22: =SUM(BM23:BM25) -> 0.00 | BN22: =SUM(BN23:BN25) -> 0.00
A23: 11290 | B23: Otros derechos a recibir efectivo o equivalentes a corto plazo | AF23: =Balanza!G20 -> 0.00 | AG23: =Balanza!C20 -> 0.00 | AH23: 21310 | AI23: Porción a corto plazo de la deuda pública interna | BM23: =Balanza!H118 -> 0.00 | BN23: =Balanza!D118 -> 0.00
A24: 11300 | B24: DERECHOS A RECIBIR BIENES O SERVICIOS | AF24: =SUM(AF25:AF29) -> 2,780,707.17 | AG24: =SUM(AG25:AG29) -> 2,780,707.17 | AH24: 21320 | AI24: Porción a corto plazo de la deuda pública externa | BM24: =Balanza!H119 -> 0.00 | BN24: =Balanza!D119 -> 0.00
A25: 11310 | B25: Anticipo a proveedores por adquisición de bienes y prestación de servicios a corto plazo | AF25: =Balanza!G22 -> 50,000.00 | AG25: =Balanza!C22 -> 50,000.00 | AH25: 21330 | AI25: Porción a corto plazo de arrendamiento financiero | BM25: =Balanza!H120 -> 0.00 | BN25: =Balanza!D120 -> 0.00
A26: 11320 | B26: Anticipo a proveedores por adquisición de bienes inmuebles y muebles a corto plazo | AF26: =Balanza!G23 -> 125,000.00 | AG26: =Balanza!C23 -> 125,000.00 | AH26: 21400 | AI26: TÍTULOS Y VALORES A CORTO PLAZO | BM26: =SUM(BM27:BM28) -> 0.00 | BN26: =SUM(BN27:BN28) -> 0.00
A27: 11330 | B27: Anticipo a proveedores por adquisición de bienes intangibles a corto plazo | AF27: =Balanza!G24 -> 0.00 | AG27: =Balanza!C24 -> 0.00 | AH27: 21410 | AI27: Títulos y valores de la deuda pública interna a corto plazo | BM27: =Balanza!H122 -> 0.00 | BN27: =Balanza!D122 -> 0.00
A28: 11340 | B28: Anticipo a contratistas por obras públicas a corto plazo | AF28: =Balanza!G25 -> 2,605,707.17 | AG28: =Balanza!C25 -> 2,605,707.17 | AH28: 21420 | AI28: Títulos y valores de la deuda pública externa a corto plazo | BM28: =Balanza!H123 -> 0.00 | BN28: =Balanza!D123 -> 0.00
A29: 11390 | B29: Otros derechos a recibir bienes o servicios a corto plazo | AF29: =Balanza!G26 -> 0.00 | AG29: =Balanza!C26 -> 0.00 | AH29: 21500 | AI29: PASIVOS DIFERIDOS A CORTO PLAZO | BM29: =SUM(BM30:BM32) -> 2,089,743.73 | BN29: =SUM(BN30:BN32) -> 2,793,236.27
A30: 11400 | B30: INVENTARIOS | AF30: =SUM(AF31:AF35) -> 0.00 | AG30: =SUM(AG31:AG35) -> 0.00 | AH30: 21510 | AI30: Ingresos cobrados por adelantado a corto plazo | BM30: =Balanza!H125 -> 2,089,743.73 | BN30: =Balanza!D125 -> 2,793,236.27
A31: 11410 | B31: Inventario de mercancías para venta | AF31: =Balanza!G28 -> 0.00 | AG31: =Balanza!C28 -> 0.00 | AH31: 21520 | AI31: Intereses cobrados por adelantado a corto plazo | BM31: =Balanza!H126 -> 0.00 | BN31: =Balanza!D126 -> 0.00
A32: 11420 | B32: Inventario de mercancías terminadas | AF32: =Balanza!G29 -> 0.00 | AG32: =Balanza!C29 -> 0.00 | AH32: 21590 | AI32: Otros pasivos diferidos a corto plazo | BM32: =Balanza!H127 -> 0.00 | BN32: =Balanza!D127 -> 0.00
A33: 11430 | B33: Inventario de mercancías en proceso de elaboración | AF33: =Balanza!G30 -> 0.00 | AG33: =Balanza!C30 -> 0.00 | AH33: 21600 | AI33: FONDOS Y BIENES DE TERCEROS EN GARANTÍA Y/O ADMINISTRACIÓN A CORTO PLAZO | BM33: =SUM(BM34:BM39) -> 0.00 | BN33: =SUM(BN34:BN39) -> 0.00
A34: 11440 | B34: Inventario de materias primas, materiales y suministros para producción | AF34: =Balanza!G31 -> 0.00 | AG34: =Balanza!C31 -> 0.00 | AH34: 21610 | AI34: Fondos en garantía a corto plazo | BM34: =Balanza!H129 -> 0.00 | BN34: =Balanza!D129 -> 0.00
A35: 11450 | B35: Bienes en tránsito | AF35: =Balanza!G32 -> 0.00 | AG35: =Balanza!C32 -> 0.00 | AH35: 21620 | AI35: Fondos en administración a corto plazo | BM35: =Balanza!H130 -> 0.00 | BN35: =Balanza!D130 -> 0.00
A36: 11500 | B36: ALMACENES | AF36: =AF37 -> 0.00 | AG36: =AG37 -> 0.00 | AH36: 21630 | AI36: Fondos contingentes a corto plazo | BM36: =Balanza!H131 -> 0.00 | BN36: =Balanza!D131 -> 0.00
A37: 11510 | B37: Almacén de materiales y suministro para el consumo | AF37: =Balanza!G34 -> 0.00 | AG37: =Balanza!C34 -> 0.00 | AH37: 21640 | AI37: Fondos de fideicomisos, mandatos y contratos análogos a corto plazo | BM37: =Balanza!H132 -> 0.00 | BN37: =Balanza!D132 -> 0.00
A38: 11600 | B38: ESTIMACIÓN POR PÉRDIDA O DETERIORO DE ACTIVOS CIRCULANTES | AF38: =SUM(AF39:AF40) -> 0.00 | AG38: =SUM(AG39:AG40) -> 0.00 | AH38: 21650 | AI38: Otros fondos de terceros en garantía y/o administración a corto plazo | BM38: =Balanza!H133 -> 0.00 | BN38: =Balanza!D133 -> 0.00
A39: 11610 | B39: Estimaciones para cuentas incobrables por derechos a recibir efectivo o equivalentes | AF39: =Balanza!G36 -> 0.00 | AG39: =Balanza!C36 -> 0.00 | AH39: 21660 | AI39: Valores y bienes en garantía a corto plazo | BM39: =Balanza!H134 -> 0.00 | BN39: =Balanza!D134 -> 0.00
A40: 11620 | B40: Estimación por deterioro de inventarios | AF40: =Balanza!G37 -> 0.00 | AG40: =Balanza!C37 -> 0.00 | AH40: 21700 | AI40: PROVISIONES A CORTO PLAZO | BM40: =SUM(BM41:BM43) -> 0.00 | BN40: =SUM(BN41:BN43) -> 0.00
A41: 11900 | B41: OTROS ACTIVOS CIRCULANTES | AF41: =SUM(AF42:AF45) -> 0.00 | AG41: =SUM(AG42:AG45) -> 0.00 | AH41: 21710 | AI41: Provisión para demandas y juicios a corto plazo | BM41: =Balanza!H136 -> 0.00 | BN41: =Balanza!D136 -> 0.00
A42: 11910 | B42: Valores en garantía | AF42: =Balanza!G39 -> 0.00 | AG42: =Balanza!C39 -> 0.00 | AH42: 21720 | AI42: Provisión para contingencias a corto plazo | BM42: =Balanza!H137 -> 0.00 | BN42: =Balanza!D137 -> 0.00
A43: 11920 | B43: Bienes en garantía (excluye depósitos de fondos) | AF43: =Balanza!G40 -> 0.00 | AG43: =Balanza!C40 -> 0.00 | AH43: 21790 | AI43: Otras provisiones a corto plazo | BM43: =Balanza!H138 -> 0.00 | BN43: =Balanza!D138 -> 0.00
A44: 11930 | B44: Bienes derivados de embargos, decomisos, aseguramientos y dación en pago | AF44: =Balanza!G41 -> 0.00 | AG44: =Balanza!C41 -> 0.00 | AH44: 21900 | AI44: OTROS PASIVOS A CORTO PLAZO | BM44: =SUM(BM45:BM47) -> 65,847.95 | BN44: =SUM(BN45:BN47) -> 64,542.55
A45: 11940 | B45: Adquisición con fondos de terceros | AF45: =Balanza!G42 -> 0.00 | AG45: =Balanza!C42 -> 0.00 | AH45: 21910 | AI45: Ingresos por clasificar | BM45: =Balanza!H140 -> 65,847.95 | BN45: =Balanza!D140 -> 64,542.55
B46: ACTIVOS CIRCULANTES | AF46: =AF8+AF16+AF24+AF30+AF36+AF38+AF41 -> 32,107,773.55 | AG46: =AG8+AG16+AG24+AG30+AG36+AG38+AG41 -> 18,628,711.60 | AH46: 21920 | AI46: Recaudación por participar | BM46: =Balanza!H141 -> 0.00 | BN46: =Balanza!D141 -> 0.00
A47: 12000 | B47: ACTIVO NO CIRCULANTE | AH47: 21990 | AI47: Otros pasivos circulantes | BM47: =Balanza!H142 -> 0.00 | BN47: =Balanza!D142 -> 0.00
A48: 12100 | B48: INVERSIONES FINANCIERAS A LARGO PLAZO | AF48: =SUM(AF49:AF52) -> 0.00 | AG48: =SUM(AG49:AG52) -> 0.00 | AI48: PASIVOS CIRCULANTES | BM48: =BM8+BM18+BM22+BM26+BM29+BM33+BM40+BM44 -> 26,568,243.15 | BN48: =BN8+BN18+BN22+BN26+BN29+BN33+BN40+BN44 -> 27,456,319.75
A49: 12110 | B49: Inversiones a largo plazo | AF49: =Balanza!G45 -> 0.00 | AG49: =Balanza!C45 -> 0.00 | AH49: 22000 | AI49: PASIVO NO CIRCULANTE
A50: 12120 | B50: Títulos y valores a largo plazo | AF50: =Balanza!G46 -> 0.00 | AG50: =Balanza!C46 -> 0.00 | AH50: 22100 | AI50: CUENTAS POR PAGAR A LARGO PLAZO | BM50: =SUM(BM51:BM52) -> 0.00 | BN50: =SUM(BN51:BN52) -> 0.00
A51: 12130 | B51: Fideicomisos, mandatos y contratos análogos | AF51: =Balanza!G47 -> 0.00 | AG51: =Balanza!C47 -> 0.00 | AH51: 22110 | AI51: Proveedores por pagar a largo plazo | BM51: =Balanza!H145 -> 0.00 | BN51: =Balanza!D145 -> 0.00
A52: 12140 | B52: Participaciones y aportaciones de capital | AF52: =Balanza!G48 -> 0.00 | AG52: =Balanza!C48 -> 0.00 | AH52: 22120 | AI52: Contratistas por obras públicas por pagar a largo plazo | BM52: =Balanza!H146 -> 0.00 | BN52: =Balanza!D146 -> 0.00
A53: 12200 | B53: DERECHOS A RECIBIR EFECTIVO O EQUIVALENTES A LARGO PLAZO | AF53: =SUM(AF54:AF58) -> 0.00 | AG53: =SUM(AG54:AG58) -> 0.00 | AH53: 22200 | AI53: DOCUMENTOS POR PAGAR A LARGO PLAZO | BM53: =SUM(BM54:BM56) -> 0.00 | BN53: =SUM(BN54:BN56) -> 0.00
A54: 12210 | B54: Documentos por cobrar a largo plazo | AF54: =Balanza!G50 -> 0.00 | AG54: =Balanza!C50 -> 0.00 | AH54: 22210 | AI54: Documentos comerciales por pagar a largo plazo | BM54: =Balanza!H148 -> 0.00 | BN54: =Balanza!D148 -> 0.00
A55: 12220 | B55: Deudores diversos a largo plazo | AF55: =Balanza!G51 -> 0.00 | AG55: =Balanza!C51 -> 0.00 | AH55: 22220 | AI55: Documentos con contratistas por obras públicas por pagar a largo plazo | BM55: =Balanza!H149 -> 0.00 | BN55: =Balanza!D149 -> 0.00
A56: 12230 | B56: Ingresos por recuperar a largo plazo | AF56: =Balanza!G52 -> 0.00 | AG56: =Balanza!C52 -> 0.00 | AH56: 22290 | AI56: Otros documentos por pagar a largo plazo | BM56: =Balanza!H150 -> 0.00 | BN56: =Balanza!D150 -> 0.00
A57: 12240 | B57: Préstamos otorgados a largo plazo | AF57: =Balanza!G53 -> 0.00 | AG57: =Balanza!C53 -> 0.00 | AH57: 22300 | AI57: DEUDA PÚBLICA A LARGO PLAZO | BM57: =SUM(BM58:BM62) -> 32,894,572.00 | BN57: =SUM(BN58:BN62) -> 33,938,844.13
A58: 12290 | B58: Otros derechos a recibir efectivo o equivalentes a largo plazo | AF58: =Balanza!G54 -> 0.00 | AG58: =Balanza!C54 -> 0.00 | AH58: 22310 | AI58: Títulos y valores de la deuda pública interna a largo plazo | BM58: =Balanza!H152 -> 0.00 | BN58: =Balanza!D152 -> 0.00
A59: 12300 | B59: BIENES INMUEBLES, INFRAESTRUCTURA Y CONSTRUCCIONES EN PROCESO | AF59: =SUM(AF60:AF66) -> 558,182,589.98 | AG59: =SUM(AG60:AG66) -> 556,968,585.96 | AH59: 22320 | AI59: Títulos y valores de la deuda pública externa a largo plazo | BM59: =Balanza!H153 -> 0.00 | BN59: =Balanza!D153 -> 0.00
A60: 12310 | B60: Terrenos | AF60: =Balanza!G56 -> 5,900,000.00 | AG60: =Balanza!C56 -> 5,900,000.00 | AH60: 22330 | AI60: Préstamos de la deuda pública interna por pagar a largo plazo | BM60: =Balanza!H154 -> 32,894,572.00 | BN60: =Balanza!D154 -> 33,938,844.13
A61: 12320 | B61: Viviendas | AF61: =Balanza!G57 -> 578,075.18 | AG61: =Balanza!C57 -> 578,075.18 | AH61: 22340 | AI61: Préstamos de la deuda pública externa por pagar a largo plazo | BM61: =Balanza!H155 -> 0.00 | BN61: =Balanza!D155 -> 0.00
A62: 12330 | B62: Edificios no habitacionales | AF62: =Balanza!G58 -> 11,297,680.73 | AG62: =Balanza!C58 -> 11,297,680.73 | AH62: 22350 | AI62: Arrendamiento financiero por pagar a largo plazo | BM62: =Balanza!H156 -> 0.00 | BN62: =Balanza!D156 -> 0.00
A63: 12340 | B63: Infraestructura | AF63: =Balanza!G59 -> 36,641,456.92 | AG63: =Balanza!C59 -> 36,641,456.92 | AH63: 22400 | AI63: PASIVOS DIFERIDOS A LARGO PLAZO | BM63: =SUM(BM64:BM66) -> 0.00 | BN63: =SUM(BN64:BN66) -> 0.00
A64: 12350 | B64: Construcciones en proceso en bienes de dominio público | AF64: =Balanza!G60 -> 477,687,410.72 | AG64: =Balanza!C60 -> 476,473,406.70 | AH64: 22410 | AI64: Créditos diferidos a largo plazo | BM64: =Balanza!H158 -> 0.00 | BN64: =Balanza!D158 -> 0.00
A65: 12360 | B65: Construcciones en proceso en bienes propios | AF65: =Balanza!G61 -> 26,077,966.43 | AG65: =Balanza!C61 -> 26,077,966.43 | AH65: 22420 | AI65: Intereses cobrados por adelantado a largo plazo | BM65: =Balanza!H159 -> 0.00 | BN65: =Balanza!D159 -> 0.00
A66: 12390 | B66: Otros bienes inmuebles | AF66: =Balanza!G62 -> 0.00 | AG66: =Balanza!C62 -> 0.00 | AH66: 22490 | AI66: Otros pasivos diferidos a largo plazo | BM66: =Balanza!H160 -> 0.00 | BN66: =Balanza!D160 -> 0.00
A67: 12400 | B67: BIENES MUEBLES | AF67: =SUM(AF68:AF75) -> 47,596,491.48 | AG67: =SUM(AG68:AG75) -> 47,567,241.48 | AH67: 22500 | AI67: FONDOS Y BIENES DE TERCEROS EN GARANTÍA Y/O ADMINISTRACIÓN A LARGO PLAZO | BM67: =SUM(BM68:BM73) -> 0.00 | BN67: =SUM(BN68:BN73) -> 0.00
A68: 12410 | B68: Mobiliario y equipo de administración | AF68: =Balanza!G64 -> 4,280,699.50 | AG68: =Balanza!C64 -> 4,256,935.50 | AH68: 22510 | AI68: Fondos en garantía a largo plazo | BM68: =Balanza!H162 -> 0.00 | BN68: =Balanza!D162 -> 0.00
A69: 12420 | B69: Mobiliario y equipo educacional y recreativo | AF69: =Balanza!G65 -> 4,660,660.52 | AG69: =Balanza!C65 -> 4,660,660.52 | AH69: 22520 | AI69: Fondos en administración a largo plazo | BM69: =Balanza!H163 -> 0.00 | BN69: =Balanza!D163 -> 0.00
A70: 12430 | B70: Equipo e instrumental médico y de laboratorio | AF70: =Balanza!G66 -> 0.00 | AG70: =Balanza!C66 -> 0.00 | AH70: 22530 | AI70: Fondos contingentes a largo plazo | BM70: =Balanza!H164 -> 0.00 | BN70: =Balanza!D164 -> 0.00
A71: 12440 | B71: Vehículos y equipo de transporte | AF71: =Balanza!G67 -> 4,650,157.99 | AG71: =Balanza!C67 -> 4,650,157.99 | AH71: 22540 | AI71: Fondos de fideicomisos, mandatos y contratos análogos a largo plazo | BM71: =Balanza!H165 -> 0.00 | BN71: =Balanza!D165 -> 0.00
A72: 12450 | B72: Equipo de defensa y seguridad | AF72: =Balanza!G68 -> 387,977.14 | AG72: =Balanza!C68 -> 387,977.14 | AH72: 22550 | AI72: Otros fondos de terceros en garantía y/o administración a largo plazo | BM72: =Balanza!H166 -> 0.00 | BN72: =Balanza!D166 -> 0.00
A73: 12460 | B73: Maquinaria, otros equipos y herramientas | AF73: =Balanza!G69 -> 32,291,099.69 | AG73: =Balanza!C69 -> 32,285,613.69 | AH73: 22560 | AI73: Valores y bienes en garantía a largo plazo | BM73: =Balanza!H167 -> 0.00 | BN73: =Balanza!D167 -> 0.00
A74: 12470 | B74: Colecciones, obras de arte y objetos valiosos | AF74: =Balanza!G70 -> 1,325,896.64 | AG74: =Balanza!C70 -> 1,325,896.64 | AH74: 22600 | AI74: PROVISIONES A LARGO PLAZO | BM74: =SUM(BM75:BM78) -> 0.00 | BN74: =SUM(BN75:BN78) -> 0.00
A75: 12480 | B75: Activos biológicos | AF75: =Balanza!G71 -> 0.00 | AG75: =Balanza!C71 -> 0.00 | AH75: 22610 | AI75: Provisión para demandas y juicios a largo plazo | BM75: =Balanza!H169 -> 0.00 | BN75: =Balanza!D169 -> 0.00
A76: 12500 | B76: ACTIVOS INTANGIBLES | AF76: =SUM(AF77:AF81) -> 292,189.69 | AG76: =SUM(AG77:AG81) -> 285,324.23 | AH76: 22620 | AI76: Provisión para pensiones a largo plazo | BM76: =Balanza!H170 -> 0.00 | BN76: =Balanza!D170 -> 0.00
A77: 12510 | B77: Software | AF77: =Balanza!G73 -> 208,108.27 | AG77: =Balanza!C73 -> 208,108.27 | AH77: 22630 | AI77: Provisión para contingencias a largo plazo | BM77: =Balanza!H171 -> 0.00 | BN77: =Balanza!D171 -> 0.00
A78: 12520 | B78: Patentes, marcas y derechos | AF78: =Balanza!G74 -> 0.00 | AG78: =Balanza!C74 -> 0.00 | AH78: 22690 | AI78: Otras provisiones a largo plazo | BM78: =Balanza!H172 -> 0.00 | BN78: =Balanza!D172 -> 0.00
A79: 12530 | B79: Concesiones y franquicias | AF79: =Balanza!G75 -> 0.00 | AG79: =Balanza!C75 -> 0.00 | AI79: PASIVOS NO CIRCULANTES | BM79: =BM50+BM53+BM57+BM63+BM67+BM74 -> 32,894,572.00 | BN79: =BN50+BN53+BN57+BN63+BN67+BN74 -> 33,938,844.13
A80: 12540 | B80: Licencias | AF80: =Balanza!G76 -> 84,081.42 | AG80: =Balanza!C76 -> 77,215.96 | AI80: TOTAL DE PASIVOS | BM80: =BM48+BM79 -> 59,462,815.15 | BN80: =BN48+BN79 -> 61,395,163.88
A81: 12590 | B81: Otros activos intangibles | AF81: =Balanza!G77 -> 0.00 | AG81: =Balanza!C77 -> 0.00 | AH81: 30000 | AI81: HACIENDA PÚBLICA/ PATRIMONIO
A82: 12600 | B82: DEPRECIACIÓN, DETERIORO Y AMORTIZACIÓN ACUMULADA DE BIENES | AF82: =SUM(AF83:AF87) -> 0.00 | AG82: =SUM(AG83:AG87) -> 0.00 | AH82: 31000 | AI82: HACIENDA PÚBLICA/ PATRIMONIO CONTRIBUIDO | BM82: =SUM(BM83:BM85) -> -9,699,435.73 | BN82: =SUM(BN83:BN85) -> -9,699,435.73
A83: 12610 | B83: Depreciación acumulada de bienes inmuebles | AF83: =(Balanza!H79)*-1 -> 0.00 | AG83: =(Balanza!D79)*-1 -> 0.00 | AH83: 31100 | AI83: Aportaciones | BM83: =Balanza!H175 -> 0.00 | BN83: =Balanza!D175 -> 0.00
A84: 12620 | B84: Depreciación acumulada de infraestructura | AF84: =(Balanza!H80)*-1 -> 0.00 | AG84: =(Balanza!D80)*-1 -> 0.00 | AH84: 31200 | AI84: Donaciones de capítal | BM84: =Balanza!H176 -> 0.00 | BN84: =Balanza!D176 -> 0.00
A85: 12630 | B85: Depreciación acumulada de bienes muebles | AF85: =(Balanza!H81)*-1 -> 0.00 | AG85: =(Balanza!D81)*-1 -> 0.00 | AH85: 31300 | AI85: Actualización de la hacienda pública/patrimonio | BM85: =Balanza!H177 -> -9,699,435.73 | BN85: =Balanza!D177 -> -9,699,435.73
A86: 12640 | B86: Deterioro acumulado de bienes | AF86: =(Balanza!H82)*-1 -> 0.00 | AG86: =(Balanza!D82)*-1 -> 0.00 | AH86: 32000 | AI86: HACIENDA PÚBLICA/PATRIMONIO GENERADO | BM86: =BM87+BM88+BM89+BM94+BM98 -> 588,415,665.28 | BN86: =BN87+BN88+BN89+BN94+BN98 -> 571,754,135.12
A87: 12650 | B87: Amortización acumulada de activos intangibles | AF87: =(Balanza!H83)*-1 -> 0.00 | AG87: =(Balanza!D83)*-1 -> 0.00 | AH87: 32100 | AI87: Resultado del ejercicio (ahorro/desahorro) | BM87: =Balanza!H179 -> 16,661,530.16 | BN87: =Balanza!D179 -> 23,476,161.80
A88: 12700 | B88: ACTIVOS DIFERIDOS | AF88: =SUM(AF89:AF94) -> 0.00 | AG88: =SUM(AG89:AG94) -> 0.00 | AH88: 32200 | AI88: Resultado de ejercicios anteriores | BM88: =Balanza!H180 -> 571,754,135.12 | BN88: =Balanza!D180 -> 548,277,973.32
A89: 12710 | B89: Estudios, formulación y evaluación de proyectos | AF89: =Balanza!G85 -> 0.00 | AG89: =Balanza!C85 -> 0.00 | AH89: 32300 | AI89: REVALÚOS | BM89: =SUM(BM90:BM93) -> 0.00 | BN89: =SUM(BN90:BN93) -> 0.00
A90: 12720 | B90: Derechos sobre bienes en régimen de arrendamiento financiero | AF90: =Balanza!G86 -> 0.00 | AG90: =Balanza!C86 -> 0.00 | AH90: 32310 | AI90: Revalúo de bienes inmuebles | BM90: =Balanza!H182 -> 0.00 | BN90: =Balanza!D182 -> 0.00
A91: 12730 | B91: Gastos pagados por adelantado a largo plazo | AF91: =Balanza!G87 -> 0.00 | AG91: =Balanza!C87 -> 0.00 | AH91: 32320 | AI91: Revalúo de bienes muebles | BM91: =Balanza!H183 -> 0.00 | BN91: =Balanza!D183 -> 0.00
A92: 12740 | B92: Anticipos a largo plazo | AF92: =Balanza!G88 -> 0.00 | AG92: =Balanza!C88 -> 0.00 | AH92: 32330 | AI92: Revalúo de bienes intangibles | BM92: =Balanza!H184 -> 0.00 | BN92: =Balanza!D184 -> 0.00
A93: 12750 | B93: Beneficios al retiro de empleados pagados por adelantado | AF93: =Balanza!G89 -> 0.00 | AG93: =Balanza!C89 -> 0.00 | AH93: 32390 | AI93: Otros revalúos | BM93: =Balanza!H185 -> 0.00 | BN93: =Balanza!D185 -> 0.00
A94: 12790 | B94: Otros activos diferidos | AF94: =Balanza!G90 -> 0.00 | AG94: =Balanza!C90 -> 0.00 | AH94: 32400 | AI94: RESERVAS | BM94: =SUM(BM95:BM97) -> 0.00 | BN94: =SUM(BN95:BN97) -> 0.00
A95: 12800 | B95: ESTIMACIÓN POR PÉRDIDA O DETERIORO DE ACTIVOS NO CIRCULANTES | AF95: =SUM(AF96:AF100) -> 0.00 | AG95: =SUM(AG96:AG100) -> 0.00 | AH95: 32410 | AI95: Reservas de patrimonio | BM95: =Balanza!H187 -> 0.00 | BN95: =Balanza!D187 -> 0.00
A96: 12810 | B96: Estimaciones por pérdida de cuentas incobrables de documentos por cobrar a largo plazo | AF96: =(Balanza!H92)*-1 -> 0.00 | AG96: =(Balanza!D92)*-1 -> 0.00 | AH96: 32420 | AI96: Reservas territoriales | BM96: =Balanza!H188 -> 0.00 | BN96: =Balanza!D188 -> 0.00
A97: 12820 | B97: Estimaciones por pérdida de cuentas incobrables de deudores diversos por cobrar a largo plazo | AF97: =(Balanza!H93)*-1 -> 0.00 | AG97: =(Balanza!D93)*-1 -> 0.00 | AH97: 32430 | AI97: Reservas por contingencias | BM97: =Balanza!H189 -> 0.00 | BN97: =Balanza!D189 -> 0.00
A98: 12830 | B98: Estimaciones por pérdida de cuentas incobrables de ingresos por cobrar a largo plazo | AF98: =(Balanza!H94)*-1 -> 0.00 | AG98: =(Balanza!D94)*-1 -> 0.00 | AH98: 32500 | AI98: RECTIFICACIONES DE RESULTADOS DE EJERCICIOS ANTERIORES | BM98: =SUM(BM99:BM100) -> 0.00 | BN98: =SUM(BN99:BN100) -> 0.00
A99: 12840 | B99: Estimaciones por pérdida de cuentas incobrables de préstamos otorgados a largo plazo | AF99: =(Balanza!H95)*-1 -> 0.00 | AG99: =(Balanza!D95)*-1 -> 0.00 | AH99: 32510 | AI99: Cambios en políticas contables | BM99: =Balanza!H191 -> 0.00 | BN99: =Balanza!D191 -> 0.00
A100: 12890 | B100: Estimaciones por pérdida de otras cuentas incobrables a largo plazo | AF100: =(Balanza!H96)*-1 -> 0.00 | AG100: =(Balanza!D96)*-1 -> 0.00 | AH100: 32520 | AI100: Cambios por errores contables | BM100: =Balanza!H192 -> 0.00 | BN100: =Balanza!D192 -> 0.00
A101: 12900 | B101: OTROS ACTIVOS NO CIRCULANTES | AF101: =SUM(AF102:AF104) -> 0.00 | AG101: =SUM(AG102:AG104) -> 0.00 | AH101: 33000 | AI101: EXCESO O INSUFICIENCIA EN LA ACTUALIZACIÓN DE LA HACIENDA PÚBLICA / PATRIMONIO | BM101: =SUM(BM102:BM103) -> 0.00 | BN101: =SUM(BN102:BN103) -> 0.00
A102: 12910 | B102: Bienes en concesión | AF102: =Balanza!G98 -> 0.00 | AG102: =Balanza!C98 -> 0.00 | AH102: 33100 | AI102: Resultado por posición monetaria | BM102: =Balanza!H194 -> 0.00 | BN102: =Balanza!D194 -> 0.00
A103: 12920 | B103: Bienes en arrendamiento financiero | AF103: =Balanza!G99 -> 0.00 | AG103: =Balanza!C99 -> 0.00 | AH103: 33200 | AI103: Resultado por tenencia de activos no monetarios | BM103: =Balanza!H195 -> 0.00 | BN103: =Balanza!D195 -> 0.00
A104: 12930 | B104: Bienes en comodato | AF104: =Balanza!G100 -> 0.00 | AG104: =Balanza!C100 -> 0.00 | BL104: TOTAL HACIENDA PUBLICA / PATRIMONIO | BM104: =BM82+BM86+BM101 -> 578,716,229.55 | BN104: =BN82+BN86+BN101 -> 562,054,699.39
B105: ACTIVOS NO CIRCULANTES | AF105: =AF48+AF53+AF59+AF67+AF76+AF82+AF88+AF95+AF101 -> 606,071,271.15 | AG105: =AG48+AG53+AG59+AG67+AG76+AG82+AG88+AG95+AG101 -> 604,821,151.67
B106: TOTAL DEL ACTIVO | AF106: =AF46+AF105 -> 638,179,044.70 | AG106: =AG46+AG105 -> 623,449,863.27 | AI106: SUMA DE PASIVO Y PATRIMONIO / HACIENDA PÚBLICA | BM106: =BM80+BM104 -> 638,179,044.70 | BN106: =BN80+BN104 -> 623,449,863.27
B109: Bajo protesta de decir verdad declaramos que los estados financieros y sus notas, son razonablemente correctos y son responsabilidad del emisor.
Q118: =Validacion!A7 -> ING. RAÚL EVERARDO GUTIÉRREZ CASTAÑEDA | AW118: =Validacion!A9 -> MTRO. ARNOLDO SOLÓRZANO CUEVAS
Q120: Presidente Municipal o Títular del ente público | AW120: Encargado de la Hacienda Pública Municipal o Responsable de las finanzas del ente público

Sheet F1A
B1: =Validacion!A2 -> Tamazula de Gordiano
B2: ESTADO DE SITUACIÓN FINANCIERA
B3: ="Al "&INDEX(Validacion!D185:D196,MATCH(Validacion!A11,Validacion!C185:C196,0)) -> Al 29 de Febrero de 2024
B4: (Cifras en pesos)
A5: CTA. | B5: CONCEPTO | AF5: =Validacion!F185 -> 2024 | AG5: =Validacion!F186 -> 2023 | AH5: CTA | AI5: CONCEPTO | BM5: =Validacion!F185 -> 2024 | BN5: =Validacion!F186 -> 2023
B6: ACTIVO | AI6: PASIVO
B7: ACTIVO CIRCULANTE | AI7: PASIVO CIRCULANTE
B8: Efectivo y equivalentes | AF8: =Balanza!G5 -> 23,965,674.10 | AG8: =Balanza!C5 -> 11,502,299.08 | AI8: Cuentas por pagar a corto plazo | BM8: =Balanza!H103 -> 24,412,651.47 | BN8: =Balanza!D103 -> 24,598,540.93
B9: Derechos a recibir efectivo o equivalentes | AF9: =Balanza!G13 -> 5,361,392.28 | AG9: =Balanza!C13 -> 4,345,705.35 | AI9: Documentos por pagar a corto plazo | BM9: =Balanza!H113 -> 0.00 | BN9: =Balanza!D113 -> 0.00
B10: Derechos a recibir bienes o servicios | AF10: =Balanza!G21 -> 2,780,707.17 | AG10: =Balanza!C21 -> 2,780,707.17 | AI10: Porción a corto plazo de la deuda públicaa largo plazo | BM10: =Balanza!H117 -> 0.00 | BN10: =Balanza!D117 -> 0.00
B11: Inventarios | AF11: =Balanza!G27 -> 0.00 | AG11: =Balanza!C27 -> 0.00 | AI11: Títulos y valores a corto plazo | BM11: =Balanza!H121 -> 0.00 | BN11: =Balanza!D121 -> 0.00
B12: Almacenes | AF12: =Balanza!G33 -> 0.00 | AG12: =Balanza!C33 -> 0.00 | AI12: Pasivos diferidos a corto plazo | BM12: =Balanza!H124 -> 2,089,743.73 | BN12: =Balanza!D124 -> 2,793,236.27
B13: Estimación por pérdida o deterioro de activos circulantes | AF13: =Balanza!G35 -> 0.00 | AG13: =Balanza!C35 -> 0.00 | AI13: Fondos y bienes de terceros en garantía y/o administración a corto plazo | BM13: =Balanza!H128 -> 0.00 | BN13: =Balanza!D128 -> 0.00
B14: Otros activos circulantes | AF14: =Balanza!G38 -> 0.00 | AG14: =Balanza!C38 -> 0.00 | AI14: Provisiones a corto plazo | BM14: =Balanza!H135 -> 0.00 | BN14: =Balanza!D135 -> 0.00
B15: TOTAL DE ACTIVOS CIRCULANTES | AF15: =AF8+AF9+AF10+AF11+AF12+AF13+AF14 -> 32,107,773.55 | AG15: =AG8+AG9+AG10+AG11+AG12+AG13+AG14 -> 18,628,711.60 | AI15: Otros pasivos a corto plazo | BM15: =Balanza!H139 -> 65,847.95 | BN15: =Balanza!D139 -> 64,542.55
B16: ACTIVO NO CIRCULANTE | AI16: TOTAL DE PASIVOS CIRCULANTES | BM16: =BM8+BM9+BM10+BM11+BM12+BM13+BM14+BM15 -> 26,568,243.15 | BN16: =BN8+BN9+BN10+BN11+BN12+BN13+BN14+BN15 -> 27,456,319.75
B17: Inversiones financieras a largo plazo | AF17: =Balanza!G44 -> 0.00 | AG17: =Balanza!C44 -> 0.00 | AI17: PASIVO NO CIRCULANTE
B18: Derechos a recibir efectivo o equivalentes a largo plazo | AF18: =Balanza!G49 -> 0.00 | AG18: =Balanza!C49 -> 0.00 | AI18: Cuentas por pagar a largo plazo | BM18: =Balanza!H144 -> 0.00 | BN18: =Balanza!D144 -> 0.00
B19: Bienes inmuebles, infraestructura y construcciones en proceso | AF19: =Balanza!G55 -> 558,182,589.98 | AG19: =Balanza!C55 -> 556,968,585.96 | AI19: Documentos por pagar a largo plazo | BM19: =Balanza!H147 -> 0.00 | BN19: =Balanza!D147 -> 0.00
B20: Bienes muebles | AF20: =Balanza!G63 -> 47,596,491.48 | AG20: =Balanza!C63 -> 47,567,241.48 | AI20: Deuda pública a largo plazo | BM20: =Balanza!H151 -> 32,894,572.00 | BN20: =Balanza!D151 -> 33,938,844.13
B21: Activos intengibles | AF21: =Balanza!G72 -> 292,189.69 | AG21: =Balanza!C72 -> 285,324.23 | AI21: Pasivos diferidos a largo plazo | BM21: =Balanza!H157 -> 0.00 | BN21: =Balanza!D157 -> 0.00
B22: Depreciación, deterioro y amortización acumulada de bienes | AF22: =(Balanza!H78)*-1 -> 0.00 | AG22: =(Balanza!D78)*-1 -> 0.00 | AI22: Fondos y bienes de terceros en garantía y/o administración a largo plazo | BM22: =Balanza!H161 -> 0.00 | BN22: =Balanza!D161 -> 0.00
B23: Activos diferidos | AF23: =Balanza!G84 -> 0.00 | AG23: =Balanza!C84 -> 0.00 | AI23: Provisiones a largo plazo | BM23: =Balanza!H168 -> 0.00 | BN23: =Balanza!D168 -> 0.00
B24: Estimación por pérdida o deterioro de activos no circulantes | AF24: =(Balanza!H91)*-1 -> 0.00 | AG24: =(Balanza!D91)*-1 -> 0.00 | AI24: TOTAL DE PASIVOS NO CIRCULANTES | BM24: =BM18+BM19+BM20+BM21+BM22+BM23 -> 32,894,572.00 | BN24: =BN18+BN19+BN20+BN21+BN22+BN23 -> 33,938,844.13
B25: Otros activos circulantes | AF25: =Balanza!G97 -> 0.00 | AG25: =Balanza!C97 -> 0.00 | AI25: TOTAL DE PASIVOS | BM25: =BM16+BM24 -> 59,462,815.15 | BN25: =BN16+BN24 -> 61,395,163.88
B26: TOTAL DE ACTIVOS NO CIRCULANTES | AF26: =AF17+AF18+AF19+AF20+AF21+AF22+AF23+AF24+AF25 -> 606,071,271.15 | AG26: =AG17+AG18+AG19+AG20+AG21+AG22+AG23+AG24+AG25 -> 604,821,151.67 | AI26: HACIENDA PÚBLICA/ PATRIMONIO
